Workbook

Sheet Overview
B3: Model Overview
B5: To use this model: 1. Enable macros to run within this Excel file. The model will not function correctly without macros enabled. 2. Navigate to tab 1_Project Input. Enter a new project, or load and revise an existing project. Save the project once it has been entered or updated. 3. Navigate to the dashboard tabs (2_BMP Dashboard, 3_ Project Dashboard, or 4_Watershed Dashboard). Select the metric you would like to review (BMPs, Projects, Watershed) and the subset of those metrics. Select the year you would like to highlight. Review the results. 4. To modify results, return to tab 1_Project Input, and revise your project(s), enter new projects, or delete projects. Then navigate to the dashboard tabs to review the changes to the project costs. 5. To modify the underlying cost data, financing terms, or other base assumptions, navigate to tab 5_Cost Assumptions and tab 6_Other Assumptions. Follow the instructions on these worksheets if you wish to modify the underlying assumptions driving the model calculations.
B6: References: Tab 7_Model aggregates inputs for each project that has been saved into the model, and calculates the corresponding maintenance costs and labor costs. It is a reference worksheet.
B7: Hidden tabs: Tab 8_Output is a hidden worksheet that aggregates the costs for every project that has ben saved into the model, organized by project, BMP, and watershed. It is a reference worksheet, required to populate the charts in Tabs 2-4. Tab 9_Reference_Cost Assumptions is a hidden worksheet archive of the original BMP Types and associated cost data loaded into the model in June 2014. The worksheet can be un-hidden and referenced as necessary. Tab 10_Reference_Other Assumptions is a hidden worksheet archive of the original financing and other assumptions loaded into the model in June 2014. The worksheet can be un-hidden and referenced as necessary.
B10: Model updated December 2014, November 2016, and September 2018 by AECOM's Sustainable Economics team (San Francisco CA) in conjunction with SFPUC Utility Planning Division as part of the TBL Modelling process.

Sheet Project Input copy (hidden)
C12: Bioretention | D12: Hard Edge (a.k.a. Planter) | E12: Underdrained | F12: Typical | G12: 1000 | H12: square feet | I12: B | J12: 3 | K12: 1 | L12: 1 | M12: 1 | N12: EXAMPLE | O12: 2014 | P12: 2050
H13: - | J13: - | K13: -
H14: - | J14: - | K14: -
H15: - | J15: - | K15: -
H16: - | J16: - | K16: -
H17: - | J17: - | K17: -
H18: - | J18: - | K18: -
H19: - | J19: - | K19: -
H20: - | J20: - | K20: -
H21: - | J21: - | K21: -
H22: - | J22: - | K22: -
H23: - | J23: - | K23: -
H24: - | J24: - | K24: -
H25: - | J25: - | K25: -
H26: - | J26: - | K26: -
H27: - | J27: - | K27: -
H28: - | J28: - | K28: -
H29: - | J29: - | K29: -
H30: - | J30: - | K30: -
H31: - | J31: - | K31: -

Sheet Database (hidden)
A1: Project Name | B1: Watershed | C1: BMP Type | D1: BMP Sub-type | E1: BMP Sub-sub-type | F1: Spatial Distribution of BMP | G1: BMP Size | H1: BMP Unit of Measure | I1: Service Level | J1: # of typical visits/year | K1: # of rehab visits/year | L1: Proportion of BMP cost for which SFPUC has O&M Responsibility (% of cost) | M1: Cost Adjustment Factor (%) | N1: Comments (text) | O1: SFPUC Maintenance Start Date (YYYY) | P1: SFPUC Maintenance End Date (YYYY) - can be left blank if maintenance is ongoing | T1: number of archived project | U1: =COUNTA(Database[Project Name]) -> 1
A2: Bioretention Example | B2: Islais Creek | C2: Bioretention | D2: Hard Edge (a.k.a. Planter) | E2: Underdrained | F2: Typical | G2: 1000 | H2: square feet | I2: B | J2: 3 | K2: 1 | L2: 1 | M2: 1 | N2: EXAMPLE | O2: 2014 | P2: 2050 | T2: project exists? | U2: =COUNTIF(Database[Project Name],ref_projectname)>0 -> TRUE
T3: bmp dropdown | U3: TRUE
T5: SPATIAL DISTRIBUTION
T6: Concentrated
T7: Dispersed
T8: Typical
T11: Frequency | U11: Service Level | V11: # of typical visits/year | W11: # of rehab visits/year
T12: Visit every month – Monthly | U12: A | V12: 11 | W12: 1
T13: Visit every three months – Quarterly | U13: B | V13: 3 | W13: 1
T14: Visit every six months – Semiannual | U14: C | V14: 1 | W14: 1
T15: Visit every twelve months - Annual | U15: D | V15: 0 | W15: 1
T16: Visit every five years - Quinquennial | U16: E | V16: 0 | W16: 0.2

Sheet 1_Project Input
B3: Project Input
B5: Project Name: | D5: Bioretention Example
B7: Watershed: | D7: Islais Creek
B9: Number of BMP Types: | D9: 1
B11: Ref # | C11: BMP Type | D11: BMP Sub-type | E11: BMP Sub-sub-type | F11: Spatial Distribution of BMP | G11: BMP Size | H11: BMP Unit of Measure | I11: Service Level | J11: # of typical visits/year | K11: # of rehab visits/year | L11: Proportion of BMP cost for which SFPUC has O&M Responsibility (% of cost) | M11: Cost Adjustment Factor (%) | N11: Comments (text) | O11: SFPUC Maintenance Start Date (YYYY) | P11: SFPUC Maintenance End Date (YYYY)
B12: 1 | C12: Bioretention | D12: Hard Edge (a.k.a. Planter) | E12: Underdrained | F12: Typical | G12: 1000 | H12: =IFERROR(INDEX('5_Cost Assumptions'!$E$7:$E$230,MATCH(C12&" - "&D12&" - "&E12&" - "&I12,'5_Cost Assumptions'!$D$7:$D$230,0),1),"-") -> square feet | I12: B | J12: =IFERROR(INDEX('5_Cost Assumptions'!$I$7:$I$230,MATCH(C12&" - "&D12&" - "&E12&" - "&I12,'5_Cost Assumptions'!$D$7:$D$230,0),1),"-") -> 3 | K12: =IFERROR(INDEX('5_Cost Assumptions'!$J$7:$J$230,MATCH(C12&" - "&D12&" - "&E12&" - "&I12,'5_Cost Assumptions'!$D$7:$D$230,0),1),"-") -> 1 | L12: 1 | M12: 1 | N12: EXAMPLE | O12: 2014 | P12: 2050
B13: 2 | H13: =IFERROR(INDEX('5_Cost Assumptions'!$E$7:$E$230,MATCH(C13&" - "&D13&" - "&E13&" - "&I13,'5_Cost Assumptions'!$D$7:$D$230,0),1),"-") -> - | J13: =IFERROR(INDEX('5_Cost Assumptions'!$I$7:$I$230,MATCH(C13&" - "&D13&" - "&E13&" - "&I13,'5_Cost Assumptions'!$D$7:$D$230,0),1),"-") -> - | K13: =IFERROR(INDEX('5_Cost Assumptions'!$J$7:$J$230,MATCH(C13&" - "&D13&" - "&E13&" - "&I13,'5_Cost Assumptions'!$D$7:$D$230,0),1),"-") -> - | L13: 1 | M13: 1
B14: 3 | H14: =IFERROR(INDEX('5_Cost Assumptions'!$E$7:$E$230,MATCH(C14&" - "&D14&" - "&E14&" - "&I14,'5_Cost Assumptions'!$D$7:$D$230,0),1),"-") -> - | J14: =IFERROR(INDEX('5_Cost Assumptions'!$I$7:$I$230,MATCH(C14&" - "&D14&" - "&E14&" - "&I14,'5_Cost Assumptions'!$D$7:$D$230,0),1),"-") -> - | K14: =IFERROR(INDEX('5_Cost Assumptions'!$J$7:$J$230,MATCH(C14&" - "&D14&" - "&E14&" - "&I14,'5_Cost Assumptions'!$D$7:$D$230,0),1),"-") -> - | L14: 1 | M14: 1
B15: 4 | H15: =IFERROR(INDEX('5_Cost Assumptions'!$E$7:$E$230,MATCH(C15&" - "&D15&" - "&E15&" - "&I15,'5_Cost Assumptions'!$D$7:$D$230,0),1),"-") -> - | J15: =IFERROR(INDEX('5_Cost Assumptions'!$I$7:$I$230,MATCH(C15&" - "&D15&" - "&E15&" - "&I15,'5_Cost Assumptions'!$D$7:$D$230,0),1),"-") -> - | K15: =IFERROR(INDEX('5_Cost Assumptions'!$J$7:$J$230,MATCH(C15&" - "&D15&" - "&E15&" - "&I15,'5_Cost Assumptions'!$D$7:$D$230,0),1),"-") -> - | L15: 1 | M15: 1
B16: 5 | H16: =IFERROR(INDEX('5_Cost Assumptions'!$E$7:$E$230,MATCH(C16&" - "&D16&" - "&E16&" - "&I16,'5_Cost Assumptions'!$D$7:$D$230,0),1),"-") -> - | J16: =IFERROR(INDEX('5_Cost Assumptions'!$I$7:$I$230,MATCH(C16&" - "&D16&" - "&E16&" - "&I16,'5_Cost Assumptions'!$D$7:$D$230,0),1),"-") -> - | K16: =IFERROR(INDEX('5_Cost Assumptions'!$J$7:$J$230,MATCH(C16&" - "&D16&" - "&E16&" - "&I16,'5_Cost Assumptions'!$D$7:$D$230,0),1),"-") -> - | L16: 1 | M16: 1
B17: 6 | H17: =IFERROR(INDEX('5_Cost Assumptions'!$E$7:$E$230,MATCH(C17&" - "&D17&" - "&E17&" - "&I17,'5_Cost Assumptions'!$D$7:$D$230,0),1),"-") -> - | J17: =IFERROR(INDEX('5_Cost Assumptions'!$I$7:$I$230,MATCH(C17&" - "&D17&" - "&E17&" - "&I17,'5_Cost Assumptions'!$D$7:$D$230,0),1),"-") -> - | K17: =IFERROR(INDEX('5_Cost Assumptions'!$J$7:$J$230,MATCH(C17&" - "&D17&" - "&E17&" - "&I17,'5_Cost Assumptions'!$D$7:$D$230,0),1),"-") -> - | L17: 1 | M17: 1
B18: 7 | H18: =IFERROR(INDEX('5_Cost Assumptions'!$E$7:$E$230,MATCH(C18&" - "&D18&" - "&E18&" - "&I18,'5_Cost Assumptions'!$D$7:$D$230,0),1),"-") -> - | J18: =IFERROR(INDEX('5_Cost Assumptions'!$I$7:$I$230,MATCH(C18&" - "&D18&" - "&E18&" - "&I18,'5_Cost Assumptions'!$D$7:$D$230,0),1),"-") -> - | K18: =IFERROR(INDEX('5_Cost Assumptions'!$J$7:$J$230,MATCH(C18&" - "&D18&" - "&E18&" - "&I18,'5_Cost Assumptions'!$D$7:$D$230,0),1),"-") -> - | L18: 1 | M18: 1
B19: 8 | H19: =IFERROR(INDEX('5_Cost Assumptions'!$E$7:$E$230,MATCH(C19&" - "&D19&" - "&E19&" - "&I19,'5_Cost Assumptions'!$D$7:$D$230,0),1),"-") -> - | J19: =IFERROR(INDEX('5_Cost Assumptions'!$I$7:$I$230,MATCH(C19&" - "&D19&" - "&E19&" - "&I19,'5_Cost Assumptions'!$D$7:$D$230,0),1),"-") -> - | K19: =IFERROR(INDEX('5_Cost Assumptions'!$J$7:$J$230,MATCH(C19&" - "&D19&" - "&E19&" - "&I19,'5_Cost Assumptions'!$D$7:$D$230,0),1),"-") -> - | L19: 1 | M19: 1
B20: 9 | H20: =IFERROR(INDEX('5_Cost Assumptions'!$E$7:$E$230,MATCH(C20&" - "&D20&" - "&E20&" - "&I20,'5_Cost Assumptions'!$D$7:$D$230,0),1),"-") -> - | J20: =IFERROR(INDEX('5_Cost Assumptions'!$I$7:$I$230,MATCH(C20&" - "&D20&" - "&E20&" - "&I20,'5_Cost Assumptions'!$D$7:$D$230,0),1),"-") -> - | K20: =IFERROR(INDEX('5_Cost Assumptions'!$J$7:$J$230,MATCH(C20&" - "&D20&" - "&E20&" - "&I20,'5_Cost Assumptions'!$D$7:$D$230,0),1),"-") -> - | L20: 1 | M20: 1
B21: 10 | H21: =IFERROR(INDEX('5_Cost Assumptions'!$E$7:$E$230,MATCH(C21&" - "&D21&" - "&E21&" - "&I21,'5_Cost Assumptions'!$D$7:$D$230,0),1),"-") -> - | J21: =IFERROR(INDEX('5_Cost Assumptions'!$I$7:$I$230,MATCH(C21&" - "&D21&" - "&E21&" - "&I21,'5_Cost Assumptions'!$D$7:$D$230,0),1),"-") -> - | K21: =IFERROR(INDEX('5_Cost Assumptions'!$J$7:$J$230,MATCH(C21&" - "&D21&" - "&E21&" - "&I21,'5_Cost Assumptions'!$D$7:$D$230,0),1),"-") -> - | L21: 1 | M21: 1
B22: 11 | H22: =IFERROR(INDEX('5_Cost Assumptions'!$E$7:$E$230,MATCH(C22&" - "&D22&" - "&E22&" - "&I22,'5_Cost Assumptions'!$D$7:$D$230,0),1),"-") -> - | J22: =IFERROR(INDEX('5_Cost Assumptions'!$I$7:$I$230,MATCH(C22&" - "&D22&" - "&E22&" - "&I22,'5_Cost Assumptions'!$D$7:$D$230,0),1),"-") -> - | K22: =IFERROR(INDEX('5_Cost Assumptions'!$J$7:$J$230,MATCH(C22&" - "&D22&" - "&E22&" - "&I22,'5_Cost Assumptions'!$D$7:$D$230,0),1),"-") -> - | L22: 1 | M22: 1
B23: 12 | H23: =IFERROR(INDEX('5_Cost Assumptions'!$E$7:$E$230,MATCH(C23&" - "&D23&" - "&E23&" - "&I23,'5_Cost Assumptions'!$D$7:$D$230,0),1),"-") -> - | J23: =IFERROR(INDEX('5_Cost Assumptions'!$I$7:$I$230,MATCH(C23&" - "&D23&" - "&E23&" - "&I23,'5_Cost Assumptions'!$D$7:$D$230,0),1),"-") -> - | K23: =IFERROR(INDEX('5_Cost Assumptions'!$J$7:$J$230,MATCH(C23&" - "&D23&" - "&E23&" - "&I23,'5_Cost Assumptions'!$D$7:$D$230,0),1),"-") -> - | L23: 1 | M23: 1
B24: 13 | H24: =IFERROR(INDEX('5_Cost Assumptions'!$E$7:$E$230,MATCH(C24&" - "&D24&" - "&E24&" - "&I24,'5_Cost Assumptions'!$D$7:$D$230,0),1),"-") -> - | J24: =IFERROR(INDEX('5_Cost Assumptions'!$I$7:$I$230,MATCH(C24&" - "&D24&" - "&E24&" - "&I24,'5_Cost Assumptions'!$D$7:$D$230,0),1),"-") -> - | K24: =IFERROR(INDEX('5_Cost Assumptions'!$J$7:$J$230,MATCH(C24&" - "&D24&" - "&E24&" - "&I24,'5_Cost Assumptions'!$D$7:$D$230,0),1),"-") -> - | L24: 1 | M24: 1
B25: 14 | H25: =IFERROR(INDEX('5_Cost Assumptions'!$E$7:$E$230,MATCH(C25&" - "&D25&" - "&E25&" - "&I25,'5_Cost Assumptions'!$D$7:$D$230,0),1),"-") -> - | J25: =IFERROR(INDEX('5_Cost Assumptions'!$I$7:$I$230,MATCH(C25&" - "&D25&" - "&E25&" - "&I25,'5_Cost Assumptions'!$D$7:$D$230,0),1),"-") -> - | K25: =IFERROR(INDEX('5_Cost Assumptions'!$J$7:$J$230,MATCH(C25&" - "&D25&" - "&E25&" - "&I25,'5_Cost Assumptions'!$D$7:$D$230,0),1),"-") -> - | L25: 1 | M25: 1
B26: 15 | H26: =IFERROR(INDEX('5_Cost Assumptions'!$E$7:$E$230,MATCH(C26&" - "&D26&" - "&E26&" - "&I26,'5_Cost Assumptions'!$D$7:$D$230,0),1),"-") -> - | J26: =IFERROR(INDEX('5_Cost Assumptions'!$I$7:$I$230,MATCH(C26&" - "&D26&" - "&E26&" - "&I26,'5_Cost Assumptions'!$D$7:$D$230,0),1),"-") -> - | K26: =IFERROR(INDEX('5_Cost Assumptions'!$J$7:$J$230,MATCH(C26&" - "&D26&" - "&E26&" - "&I26,'5_Cost Assumptions'!$D$7:$D$230,0),1),"-") -> - | L26: 1 | M26: 1
B27: 16 | H27: =IFERROR(INDEX('5_Cost Assumptions'!$E$7:$E$230,MATCH(C27&" - "&D27&" - "&E27&" - "&I27,'5_Cost Assumptions'!$D$7:$D$230,0),1),"-") -> - | J27: =IFERROR(INDEX('5_Cost Assumptions'!$I$7:$I$230,MATCH(C27&" - "&D27&" - "&E27&" - "&I27,'5_Cost Assumptions'!$D$7:$D$230,0),1),"-") -> - | K27: =IFERROR(INDEX('5_Cost Assumptions'!$J$7:$J$230,MATCH(C27&" - "&D27&" - "&E27&" - "&I27,'5_Cost Assumptions'!$D$7:$D$230,0),1),"-") -> - | L27: 1 | M27: 1
B28: 17 | H28: =IFERROR(INDEX('5_Cost Assumptions'!$E$7:$E$230,MATCH(C28&" - "&D28&" - "&E28&" - "&I28,'5_Cost Assumptions'!$D$7:$D$230,0),1),"-") -> - | J28: =IFERROR(INDEX('5_Cost Assumptions'!$I$7:$I$230,MATCH(C28&" - "&D28&" - "&E28&" - "&I28,'5_Cost Assumptions'!$D$7:$D$230,0),1),"-") -> - | K28: =IFERROR(INDEX('5_Cost Assumptions'!$J$7:$J$230,MATCH(C28&" - "&D28&" - "&E28&" - "&I28,'5_Cost Assumptions'!$D$7:$D$230,0),1),"-") -> - | L28: 1 | M28: 1
B29: 18 | H29: =IFERROR(INDEX('5_Cost Assumptions'!$E$7:$E$230,MATCH(C29&" - "&D29&" - "&E29&" - "&I29,'5_Cost Assumptions'!$D$7:$D$230,0),1),"-") -> - | J29: =IFERROR(INDEX('5_Cost Assumptions'!$I$7:$I$230,MATCH(C29&" - "&D29&" - "&E29&" - "&I29,'5_Cost Assumptions'!$D$7:$D$230,0),1),"-") -> - | K29: =IFERROR(INDEX('5_Cost Assumptions'!$J$7:$J$230,MATCH(C29&" - "&D29&" - "&E29&" - "&I29,'5_Cost Assumptions'!$D$7:$D$230,0),1),"-") -> - | L29: 1 | M29: 1
B30: 19 | H30: =IFERROR(INDEX('5_Cost Assumptions'!$E$7:$E$230,MATCH(C30&" - "&D30&" - "&E30&" - "&I30,'5_Cost Assumptions'!$D$7:$D$230,0),1),"-") -> - | J30: =IFERROR(INDEX('5_Cost Assumptions'!$I$7:$I$230,MATCH(C30&" - "&D30&" - "&E30&" - "&I30,'5_Cost Assumptions'!$D$7:$D$230,0),1),"-") -> - | K30: =IFERROR(INDEX('5_Cost Assumptions'!$J$7:$J$230,MATCH(C30&" - "&D30&" - "&E30&" - "&I30,'5_Cost Assumptions'!$D$7:$D$230,0),1),"-") -> - | L30: 1 | M30: 1
B31: 20 | H31: =IFERROR(INDEX('5_Cost Assumptions'!$E$7:$E$230,MATCH(C31&" - "&D31&" - "&E31&" - "&I31,'5_Cost Assumptions'!$D$7:$D$230,0),1),"-") -> - | J31: =IFERROR(INDEX('5_Cost Assumptions'!$I$7:$I$230,MATCH(C31&" - "&D31&" - "&E31&" - "&I31,'5_Cost Assumptions'!$D$7:$D$230,0),1),"-") -> - | K31: =IFERROR(INDEX('5_Cost Assumptions'!$J$7:$J$230,MATCH(C31&" - "&D31&" - "&E31&" - "&I31,'5_Cost Assumptions'!$D$7:$D$230,0),1),"-") -> - | L31: 1 | M31: 1

Sheet 2_BMP Dashboard
B2: BMP Dashboard
B37: Notes/Instructions
B38: The BMP Dashboard is an output window to aggregate the maintenance costs and labor responsibilities by BMP Type.
B39: The BMP selection dropdown menu [Select a BMP Type] has three selection options: 1) 'All BMPs', 2) 'Multiple BMP Selection', and 3) Individual BMP Type (by name).
B40: When 'All BMPs' is selected, the dashboard will display the maintenance costs and labor data for all BMP Types that have been entered into projects in the model.
B41: When an individual BMP Type is selected, the dashboard will display the maintenance costs and labor data for the selected BMP Type, from all projects in the model.
B42: When 'Multiple BMP Selection' is selected, the dashboard will display a dialogue box where the user can select any subset of BMP Types.
B43: After the BMPs have been selected, the user must click 'OK' to populate the dashboard. A list of the selected BMP Types will appear to the right of the dashboard.
B44: The year selection dropdown menu [Select a year] allows the user to examine the maintenance cost and labor data for the selected year.
B45: When a year is selected, the values in the upper left data table, Budget Required, Full-time Equivalent, and Labor Hours, will show the maintenance costs and labor requirements for that year.
B46: When a year is selected, the blue dot will move to the selected year on each of the graphs [O&M Budget Trend, O&M Labor Hours Trend, and FTE Trend].
B47: Data Summary (upper left table)
B48: NPV is the net present value of the projects of the selected BMP type over the entire lifespan. The NPV will not change, even when the year selected is changed.
B49: Budget Required is the estimated maintenance cost of the selected project(s) in the selected year. The cost includes materials and labor.
B50: Full-time Equivalent is the estimated number of full-time equivalent employees that will be required to maintain the selected project(s) in the selected year, based on a 40-hour workweek.
B51: Labor Hours is the estimated number of labor hours that will be required to maintain the selected project(s), rounded to the nearest hour.
B52: The level of precision for NPV, Budget Required, Full-time Equivalent, and Labor Hours is defined in tab 6_Other Assumptions. The level of precision can be modified there.
B53: O&M Budget Trend
B54: The O&M Budget Trend chart shows the estimated total maintenance costs, for the selected project(s), over a twenty year period.
B55: O&M Labor Hours Trend
B56: The O&M Labor Hours Trend chart shows the estimated total labor hours, for the selected project(s), over a twenty year period.
B57: FTE Trend
B58: The FTE Trend chart shows the estimated total number of staff-people (FTEs), for the selected project(s), over a twenty year period, based on a 40-hour workweek.

Sheet 3_Project Dashboard
B2: Project Dashboard
X4: 2014
A5: 2025 | X5: =X4+1 -> 2015
X6: =X5+1 -> 2016
X7: 2017
X8: 2018
X9: 2019
X10: 2020
X11: 2021
X12: 2022
X13: 2023
X14: 2024
X15: 2025
X16: 2026
X17: 2027
X18: 2028
X19: 2029
X20: 2030
X21: 2031
X22: 2032
X23: 2033
X24: 2034
X25: 2035
X26: 2036
X27: 2037
X28: 2038
X29: 2039
X30: 2040
X31: 2041
X32: 2042
X33: 2043
X34: 2044
X35: 2045
X36: 2046
X37: 2047
B38: Notes/Instructions | X38: 2048
B39: The Project Dashboard is an output window to aggregate the maintenance responsibility by project. | X39: 2049
B40: The project selection dropdown menu [Select a Project] has three selection options: 1) 'All Projects', 2) 'Multiple Project Selection', and 3) each project individually. | X40: 2050
B41: Selecting 'All Projects' means that the dashboard will display the maintenance data for all projects.
B42: Selecting an individual project means that the dashboard will display the maintenance data for that project.
B43: Selecting 'Multiple Project Selection' will result in a dialogue box where a user can select any subset of projects.
B44: After the desired projects have been selected, click ok to populate the dashboard. A list of the selected projects will appear to the right of the dashboard as a reminder.
B45: The year selection dropdown menu [Select a year] allows the user to examine the maintenance cost and labor data for the selected year.
B46: When a year is selected, the values in the upper left data table, Budget Required, Full-time Equivalent, and Labor Hours, will show the maintenance costs and labor requirements for that year.
B47: When a year is selected, the blue dot will move to the selected year on each of the graphs [O&M Budget Trend, O&M Labor Hours Trend, and FTE Trend].
B48: Data Summary (upper left table)
B49: NPV is the net present value of the selected project(s) for its/their entire lifespan. The NPV will not change, even when the year selected is changed.
B50: Budget Required is the estimated maintenance cost of the selected project(s) in the selected year. The cost includes materials and labor.
B51: Full-time Equivalent is the estimated number of full-time equivalent employees that will be required to maintain the selected project(s) in the selected year, based on a 40-hour workweek.
B52: Labor Hours is the estimated number of labor hours that will be required to maintain the selected project(s), rounded to the nearest hour.
B53: The level of precision for NPV, Budget Required, Full-time Equivalent, and Labor Hours is defined in tab 6_Other Assumptions. The level of precision can be modified there.
B54: O&M Budget Trend
B55: The O&M Budget Trend chart shows the estimated total maintenance costs, for the selected project(s), over a twenty year period.
B56: O&M Labor Hours Trend
B57: The O&M Labor Hours Trend chart shows the estimated total labor hours, for the selected project(s), over a twenty year period.
B58: FTE Trend
B59: The FTE Trend chart shows the estimated total number of staff-people (FTEs), for the selected project(s), over a twenty year period, based on a 40-hour workweek.

Sheet 4_Watershed Dashboard
N2: NOTE: The Watershed function is not currently available for other municipalities.
B38: Notes/Instructions
B39: The Watershed Dashboard is an output window to aggregate the maintenance responsibility by watershed. The Watershed Dashboard only incorporates existing watersheds in the City of San Francisco.
B40: The watershed selection dropdown menu [Select a Watershed] has two selection options: 1) 'All Watersheds', or 2) each individual watershed.
B41: Selecting 'All Watersheds' means that the dashboard will display the maintenance data for all projects within all watersheds.
B42: Selecting an individual watershed means that the dashboard will display the maintenance data for all projects within the selected watershed.
B43: The year selection dropdown menu [Select a year] allows the user to examine the maintenance cost and labor data for the selected year.
B44: When a year is selected, the values in the upper left data table, Budget Required, Full-time Equivalent, and Labor Hours, will show the maintenance costs and labor requirements for that year.
B45: When a year is selected, the blue dot will move to the selected year on each of the graphs [O&M Budget Trend, O&M Labor Hours Trend, and FTE Trend].
B46: Data Summary (upper left table)
B47: NPV is the net present value of the selected project(s) for its/their entire lifespan. The NPV will not change, even when the year selected is changed.
B48: Budget Required is the estimated maintenance cost of the selected project(s) in the selected year. The cost includes materials and labor.
B49: Full-time Equivalent is the estimated number of full-time equivalent employees that will be required to maintain the selected project(s) in the selected year, based on a 40-hour workweek.
B50: Labor Hours is the estimated number of labor hours that will be required to maintain the selected project(s).
B51: The level of precision for NPV, Budget Required, Full-time Equivalent, and Labor Hours is defined in tab 6_Other Assumptions. The level of precision can be modified there.
B52: O&M Budget Trend
B53: The O&M Budget Trend chart shows the estimated total maintenance costs, for the selected project(s), over a twenty year period.
B54: O&M Labor Hours Trend
B55: The O&M Labor Hours Trend chart shows the estimated total labor hours, for the selected project(s), over a twenty year period.
B56: FTE Trend
B57: The FTE Trend chart shows the estimated total number of staff-people (FTEs), for the selected project(s), over a twenty year period, based on a 40-hour workweek.

Sheet 5_Cost Assumptions
A1: Operations and Maintenance Cost Assumptions
A4: Modification of this sheet is POSSIBLE but NOT REQUIRED
A5: BMP Type | B5: BMP Sub-type | C5: BMP Sub-sub-type | D5: Full BMP Name | E5: Units of Measurement - BMP | F5: Units of Measurement - Cost | G5: Estimated Life Span (years) | H5: Service Level | I5: # of Typical Visits/Year | J5: # of Rehab Visits/Year | K5: Labor Component of Annualized Unit Maintenance Cost (hours) | L5: Assumed Hourly Wage Rate ($/hr) | M5: Base Year for Wage Rate | N5: Labor Component of Annualized Unit Maintenance Cost (cost) | O5: Materials Component of Annualized Unit Maintenance Cost | P5: Base Year for Materials Component of Annualized Unit Maintenance Cost | Q5: Annualized Unit Maintenance Cost (AUMC) | T5: Base Year for AUMC Dollars | W5: Annualized Unit Maintenance Cost (Year 0) (escalated from base year) | Y5: Typical Cost Adjustment Factor | Z5: Dispersed Cost Adjustment Factor | AA5: Concentrated Cost Adjustment Factor | AC5: Check
A6: Locked input | B6: Locked input | C6: Locked input | D6: Auto-populated field | E6: Locked input | F6: Locked input | G6: Locked input | H6: Locked input | I6: Locked input | J6: Locked input | K6: Enter data (default provided) | L6: Enter data (default provided) | M6: Enter data (default provided) | N6: Calculated field (Labor hours x Hourly wage rate) | O6: Enter data (default provided) | P6: Enter data (default provided) | Q6: (default provided as sum of material and labor components of cost) | R6: Value | S6: Optional Override | T6: (default is base year of assumed hourly wage rate - see notes) | U6: value | V6: Optional Override | W6: Locked calculation | Y6: Value | Z6: Enter data | AA6: Enter data | AC6: Auto-check
A7: Bioretention | B7: Soft Edge (a.k.a. Rain Garden) | C7: Infiltrative | D7: =IF(LEN(A7)>0,A7&" - "&B7&" - "&C7&" - "&H7,"") -> Bioretention - Soft Edge (a.k.a. Rain Garden) - Infiltrative - A | E7: square feet | F7: $/ft2 | G7: 30 | H7: A | I7: 11 | J7: 1 | K7: 0.07845 | L7: 66 | M7: 2014 | N7: =K7*$L$7 -> 5.1777 | O7: 1.26 | P7: 2014 | Q7: =IF($M$7<=$P$7,N7*(1+'6_Other Assumptions'!$B$9)^($P$7-$M$7),N7*(1+'6_Other Assumptions'!$B$9+'6_Other Assumptions'!$B$11)^($P$7-$M$7))+IF(T7<=$P$7,O7*(1+'6_Other Assumptions'!$B$9)^($P$7-T7),O7*(1+'6_Other Assumptions'!$B$9+'6_Other Assumptions'!$B$11)^($P$7-T7)) -> 6.4377 | R7: =IF(ISBLANK(S7),Q7,S7) -> 6.4377 | T7: =MAX($M$7,P7) -> 2014 | U7: =IF(ISBLANK(V7),T7,V7) -> 2014 | W7: =IF(U7<='6_Other Assumptions'!$B$7,R7*(1+'6_Other Assumptions'!$B$9)^('6_Other Assumptions'!$B$7-U7),R7*(1+'6_Other Assumptions'!$B$9+'6_Other Assumptions'!$B$11)^('6_Other Assumptions'!$B$7-U7)) -> 6.4377 | Y7: 1 | Z7: 1 | AA7: 1 | AC7: =IF(OR(A7<>"",B7<>"",C7<>""),OR(AND(E7<>"",H7<>"",I7<>"",J7<>"",K7<>"",$L$7<>"",$M$7<>"",O7<>"",P7<>"",Z7<>"",AA7<>""),AND(E7<>"",V7<>"",S7<>"",Z7<>"",AA7<>"")),TRUE) -> TRUE
A8: Bioretention | B8: Soft Edge (a.k.a. Rain Garden) | C8: Infiltrative | D8: =IF(LEN(A8)>0,A8&" - "&B8&" - "&C8&" - "&H8,"") -> Bioretention - Soft Edge (a.k.a. Rain Garden) - Infiltrative - B | E8: square feet | F8: $/ft2 | G8: 30 | H8: B | I8: 3 | J8: 1 | K8: 0.03005 | N8: 1.9833 | O8: 1.26 | P8: 2014 | Q8: =IF($M$7<=$P$7,N8*(1+'6_Other Assumptions'!$B$9)^($P$7-$M$7),N8*(1+'6_Other Assumptions'!$B$9+'6_Other Assumptions'!$B$11)^($P$7-$M$7))+IF(T8<=$P$7,O8*(1+'6_Other Assumptions'!$B$9)^($P$7-T8),O8*(1+'6_Other Assumptions'!$B$9+'6_Other Assumptions'!$B$11)^($P$7-T8)) -> 3.2433 | R8: 3.2433 | T8: =MAX($M$7,P8) -> 2014 | U8: =IF(ISBLANK(V8),T8,V8) -> 2014 | W8: =IF(U8<='6_Other Assumptions'!$B$7,R8*(1+'6_Other Assumptions'!$B$9)^('6_Other Assumptions'!$B$7-U8),R8*(1+'6_Other Assumptions'!$B$9+'6_Other Assumptions'!$B$11)^('6_Other Assumptions'!$B$7-U8)) -> 3.2433 | Y8: 1 | Z8: 1 | AA8: 1 | AC8: =IF(OR(A8<>"",B8<>"",C8<>""),OR(AND(E8<>"",H8<>"",I8<>"",J8<>"",K8<>"",$L$7<>"",$M$7<>"",O8<>"",P8<>"",Z8<>"",AA8<>""),AND(E8<>"",V8<>"",S8<>"",Z8<>"",AA8<>"")),TRUE) -> TRUE
A9: Bioretention | B9: Soft Edge (a.k.a. Rain Garden) | C9: Infiltrative | D9: Bioretention - Soft Edge (a.k.a. Rain Garden) - Infiltrative - C | E9: square feet | F9: $/ft2 | G9: 30 | H9: C | I9: 1 | J9: 1 | K9: 0.01795 | N9: 1.1847 | O9: 1.26 | P9: 2014 | Q9: =IF($M$7<=$P$7,N9*(1+'6_Other Assumptions'!$B$9)^($P$7-$M$7),N9*(1+'6_Other Assumptions'!$B$9+'6_Other Assumptions'!$B$11)^($P$7-$M$7))+IF(T9<=$P$7,O9*(1+'6_Other Assumptions'!$B$9)^($P$7-T9),O9*(1+'6_Other Assumptions'!$B$9+'6_Other Assumptions'!$B$11)^($P$7-T9)) -> 2.4447 | R9: 2.4447 | T9: 2014 | U9: 2014 | W9: =IF(U9<='6_Other Assumptions'!$B$7,R9*(1+'6_Other Assumptions'!$B$9)^('6_Other Assumptions'!$B$7-U9),R9*(1+'6_Other Assumptions'!$B$9+'6_Other Assumptions'!$B$11)^('6_Other Assumptions'!$B$7-U9)) -> 2.4447 | Y9: 1 | Z9: 1 | AA9: 1 | AC9: TRUE
A10: Bioretention | B10: Soft Edge (a.k.a. Rain Garden) | C10: Infiltrative | D10: Bioretention - Soft Edge (a.k.a. Rain Garden) - Infiltrative - D | E10: square feet | F10: $/ft2 | G10: 30 | H10: D | I10: 0 | J10: 1 | K10: 0.0119 | N10: 0.7854 | O10: 1.26 | P10: 2014 | Q10: =IF($M$7<=$P$7,N10*(1+'6_Other Assumptions'!$B$9)^($P$7-$M$7),N10*(1+'6_Other Assumptions'!$B$9+'6_Other Assumptions'!$B$11)^($P$7-$M$7))+IF(T10<=$P$7,O10*(1+'6_Other Assumptions'!$B$9)^($P$7-T10),O10*(1+'6_Other Assumptions'!$B$9+'6_Other Assumptions'!$B$11)^($P$7-T10)) -> 2.0454 | R10: 2.0454 | T10: 2014 | U10: 2014 | W10: =IF(U10<='6_Other Assumptions'!$B$7,R10*(1+'6_Other Assumptions'!$B$9)^('6_Other Assumptions'!$B$7-U10),R10*(1+'6_Other Assumptions'!$B$9+'6_Other Assumptions'!$B$11)^('6_Other Assumptions'!$B$7-U10)) -> 2.0454 | Y10: 1 | Z10: 1 | AA10: 1 | AC10: TRUE
A11: Bioretention | B11: Soft Edge (a.k.a. Rain Garden) | C11: Infiltrative | D11: Bioretention - Soft Edge (a.k.a. Rain Garden) - Infiltrative - E | E11: square feet | F11: $/ft2 | G11: 30 | H11: E | I11: 0 | J11: 0.2 | K11: 0.00238 | N11: 0.15708 | O11: 1.26 | P11: 2014 | Q11: =IF($M$7<=$P$7,N11*(1+'6_Other Assumptions'!$B$9)^($P$7-$M$7),N11*(1+'6_Other Assumptions'!$B$9+'6_Other Assumptions'!$B$11)^($P$7-$M$7))+IF(T11<=$P$7,O11*(1+'6_Other Assumptions'!$B$9)^($P$7-T11),O11*(1+'6_Other Assumptions'!$B$9+'6_Other Assumptions'!$B$11)^($P$7-T11)) -> 1.41708 | R11: 1.41708 | T11: 2014 | U11: 2014 | W11: =IF(U11<='6_Other Assumptions'!$B$7,R11*(1+'6_Other Assumptions'!$B$9)^('6_Other Assumptions'!$B$7-U11),R11*(1+'6_Other Assumptions'!$B$9+'6_Other Assumptions'!$B$11)^('6_Other Assumptions'!$B$7-U11)) -> 1.41708 | Y11: 1 | Z11: 1 | AA11: 1 | AC11: TRUE
A12: Bioretention | B12: Soft Edge (a.k.a. Rain Garden) | C12: Underdrained | D12: Bioretention - Soft Edge (a.k.a. Rain Garden) - Underdrained - A | E12: square feet | F12: $/ft2 | G12: 30 | H12: A | I12: 11 | J12: 1 | K12: 0.08545 | N12: 5.6397 | O12: 1.26 | P12: 2014 | Q12: =IF($M$7<=$P$7,N12*(1+'6_Other Assumptions'!$B$9)^($P$7-$M$7),N12*(1+'6_Other Assumptions'!$B$9+'6_Other Assumptions'!$B$11)^($P$7-$M$7))+IF(T12<=$P$7,O12*(1+'6_Other Assumptions'!$B$9)^($P$7-T12),O12*(1+'6_Other Assumptions'!$B$9+'6_Other Assumptions'!$B$11)^($P$7-T12)) -> 6.8997 | R12: 6.8997 | T12: 2014 | U12: 2014 | W12: =IF(U12<='6_Other Assumptions'!$B$7,R12*(1+'6_Other Assumptions'!$B$9)^('6_Other Assumptions'!$B$7-U12),R12*(1+'6_Other Assumptions'!$B$9+'6_Other Assumptions'!$B$11)^('6_Other Assumptions'!$B$7-U12)) -> 6.8997 | Y12: 1 | Z12: 1 | AA12: 1 | AC12: TRUE
A13: Bioretention | B13: Soft Edge (a.k.a. Rain Garden) | C13: Underdrained | D13: Bioretention - Soft Edge (a.k.a. Rain Garden) - Underdrained - B | E13: square feet | F13: $/ft2 | G13: 30 | H13: B | I13: 3 | J13: 1 | K13: 0.03385 | N13: 2.2341 | O13: 1.26 | P13: 2014 | Q13: =IF($M$7<=$P$7,N13*(1+'6_Other Assumptions'!$B$9)^($P$7-$M$7),N13*(1+'6_Other Assumptions'!$B$9+'6_Other Assumptions'!$B$11)^($P$7-$M$7))+IF(T13<=$P$7,O13*(1+'6_Other Assumptions'!$B$9)^($P$7-T13),O13*(1+'6_Other Assumptions'!$B$9+'6_Other Assumptions'!$B$11)^($P$7-T13)) -> 3.4941 | R13: 3.4941 | T13: 2014 | U13: 2014 | W13: =IF(U13<='6_Other Assumptions'!$B$7,R13*(1+'6_Other Assumptions'!$B$9)^('6_Other Assumptions'!$B$7-U13),R13*(1+'6_Other Assumptions'!$B$9+'6_Other Assumptions'!$B$11)^('6_Other Assumptions'!$B$7-U13)) -> 3.4941 | Y13: 1 | Z13: 1 | AA13: 1 | AC13: TRUE
A14: Bioretention | B14: Soft Edge (a.k.a. Rain Garden) | C14: Underdrained | D14: Bioretention - Soft Edge (a.k.a. Rain Garden) - Underdrained - C | E14: square feet | F14: $/ft2 | G14: 30 | H14: C | I14: 1 | J14: 1 | K14: 0.02095 | N14: 1.3827 | O14: 1.26 | P14: 2014 | Q14: =IF($M$7<=$P$7,N14*(1+'6_Other Assumptions'!$B$9)^($P$7-$M$7),N14*(1+'6_Other Assumptions'!$B$9+'6_Other Assumptions'!$B$11)^($P$7-$M$7))+IF(T14<=$P$7,O14*(1+'6_Other Assumptions'!$B$9)^($P$7-T14),O14*(1+'6_Other Assumptions'!$B$9+'6_Other Assumptions'!$B$11)^($P$7-T14)) -> 2.6427 | R14: 2.6427 | T14: 2014 | U14: 2014 | W14: =IF(U14<='6_Other Assumptions'!$B$7,R14*(1+'6_Other Assumptions'!$B$9)^('6_Other Assumptions'!$B$7-U14),R14*(1+'6_Other Assumptions'!$B$9+'6_Other Assumptions'!$B$11)^('6_Other Assumptions'!$B$7-U14)) -> 2.6427 | Y14: 1 | Z14: 1 | AA14: 1 | AC14: TRUE
A15: Bioretention | B15: Soft Edge (a.k.a. Rain Garden) | C15: Underdrained | D15: Bioretention - Soft Edge (a.k.a. Rain Garden) - Underdrained - D | E15: square feet | F15: $/ft2 | G15: 30 | H15: D | I15: 0 | J15: 1 | K15: 0.0145 | N15: 0.957 | O15: 1.26 | P15: 2014 | Q15: =IF($M$7<=$P$7,N15*(1+'6_Other Assumptions'!$B$9)^($P$7-$M$7),N15*(1+'6_Other Assumptions'!$B$9+'6_Other Assumptions'!$B$11)^($P$7-$M$7))+IF(T15<=$P$7,O15*(1+'6_Other Assumptions'!$B$9)^($P$7-T15),O15*(1+'6_Other Assumptions'!$B$9+'6_Other Assumptions'!$B$11)^($P$7-T15)) -> 2.217 | R15: 2.217 | T15: 2014 | U15: 2014 | W15: =IF(U15<='6_Other Assumptions'!$B$7,R15*(1+'6_Other Assumptions'!$B$9)^('6_Other Assumptions'!$B$7-U15),R15*(1+'6_Other Assumptions'!$B$9+'6_Other Assumptions'!$B$11)^('6_Other Assumptions'!$B$7-U15)) -> 2.217 | Y15: 1 | Z15: 1 | AA15: 1 | AC15: TRUE
A16: Bioretention | B16: Soft Edge (a.k.a. Rain Garden) | C16: Underdrained | D16: Bioretention - Soft Edge (a.k.a. Rain Garden) - Underdrained - E | E16: square feet | F16: $/ft2 | G16: 30 | H16: E | I16: 0 | J16: 0.2 | K16: 0.0029 | N16: 0.1914 | O16: 1.26 | P16: 2014 | Q16: =IF($M$7<=$P$7,N16*(1+'6_Other Assumptions'!$B$9)^($P$7-$M$7),N16*(1+'6_Other Assumptions'!$B$9+'6_Other Assumptions'!$B$11)^($P$7-$M$7))+IF(T16<=$P$7,O16*(1+'6_Other Assumptions'!$B$9)^($P$7-T16),O16*(1+'6_Other Assumptions'!$B$9+'6_Other Assumptions'!$B$11)^($P$7-T16)) -> 1.4514 | R16: 1.4514 | T16: 2014 | U16: 2014 | W16: =IF(U16<='6_Other Assumptions'!$B$7,R16*(1+'6_Other Assumptions'!$B$9)^('6_Other Assumptions'!$B$7-U16),R16*(1+'6_Other Assumptions'!$B$9+'6_Other Assumptions'!$B$11)^('6_Other Assumptions'!$B$7-U16)) -> 1.4514 | Y16: 1 | Z16: 1 | AA16: 1 | AC16: TRUE
A17: Bioretention | B17: Hard Edge (a.k.a. Planter) | C17: Infiltrative | D17: Bioretention - Hard Edge (a.k.a. Planter) - Infiltrative - A | E17: square feet | F17: $/ft2 | G17: 30 | H17: A | I17: 11 | J17: 1 | K17: 0.08755 | N17: 5.7783 | O17: 1.26 | P17: 2014 | Q17: =IF($M$7<=$P$7,N17*(1+'6_Other Assumptions'!$B$9)^($P$7-$M$7),N17*(1+'6_Other Assumptions'!$B$9+'6_Other Assumptions'!$B$11)^($P$7-$M$7))+IF(T17<=$P$7,O17*(1+'6_Other Assumptions'!$B$9)^($P$7-T17),O17*(1+'6_Other Assumptions'!$B$9+'6_Other Assumptions'!$B$11)^($P$7-T17)) -> 7.0383 | R17: 7.0383 | T17: 2014 | U17: 2014 | W17: =IF(U17<='6_Other Assumptions'!$B$7,R17*(1+'6_Other Assumptions'!$B$9)^('6_Other Assumptions'!$B$7-U17),R17*(1+'6_Other Assumptions'!$B$9+'6_Other Assumptions'!$B$11)^('6_Other Assumptions'!$B$7-U17)) -> 7.0383 | Y17: 1 | Z17: 1 | AA17: 1 | AC17: TRUE
A18: Bioretention | B18: Hard Edge (a.k.a. Planter) | C18: Infiltrative | D18: Bioretention - Hard Edge (a.k.a. Planter) - Infiltrative - B | E18: square feet | F18: $/ft2 | G18: 30 | H18: B | I18: 3 | J18: 1 | K18: 0.03355 | N18: 2.2143 | O18: 1.26 | P18: 2014 | Q18: =IF($M$7<=$P$7,N18*(1+'6_Other Assumptions'!$B$9)^($P$7-$M$7),N18*(1+'6_Other Assumptions'!$B$9+'6_Other Assumptions'!$B$11)^($P$7-$M$7))+IF(T18<=$P$7,O18*(1+'6_Other Assumptions'!$B$9)^($P$7-T18),O18*(1+'6_Other Assumptions'!$B$9+'6_Other Assumptions'!$B$11)^($P$7-T18)) -> 3.4743 | R18: 3.4743 | T18: 2014 | U18: 2014 | W18: =IF(U18<='6_Other Assumptions'!$B$7,R18*(1+'6_Other Assumptions'!$B$9)^('6_Other Assumptions'!$B$7-U18),R18*(1+'6_Other Assumptions'!$B$9+'6_Other Assumptions'!$B$11)^('6_Other Assumptions'!$B$7-U18)) -> 3.4743 | Y18: 1 | Z18: 1 | AA18: 1 | AC18: TRUE
A19: Bioretention | B19: Hard Edge (a.k.a. Planter) | C19: Infiltrative | D19: Bioretention - Hard Edge (a.k.a. Planter) - Infiltrative - C | E19: square feet | F19: $/ft2 | G19: 30 | H19: C | I19: 1 | J19: 1 | K19: 0.02005 | N19: 1.3233 | O19: 1.26 | P19: 2014 | Q19: =IF($M$7<=$P$7,N19*(1+'6_Other Assumptions'!$B$9)^($P$7-$M$7),N19*(1+'6_Other Assumptions'!$B$9+'6_Other Assumptions'!$B$11)^($P$7-$M$7))+IF(T19<=$P$7,O19*(1+'6_Other Assumptions'!$B$9)^($P$7-T19),O19*(1+'6_Other Assumptions'!$B$9+'6_Other Assumptions'!$B$11)^($P$7-T19)) -> 2.5833 | R19: 2.5833 | T19: 2014 | U19: 2014 | W19: =IF(U19<='6_Other Assumptions'!$B$7,R19*(1+'6_Other Assumptions'!$B$9)^('6_Other Assumptions'!$B$7-U19),R19*(1+'6_Other Assumptions'!$B$9+'6_Other Assumptions'!$B$11)^('6_Other Assumptions'!$B$7-U19)) -> 2.5833 | Y19: 1 | Z19: 1 | AA19: 1 | AC19: TRUE
A20: Bioretention | B20: Hard Edge (a.k.a. Planter) | C20: Infiltrative | D20: Bioretention - Hard Edge (a.k.a. Planter) - Infiltrative - D | E20: square feet | F20: $/ft2 | G20: 30 | H20: D | I20: 0 | J20: 1 | K20: 0.0133 | N20: 0.8778 | O20: 1.26 | P20: 2014 | Q20: =IF($M$7<=$P$7,N20*(1+'6_Other Assumptions'!$B$9)^($P$7-$M$7),N20*(1+'6_Other Assumptions'!$B$9+'6_Other Assumptions'!$B$11)^($P$7-$M$7))+IF(T20<=$P$7,O20*(1+'6_Other Assumptions'!$B$9)^($P$7-T20),O20*(1+'6_Other Assumptions'!$B$9+'6_Other Assumptions'!$B$11)^($P$7-T20)) -> 2.1378 | R20: 2.1378 | T20: 2014 | U20: 2014 | W20: =IF(U20<='6_Other Assumptions'!$B$7,R20*(1+'6_Other Assumptions'!$B$9)^('6_Other Assumptions'!$B$7-U20),R20*(1+'6_Other Assumptions'!$B$9+'6_Other Assumptions'!$B$11)^('6_Other Assumptions'!$B$7-U20)) -> 2.1378 | Y20: 1 | Z20: 1 | AA20: 1 | AC20: TRUE
A21: Bioretention | B21: Hard Edge (a.k.a. Planter) | C21: Infiltrative | D21: Bioretention - Hard Edge (a.k.a. Planter) - Infiltrative - E | E21: square feet | F21: $/ft2 | G21: 30 | H21: E | I21: 0 | J21: 0.2 | K21: 0.00266 | N21: 0.17556 | O21: 1.26 | P21: 2014 | Q21: =IF($M$7<=$P$7,N21*(1+'6_Other Assumptions'!$B$9)^($P$7-$M$7),N21*(1+'6_Other Assumptions'!$B$9+'6_Other Assumptions'!$B$11)^($P$7-$M$7))+IF(T21<=$P$7,O21*(1+'6_Other Assumptions'!$B$9)^($P$7-T21),O21*(1+'6_Other Assumptions'!$B$9+'6_Other Assumptions'!$B$11)^($P$7-T21)) -> 1.43556 | R21: 1.43556 | T21: 2014 | U21: 2014 | W21: =IF(U21<='6_Other Assumptions'!$B$7,R21*(1+'6_Other Assumptions'!$B$9)^('6_Other Assumptions'!$B$7-U21),R21*(1+'6_Other Assumptions'!$B$9+'6_Other Assumptions'!$B$11)^('6_Other Assumptions'!$B$7-U21)) -> 1.43556 | Y21: 1 | Z21: 1 | AA21: 1 | AC21: TRUE
A22: Bioretention | B22: Hard Edge (a.k.a. Planter) | C22: Underdrained | D22: Bioretention - Hard Edge (a.k.a. Planter) - Underdrained - A | E22: square feet | F22: $/ft2 | G22: 30 | H22: A | I22: 11 | J22: 1 | K22: 0.09455 | N22: 6.2403 | O22: 1.26 | P22: 2014 | Q22: =IF($M$7<=$P$7,N22*(1+'6_Other Assumptions'!$B$9)^($P$7-$M$7),N22*(1+'6_Other Assumptions'!$B$9+'6_Other Assumptions'!$B$11)^($P$7-$M$7))+IF(T22<=$P$7,O22*(1+'6_Other Assumptions'!$B$9)^($P$7-T22),O22*(1+'6_Other Assumptions'!$B$9+'6_Other Assumptions'!$B$11)^($P$7-T22)) -> 7.5003 | R22: 7.5003 | T22: 2014 | U22: 2014 | W22: =IF(U22<='6_Other Assumptions'!$B$7,R22*(1+'6_Other Assumptions'!$B$9)^('6_Other Assumptions'!$B$7-U22),R22*(1+'6_Other Assumptions'!$B$9+'6_Other Assumptions'!$B$11)^('6_Other Assumptions'!$B$7-U22)) -> 7.5003 | Y22: 1 | Z22: 1 | AA22: 1 | AC22: TRUE
A23: Bioretention | B23: Hard Edge (a.k.a. Planter) | C23: Underdrained | D23: Bioretention - Hard Edge (a.k.a. Planter) - Underdrained - B | E23: square feet | F23: $/ft2 | G23: 30 | H23: B | I23: 3 | J23: 1 | K23: 0.03735 | N23: 2.4651 | O23: 1.26 | P23: 2014 | Q23: =IF($M$7<=$P$7,N23*(1+'6_Other Assumptions'!$B$9)^($P$7-$M$7),N23*(1+'6_Other Assumptions'!$B$9+'6_Other Assumptions'!$B$11)^($P$7-$M$7))+IF(T23<=$P$7,O23*(1+'6_Other Assumptions'!$B$9)^($P$7-T23),O23*(1+'6_Other Assumptions'!$B$9+'6_Other Assumptions'!$B$11)^($P$7-T23)) -> 3.7251 | R23: 3.7251 | T23: 2014 | U23: 2014 | W23: =IF(U23<='6_Other Assumptions'!$B$7,R23*(1+'6_Other Assumptions'!$B$9)^('6_Other Assumptions'!$B$7-U23),R23*(1+'6_Other Assumptions'!$B$9+'6_Other Assumptions'!$B$11)^('6_Other Assumptions'!$B$7-U23)) -> 3.7251 | Y23: 1 | Z23: 1 | AA23: 1 | AC23: TRUE
A24: Bioretention | B24: Hard Edge (a.k.a. Planter) | C24: Underdrained | D24: Bioretention - Hard Edge (a.k.a. Planter) - Underdrained - C | E24: square feet | F24: $/ft2 | G24: 30 | H24: C | I24: 1 | J24: 1 | K24: 0.02305 | N24: 1.5213 | O24: 1.26 | P24: 2014 | Q24: =IF($M$7<=$P$7,N24*(1+'6_Other Assumptions'!$B$9)^($P$7-$M$7),N24*(1+'6_Other Assumptions'!$B$9+'6_Other Assumptions'!$B$11)^($P$7-$M$7))+IF(T24<=$P$7,O24*(1+'6_Other Assumptions'!$B$9)^($P$7-T24),O24*(1+'6_Other Assumptions'!$B$9+'6_Other Assumptions'!$B$11)^($P$7-T24)) -> 2.7813 | R24: 2.7813 | T24: 2014 | U24: 2014 | W24: =IF(U24<='6_Other Assumptions'!$B$7,R24*(1+'6_Other Assumptions'!$B$9)^('6_Other Assumptions'!$B$7-U24),R24*(1+'6_Other Assumptions'!$B$9+'6_Other Assumptions'!$B$11)^('6_Other Assumptions'!$B$7-U24)) -> 2.7813 | Y24: 1 | Z24: 1 | AA24: 1 | AC24: TRUE
A25: Bioretention | B25: Hard Edge (a.k.a. Planter) | C25: Underdrained | D25: Bioretention - Hard Edge (a.k.a. Planter) - Underdrained - D | E25: square feet | F25: $/ft2 | G25: 30 | H25: D | I25: 0 | J25: 1 | K25: 0.0159 | N25: 1.0494 | O25: 1.26 | P25: 2014 | Q25: =IF($M$7<=$P$7,N25*(1+'6_Other Assumptions'!$B$9)^($P$7-$M$7),N25*(1+'6_Other Assumptions'!$B$9+'6_Other Assumptions'!$B$11)^($P$7-$M$7))+IF(T25<=$P$7,O25*(1+'6_Other Assumptions'!$B$9)^($P$7-T25),O25*(1+'6_Other Assumptions'!$B$9+'6_Other Assumptions'!$B$11)^($P$7-T25)) -> 2.3094 | R25: 2.3094 | T25: 2014 | U25: 2014 | W25: =IF(U25<='6_Other Assumptions'!$B$7,R25*(1+'6_Other Assumptions'!$B$9)^('6_Other Assumptions'!$B$7-U25),R25*(1+'6_Other Assumptions'!$B$9+'6_Other Assumptions'!$B$11)^('6_Other Assumptions'!$B$7-U25)) -> 2.3094 | Y25: 1 | Z25: 1 | AA25: 1 | AC25: TRUE
A26: Bioretention | B26: Hard Edge (a.k.a. Planter) | C26: Underdrained | D26: Bioretention - Hard Edge (a.k.a. Planter) - Underdrained - E | E26: square feet | F26: $/ft2 | G26: 30 | H26: E | I26: 0 | J26: 0.2 | K26: 0.00318 | N26: 0.20988 | O26: 1.26 | P26: 2014 | Q26: =IF($M$7<=$P$7,N26*(1+'6_Other Assumptions'!$B$9)^($P$7-$M$7),N26*(1+'6_Other Assumptions'!$B$9+'6_Other Assumptions'!$B$11)^($P$7-$M$7))+IF(T26<=$P$7,O26*(1+'6_Other Assumptions'!$B$9)^($P$7-T26),O26*(1+'6_Other Assumptions'!$B$9+'6_Other Assumptions'!$B$11)^($P$7-T26)) -> 1.46988 | R26: 1.46988 | T26: 2014 | U26: 2014 | W26: =IF(U26<='6_Other Assumptions'!$B$7,R26*(1+'6_Other Assumptions'!$B$9)^('6_Other Assumptions'!$B$7-U26),R26*(1+'6_Other Assumptions'!$B$9+'6_Other Assumptions'!$B$11)^('6_Other Assumptions'!$B$7-U26)) -> 1.46988 | Y26: 1 | Z26: 1 | AA26: 1 | AC26: TRUE
A27: Bioswale | B27: Soft Edge | C27: none | D27: Bioswale - Soft Edge - none - A | E27: square feet | F27: $/ft2 | G27: 30 | H27: A | I27: 11 | J27: 1 | K27: 0.07845 | N27: 5.1777 | O27: 1.26 | P27: 2014 | Q27: =IF($M$7<=$P$7,N27*(1+'6_Other Assumptions'!$B$9)^($P$7-$M$7),N27*(1+'6_Other Assumptions'!$B$9+'6_Other Assumptions'!$B$11)^($P$7-$M$7))+IF(T27<=$P$7,O27*(1+'6_Other Assumptions'!$B$9)^($P$7-T27),O27*(1+'6_Other Assumptions'!$B$9+'6_Other Assumptions'!$B$11)^($P$7-T27)) -> 6.4377 | R27: 6.4377 | T27: 2014 | U27: 2014 | W27: =IF(U27<='6_Other Assumptions'!$B$7,R27*(1+'6_Other Assumptions'!$B$9)^('6_Other Assumptions'!$B$7-U27),R27*(1+'6_Other Assumptions'!$B$9+'6_Other Assumptions'!$B$11)^('6_Other Assumptions'!$B$7-U27)) -> 6.4377 | Y27: 1 | Z27: 1 | AA27: 1 | AC27: TRUE
A28: Bioswale | B28: Soft Edge | C28: none | D28: Bioswale - Soft Edge - none - B | E28: square feet | F28: $/ft2 | G28: 30 | H28: B | I28: 3 | J28: 1 | K28: 0.03005 | N28: 1.9833 | O28: 1.26 | P28: 2014 | Q28: =IF($M$7<=$P$7,N28*(1+'6_Other Assumptions'!$B$9)^($P$7-$M$7),N28*(1+'6_Other Assumptions'!$B$9+'6_Other Assumptions'!$B$11)^($P$7-$M$7))+IF(T28<=$P$7,O28*(1+'6_Other Assumptions'!$B$9)^($P$7-T28),O28*(1+'6_Other Assumptions'!$B$9+'6_Other Assumptions'!$B$11)^($P$7-T28)) -> 3.2433 | R28: 3.2433 | T28: 2014 | U28: 2014 | W28: =IF(U28<='6_Other Assumptions'!$B$7,R28*(1+'6_Other Assumptions'!$B$9)^('6_Other Assumptions'!$B$7-U28),R28*(1+'6_Other Assumptions'!$B$9+'6_Other Assumptions'!$B$11)^('6_Other Assumptions'!$B$7-U28)) -> 3.2433 | Y28: 1 | Z28: 1 | AA28: 1 | AC28: TRUE
A29: Bioswale | B29: Soft Edge | C29: none | D29: Bioswale - Soft Edge - none - C | E29: square feet | F29: $/ft2 | G29: 30 | H29: C | I29: 1 | J29: 1 | K29: 0.01795 | N29: 1.1847 | O29: 1.26 | P29: 2014 | Q29: =IF($M$7<=$P$7,N29*(1+'6_Other Assumptions'!$B$9)^($P$7-$M$7),N29*(1+'6_Other Assumptions'!$B$9+'6_Other Assumptions'!$B$11)^($P$7-$M$7))+IF(T29<=$P$7,O29*(1+'6_Other Assumptions'!$B$9)^($P$7-T29),O29*(1+'6_Other Assumptions'!$B$9+'6_Other Assumptions'!$B$11)^($P$7-T29)) -> 2.4447 | R29: 2.4447 | T29: 2014 | U29: 2014 | W29: =IF(U29<='6_Other Assumptions'!$B$7,R29*(1+'6_Other Assumptions'!$B$9)^('6_Other Assumptions'!$B$7-U29),R29*(1+'6_Other Assumptions'!$B$9+'6_Other Assumptions'!$B$11)^('6_Other Assumptions'!$B$7-U29)) -> 2.4447 | Y29: 1 | Z29: 1 | AA29: 1 | AC29: TRUE
A30: Bioswale | B30: Soft Edge | C30: none | D30: Bioswale - Soft Edge - none - D | E30: square feet | F30: $/ft2 | G30: 30 | H30: D | I30: 0 | J30: 1 | K30: 0.0119 | N30: 0.7854 | O30: 1.26 | P30: 2014 | Q30: =IF($M$7<=$P$7,N30*(1+'6_Other Assumptions'!$B$9)^($P$7-$M$7),N30*(1+'6_Other Assumptions'!$B$9+'6_Other Assumptions'!$B$11)^($P$7-$M$7))+IF(T30<=$P$7,O30*(1+'6_Other Assumptions'!$B$9)^($P$7-T30),O30*(1+'6_Other Assumptions'!$B$9+'6_Other Assumptions'!$B$11)^($P$7-T30)) -> 2.0454 | R30: 2.0454 | T30: 2014 | U30: 2014 | W30: =IF(U30<='6_Other Assumptions'!$B$7,R30*(1+'6_Other Assumptions'!$B$9)^('6_Other Assumptions'!$B$7-U30),R30*(1+'6_Other Assumptions'!$B$9+'6_Other Assumptions'!$B$11)^('6_Other Assumptions'!$B$7-U30)) -> 2.0454 | Y30: 1 | Z30: 1 | AA30: 1 | AC30: TRUE
A31: Bioswale | B31: Soft Edge | C31: none | D31: Bioswale - Soft Edge - none - E | E31: square feet | F31: $/ft2 | G31: 30 | H31: E | I31: 0 | J31: 0.2 | K31: 0.00238 | N31: 0.15708 | O31: 1.26 | P31: 2014 | Q31: =IF($M$7<=$P$7,N31*(1+'6_Other Assumptions'!$B$9)^($P$7-$M$7),N31*(1+'6_Other Assumptions'!$B$9+'6_Other Assumptions'!$B$11)^($P$7-$M$7))+IF(T31<=$P$7,O31*(1+'6_Other Assumptions'!$B$9)^($P$7-T31),O31*(1+'6_Other Assumptions'!$B$9+'6_Other Assumptions'!$B$11)^($P$7-T31)) -> 1.41708 | R31: 1.41708 | T31: 2014 | U31: 2014 | W31: =IF(U31<='6_Other Assumptions'!$B$7,R31*(1+'6_Other Assumptions'!$B$9)^('6_Other Assumptions'!$B$7-U31),R31*(1+'6_Other Assumptions'!$B$9+'6_Other Assumptions'!$B$11)^('6_Other Assumptions'!$B$7-U31)) -> 1.41708 | Y31: 1 | Z31: 1 | AA31: 1 | AC31: TRUE
A32: Bioswale | B32: Hard Edge | C32: none | D32: Bioswale - Hard Edge - none - A | E32: square feet | F32: $/ft2 | G32: 30 | H32: A | I32: 11 | J32: 1 | K32: 0.08755 | N32: 5.7783 | O32: 1.26 | P32: 2014 | Q32: =IF($M$7<=$P$7,N32*(1+'6_Other Assumptions'!$B$9)^($P$7-$M$7),N32*(1+'6_Other Assumptions'!$B$9+'6_Other Assumptions'!$B$11)^($P$7-$M$7))+IF(T32<=$P$7,O32*(1+'6_Other Assumptions'!$B$9)^($P$7-T32),O32*(1+'6_Other Assumptions'!$B$9+'6_Other Assumptions'!$B$11)^($P$7-T32)) -> 7.0383 | R32: 7.0383 | T32: 2014 | U32: 2014 | W32: =IF(U32<='6_Other Assumptions'!$B$7,R32*(1+'6_Other Assumptions'!$B$9)^('6_Other Assumptions'!$B$7-U32),R32*(1+'6_Other Assumptions'!$B$9+'6_Other Assumptions'!$B$11)^('6_Other Assumptions'!$B$7-U32)) -> 7.0383 | Y32: 1 | Z32: 1 | AA32: 1 | AC32: TRUE
A33: Bioswale | B33: Hard Edge | C33: none | D33: Bioswale - Hard Edge - none - B | E33: square feet | F33: $/ft2 | G33: 30 | H33: B | I33: 3 | J33: 1 | K33: 0.03355 | N33: 2.2143 | O33: 1.26 | P33: 2014 | Q33: =IF($M$7<=$P$7,N33*(1+'6_Other Assumptions'!$B$9)^($P$7-$M$7),N33*(1+'6_Other Assumptions'!$B$9+'6_Other Assumptions'!$B$11)^($P$7-$M$7))+IF(T33<=$P$7,O33*(1+'6_Other Assumptions'!$B$9)^($P$7-T33),O33*(1+'6_Other Assumptions'!$B$9+'6_Other Assumptions'!$B$11)^($P$7-T33)) -> 3.4743 | R33: 3.4743 | T33: 2014 | U33: 2014 | W33: =IF(U33<='6_Other Assumptions'!$B$7,R33*(1+'6_Other Assumptions'!$B$9)^('6_Other Assumptions'!$B$7-U33),R33*(1+'6_Other Assumptions'!$B$9+'6_Other Assumptions'!$B$11)^('6_Other Assumptions'!$B$7-U33)) -> 3.4743 | Y33: 1 | Z33: 1 | AA33: 1 | AC33: TRUE
A34: Bioswale | B34: Hard Edge | C34: none | D34: Bioswale - Hard Edge - none - C | E34: square feet | F34: $/ft2 | G34: 30 | H34: C | I34: 1 | J34: 1 | K34: 0.02005 | N34: 1.3233 | O34: 1.26 | P34: 2014 | Q34: =IF($M$7<=$P$7,N34*(1+'6_Other Assumptions'!$B$9)^($P$7-$M$7),N34*(1+'6_Other Assumptions'!$B$9+'6_Other Assumptions'!$B$11)^($P$7-$M$7))+IF(T34<=$P$7,O34*(1+'6_Other Assumptions'!$B$9)^($P$7-T34),O34*(1+'6_Other Assumptions'!$B$9+'6_Other Assumptions'!$B$11)^($P$7-T34)) -> 2.5833 | R34: 2.5833 | T34: 2014 | U34: 2014 | W34: =IF(U34<='6_Other Assumptions'!$B$7,R34*(1+'6_Other Assumptions'!$B$9)^('6_Other Assumptions'!$B$7-U34),R34*(1+'6_Other Assumptions'!$B$9+'6_Other Assumptions'!$B$11)^('6_Other Assumptions'!$B$7-U34)) -> 2.5833 | Y34: 1 | Z34: 1 | AA34: 1 | AC34: TRUE
A35: Bioswale | B35: Hard Edge | C35: none | D35: Bioswale - Hard Edge - none - D | E35: square feet | F35: $/ft2 | G35: 30 | H35: D | I35: 0 | J35: 1 | K35: 0.0133 | N35: 0.8778 | O35: 1.26 | P35: 2014 | Q35: =IF($M$7<=$P$7,N35*(1+'6_Other Assumptions'!$B$9)^($P$7-$M$7),N35*(1+'6_Other Assumptions'!$B$9+'6_Other Assumptions'!$B$11)^($P$7-$M$7))+IF(T35<=$P$7,O35*(1+'6_Other Assumptions'!$B$9)^($P$7-T35),O35*(1+'6_Other Assumptions'!$B$9+'6_Other Assumptions'!$B$11)^($P$7-T35)) -> 2.1378 | R35: 2.1378 | T35: 2014 | U35: 2014 | W35: =IF(U35<='6_Other Assumptions'!$B$7,R35*(1+'6_Other Assumptions'!$B$9)^('6_Other Assumptions'!$B$7-U35),R35*(1+'6_Other Assumptions'!$B$9+'6_Other Assumptions'!$B$11)^('6_Other Assumptions'!$B$7-U35)) -> 2.1378 | Y35: 1 | Z35: 1 | AA35: 1 | AC35: TRUE
A36: Bioswale | B36: Hard Edge | C36: none | D36: Bioswale - Hard Edge - none - E | E36: square feet | F36: $/ft2 | G36: 30 | H36: E | I36: 0 | J36: 0.2 | K36: 0.00266 | N36: 0.17556 | O36: 1.26 | P36: 2014 | Q36: =IF($M$7<=$P$7,N36*(1+'6_Other Assumptions'!$B$9)^($P$7-$M$7),N36*(1+'6_Other Assumptions'!$B$9+'6_Other Assumptions'!$B$11)^($P$7-$M$7))+IF(T36<=$P$7,O36*(1+'6_Other Assumptions'!$B$9)^($P$7-T36),O36*(1+'6_Other Assumptions'!$B$9+'6_Other Assumptions'!$B$11)^($P$7-T36)) -> 1.43556 | R36: 1.43556 | T36: 2014 | U36: 2014 | W36: =IF(U36<='6_Other Assumptions'!$B$7,R36*(1+'6_Other Assumptions'!$B$9)^('6_Other Assumptions'!$B$7-U36),R36*(1+'6_Other Assumptions'!$B$9+'6_Other Assumptions'!$B$11)^('6_Other Assumptions'!$B$7-U36)) -> 1.43556 | Y36: 1 | Z36: 1 | AA36: 1 | AC36: TRUE
A37: Infiltration Gallery | B37: none | C37: none | D37: =IF(LEN(A37)>0,A37&" - "&B37&" - "&C37&" - "&H37,"") -> Infiltration Gallery - none - none - A | E37: square feet | F37: $/ft2 | G37: 20 | H37: A | I37: 11 | J37: 1 | K37: 0.0462 | N37: 3.0492 | O37: 0.84 | P37: 2014 | Q37: =IF($M$7<=$P$7,N37*(1+'6_Other Assumptions'!$B$9)^($P$7-$M$7),N37*(1+'6_Other Assumptions'!$B$9+'6_Other Assumptions'!$B$11)^($P$7-$M$7))+IF(T37<=$P$7,O37*(1+'6_Other Assumptions'!$B$9)^($P$7-T37),O37*(1+'6_Other Assumptions'!$B$9+'6_Other Assumptions'!$B$11)^($P$7-T37)) -> 3.8892 | R37: 3.8892 | T37: 2014 | U37: 2014 | W37: =IF(U37<='6_Other Assumptions'!$B$7,R37*(1+'6_Other Assumptions'!$B$9)^('6_Other Assumptions'!$B$7-U37),R37*(1+'6_Other Assumptions'!$B$9+'6_Other Assumptions'!$B$11)^('6_Other Assumptions'!$B$7-U37)) -> 3.8892 | Y37: 1 | Z37: 1 | AA37: 1 | AC37: TRUE
A38: Infiltration Gallery | B38: none | C38: none | D38: Infiltration Gallery - none - none - B | E38: square feet | F38: $/ft2 | G38: 20 | H38: B | I38: 3 | J38: 1 | K38: 0.0178 | N38: 1.1748 | O38: 0.84 | P38: 2014 | Q38: =IF($M$7<=$P$7,N38*(1+'6_Other Assumptions'!$B$9)^($P$7-$M$7),N38*(1+'6_Other Assumptions'!$B$9+'6_Other Assumptions'!$B$11)^($P$7-$M$7))+IF(T38<=$P$7,O38*(1+'6_Other Assumptions'!$B$9)^($P$7-T38),O38*(1+'6_Other Assumptions'!$B$9+'6_Other Assumptions'!$B$11)^($P$7-T38)) -> 2.0148 | R38: 2.0148 | T38: 2014 | U38: 2014 | W38: =IF(U38<='6_Other Assumptions'!$B$7,R38*(1+'6_Other Assumptions'!$B$9)^('6_Other Assumptions'!$B$7-U38),R38*(1+'6_Other Assumptions'!$B$9+'6_Other Assumptions'!$B$11)^('6_Other Assumptions'!$B$7-U38)) -> 2.0148 | Y38: 1 | Z38: 1 | AA38: 1 | AC38: TRUE
A39: Infiltration Gallery | B39: none | C39: none | D39: Infiltration Gallery - none - none - C | E39: square feet | F39: $/ft2 | G39: 20 | H39: C | I39: 1 | J39: 1 | K39: 0.0107 | N39: 0.7062 | O39: 0.84 | P39: 2014 | Q39: =IF($M$7<=$P$7,N39*(1+'6_Other Assumptions'!$B$9)^($P$7-$M$7),N39*(1+'6_Other Assumptions'!$B$9+'6_Other Assumptions'!$B$11)^($P$7-$M$7))+IF(T39<=$P$7,O39*(1+'6_Other Assumptions'!$B$9)^($P$7-T39),O39*(1+'6_Other Assumptions'!$B$9+'6_Other Assumptions'!$B$11)^($P$7-T39)) -> 1.5462 | R39: =IF(ISBLANK(S39),Q39,S39) -> 1.5462 | T39: 2014 | U39: =IF(ISBLANK(V39),T39,V39) -> 2014 | W39: =IF(U39<='6_Other Assumptions'!$B$7,R39*(1+'6_Other Assumptions'!$B$9)^('6_Other Assumptions'!$B$7-U39),R39*(1+'6_Other Assumptions'!$B$9+'6_Other Assumptions'!$B$11)^('6_Other Assumptions'!$B$7-U39)) -> 1.5462 | Y39: 1 | Z39: 1 | AA39: 1 | AC39: TRUE
A40: Infiltration Gallery | B40: none | C40: none | D40: Infiltration Gallery - none - none - D | E40: square feet | F40: $/ft2 | G40: 20 | H40: D | I40: 0 | J40: 1 | K40: 0.00715 | N40: 0.4719 | O40: 0.84 | P40: 2014 | Q40: =IF($M$7<=$P$7,N40*(1+'6_Other Assumptions'!$B$9)^($P$7-$M$7),N40*(1+'6_Other Assumptions'!$B$9+'6_Other Assumptions'!$B$11)^($P$7-$M$7))+IF(T40<=$P$7,O40*(1+'6_Other Assumptions'!$B$9)^($P$7-T40),O40*(1+'6_Other Assumptions'!$B$9+'6_Other Assumptions'!$B$11)^($P$7-T40)) -> 1.3119 | R40: 1.3119 | T40: 2014 | U40: 2014 | W40: =IF(U40<='6_Other Assumptions'!$B$7,R40*(1+'6_Other Assumptions'!$B$9)^('6_Other Assumptions'!$B$7-U40),R40*(1+'6_Other Assumptions'!$B$9+'6_Other Assumptions'!$B$11)^('6_Other Assumptions'!$B$7-U40)) -> 1.3119 | Y40: 1 | Z40: 1 | AA40: 1 | AC40: TRUE
A41: Infiltration Gallery | B41: none | C41: none | D41: Infiltration Gallery - none - none - E | E41: square feet | F41: $/ft2 | G41: 20 | H41: E | I41: 0 | J41: 0.2 | K41: 0.00143 | N41: 0.09438 | O41: 0.84 | P41: 2014 | Q41: =IF($M$7<=$P$7,N41*(1+'6_Other Assumptions'!$B$9)^($P$7-$M$7),N41*(1+'6_Other Assumptions'!$B$9+'6_Other Assumptions'!$B$11)^($P$7-$M$7))+IF(T41<=$P$7,O41*(1+'6_Other Assumptions'!$B$9)^($P$7-T41),O41*(1+'6_Other Assumptions'!$B$9+'6_Other Assumptions'!$B$11)^($P$7-T41)) -> 0.93438 | R41: 0.93438 | T41: 2014 | U41: 2014 | W41: =IF(U41<='6_Other Assumptions'!$B$7,R41*(1+'6_Other Assumptions'!$B$9)^('6_Other Assumptions'!$B$7-U41),R41*(1+'6_Other Assumptions'!$B$9+'6_Other Assumptions'!$B$11)^('6_Other Assumptions'!$B$7-U41)) -> 0.93438 | Y41: 1 | Z41: 1 | AA41: 1 | AC41: TRUE
A42: Pervious Paving | B42: Infiltrative | C42: Local Road | D42: Pervious Paving - Infiltrative - Local Road - A | E42: square feet | F42: $/ft2 | G42: 15 | H42: A | I42: 11 | J42: 1 | K42: 0.002323333333 | N42: 0.15334 | O42: 0.1 | P42: 2014 | Q42: =IF($M$7<=$P$7,N42*(1+'6_Other Assumptions'!$B$9)^($P$7-$M$7),N42*(1+'6_Other Assumptions'!$B$9+'6_Other Assumptions'!$B$11)^($P$7-$M$7))+IF(T42<=$P$7,O42*(1+'6_Other Assumptions'!$B$9)^($P$7-T42),O42*(1+'6_Other Assumptions'!$B$9+'6_Other Assumptions'!$B$11)^($P$7-T42)) -> 0.25334 | R42: 0.25334 | T42: 2014 | U42: 2014 | W42: =IF(U42<='6_Other Assumptions'!$B$7,R42*(1+'6_Other Assumptions'!$B$9)^('6_Other Assumptions'!$B$7-U42),R42*(1+'6_Other Assumptions'!$B$9+'6_Other Assumptions'!$B$11)^('6_Other Assumptions'!$B$7-U42)) -> 0.25334 | Y42: 1 | Z42: 1 | AA42: 1 | AC42: TRUE
A43: Pervious Paving | B43: Infiltrative | C43: Local Road | D43: Pervious Paving - Infiltrative - Local Road - B | E43: square feet | F43: $/ft2 | G43: 15 | H43: B | I43: 3 | J43: 1 | K43: 0.00147 | N43: 0.09702 | O43: 0.1 | P43: 2014 | Q43: =IF($M$7<=$P$7,N43*(1+'6_Other Assumptions'!$B$9)^($P$7-$M$7),N43*(1+'6_Other Assumptions'!$B$9+'6_Other Assumptions'!$B$11)^($P$7-$M$7))+IF(T43<=$P$7,O43*(1+'6_Other Assumptions'!$B$9)^($P$7-T43),O43*(1+'6_Other Assumptions'!$B$9+'6_Other Assumptions'!$B$11)^($P$7-T43)) -> 0.19702 | R43: 0.19702 | T43: 2014 | U43: 2014 | W43: =IF(U43<='6_Other Assumptions'!$B$7,R43*(1+'6_Other Assumptions'!$B$9)^('6_Other Assumptions'!$B$7-U43),R43*(1+'6_Other Assumptions'!$B$9+'6_Other Assumptions'!$B$11)^('6_Other Assumptions'!$B$7-U43)) -> 0.19702 | Y43: 1 | Z43: 1 | AA43: 1 | AC43: TRUE
A44: Pervious Paving | B44: Infiltrative | C44: Local Road | D44: Pervious Paving - Infiltrative - Local Road - C | E44: square feet | F44: $/ft2 | G44: 15 | H44: C | I44: 1 | J44: 1 | K44: 0.001256666667 | N44: 0.08294 | O44: 0.1 | P44: 2014 | Q44: =IF($M$7<=$P$7,N44*(1+'6_Other Assumptions'!$B$9)^($P$7-$M$7),N44*(1+'6_Other Assumptions'!$B$9+'6_Other Assumptions'!$B$11)^($P$7-$M$7))+IF(T44<=$P$7,O44*(1+'6_Other Assumptions'!$B$9)^($P$7-T44),O44*(1+'6_Other Assumptions'!$B$9+'6_Other Assumptions'!$B$11)^($P$7-T44)) -> 0.18294 | R44: 0.18294 | T44: 2014 | U44: 2014 | W44: =IF(U44<='6_Other Assumptions'!$B$7,R44*(1+'6_Other Assumptions'!$B$9)^('6_Other Assumptions'!$B$7-U44),R44*(1+'6_Other Assumptions'!$B$9+'6_Other Assumptions'!$B$11)^('6_Other Assumptions'!$B$7-U44)) -> 0.18294 | Y44: 1 | Z44: 1 | AA44: 1 | AC44: TRUE
A45: Pervious Paving | B45: Infiltrative | C45: Local Road | D45: Pervious Paving - Infiltrative - Local Road - D | E45: square feet | F45: $/ft2 | G45: 15 | H45: D | I45: 0 | J45: 1 | K45: 0.00115 | N45: 0.0759 | O45: 0.1 | P45: 2014 | Q45: =IF($M$7<=$P$7,N45*(1+'6_Other Assumptions'!$B$9)^($P$7-$M$7),N45*(1+'6_Other Assumptions'!$B$9+'6_Other Assumptions'!$B$11)^($P$7-$M$7))+IF(T45<=$P$7,O45*(1+'6_Other Assumptions'!$B$9)^($P$7-T45),O45*(1+'6_Other Assumptions'!$B$9+'6_Other Assumptions'!$B$11)^($P$7-T45)) -> 0.1759 | R45: 0.1759 | T45: 2014 | U45: 2014 | W45: =IF(U45<='6_Other Assumptions'!$B$7,R45*(1+'6_Other Assumptions'!$B$9)^('6_Other Assumptions'!$B$7-U45),R45*(1+'6_Other Assumptions'!$B$9+'6_Other Assumptions'!$B$11)^('6_Other Assumptions'!$B$7-U45)) -> 0.1759 | Y45: 1 | Z45: 1 | AA45: 1 | AC45: TRUE
A46: Pervious Paving | B46: Infiltrative | C46: Local Road | D46: Pervious Paving - Infiltrative - Local Road - E | E46: square feet | F46: $/ft2 | G46: 15 | H46: E | I46: 0 | J46: 0.2 | K46: 0.00023 | N46: 0.01518 | O46: 0.1 | P46: 2014 | Q46: =IF($M$7<=$P$7,N46*(1+'6_Other Assumptions'!$B$9)^($P$7-$M$7),N46*(1+'6_Other Assumptions'!$B$9+'6_Other Assumptions'!$B$11)^($P$7-$M$7))+IF(T46<=$P$7,O46*(1+'6_Other Assumptions'!$B$9)^($P$7-T46),O46*(1+'6_Other Assumptions'!$B$9+'6_Other Assumptions'!$B$11)^($P$7-T46)) -> 0.11518 | R46: 0.11518 | T46: 2014 | U46: 2014 | W46: =IF(U46<='6_Other Assumptions'!$B$7,R46*(1+'6_Other Assumptions'!$B$9)^('6_Other Assumptions'!$B$7-U46),R46*(1+'6_Other Assumptions'!$B$9+'6_Other Assumptions'!$B$11)^('6_Other Assumptions'!$B$7-U46)) -> 0.11518 | Y46: 1 | Z46: 1 | AA46: 1 | AC46: TRUE
A47: Pervious Paving | B47: Infiltrative | C47: Collector Road | D47: Pervious Paving - Infiltrative - Collector Road - A | E47: square feet | F47: $/ft2 | G47: 15 | H47: A | I47: 11 | J47: 1 | K47: 0.002555666667 | N47: 0.168674 | O47: 0.11 | P47: 2014 | Q47: =IF($M$7<=$P$7,N47*(1+'6_Other Assumptions'!$B$9)^($P$7-$M$7),N47*(1+'6_Other Assumptions'!$B$9+'6_Other Assumptions'!$B$11)^($P$7-$M$7))+IF(T47<=$P$7,O47*(1+'6_Other Assumptions'!$B$9)^($P$7-T47),O47*(1+'6_Other Assumptions'!$B$9+'6_Other Assumptions'!$B$11)^($P$7-T47)) -> 0.278674 | R47: 0.278674 | T47: 2014 | U47: 2014 | W47: =IF(U47<='6_Other Assumptions'!$B$7,R47*(1+'6_Other Assumptions'!$B$9)^('6_Other Assumptions'!$B$7-U47),R47*(1+'6_Other Assumptions'!$B$9+'6_Other Assumptions'!$B$11)^('6_Other Assumptions'!$B$7-U47)) -> 0.278674 | Y47: 1 | Z47: 1 | AA47: 1 | AC47: TRUE
A48: Pervious Paving | B48: Infiltrative | C48: Collector Road | D48: Pervious Paving - Infiltrative - Collector Road - B | E48: square feet | F48: $/ft2 | G48: 15 | H48: B | I48: 3 | J48: 1 | K48: 0.001617 | N48: 0.106722 | O48: 0.11 | P48: 2014 | Q48: =IF($M$7<=$P$7,N48*(1+'6_Other Assumptions'!$B$9)^($P$7-$M$7),N48*(1+'6_Other Assumptions'!$B$9+'6_Other Assumptions'!$B$11)^($P$7-$M$7))+IF(T48<=$P$7,O48*(1+'6_Other Assumptions'!$B$9)^($P$7-T48),O48*(1+'6_Other Assumptions'!$B$9+'6_Other Assumptions'!$B$11)^($P$7-T48)) -> 0.216722 | R48: 0.216722 | T48: 2014 | U48: 2014 | W48: =IF(U48<='6_Other Assumptions'!$B$7,R48*(1+'6_Other Assumptions'!$B$9)^('6_Other Assumptions'!$B$7-U48),R48*(1+'6_Other Assumptions'!$B$9+'6_Other Assumptions'!$B$11)^('6_Other Assumptions'!$B$7-U48)) -> 0.216722 | Y48: 1 | Z48: 1 | AA48: 1 | AC48: TRUE
A49: Pervious Paving | B49: Infiltrative | C49: Collector Road | D49: Pervious Paving - Infiltrative - Collector Road - C | E49: square feet | F49: $/ft2 | G49: 15 | H49: C | I49: 1 | J49: 1 | K49: 0.001382333333 | N49: 0.091234 | O49: 0.11 | P49: 2014 | Q49: =IF($M$7<=$P$7,N49*(1+'6_Other Assumptions'!$B$9)^($P$7-$M$7),N49*(1+'6_Other Assumptions'!$B$9+'6_Other Assumptions'!$B$11)^($P$7-$M$7))+IF(T49<=$P$7,O49*(1+'6_Other Assumptions'!$B$9)^($P$7-T49),O49*(1+'6_Other Assumptions'!$B$9+'6_Other Assumptions'!$B$11)^($P$7-T49)) -> 0.201234 | R49: 0.201234 | T49: 2014 | U49: 2014 | W49: =IF(U49<='6_Other Assumptions'!$B$7,R49*(1+'6_Other Assumptions'!$B$9)^('6_Other Assumptions'!$B$7-U49),R49*(1+'6_Other Assumptions'!$B$9+'6_Other Assumptions'!$B$11)^('6_Other Assumptions'!$B$7-U49)) -> 0.201234 | Y49: 1 | Z49: 1 | AA49: 1 | AC49: TRUE
A50: Pervious Paving | B50: Infiltrative | C50: Collector Road | D50: Pervious Paving - Infiltrative - Collector Road - D | E50: square feet | F50: $/ft2 | G50: 15 | H50: D | I50: 0 | J50: 1 | K50: 0.001265 | N50: 0.08349 | O50: 0.11 | P50: 2014 | Q50: =IF($M$7<=$P$7,N50*(1+'6_Other Assumptions'!$B$9)^($P$7-$M$7),N50*(1+'6_Other Assumptions'!$B$9+'6_Other Assumptions'!$B$11)^($P$7-$M$7))+IF(T50<=$P$7,O50*(1+'6_Other Assumptions'!$B$9)^($P$7-T50),O50*(1+'6_Other Assumptions'!$B$9+'6_Other Assumptions'!$B$11)^($P$7-T50)) -> 0.19349 | R50: 0.19349 | T50: 2014 | U50: 2014 | W50: =IF(U50<='6_Other Assumptions'!$B$7,R50*(1+'6_Other Assumptions'!$B$9)^('6_Other Assumptions'!$B$7-U50),R50*(1+'6_Other Assumptions'!$B$9+'6_Other Assumptions'!$B$11)^('6_Other Assumptions'!$B$7-U50)) -> 0.19349 | Y50: 1 | Z50: 1 | AA50: 1 | AC50: TRUE
A51: Pervious Paving | B51: Infiltrative | C51: Collector Road | D51: Pervious Paving - Infiltrative - Collector Road - E | E51: square feet | F51: $/ft2 | G51: 15 | H51: E | I51: 0 | J51: 0.2 | K51: 0.000253 | N51: 0.016698 | O51: 0.11 | P51: 2014 | Q51: =IF($M$7<=$P$7,N51*(1+'6_Other Assumptions'!$B$9)^($P$7-$M$7),N51*(1+'6_Other Assumptions'!$B$9+'6_Other Assumptions'!$B$11)^($P$7-$M$7))+IF(T51<=$P$7,O51*(1+'6_Other Assumptions'!$B$9)^($P$7-T51),O51*(1+'6_Other Assumptions'!$B$9+'6_Other Assumptions'!$B$11)^($P$7-T51)) -> 0.126698 | R51: 0.126698 | T51: 2014 | U51: 2014 | W51: =IF(U51<='6_Other Assumptions'!$B$7,R51*(1+'6_Other Assumptions'!$B$9)^('6_Other Assumptions'!$B$7-U51),R51*(1+'6_Other Assumptions'!$B$9+'6_Other Assumptions'!$B$11)^('6_Other Assumptions'!$B$7-U51)) -> 0.126698 | Y51: 1 | Z51: 1 | AA51: 1 | AC51: TRUE
A52: Pervious Paving | B52: Infiltrative | C52: Arterial Road | D52: Pervious Paving - Infiltrative - Arterial Road - A | E52: square feet | F52: $/ft2 | G52: 20 | H52: A | I52: 11 | J52: 1 | K52: 0.002788 | N52: 0.184008 | O52: 0.12 | P52: 2014 | Q52: =IF($M$7<=$P$7,N52*(1+'6_Other Assumptions'!$B$9)^($P$7-$M$7),N52*(1+'6_Other Assumptions'!$B$9+'6_Other Assumptions'!$B$11)^($P$7-$M$7))+IF(T52<=$P$7,O52*(1+'6_Other Assumptions'!$B$9)^($P$7-T52),O52*(1+'6_Other Assumptions'!$B$9+'6_Other Assumptions'!$B$11)^($P$7-T52)) -> 0.304008 | R52: 0.304008 | T52: 2014 | U52: 2014 | W52: =IF(U52<='6_Other Assumptions'!$B$7,R52*(1+'6_Other Assumptions'!$B$9)^('6_Other Assumptions'!$B$7-U52),R52*(1+'6_Other Assumptions'!$B$9+'6_Other Assumptions'!$B$11)^('6_Other Assumptions'!$B$7-U52)) -> 0.304008 | Y52: 1 | Z52: 1 | AA52: 1 | AC52: TRUE
A53: Pervious Paving | B53: Infiltrative | C53: Arterial Road | D53: Pervious Paving - Infiltrative - Arterial Road - B | E53: square feet | F53: $/ft2 | G53: 20 | H53: B | I53: 3 | J53: 1 | K53: 0.001764 | N53: 0.116424 | O53: 0.12 | P53: 2014 | Q53: =IF($M$7<=$P$7,N53*(1+'6_Other Assumptions'!$B$9)^($P$7-$M$7),N53*(1+'6_Other Assumptions'!$B$9+'6_Other Assumptions'!$B$11)^($P$7-$M$7))+IF(T53<=$P$7,O53*(1+'6_Other Assumptions'!$B$9)^($P$7-T53),O53*(1+'6_Other Assumptions'!$B$9+'6_Other Assumptions'!$B$11)^($P$7-T53)) -> 0.236424 | R53: 0.236424 | T53: 2014 | U53: 2014 | W53: =IF(U53<='6_Other Assumptions'!$B$7,R53*(1+'6_Other Assumptions'!$B$9)^('6_Other Assumptions'!$B$7-U53),R53*(1+'6_Other Assumptions'!$B$9+'6_Other Assumptions'!$B$11)^('6_Other Assumptions'!$B$7-U53)) -> 0.236424 | Y53: 1 | Z53: 1 | AA53: 1 | AC53: TRUE
A54: Pervious Paving | B54: Infiltrative | C54: Arterial Road | D54: Pervious Paving - Infiltrative - Arterial Road - C | E54: square feet | F54: $/ft2 | G54: 20 | H54: C | I54: 1 | J54: 1 | K54: 0.001508 | N54: 0.099528 | O54: 0.12 | P54: 2014 | Q54: =IF($M$7<=$P$7,N54*(1+'6_Other Assumptions'!$B$9)^($P$7-$M$7),N54*(1+'6_Other Assumptions'!$B$9+'6_Other Assumptions'!$B$11)^($P$7-$M$7))+IF(T54<=$P$7,O54*(1+'6_Other Assumptions'!$B$9)^($P$7-T54),O54*(1+'6_Other Assumptions'!$B$9+'6_Other Assumptions'!$B$11)^($P$7-T54)) -> 0.219528 | R54: 0.219528 | T54: 2014 | U54: 2014 | W54: =IF(U54<='6_Other Assumptions'!$B$7,R54*(1+'6_Other Assumptions'!$B$9)^('6_Other Assumptions'!$B$7-U54),R54*(1+'6_Other Assumptions'!$B$9+'6_Other Assumptions'!$B$11)^('6_Other Assumptions'!$B$7-U54)) -> 0.219528 | Y54: 1 | Z54: 1 | AA54: 1 | AC54: TRUE
A55: Pervious Paving | B55: Infiltrative | C55: Arterial Road | D55: Pervious Paving - Infiltrative - Arterial Road - D | E55: square feet | F55: $/ft2 | G55: 20 | H55: D | I55: 0 | J55: 1 | K55: 0.00138 | N55: 0.09108 | O55: 0.12 | P55: 2014 | Q55: =IF($M$7<=$P$7,N55*(1+'6_Other Assumptions'!$B$9)^($P$7-$M$7),N55*(1+'6_Other Assumptions'!$B$9+'6_Other Assumptions'!$B$11)^($P$7-$M$7))+IF(T55<=$P$7,O55*(1+'6_Other Assumptions'!$B$9)^($P$7-T55),O55*(1+'6_Other Assumptions'!$B$9+'6_Other Assumptions'!$B$11)^($P$7-T55)) -> 0.21108 | R55: 0.21108 | T55: 2014 | U55: 2014 | W55: =IF(U55<='6_Other Assumptions'!$B$7,R55*(1+'6_Other Assumptions'!$B$9)^('6_Other Assumptions'!$B$7-U55),R55*(1+'6_Other Assumptions'!$B$9+'6_Other Assumptions'!$B$11)^('6_Other Assumptions'!$B$7-U55)) -> 0.21108 | Y55: 1 | Z55: 1 | AA55: 1 | AC55: TRUE
A56: Pervious Paving | B56: Infiltrative | C56: Arterial Road | D56: Pervious Paving - Infiltrative - Arterial Road - E | E56: square feet | F56: $/ft2 | G56: 20 | H56: E | I56: 0 | J56: 0.2 | K56: 0.000276 | N56: 0.018216 | O56: 0.12 | P56: 2014 | Q56: =IF($M$7<=$P$7,N56*(1+'6_Other Assumptions'!$B$9)^($P$7-$M$7),N56*(1+'6_Other Assumptions'!$B$9+'6_Other Assumptions'!$B$11)^($P$7-$M$7))+IF(T56<=$P$7,O56*(1+'6_Other Assumptions'!$B$9)^($P$7-T56),O56*(1+'6_Other Assumptions'!$B$9+'6_Other Assumptions'!$B$11)^($P$7-T56)) -> 0.138216 | R56: 0.138216 | T56: 2014 | U56: 2014 | W56: =IF(U56<='6_Other Assumptions'!$B$7,R56*(1+'6_Other Assumptions'!$B$9)^('6_Other Assumptions'!$B$7-U56),R56*(1+'6_Other Assumptions'!$B$9+'6_Other Assumptions'!$B$11)^('6_Other Assumptions'!$B$7-U56)) -> 0.138216 | Y56: 1 | Z56: 1 | AA56: 1 | AC56: TRUE
A57: Pervious Paving | B57: Underdrained | C57: Local Road | D57: Pervious Paving - Underdrained - Local Road - A | E57: square feet | F57: $/ft2 | G57: 15 | H57: A | I57: 11 | J57: 1 | K57: 0.002739333333 | N57: 0.180796 | O57: 0.1 | P57: 2014 | Q57: =IF($M$7<=$P$7,N57*(1+'6_Other Assumptions'!$B$9)^($P$7-$M$7),N57*(1+'6_Other Assumptions'!$B$9+'6_Other Assumptions'!$B$11)^($P$7-$M$7))+IF(T57<=$P$7,O57*(1+'6_Other Assumptions'!$B$9)^($P$7-T57),O57*(1+'6_Other Assumptions'!$B$9+'6_Other Assumptions'!$B$11)^($P$7-T57)) -> 0.280796 | R57: 0.280796 | T57: 2014 | U57: 2014 | W57: =IF(U57<='6_Other Assumptions'!$B$7,R57*(1+'6_Other Assumptions'!$B$9)^('6_Other Assumptions'!$B$7-U57),R57*(1+'6_Other Assumptions'!$B$9+'6_Other Assumptions'!$B$11)^('6_Other Assumptions'!$B$7-U57)) -> 0.280796 | Y57: 1 | Z57: 1 | AA57: 1 | AC57: TRUE
A58: Pervious Paving | B58: Underdrained | C58: Local Road | D58: Pervious Paving - Underdrained - Local Road - B | E58: square feet | F58: $/ft2 | G58: 15 | H58: B | I58: 3 | J58: 1 | K58: 0.00163 | N58: 0.10758 | O58: 0.1 | P58: 2014 | Q58: =IF($M$7<=$P$7,N58*(1+'6_Other Assumptions'!$B$9)^($P$7-$M$7),N58*(1+'6_Other Assumptions'!$B$9+'6_Other Assumptions'!$B$11)^($P$7-$M$7))+IF(T58<=$P$7,O58*(1+'6_Other Assumptions'!$B$9)^($P$7-T58),O58*(1+'6_Other Assumptions'!$B$9+'6_Other Assumptions'!$B$11)^($P$7-T58)) -> 0.20758 | R58: 0.20758 | T58: 2014 | U58: 2014 | W58: =IF(U58<='6_Other Assumptions'!$B$7,R58*(1+'6_Other Assumptions'!$B$9)^('6_Other Assumptions'!$B$7-U58),R58*(1+'6_Other Assumptions'!$B$9+'6_Other Assumptions'!$B$11)^('6_Other Assumptions'!$B$7-U58)) -> 0.20758 | Y58: 1 | Z58: 1 | AA58: 1 | AC58: TRUE
A59: Pervious Paving | B59: Underdrained | C59: Local Road | D59: Pervious Paving - Underdrained - Local Road - C | E59: square feet | F59: $/ft2 | G59: 15 | H59: C | I59: 1 | J59: 1 | K59: 0.001352666667 | N59: 0.089276 | O59: 0.1 | P59: 2014 | Q59: =IF($M$7<=$P$7,N59*(1+'6_Other Assumptions'!$B$9)^($P$7-$M$7),N59*(1+'6_Other Assumptions'!$B$9+'6_Other Assumptions'!$B$11)^($P$7-$M$7))+IF(T59<=$P$7,O59*(1+'6_Other Assumptions'!$B$9)^($P$7-T59),O59*(1+'6_Other Assumptions'!$B$9+'6_Other Assumptions'!$B$11)^($P$7-T59)) -> 0.189276 | R59: 0.189276 | T59: 2014 | U59: 2014 | W59: =IF(U59<='6_Other Assumptions'!$B$7,R59*(1+'6_Other Assumptions'!$B$9)^('6_Other Assumptions'!$B$7-U59),R59*(1+'6_Other Assumptions'!$B$9+'6_Other Assumptions'!$B$11)^('6_Other Assumptions'!$B$7-U59)) -> 0.189276 | Y59: 1 | Z59: 1 | AA59: 1 | AC59: TRUE
A60: Pervious Paving | B60: Underdrained | C60: Local Road | D60: Pervious Paving - Underdrained - Local Road - D | E60: square feet | F60: $/ft2 | G60: 15 | H60: D | I60: 0 | J60: 1 | K60: 0.001214 | N60: 0.080124 | O60: 0.1 | P60: 2014 | Q60: =IF($M$7<=$P$7,N60*(1+'6_Other Assumptions'!$B$9)^($P$7-$M$7),N60*(1+'6_Other Assumptions'!$B$9+'6_Other Assumptions'!$B$11)^($P$7-$M$7))+IF(T60<=$P$7,O60*(1+'6_Other Assumptions'!$B$9)^($P$7-T60),O60*(1+'6_Other Assumptions'!$B$9+'6_Other Assumptions'!$B$11)^($P$7-T60)) -> 0.180124 | R60: 0.180124 | T60: 2014 | U60: 2014 | W60: =IF(U60<='6_Other Assumptions'!$B$7,R60*(1+'6_Other Assumptions'!$B$9)^('6_Other Assumptions'!$B$7-U60),R60*(1+'6_Other Assumptions'!$B$9+'6_Other Assumptions'!$B$11)^('6_Other Assumptions'!$B$7-U60)) -> 0.180124 | Y60: 1 | Z60: 1 | AA60: 1 | AC60: TRUE
A61: Pervious Paving | B61: Underdrained | C61: Local Road | D61: Pervious Paving - Underdrained - Local Road - E | E61: square feet | F61: $/ft2 | G61: 15 | H61: E | I61: 0 | J61: 0.2 | K61: 0.0002428 | N61: 0.0160248 | O61: 0.1 | P61: 2014 | Q61: =IF($M$7<=$P$7,N61*(1+'6_Other Assumptions'!$B$9)^($P$7-$M$7),N61*(1+'6_Other Assumptions'!$B$9+'6_Other Assumptions'!$B$11)^($P$7-$M$7))+IF(T61<=$P$7,O61*(1+'6_Other Assumptions'!$B$9)^($P$7-T61),O61*(1+'6_Other Assumptions'!$B$9+'6_Other Assumptions'!$B$11)^($P$7-T61)) -> 0.1160248 | R61: 0.1160248 | T61: 2014 | U61: 2014 | W61: =IF(U61<='6_Other Assumptions'!$B$7,R61*(1+'6_Other Assumptions'!$B$9)^('6_Other Assumptions'!$B$7-U61),R61*(1+'6_Other Assumptions'!$B$9+'6_Other Assumptions'!$B$11)^('6_Other Assumptions'!$B$7-U61)) -> 0.1160248 | Y61: 1 | Z61: 1 | AA61: 1 | AC61: TRUE
A62: Pervious Paving | B62: Underdrained | C62: Collector Road | D62: Pervious Paving - Underdrained - Collector Road - A | E62: square feet | F62: $/ft2 | G62: 15 | H62: A | I62: 11 | J62: 1 | K62: 0.003013266667 | N62: 0.1988756 | O62: 0.11 | P62: 2014 | Q62: =IF($M$7<=$P$7,N62*(1+'6_Other Assumptions'!$B$9)^($P$7-$M$7),N62*(1+'6_Other Assumptions'!$B$9+'6_Other Assumptions'!$B$11)^($P$7-$M$7))+IF(T62<=$P$7,O62*(1+'6_Other Assumptions'!$B$9)^($P$7-T62),O62*(1+'6_Other Assumptions'!$B$9+'6_Other Assumptions'!$B$11)^($P$7-T62)) -> 0.3088756 | R62: 0.3088756 | T62: 2014 | U62: 2014 | W62: =IF(U62<='6_Other Assumptions'!$B$7,R62*(1+'6_Other Assumptions'!$B$9)^('6_Other Assumptions'!$B$7-U62),R62*(1+'6_Other Assumptions'!$B$9+'6_Other Assumptions'!$B$11)^('6_Other Assumptions'!$B$7-U62)) -> 0.3088756 | Y62: 1 | Z62: 1 | AA62: 1 | AC62: TRUE
A63: Pervious Paving | B63: Underdrained | C63: Collector Road | D63: Pervious Paving - Underdrained - Collector Road - B | E63: square feet | F63: $/ft2 | G63: 15 | H63: B | I63: 3 | J63: 1 | K63: 0.001793 | N63: 0.118338 | O63: 0.11 | P63: 2014 | Q63: =IF($M$7<=$P$7,N63*(1+'6_Other Assumptions'!$B$9)^($P$7-$M$7),N63*(1+'6_Other Assumptions'!$B$9+'6_Other Assumptions'!$B$11)^($P$7-$M$7))+IF(T63<=$P$7,O63*(1+'6_Other Assumptions'!$B$9)^($P$7-T63),O63*(1+'6_Other Assumptions'!$B$9+'6_Other Assumptions'!$B$11)^($P$7-T63)) -> 0.228338 | R63: 0.228338 | T63: 2014 | U63: 2014 | W63: =IF(U63<='6_Other Assumptions'!$B$7,R63*(1+'6_Other Assumptions'!$B$9)^('6_Other Assumptions'!$B$7-U63),R63*(1+'6_Other Assumptions'!$B$9+'6_Other Assumptions'!$B$11)^('6_Other Assumptions'!$B$7-U63)) -> 0.228338 | Y63: 1 | Z63: 1 | AA63: 1 | AC63: TRUE
A64: Pervious Paving | B64: Underdrained | C64: Collector Road | D64: Pervious Paving - Underdrained - Collector Road - C | E64: square feet | F64: $/ft2 | G64: 15 | H64: C | I64: 1 | J64: 1 | K64: 0.001487933333 | N64: 0.0982036 | O64: 0.11 | P64: 2014 | Q64: =IF($M$7<=$P$7,N64*(1+'6_Other Assumptions'!$B$9)^($P$7-$M$7),N64*(1+'6_Other Assumptions'!$B$9+'6_Other Assumptions'!$B$11)^($P$7-$M$7))+IF(T64<=$P$7,O64*(1+'6_Other Assumptions'!$B$9)^($P$7-T64),O64*(1+'6_Other Assumptions'!$B$9+'6_Other Assumptions'!$B$11)^($P$7-T64)) -> 0.2082036 | R64: 0.2082036 | T64: 2014 | U64: 2014 | W64: =IF(U64<='6_Other Assumptions'!$B$7,R64*(1+'6_Other Assumptions'!$B$9)^('6_Other Assumptions'!$B$7-U64),R64*(1+'6_Other Assumptions'!$B$9+'6_Other Assumptions'!$B$11)^('6_Other Assumptions'!$B$7-U64)) -> 0.2082036 | Y64: 1 | Z64: 1 | AA64: 1 | AC64: TRUE
A65: Pervious Paving | B65: Underdrained | C65: Collector Road | D65: Pervious Paving - Underdrained - Collector Road - D | E65: square feet | F65: $/ft2 | G65: 15 | H65: D | I65: 0 | J65: 1 | K65: 0.0013354 | N65: 0.0881364 | O65: 0.11 | P65: 2014 | Q65: =IF($M$7<=$P$7,N65*(1+'6_Other Assumptions'!$B$9)^($P$7-$M$7),N65*(1+'6_Other Assumptions'!$B$9+'6_Other Assumptions'!$B$11)^($P$7-$M$7))+IF(T65<=$P$7,O65*(1+'6_Other Assumptions'!$B$9)^($P$7-T65),O65*(1+'6_Other Assumptions'!$B$9+'6_Other Assumptions'!$B$11)^($P$7-T65)) -> 0.1981364 | R65: 0.1981364 | T65: 2014 | U65: 2014 | W65: =IF(U65<='6_Other Assumptions'!$B$7,R65*(1+'6_Other Assumptions'!$B$9)^('6_Other Assumptions'!$B$7-U65),R65*(1+'6_Other Assumptions'!$B$9+'6_Other Assumptions'!$B$11)^('6_Other Assumptions'!$B$7-U65)) -> 0.1981364 | Y65: 1 | Z65: 1 | AA65: 1 | AC65: TRUE
A66: Pervious Paving | B66: Underdrained | C66: Collector Road | D66: Pervious Paving - Underdrained - Collector Road - E | E66: square feet | F66: $/ft2 | G66: 15 | H66: E | I66: 0 | J66: 0.2 | K66: 0.00026708 | N66: 0.01762728 | O66: 0.11 | P66: 2014 | Q66: =IF($M$7<=$P$7,N66*(1+'6_Other Assumptions'!$B$9)^($P$7-$M$7),N66*(1+'6_Other Assumptions'!$B$9+'6_Other Assumptions'!$B$11)^($P$7-$M$7))+IF(T66<=$P$7,O66*(1+'6_Other Assumptions'!$B$9)^($P$7-T66),O66*(1+'6_Other Assumptions'!$B$9+'6_Other Assumptions'!$B$11)^($P$7-T66)) -> 0.12762728 | R66: 0.12762728 | T66: 2014 | U66: 2014 | W66: =IF(U66<='6_Other Assumptions'!$B$7,R66*(1+'6_Other Assumptions'!$B$9)^('6_Other Assumptions'!$B$7-U66),R66*(1+'6_Other Assumptions'!$B$9+'6_Other Assumptions'!$B$11)^('6_Other Assumptions'!$B$7-U66)) -> 0.12762728 | Y66: 1 | Z66: 1 | AA66: 1 | AC66: TRUE
A67: Pervious Paving | B67: Underdrained | C67: Arterial Road | D67: Pervious Paving - Underdrained - Arterial Road - A | E67: square feet | F67: $/ft2 | G67: 20 | H67: A | I67: 11 | J67: 1 | K67: 0.0032872 | N67: 0.2169552 | O67: 0.12 | P67: 2014 | Q67: =IF($M$7<=$P$7,N67*(1+'6_Other Assumptions'!$B$9)^($P$7-$M$7),N67*(1+'6_Other Assumptions'!$B$9+'6_Other Assumptions'!$B$11)^($P$7-$M$7))+IF(T67<=$P$7,O67*(1+'6_Other Assumptions'!$B$9)^($P$7-T67),O67*(1+'6_Other Assumptions'!$B$9+'6_Other Assumptions'!$B$11)^($P$7-T67)) -> 0.3369552 | R67: 0.3369552 | T67: 2014 | U67: 2014 | W67: =IF(U67<='6_Other Assumptions'!$B$7,R67*(1+'6_Other Assumptions'!$B$9)^('6_Other Assumptions'!$B$7-U67),R67*(1+'6_Other Assumptions'!$B$9+'6_Other Assumptions'!$B$11)^('6_Other Assumptions'!$B$7-U67)) -> 0.3369552 | Y67: 1 | Z67: 1 | AA67: 1 | AC67: TRUE
A68: Pervious Paving | B68: Underdrained | C68: Arterial Road | D68: Pervious Paving - Underdrained - Arterial Road - B | E68: square feet | F68: $/ft2 | G68: 20 | H68: B | I68: 3 | J68: 1 | K68: 0.001956 | N68: 0.129096 | O68: 0.12 | P68: 2014 | Q68: =IF($M$7<=$P$7,N68*(1+'6_Other Assumptions'!$B$9)^($P$7-$M$7),N68*(1+'6_Other Assumptions'!$B$9+'6_Other Assumptions'!$B$11)^($P$7-$M$7))+IF(T68<=$P$7,O68*(1+'6_Other Assumptions'!$B$9)^($P$7-T68),O68*(1+'6_Other Assumptions'!$B$9+'6_Other Assumptions'!$B$11)^($P$7-T68)) -> 0.249096 | R68: 0.249096 | T68: 2014 | U68: 2014 | W68: =IF(U68<='6_Other Assumptions'!$B$7,R68*(1+'6_Other Assumptions'!$B$9)^('6_Other Assumptions'!$B$7-U68),R68*(1+'6_Other Assumptions'!$B$9+'6_Other Assumptions'!$B$11)^('6_Other Assumptions'!$B$7-U68)) -> 0.249096 | Y68: 1 | Z68: 1 | AA68: 1 | AC68: TRUE
A69: Pervious Paving | B69: Underdrained | C69: Arterial Road | D69: Pervious Paving - Underdrained - Arterial Road - C | E69: square feet | F69: $/ft2 | G69: 20 | H69: C | I69: 1 | J69: 1 | K69: 0.0016232 | N69: =K69*$L$7 -> 0.1071312 | O69: 0.12 | P69: 2014 | Q69: =IF($M$7<=$P$7,N69*(1+'6_Other Assumptions'!$B$9)^($P$7-$M$7),N69*(1+'6_Other Assumptions'!$B$9+'6_Other Assumptions'!$B$11)^($P$7-$M$7))+IF(T69<=$P$7,O69*(1+'6_Other Assumptions'!$B$9)^($P$7-T69),O69*(1+'6_Other Assumptions'!$B$9+'6_Other Assumptions'!$B$11)^($P$7-T69)) -> 0.2271312 | R69: 0.2271312 | T69: 2014 | U69: 2014 | W69: =IF(U69<='6_Other Assumptions'!$B$7,R69*(1+'6_Other Assumptions'!$B$9)^('6_Other Assumptions'!$B$7-U69),R69*(1+'6_Other Assumptions'!$B$9+'6_Other Assumptions'!$B$11)^('6_Other Assumptions'!$B$7-U69)) -> 0.2271312 | Y69: 1 | Z69: 1 | AA69: 1 | AC69: TRUE
A70: Pervious Paving | B70: Underdrained | C70: Arterial Road | D70: Pervious Paving - Underdrained - Arterial Road - D | E70: square feet | F70: $/ft2 | G70: 20 | H70: D | I70: 0 | J70: 1 | K70: 0.0014568 | N70: 0.0961488 | O70: 0.12 | P70: 2014 | Q70: =IF($M$7<=$P$7,N70*(1+'6_Other Assumptions'!$B$9)^($P$7-$M$7),N70*(1+'6_Other Assumptions'!$B$9+'6_Other Assumptions'!$B$11)^($P$7-$M$7))+IF(T70<=$P$7,O70*(1+'6_Other Assumptions'!$B$9)^($P$7-T70),O70*(1+'6_Other Assumptions'!$B$9+'6_Other Assumptions'!$B$11)^($P$7-T70)) -> 0.2161488 | R70: 0.2161488 | T70: 2014 | U70: 2014 | W70: =IF(U70<='6_Other Assumptions'!$B$7,R70*(1+'6_Other Assumptions'!$B$9)^('6_Other Assumptions'!$B$7-U70),R70*(1+'6_Other Assumptions'!$B$9+'6_Other Assumptions'!$B$11)^('6_Other Assumptions'!$B$7-U70)) -> 0.2161488 | Y70: 1 | Z70: 1 | AA70: 1 | AC70: TRUE
A71: Pervious Paving | B71: Underdrained | C71: Arterial Road | D71: Pervious Paving - Underdrained - Arterial Road - E | E71: square feet | F71: $/ft2 | G71: 20 | H71: E | I71: 0 | J71: 0.2 | K71: 0.00029136 | N71: 0.01922976 | O71: 0.12 | P71: 2014 | Q71: =IF($M$7<=$P$7,N71*(1+'6_Other Assumptions'!$B$9)^($P$7-$M$7),N71*(1+'6_Other Assumptions'!$B$9+'6_Other Assumptions'!$B$11)^($P$7-$M$7))+IF(T71<=$P$7,O71*(1+'6_Other Assumptions'!$B$9)^($P$7-T71),O71*(1+'6_Other Assumptions'!$B$9+'6_Other Assumptions'!$B$11)^($P$7-T71)) -> 0.13922976 | R71: =IF(ISBLANK(S71),Q71,S71) -> 0.13922976 | T71: =MAX($M$7,P71) -> 2014 | U71: =IF(ISBLANK(V71),T71,V71) -> 2014 | W71: =IF(U71<='6_Other Assumptions'!$B$7,R71*(1+'6_Other Assumptions'!$B$9)^('6_Other Assumptions'!$B$7-U71),R71*(1+'6_Other Assumptions'!$B$9+'6_Other Assumptions'!$B$11)^('6_Other Assumptions'!$B$7-U71)) -> 0.13922976 | Y71: 1 | Z71: 1 | AA71: 1 | AC71: TRUE
A72: Infiltration Basin | B72: none | C72: none | D72: =IF(LEN(A72)>0,A72&" - "&B72&" - "&C72&" - "&H72,"") -> Infiltration Basin - none - none - A | E72: square feet | F72: $/ft2 | G72: 50 | H72: A | I72: 11 | J72: 1 | K72: 0.0462 | N72: 3.0492 | O72: 0.84 | P72: 2014 | Q72: =IF($M$7<=$P$7,N72*(1+'6_Other Assumptions'!$B$9)^($P$7-$M$7),N72*(1+'6_Other Assumptions'!$B$9+'6_Other Assumptions'!$B$11)^($P$7-$M$7))+IF(T72<=$P$7,O72*(1+'6_Other Assumptions'!$B$9)^($P$7-T72),O72*(1+'6_Other Assumptions'!$B$9+'6_Other Assumptions'!$B$11)^($P$7-T72)) -> 3.8892 | R72: 3.8892 | T72: 2014 | U72: 2014 | W72: =IF(U72<='6_Other Assumptions'!$B$7,R72*(1+'6_Other Assumptions'!$B$9)^('6_Other Assumptions'!$B$7-U72),R72*(1+'6_Other Assumptions'!$B$9+'6_Other Assumptions'!$B$11)^('6_Other Assumptions'!$B$7-U72)) -> 3.8892 | Y72: 1 | Z72: 1 | AA72: 1 | AC72: =IF(OR(A72<>"",B72<>"",C72<>""),OR(AND(E72<>"",H72<>"",I72<>"",J72<>"",K72<>"",$L$7<>"",$M$7<>"",O72<>"",P72<>"",Z72<>"",AA72<>""),AND(E72<>"",V72<>"",S72<>"",Z72<>"",AA72<>"")),TRUE) -> TRUE
A73: Infiltration Basin | B73: none | C73: none | D73: Infiltration Basin - none - none - B | E73: square feet | F73: $/ft2 | G73: 50 | H73: B | I73: 3 | J73: 1 | K73: 0.0178 | N73: 1.1748 | O73: 0.84 | P73: 2014 | Q73: =IF($M$7<=$P$7,N73*(1+'6_Other Assumptions'!$B$9)^($P$7-$M$7),N73*(1+'6_Other Assumptions'!$B$9+'6_Other Assumptions'!$B$11)^($P$7-$M$7))+IF(T73<=$P$7,O73*(1+'6_Other Assumptions'!$B$9)^($P$7-T73),O73*(1+'6_Other Assumptions'!$B$9+'6_Other Assumptions'!$B$11)^($P$7-T73)) -> 2.0148 | R73: 2.0148 | T73: 2014 | U73: 2014 | W73: =IF(U73<='6_Other Assumptions'!$B$7,R73*(1+'6_Other Assumptions'!$B$9)^('6_Other Assumptions'!$B$7-U73),R73*(1+'6_Other Assumptions'!$B$9+'6_Other Assumptions'!$B$11)^('6_Other Assumptions'!$B$7-U73)) -> 2.0148 | Y73: 1 | Z73: 1 | AA73: 1 | AC73: TRUE
A74: Infiltration Basin | B74: none | C74: none | D74: Infiltration Basin - none - none - C | E74: square feet | F74: $/ft2 | G74: 50 | H74: C | I74: 1 | J74: 1 | K74: 0.0107 | N74: 0.7062 | O74: 0.84 | P74: 2014 | Q74: =IF($M$7<=$P$7,N74*(1+'6_Other Assumptions'!$B$9)^($P$7-$M$7),N74*(1+'6_Other Assumptions'!$B$9+'6_Other Assumptions'!$B$11)^($P$7-$M$7))+IF(T74<=$P$7,O74*(1+'6_Other Assumptions'!$B$9)^($P$7-T74),O74*(1+'6_Other Assumptions'!$B$9+'6_Other Assumptions'!$B$11)^($P$7-T74)) -> 1.5462 | R74: 1.5462 | T74: 2014 | U74: 2014 | W74: =IF(U74<='6_Other Assumptions'!$B$7,R74*(1+'6_Other Assumptions'!$B$9)^('6_Other Assumptions'!$B$7-U74),R74*(1+'6_Other Assumptions'!$B$9+'6_Other Assumptions'!$B$11)^('6_Other Assumptions'!$B$7-U74)) -> 1.5462 | Y74: 1 | Z74: 1 | AA74: 1 | AC74: TRUE
A75: Infiltration Basin | B75: none | C75: none | D75: Infiltration Basin - none - none - D | E75: square feet | F75: $/ft2 | G75: 50 | H75: D | I75: 0 | J75: 1 | K75: 0.00715 | N75: 0.4719 | O75: 0.84 | P75: 2014 | Q75: =IF($M$7<=$P$7,N75*(1+'6_Other Assumptions'!$B$9)^($P$7-$M$7),N75*(1+'6_Other Assumptions'!$B$9+'6_Other Assumptions'!$B$11)^($P$7-$M$7))+IF(T75<=$P$7,O75*(1+'6_Other Assumptions'!$B$9)^($P$7-T75),O75*(1+'6_Other Assumptions'!$B$9+'6_Other Assumptions'!$B$11)^($P$7-T75)) -> 1.3119 | R75: 1.3119 | T75: 2014 | U75: 2014 | W75: =IF(U75<='6_Other Assumptions'!$B$7,R75*(1+'6_Other Assumptions'!$B$9)^('6_Other Assumptions'!$B$7-U75),R75*(1+'6_Other Assumptions'!$B$9+'6_Other Assumptions'!$B$11)^('6_Other Assumptions'!$B$7-U75)) -> 1.3119 | Y75: 1 | Z75: 1 | AA75: 1 | AC75: TRUE
A76: Infiltration Basin | B76: none | C76: none | D76: Infiltration Basin - none - none - E | E76: square feet | F76: $/ft2 | G76: 50 | H76: E | I76: 0 | J76: 0.2 | K76: 0.00143 | N76: 0.09438 | O76: 0.84 | P76: 2014 | Q76: =IF($M$7<=$P$7,N76*(1+'6_Other Assumptions'!$B$9)^($P$7-$M$7),N76*(1+'6_Other Assumptions'!$B$9+'6_Other Assumptions'!$B$11)^($P$7-$M$7))+IF(T76<=$P$7,O76*(1+'6_Other Assumptions'!$B$9)^($P$7-T76),O76*(1+'6_Other Assumptions'!$B$9+'6_Other Assumptions'!$B$11)^($P$7-T76)) -> 0.93438 | R76: 0.93438 | T76: 2014 | U76: 2014 | W76: =IF(U76<='6_Other Assumptions'!$B$7,R76*(1+'6_Other Assumptions'!$B$9)^('6_Other Assumptions'!$B$7-U76),R76*(1+'6_Other Assumptions'!$B$9+'6_Other Assumptions'!$B$11)^('6_Other Assumptions'!$B$7-U76)) -> 0.93438 | Y76: 1 | Z76: 1 | AA76: 1 | AC76: TRUE
A77: Constructed Wetland | B77: Surface | C77: none | D77: Constructed Wetland - Surface - none - A | E77: square feet | F77: $/ft2 | G77: 30 | H77: A | I77: 11 | J77: 1 | K77: 0.0484 | N77: 3.1944 | O77: 0.52 | P77: 2014 | Q77: =IF($M$7<=$P$7,N77*(1+'6_Other Assumptions'!$B$9)^($P$7-$M$7),N77*(1+'6_Other Assumptions'!$B$9+'6_Other Assumptions'!$B$11)^($P$7-$M$7))+IF(T77<=$P$7,O77*(1+'6_Other Assumptions'!$B$9)^($P$7-T77),O77*(1+'6_Other Assumptions'!$B$9+'6_Other Assumptions'!$B$11)^($P$7-T77)) -> 3.7144 | R77: 3.7144 | T77: 2014 | U77: 2014 | W77: =IF(U77<='6_Other Assumptions'!$B$7,R77*(1+'6_Other Assumptions'!$B$9)^('6_Other Assumptions'!$B$7-U77),R77*(1+'6_Other Assumptions'!$B$9+'6_Other Assumptions'!$B$11)^('6_Other Assumptions'!$B$7-U77)) -> 3.7144 | Y77: 1 | Z77: 1 | AA77: 1 | AC77: TRUE
A78: Constructed Wetland | B78: Surface | C78: none | D78: Constructed Wetland - Surface - none - B | E78: square feet | F78: $/ft2 | G78: 30 | H78: B | I78: 3 | J78: 1 | K78: 0.018 | N78: 1.188 | O78: 0.52 | P78: 2014 | Q78: =IF($M$7<=$P$7,N78*(1+'6_Other Assumptions'!$B$9)^($P$7-$M$7),N78*(1+'6_Other Assumptions'!$B$9+'6_Other Assumptions'!$B$11)^($P$7-$M$7))+IF(T78<=$P$7,O78*(1+'6_Other Assumptions'!$B$9)^($P$7-T78),O78*(1+'6_Other Assumptions'!$B$9+'6_Other Assumptions'!$B$11)^($P$7-T78)) -> 1.708 | R78: 1.708 | T78: 2014 | U78: 2014 | W78: =IF(U78<='6_Other Assumptions'!$B$7,R78*(1+'6_Other Assumptions'!$B$9)^('6_Other Assumptions'!$B$7-U78),R78*(1+'6_Other Assumptions'!$B$9+'6_Other Assumptions'!$B$11)^('6_Other Assumptions'!$B$7-U78)) -> 1.708 | Y78: 1 | Z78: 1 | AA78: 1 | AC78: TRUE
A79: Constructed Wetland | B79: Surface | C79: none | D79: Constructed Wetland - Surface - none - C | E79: square feet | F79: $/ft2 | G79: 30 | H79: C | I79: 1 | J79: 1 | K79: 0.0104 | N79: 0.6864 | O79: 0.52 | P79: 2014 | Q79: =IF($M$7<=$P$7,N79*(1+'6_Other Assumptions'!$B$9)^($P$7-$M$7),N79*(1+'6_Other Assumptions'!$B$9+'6_Other Assumptions'!$B$11)^($P$7-$M$7))+IF(T79<=$P$7,O79*(1+'6_Other Assumptions'!$B$9)^($P$7-T79),O79*(1+'6_Other Assumptions'!$B$9+'6_Other Assumptions'!$B$11)^($P$7-T79)) -> 1.2064 | R79: 1.2064 | T79: 2014 | U79: 2014 | W79: =IF(U79<='6_Other Assumptions'!$B$7,R79*(1+'6_Other Assumptions'!$B$9)^('6_Other Assumptions'!$B$7-U79),R79*(1+'6_Other Assumptions'!$B$9+'6_Other Assumptions'!$B$11)^('6_Other Assumptions'!$B$7-U79)) -> 1.2064 | Y79: 1 | Z79: 1 | AA79: 1 | AC79: TRUE
A80: Constructed Wetland | B80: Surface | C80: none | D80: Constructed Wetland - Surface - none - D | E80: square feet | F80: $/ft2 | G80: 30 | H80: D | I80: 0 | J80: 1 | K80: 0.0066 | N80: 0.4356 | O80: 0.52 | P80: 2014 | Q80: =IF($M$7<=$P$7,N80*(1+'6_Other Assumptions'!$B$9)^($P$7-$M$7),N80*(1+'6_Other Assumptions'!$B$9+'6_Other Assumptions'!$B$11)^($P$7-$M$7))+IF(T80<=$P$7,O80*(1+'6_Other Assumptions'!$B$9)^($P$7-T80),O80*(1+'6_Other Assumptions'!$B$9+'6_Other Assumptions'!$B$11)^($P$7-T80)) -> 0.9556 | R80: 0.9556 | T80: 2014 | U80: 2014 | W80: =IF(U80<='6_Other Assumptions'!$B$7,R80*(1+'6_Other Assumptions'!$B$9)^('6_Other Assumptions'!$B$7-U80),R80*(1+'6_Other Assumptions'!$B$9+'6_Other Assumptions'!$B$11)^('6_Other Assumptions'!$B$7-U80)) -> 0.9556 | Y80: 1 | Z80: 1 | AA80: 1 | AC80: TRUE
A81: Constructed Wetland | B81: Surface | C81: none | D81: Constructed Wetland - Surface - none - E | E81: square feet | F81: $/ft2 | G81: 30 | H81: E | I81: 0 | J81: 0.2 | K81: 0.00132 | N81: 0.08712 | O81: 0.52 | P81: 2014 | Q81: =IF($M$7<=$P$7,N81*(1+'6_Other Assumptions'!$B$9)^($P$7-$M$7),N81*(1+'6_Other Assumptions'!$B$9+'6_Other Assumptions'!$B$11)^($P$7-$M$7))+IF(T81<=$P$7,O81*(1+'6_Other Assumptions'!$B$9)^($P$7-T81),O81*(1+'6_Other Assumptions'!$B$9+'6_Other Assumptions'!$B$11)^($P$7-T81)) -> 0.60712 | R81: 0.60712 | T81: 2014 | U81: 2014 | W81: =IF(U81<='6_Other Assumptions'!$B$7,R81*(1+'6_Other Assumptions'!$B$9)^('6_Other Assumptions'!$B$7-U81),R81*(1+'6_Other Assumptions'!$B$9+'6_Other Assumptions'!$B$11)^('6_Other Assumptions'!$B$7-U81)) -> 0.60712 | Y81: 1 | Z81: 1 | AA81: 1 | AC81: TRUE
A82: Constructed Wetland | B82: Subsurface | C82: none | D82: Constructed Wetland - Subsurface - none - A | E82: square feet | F82: $/ft2 | G82: 30 | H82: A | I82: 11 | J82: 1 | K82: 0.0484 | N82: 3.1944 | O82: 0.632 | P82: 2014 | Q82: =IF($M$7<=$P$7,N82*(1+'6_Other Assumptions'!$B$9)^($P$7-$M$7),N82*(1+'6_Other Assumptions'!$B$9+'6_Other Assumptions'!$B$11)^($P$7-$M$7))+IF(T82<=$P$7,O82*(1+'6_Other Assumptions'!$B$9)^($P$7-T82),O82*(1+'6_Other Assumptions'!$B$9+'6_Other Assumptions'!$B$11)^($P$7-T82)) -> 3.8264 | R82: 3.8264 | T82: 2014 | U82: 2014 | W82: =IF(U82<='6_Other Assumptions'!$B$7,R82*(1+'6_Other Assumptions'!$B$9)^('6_Other Assumptions'!$B$7-U82),R82*(1+'6_Other Assumptions'!$B$9+'6_Other Assumptions'!$B$11)^('6_Other Assumptions'!$B$7-U82)) -> 3.8264 | Y82: 1 | Z82: 1 | AA82: 1 | AC82: TRUE
A83: Constructed Wetland | B83: Subsurface | C83: none | D83: Constructed Wetland - Subsurface - none - B | E83: square feet | F83: $/ft2 | G83: 30 | H83: B | I83: 3 | J83: 1 | K83: 0.018 | N83: 1.188 | O83: 0.632 | P83: 2014 | Q83: =IF($M$7<=$P$7,N83*(1+'6_Other Assumptions'!$B$9)^($P$7-$M$7),N83*(1+'6_Other Assumptions'!$B$9+'6_Other Assumptions'!$B$11)^($P$7-$M$7))+IF(T83<=$P$7,O83*(1+'6_Other Assumptions'!$B$9)^($P$7-T83),O83*(1+'6_Other Assumptions'!$B$9+'6_Other Assumptions'!$B$11)^($P$7-T83)) -> 1.82 | R83: 1.82 | T83: 2014 | U83: 2014 | W83: =IF(U83<='6_Other Assumptions'!$B$7,R83*(1+'6_Other Assumptions'!$B$9)^('6_Other Assumptions'!$B$7-U83),R83*(1+'6_Other Assumptions'!$B$9+'6_Other Assumptions'!$B$11)^('6_Other Assumptions'!$B$7-U83)) -> 1.82 | Y83: 1 | Z83: 1 | AA83: 1 | AC83: TRUE
A84: Constructed Wetland | B84: Subsurface | C84: none | D84: Constructed Wetland - Subsurface - none - C | E84: square feet | F84: $/ft2 | G84: 30 | H84: C | I84: 1 | J84: 1 | K84: 0.0104 | N84: 0.6864 | O84: 0.632 | P84: 2014 | Q84: =IF($M$7<=$P$7,N84*(1+'6_Other Assumptions'!$B$9)^($P$7-$M$7),N84*(1+'6_Other Assumptions'!$B$9+'6_Other Assumptions'!$B$11)^($P$7-$M$7))+IF(T84<=$P$7,O84*(1+'6_Other Assumptions'!$B$9)^($P$7-T84),O84*(1+'6_Other Assumptions'!$B$9+'6_Other Assumptions'!$B$11)^($P$7-T84)) -> 1.3184 | R84: 1.3184 | T84: 2014 | U84: 2014 | W84: =IF(U84<='6_Other Assumptions'!$B$7,R84*(1+'6_Other Assumptions'!$B$9)^('6_Other Assumptions'!$B$7-U84),R84*(1+'6_Other Assumptions'!$B$9+'6_Other Assumptions'!$B$11)^('6_Other Assumptions'!$B$7-U84)) -> 1.3184 | Y84: 1 | Z84: 1 | AA84: 1 | AC84: TRUE
A85: Constructed Wetland | B85: Subsurface | C85: none | D85: Constructed Wetland - Subsurface - none - D | E85: square feet | F85: $/ft2 | G85: 30 | H85: D | I85: 0 | J85: 1 | K85: 0.0066 | N85: 0.4356 | O85: 0.632 | P85: 2014 | Q85: =IF($M$7<=$P$7,N85*(1+'6_Other Assumptions'!$B$9)^($P$7-$M$7),N85*(1+'6_Other Assumptions'!$B$9+'6_Other Assumptions'!$B$11)^($P$7-$M$7))+IF(T85<=$P$7,O85*(1+'6_Other Assumptions'!$B$9)^($P$7-T85),O85*(1+'6_Other Assumptions'!$B$9+'6_Other Assumptions'!$B$11)^($P$7-T85)) -> 1.0676 | R85: 1.0676 | T85: 2014 | U85: 2014 | W85: =IF(U85<='6_Other Assumptions'!$B$7,R85*(1+'6_Other Assumptions'!$B$9)^('6_Other Assumptions'!$B$7-U85),R85*(1+'6_Other Assumptions'!$B$9+'6_Other Assumptions'!$B$11)^('6_Other Assumptions'!$B$7-U85)) -> 1.0676 | Y85: 1 | Z85: 1 | AA85: 1 | AC85: TRUE
A86: Constructed Wetland | B86: Subsurface | C86: none | D86: Constructed Wetland - Subsurface - none - E | E86: square feet | F86: $/ft2 | G86: 30 | H86: E | I86: 0 | J86: 0.2 | K86: 0.00132 | N86: 0.08712 | O86: 0.632 | P86: 2014 | Q86: =IF($M$7<=$P$7,N86*(1+'6_Other Assumptions'!$B$9)^($P$7-$M$7),N86*(1+'6_Other Assumptions'!$B$9+'6_Other Assumptions'!$B$11)^($P$7-$M$7))+IF(T86<=$P$7,O86*(1+'6_Other Assumptions'!$B$9)^($P$7-T86),O86*(1+'6_Other Assumptions'!$B$9+'6_Other Assumptions'!$B$11)^($P$7-T86)) -> 0.71912 | R86: 0.71912 | T86: 2014 | U86: 2014 | W86: =IF(U86<='6_Other Assumptions'!$B$7,R86*(1+'6_Other Assumptions'!$B$9)^('6_Other Assumptions'!$B$7-U86),R86*(1+'6_Other Assumptions'!$B$9+'6_Other Assumptions'!$B$11)^('6_Other Assumptions'!$B$7-U86)) -> 0.71912 | Y86: 1 | Z86: 1 | AA86: 1 | AC86: TRUE
A87: Vegetated Roof | B87: Extensive | C87: none | D87: Vegetated Roof - Extensive - none - A | E87: square feet | F87: $/ft2 | G87: 30 | H87: A | I87: 0 | J87: 0.5 | K87: 0.0035 | N87: 0.231 | O87: 0.1 | P87: 2014 | Q87: =IF($M$7<=$P$7,N87*(1+'6_Other Assumptions'!$B$9)^($P$7-$M$7),N87*(1+'6_Other Assumptions'!$B$9+'6_Other Assumptions'!$B$11)^($P$7-$M$7))+IF(T87<=$P$7,O87*(1+'6_Other Assumptions'!$B$9)^($P$7-T87),O87*(1+'6_Other Assumptions'!$B$9+'6_Other Assumptions'!$B$11)^($P$7-T87)) -> 0.331 | R87: 0.331 | T87: 2014 | U87: 2014 | W87: =IF(U87<='6_Other Assumptions'!$B$7,R87*(1+'6_Other Assumptions'!$B$9)^('6_Other Assumptions'!$B$7-U87),R87*(1+'6_Other Assumptions'!$B$9+'6_Other Assumptions'!$B$11)^('6_Other Assumptions'!$B$7-U87)) -> 0.331 | Y87: 1 | Z87: 1 | AA87: 1 | AC87: TRUE
A88: Vegetated Roof | B88: Extensive | C88: none | D88: Vegetated Roof - Extensive - none - B | E88: square feet | F88: $/ft2 | G88: 30 | H88: B | I88: 0 | J88: 0.5 | K88: 0.0035 | N88: 0.231 | O88: 0.1 | P88: 2014 | Q88: =IF($M$7<=$P$7,N88*(1+'6_Other Assumptions'!$B$9)^($P$7-$M$7),N88*(1+'6_Other Assumptions'!$B$9+'6_Other Assumptions'!$B$11)^($P$7-$M$7))+IF(T88<=$P$7,O88*(1+'6_Other Assumptions'!$B$9)^($P$7-T88),O88*(1+'6_Other Assumptions'!$B$9+'6_Other Assumptions'!$B$11)^($P$7-T88)) -> 0.331 | R88: 0.331 | T88: 2014 | U88: 2014 | W88: =IF(U88<='6_Other Assumptions'!$B$7,R88*(1+'6_Other Assumptions'!$B$9)^('6_Other Assumptions'!$B$7-U88),R88*(1+'6_Other Assumptions'!$B$9+'6_Other Assumptions'!$B$11)^('6_Other Assumptions'!$B$7-U88)) -> 0.331 | Y88: 1 | Z88: 1 | AA88: 1 | AC88: TRUE
A89: Vegetated Roof | B89: Extensive | C89: none | D89: Vegetated Roof - Extensive - none - C | E89: square feet | F89: $/ft2 | G89: 30 | H89: C | I89: 0 | J89: 0.5 | K89: 0.0035 | N89: 0.231 | O89: 0.1 | P89: 2014 | Q89: =IF($M$7<=$P$7,N89*(1+'6_Other Assumptions'!$B$9)^($P$7-$M$7),N89*(1+'6_Other Assumptions'!$B$9+'6_Other Assumptions'!$B$11)^($P$7-$M$7))+IF(T89<=$P$7,O89*(1+'6_Other Assumptions'!$B$9)^($P$7-T89),O89*(1+'6_Other Assumptions'!$B$9+'6_Other Assumptions'!$B$11)^($P$7-T89)) -> 0.331 | R89: 0.331 | T89: 2014 | U89: 2014 | W89: =IF(U89<='6_Other Assumptions'!$B$7,R89*(1+'6_Other Assumptions'!$B$9)^('6_Other Assumptions'!$B$7-U89),R89*(1+'6_Other Assumptions'!$B$9+'6_Other Assumptions'!$B$11)^('6_Other Assumptions'!$B$7-U89)) -> 0.331 | Y89: 1 | Z89: 1 | AA89: 1 | AC89: TRUE
A90: Vegetated Roof | B90: Extensive | C90: none | D90: Vegetated Roof - Extensive - none - D | E90: square feet | F90: $/ft2 | G90: 30 | H90: D | I90: 0 | J90: 0.5 | K90: 0.0035 | N90: 0.231 | O90: 0.1 | P90: 2014 | Q90: =IF($M$7<=$P$7,N90*(1+'6_Other Assumptions'!$B$9)^($P$7-$M$7),N90*(1+'6_Other Assumptions'!$B$9+'6_Other Assumptions'!$B$11)^($P$7-$M$7))+IF(T90<=$P$7,O90*(1+'6_Other Assumptions'!$B$9)^($P$7-T90),O90*(1+'6_Other Assumptions'!$B$9+'6_Other Assumptions'!$B$11)^($P$7-T90)) -> 0.331 | R90: 0.331 | T90: 2014 | U90: 2014 | W90: =IF(U90<='6_Other Assumptions'!$B$7,R90*(1+'6_Other Assumptions'!$B$9)^('6_Other Assumptions'!$B$7-U90),R90*(1+'6_Other Assumptions'!$B$9+'6_Other Assumptions'!$B$11)^('6_Other Assumptions'!$B$7-U90)) -> 0.331 | Y90: 1 | Z90: 1 | AA90: 1 | AC90: TRUE
A91: Vegetated Roof | B91: Extensive | C91: none | D91: Vegetated Roof - Extensive - none - E | E91: square feet | F91: $/ft2 | G91: 30 | H91: E | I91: 0 | J91: 0.5 | K91: 0.0035 | N91: 0.231 | O91: 0.1 | P91: 2014 | Q91: =IF($M$7<=$P$7,N91*(1+'6_Other Assumptions'!$B$9)^($P$7-$M$7),N91*(1+'6_Other Assumptions'!$B$9+'6_Other Assumptions'!$B$11)^($P$7-$M$7))+IF(T91<=$P$7,O91*(1+'6_Other Assumptions'!$B$9)^($P$7-T91),O91*(1+'6_Other Assumptions'!$B$9+'6_Other Assumptions'!$B$11)^($P$7-T91)) -> 0.331 | R91: 0.331 | T91: 2014 | U91: 2014 | W91: =IF(U91<='6_Other Assumptions'!$B$7,R91*(1+'6_Other Assumptions'!$B$9)^('6_Other Assumptions'!$B$7-U91),R91*(1+'6_Other Assumptions'!$B$9+'6_Other Assumptions'!$B$11)^('6_Other Assumptions'!$B$7-U91)) -> 0.331 | Y91: 1 | Z91: 1 | AA91: 1 | AC91: TRUE
A92: Vegetated Roof | B92: Intensive | C92: none | D92: Vegetated Roof - Intensive - none - A | E92: square feet | F92: $/ft2 | G92: 20 | H92: A | I92: 0 | J92: 0.5 | K92: 0.0035 | N92: 0.231 | O92: 0.1 | P92: 2014 | Q92: =IF($M$7<=$P$7,N92*(1+'6_Other Assumptions'!$B$9)^($P$7-$M$7),N92*(1+'6_Other Assumptions'!$B$9+'6_Other Assumptions'!$B$11)^($P$7-$M$7))+IF(T92<=$P$7,O92*(1+'6_Other Assumptions'!$B$9)^($P$7-T92),O92*(1+'6_Other Assumptions'!$B$9+'6_Other Assumptions'!$B$11)^($P$7-T92)) -> 0.331 | R92: 0.331 | T92: 2014 | U92: 2014 | W92: =IF(U92<='6_Other Assumptions'!$B$7,R92*(1+'6_Other Assumptions'!$B$9)^('6_Other Assumptions'!$B$7-U92),R92*(1+'6_Other Assumptions'!$B$9+'6_Other Assumptions'!$B$11)^('6_Other Assumptions'!$B$7-U92)) -> 0.331 | Y92: 1 | Z92: 1 | AA92: 1 | AC92: TRUE
A93: Vegetated Roof | B93: Intensive | C93: none | D93: Vegetated Roof - Intensive - none - B | E93: square feet | F93: $/ft2 | G93: 20 | H93: B | I93: 0 | J93: 0.5 | K93: 0.0035 | N93: 0.231 | O93: 0.1 | P93: 2014 | Q93: =IF($M$7<=$P$7,N93*(1+'6_Other Assumptions'!$B$9)^($P$7-$M$7),N93*(1+'6_Other Assumptions'!$B$9+'6_Other Assumptions'!$B$11)^($P$7-$M$7))+IF(T93<=$P$7,O93*(1+'6_Other Assumptions'!$B$9)^($P$7-T93),O93*(1+'6_Other Assumptions'!$B$9+'6_Other Assumptions'!$B$11)^($P$7-T93)) -> 0.331 | R93: 0.331 | T93: 2014 | U93: 2014 | W93: =IF(U93<='6_Other Assumptions'!$B$7,R93*(1+'6_Other Assumptions'!$B$9)^('6_Other Assumptions'!$B$7-U93),R93*(1+'6_Other Assumptions'!$B$9+'6_Other Assumptions'!$B$11)^('6_Other Assumptions'!$B$7-U93)) -> 0.331 | Y93: 1 | Z93: 1 | AA93: 1 | AC93: TRUE
A94: Vegetated Roof | B94: Intensive | C94: none | D94: Vegetated Roof - Intensive - none - C | E94: square feet | F94: $/ft2 | G94: 20 | H94: C | I94: 0 | J94: 0.5 | K94: 0.0035 | N94: 0.231 | O94: 0.1 | P94: 2014 | Q94: =IF($M$7<=$P$7,N94*(1+'6_Other Assumptions'!$B$9)^($P$7-$M$7),N94*(1+'6_Other Assumptions'!$B$9+'6_Other Assumptions'!$B$11)^($P$7-$M$7))+IF(T94<=$P$7,O94*(1+'6_Other Assumptions'!$B$9)^($P$7-T94),O94*(1+'6_Other Assumptions'!$B$9+'6_Other Assumptions'!$B$11)^($P$7-T94)) -> 0.331 | R94: =IF(ISBLANK(S94),Q94,S94) -> 0.331 | T94: 2014 | U94: =IF(ISBLANK(V94),T94,V94) -> 2014 | W94: =IF(U94<='6_Other Assumptions'!$B$7,R94*(1+'6_Other Assumptions'!$B$9)^('6_Other Assumptions'!$B$7-U94),R94*(1+'6_Other Assumptions'!$B$9+'6_Other Assumptions'!$B$11)^('6_Other Assumptions'!$B$7-U94)) -> 0.331 | Y94: 1 | Z94: 1 | AA94: 1 | AC94: TRUE
A95: Vegetated Roof | B95: Intensive | C95: none | D95: Vegetated Roof - Intensive - none - D | E95: square feet | F95: $/ft2 | G95: 20 | H95: D | I95: 0 | J95: 0.5 | K95: 0.0035 | N95: 0.231 | O95: 0.1 | P95: 2014 | Q95: =IF($M$7<=$P$7,N95*(1+'6_Other Assumptions'!$B$9)^($P$7-$M$7),N95*(1+'6_Other Assumptions'!$B$9+'6_Other Assumptions'!$B$11)^($P$7-$M$7))+IF(T95<=$P$7,O95*(1+'6_Other Assumptions'!$B$9)^($P$7-T95),O95*(1+'6_Other Assumptions'!$B$9+'6_Other Assumptions'!$B$11)^($P$7-T95)) -> 0.331 | R95: =IF(ISBLANK(S95),Q95,S95) -> 0.331 | T95: 2014 | U95: =IF(ISBLANK(V95),T95,V95) -> 2014 | W95: =IF(U95<='6_Other Assumptions'!$B$7,R95*(1+'6_Other Assumptions'!$B$9)^('6_Other Assumptions'!$B$7-U95),R95*(1+'6_Other Assumptions'!$B$9+'6_Other Assumptions'!$B$11)^('6_Other Assumptions'!$B$7-U95)) -> 0.331 | Y95: 1 | Z95: 1 | AA95: 1 | AC95: TRUE
A96: Vegetated Roof | B96: Intensive | C96: none | D96: Vegetated Roof - Intensive - none - E | E96: square feet | F96: $/ft2 | G96: 20 | H96: E | I96: 0 | J96: 0.5 | K96: 0.0035 | N96: 0.231 | O96: 0.1 | P96: 2014 | Q96: =IF($M$7<=$P$7,N96*(1+'6_Other Assumptions'!$B$9)^($P$7-$M$7),N96*(1+'6_Other Assumptions'!$B$9+'6_Other Assumptions'!$B$11)^($P$7-$M$7))+IF(T96<=$P$7,O96*(1+'6_Other Assumptions'!$B$9)^($P$7-T96),O96*(1+'6_Other Assumptions'!$B$9+'6_Other Assumptions'!$B$11)^($P$7-T96)) -> 0.331 | R96: =IF(ISBLANK(S96),Q96,S96) -> 0.331 | T96: =MAX($M$7,P96) -> 2014 | U96: =IF(ISBLANK(V96),T96,V96) -> 2014 | W96: =IF(U96<='6_Other Assumptions'!$B$7,R96*(1+'6_Other Assumptions'!$B$9)^('6_Other Assumptions'!$B$7-U96),R96*(1+'6_Other Assumptions'!$B$9+'6_Other Assumptions'!$B$11)^('6_Other Assumptions'!$B$7-U96)) -> 0.331 | Y96: 1 | Z96: 1 | AA96: 1 | AC96: TRUE
A97: Blue Roof | B97: Extensive Pans or Check Dams | C97: none | D97: Blue Roof - Extensive Pans or Check Dams - none - A | E97: cubic feet | F97: $/ft3 | G97: 50 | H97: A | I97: 0 | J97: 0.5 | K97: 0.0016 | N97: 0.1056 | O97: 0.02 | P97: 2014 | Q97: =IF($M$7<=$P$7,N97*(1+'6_Other Assumptions'!$B$9)^($P$7-$M$7),N97*(1+'6_Other Assumptions'!$B$9+'6_Other Assumptions'!$B$11)^($P$7-$M$7))+IF(T97<=$P$7,O97*(1+'6_Other Assumptions'!$B$9)^($P$7-T97),O97*(1+'6_Other Assumptions'!$B$9+'6_Other Assumptions'!$B$11)^($P$7-T97)) -> 0.1256 | R97: 0.1256 | T97: 2014 | U97: 2014 | W97: =IF(U97<='6_Other Assumptions'!$B$7,R97*(1+'6_Other Assumptions'!$B$9)^('6_Other Assumptions'!$B$7-U97),R97*(1+'6_Other Assumptions'!$B$9+'6_Other Assumptions'!$B$11)^('6_Other Assumptions'!$B$7-U97)) -> 0.1256 | Y97: 1 | Z97: 1 | AA97: 1 | AC97: TRUE
A98: Blue Roof | B98: Extensive Pans or Check Dams | C98: none | D98: Blue Roof - Extensive Pans or Check Dams - none - B | E98: cubic feet | F98: $/ft3 | G98: 50 | H98: B | I98: 0 | J98: 0.5 | K98: 0.0016 | N98: 0.1056 | O98: 0.02 | P98: 2014 | Q98: =IF($M$7<=$P$7,N98*(1+'6_Other Assumptions'!$B$9)^($P$7-$M$7),N98*(1+'6_Other Assumptions'!$B$9+'6_Other Assumptions'!$B$11)^($P$7-$M$7))+IF(T98<=$P$7,O98*(1+'6_Other Assumptions'!$B$9)^($P$7-T98),O98*(1+'6_Other Assumptions'!$B$9+'6_Other Assumptions'!$B$11)^($P$7-T98)) -> 0.1256 | R98: 0.1256 | T98: 2014 | U98: 2014 | W98: =IF(U98<='6_Other Assumptions'!$B$7,R98*(1+'6_Other Assumptions'!$B$9)^('6_Other Assumptions'!$B$7-U98),R98*(1+'6_Other Assumptions'!$B$9+'6_Other Assumptions'!$B$11)^('6_Other Assumptions'!$B$7-U98)) -> 0.1256 | Y98: 1 | Z98: 1 | AA98: 1 | AC98: TRUE
A99: Blue Roof | B99: Extensive Pans or Check Dams | C99: none | D99: Blue Roof - Extensive Pans or Check Dams - none - C | E99: cubic feet | F99: $/ft3 | G99: 50 | H99: C | I99: 0 | J99: 0.5 | K99: 0.0016 | N99: 0.1056 | O99: 0.02 | P99: 2014 | Q99: =IF($M$7<=$P$7,N99*(1+'6_Other Assumptions'!$B$9)^($P$7-$M$7),N99*(1+'6_Other Assumptions'!$B$9+'6_Other Assumptions'!$B$11)^($P$7-$M$7))+IF(T99<=$P$7,O99*(1+'6_Other Assumptions'!$B$9)^($P$7-T99),O99*(1+'6_Other Assumptions'!$B$9+'6_Other Assumptions'!$B$11)^($P$7-T99)) -> 0.1256 | R99: 0.1256 | T99: 2014 | U99: 2014 | W99: =IF(U99<='6_Other Assumptions'!$B$7,R99*(1+'6_Other Assumptions'!$B$9)^('6_Other Assumptions'!$B$7-U99),R99*(1+'6_Other Assumptions'!$B$9+'6_Other Assumptions'!$B$11)^('6_Other Assumptions'!$B$7-U99)) -> 0.1256 | Y99: 1 | Z99: 1 | AA99: 1 | AC99: TRUE
A100: Blue Roof | B100: Extensive Pans or Check Dams | C100: none | D100: Blue Roof - Extensive Pans or Check Dams - none - D | E100: cubic feet | F100: $/ft3 | G100: 50 | H100: D | I100: 0 | J100: 0.5 | K100: 0.0016 | N100: 0.1056 | O100: 0.02 | P100: 2014 | Q100: =IF($M$7<=$P$7,N100*(1+'6_Other Assumptions'!$B$9)^($P$7-$M$7),N100*(1+'6_Other Assumptions'!$B$9+'6_Other Assumptions'!$B$11)^($P$7-$M$7))+IF(T100<=$P$7,O100*(1+'6_Other Assumptions'!$B$9)^($P$7-T100),O100*(1+'6_Other Assumptions'!$B$9+'6_Other Assumptions'!$B$11)^($P$7-T100)) -> 0.1256 | R100: 0.1256 | T100: 2014 | U100: 2014 | W100: =IF(U100<='6_Other Assumptions'!$B$7,R100*(1+'6_Other Assumptions'!$B$9)^('6_Other Assumptions'!$B$7-U100),R100*(1+'6_Other Assumptions'!$B$9+'6_Other Assumptions'!$B$11)^('6_Other Assumptions'!$B$7-U100)) -> 0.1256 | Y100: 1 | Z100: 1 | AA100: 1 | AC100: TRUE
A101: Blue Roof | B101: Extensive Pans or Check Dams | C101: none | D101: Blue Roof - Extensive Pans or Check Dams - none - E | E101: cubic feet | F101: $/ft3 | G101: 50 | H101: E | I101: 0 | J101: 0.5 | K101: 0.0016 | N101: 0.1056 | O101: 0.02 | P101: 2014 | Q101: =IF($M$7<=$P$7,N101*(1+'6_Other Assumptions'!$B$9)^($P$7-$M$7),N101*(1+'6_Other Assumptions'!$B$9+'6_Other Assumptions'!$B$11)^($P$7-$M$7))+IF(T101<=$P$7,O101*(1+'6_Other Assumptions'!$B$9)^($P$7-T101),O101*(1+'6_Other Assumptions'!$B$9+'6_Other Assumptions'!$B$11)^($P$7-T101)) -> 0.1256 | R101: 0.1256 | T101: 2014 | U101: 2014 | W101: =IF(U101<='6_Other Assumptions'!$B$7,R101*(1+'6_Other Assumptions'!$B$9)^('6_Other Assumptions'!$B$7-U101),R101*(1+'6_Other Assumptions'!$B$9+'6_Other Assumptions'!$B$11)^('6_Other Assumptions'!$B$7-U101)) -> 0.1256 | Y101: 1 | Z101: 1 | AA101: 1 | AC101: TRUE
A102: Rainwater Harvesting | B102: Indoor - no dual plumbing | C102: none | D102: Rainwater Harvesting - Indoor - no dual plumbing - none - A | E102: cubic feet | F102: $/ft3 | G102: 50 | H102: A | I102: 11 | J102: 1 | K102: 0.005833333333 | N102: 0.385 | O102: 0.7276666667 | P102: 2014 | Q102: =IF($M$7<=$P$7,N102*(1+'6_Other Assumptions'!$B$9)^($P$7-$M$7),N102*(1+'6_Other Assumptions'!$B$9+'6_Other Assumptions'!$B$11)^($P$7-$M$7))+IF(T102<=$P$7,O102*(1+'6_Other Assumptions'!$B$9)^($P$7-T102),O102*(1+'6_Other Assumptions'!$B$9+'6_Other Assumptions'!$B$11)^($P$7-T102)) -> 1.112666667 | R102: 1.112666667 | T102: 2014 | U102: 2014 | W102: =IF(U102<='6_Other Assumptions'!$B$7,R102*(1+'6_Other Assumptions'!$B$9)^('6_Other Assumptions'!$B$7-U102),R102*(1+'6_Other Assumptions'!$B$9+'6_Other Assumptions'!$B$11)^('6_Other Assumptions'!$B$7-U102)) -> 1.112666667 | Y102: 1 | Z102: 1 | AA102: 1 | AC102: TRUE
A103: Rainwater Harvesting | B103: Indoor - no dual plumbing | C103: none | D103: Rainwater Harvesting - Indoor - no dual plumbing - none - B | E103: cubic feet | F103: $/ft3 | G103: 50 | H103: B | I103: 3 | J103: 1 | K103: 0.0025 | N103: 0.165 | O103: 0.7276666667 | P103: 2014 | Q103: =IF($M$7<=$P$7,N103*(1+'6_Other Assumptions'!$B$9)^($P$7-$M$7),N103*(1+'6_Other Assumptions'!$B$9+'6_Other Assumptions'!$B$11)^($P$7-$M$7))+IF(T103<=$P$7,O103*(1+'6_Other Assumptions'!$B$9)^($P$7-T103),O103*(1+'6_Other Assumptions'!$B$9+'6_Other Assumptions'!$B$11)^($P$7-T103)) -> 0.8926666667 | R103: 0.8926666667 | T103: 2014 | U103: 2014 | W103: =IF(U103<='6_Other Assumptions'!$B$7,R103*(1+'6_Other Assumptions'!$B$9)^('6_Other Assumptions'!$B$7-U103),R103*(1+'6_Other Assumptions'!$B$9+'6_Other Assumptions'!$B$11)^('6_Other Assumptions'!$B$7-U103)) -> 0.8926666667 | Y103: 1 | Z103: 1 | AA103: 1 | AC103: TRUE
A104: Rainwater Harvesting | B104: Indoor - no dual plumbing | C104: none | D104: Rainwater Harvesting - Indoor - no dual plumbing - none - C | E104: cubic feet | F104: $/ft3 | G104: 50 | H104: C | I104: 1 | J104: 1 | K104: 0.001666666667 | N104: 0.11 | O104: 0.7276666667 | P104: 2014 | Q104: =IF($M$7<=$P$7,N104*(1+'6_Other Assumptions'!$B$9)^($P$7-$M$7),N104*(1+'6_Other Assumptions'!$B$9+'6_Other Assumptions'!$B$11)^($P$7-$M$7))+IF(T104<=$P$7,O104*(1+'6_Other Assumptions'!$B$9)^($P$7-T104),O104*(1+'6_Other Assumptions'!$B$9+'6_Other Assumptions'!$B$11)^($P$7-T104)) -> 0.8376666667 | R104: 0.8376666667 | T104: 2014 | U104: 2014 | W104: =IF(U104<='6_Other Assumptions'!$B$7,R104*(1+'6_Other Assumptions'!$B$9)^('6_Other Assumptions'!$B$7-U104),R104*(1+'6_Other Assumptions'!$B$9+'6_Other Assumptions'!$B$11)^('6_Other Assumptions'!$B$7-U104)) -> 0.8376666667 | Y104: 1 | Z104: 1 | AA104: 1 | AC104: TRUE
A105: Rainwater Harvesting | B105: Indoor - no dual plumbing | C105: none | D105: Rainwater Harvesting - Indoor - no dual plumbing - none - D | E105: cubic feet | F105: $/ft3 | G105: 50 | H105: D | I105: 0 | J105: 1 | K105: 0.00125 | N105: 0.0825 | O105: 0.7276666667 | P105: 2014 | Q105: =IF($M$7<=$P$7,N105*(1+'6_Other Assumptions'!$B$9)^($P$7-$M$7),N105*(1+'6_Other Assumptions'!$B$9+'6_Other Assumptions'!$B$11)^($P$7-$M$7))+IF(T105<=$P$7,O105*(1+'6_Other Assumptions'!$B$9)^($P$7-T105),O105*(1+'6_Other Assumptions'!$B$9+'6_Other Assumptions'!$B$11)^($P$7-T105)) -> 0.8101666667 | R105: 0.8101666667 | T105: 2014 | U105: 2014 | W105: =IF(U105<='6_Other Assumptions'!$B$7,R105*(1+'6_Other Assumptions'!$B$9)^('6_Other Assumptions'!$B$7-U105),R105*(1+'6_Other Assumptions'!$B$9+'6_Other Assumptions'!$B$11)^('6_Other Assumptions'!$B$7-U105)) -> 0.8101666667 | Y105: 1 | Z105: 1 | AA105: 1 | AC105: TRUE
A106: Rainwater Harvesting | B106: Indoor - no dual plumbing | C106: none | D106: Rainwater Harvesting - Indoor - no dual plumbing - none - E | E106: cubic feet | F106: $/ft3 | G106: 50 | H106: E | I106: 0 | J106: 0.2 | K106: 0.00025 | N106: 0.0165 | O106: 0.7276666667 | P106: 2014 | Q106: =IF($M$7<=$P$7,N106*(1+'6_Other Assumptions'!$B$9)^($P$7-$M$7),N106*(1+'6_Other Assumptions'!$B$9+'6_Other Assumptions'!$B$11)^($P$7-$M$7))+IF(T106<=$P$7,O106*(1+'6_Other Assumptions'!$B$9)^($P$7-T106),O106*(1+'6_Other Assumptions'!$B$9+'6_Other Assumptions'!$B$11)^($P$7-T106)) -> 0.7441666667 | R106: 0.7441666667 | T106: 2014 | U106: 2014 | W106: =IF(U106<='6_Other Assumptions'!$B$7,R106*(1+'6_Other Assumptions'!$B$9)^('6_Other Assumptions'!$B$7-U106),R106*(1+'6_Other Assumptions'!$B$9+'6_Other Assumptions'!$B$11)^('6_Other Assumptions'!$B$7-U106)) -> 0.7441666667 | Y106: 1 | Z106: 1 | AA106: 1 | AC106: TRUE
A107: Rainwater Harvesting | B107: Indoor - dual plumbing | C107: none | D107: Rainwater Harvesting - Indoor - dual plumbing - none - A | E107: cubic feet | F107: $/ft3 | G107: 50 | H107: A | I107: 11 | J107: 1 | K107: 0.005833333333 | N107: 0.385 | O107: 0.7276666667 | P107: 2014 | Q107: =IF($M$7<=$P$7,N107*(1+'6_Other Assumptions'!$B$9)^($P$7-$M$7),N107*(1+'6_Other Assumptions'!$B$9+'6_Other Assumptions'!$B$11)^($P$7-$M$7))+IF(T107<=$P$7,O107*(1+'6_Other Assumptions'!$B$9)^($P$7-T107),O107*(1+'6_Other Assumptions'!$B$9+'6_Other Assumptions'!$B$11)^($P$7-T107)) -> 1.112666667 | R107: 1.112666667 | T107: 2014 | U107: 2014 | W107: =IF(U107<='6_Other Assumptions'!$B$7,R107*(1+'6_Other Assumptions'!$B$9)^('6_Other Assumptions'!$B$7-U107),R107*(1+'6_Other Assumptions'!$B$9+'6_Other Assumptions'!$B$11)^('6_Other Assumptions'!$B$7-U107)) -> 1.112666667 | Y107: 1 | Z107: 1 | AA107: 1 | AC107: TRUE
A108: Rainwater Harvesting | B108: Indoor - dual plumbing | C108: none | D108: Rainwater Harvesting - Indoor - dual plumbing - none - B | E108: cubic feet | F108: $/ft3 | G108: 50 | H108: B | I108: 3 | J108: 1 | K108: 0.0025 | N108: 0.165 | O108: 0.7276666667 | P108: 2014 | Q108: =IF($M$7<=$P$7,N108*(1+'6_Other Assumptions'!$B$9)^($P$7-$M$7),N108*(1+'6_Other Assumptions'!$B$9+'6_Other Assumptions'!$B$11)^($P$7-$M$7))+IF(T108<=$P$7,O108*(1+'6_Other Assumptions'!$B$9)^($P$7-T108),O108*(1+'6_Other Assumptions'!$B$9+'6_Other Assumptions'!$B$11)^($P$7-T108)) -> 0.8926666667 | R108: 0.8926666667 | T108: 2014 | U108: 2014 | W108: =IF(U108<='6_Other Assumptions'!$B$7,R108*(1+'6_Other Assumptions'!$B$9)^('6_Other Assumptions'!$B$7-U108),R108*(1+'6_Other Assumptions'!$B$9+'6_Other Assumptions'!$B$11)^('6_Other Assumptions'!$B$7-U108)) -> 0.8926666667 | Y108: 1 | Z108: 1 | AA108: 1 | AC108: TRUE
A109: Rainwater Harvesting | B109: Indoor - dual plumbing | C109: none | D109: Rainwater Harvesting - Indoor - dual plumbing - none - C | E109: cubic feet | F109: $/ft3 | G109: 50 | H109: C | I109: 1 | J109: 1 | K109: 0.001666666667 | N109: 0.11 | O109: 0.7276666667 | P109: 2014 | Q109: =IF($M$7<=$P$7,N109*(1+'6_Other Assumptions'!$B$9)^($P$7-$M$7),N109*(1+'6_Other Assumptions'!$B$9+'6_Other Assumptions'!$B$11)^($P$7-$M$7))+IF(T109<=$P$7,O109*(1+'6_Other Assumptions'!$B$9)^($P$7-T109),O109*(1+'6_Other Assumptions'!$B$9+'6_Other Assumptions'!$B$11)^($P$7-T109)) -> 0.8376666667 | R109: 0.8376666667 | T109: 2014 | U109: 2014 | W109: =IF(U109<='6_Other Assumptions'!$B$7,R109*(1+'6_Other Assumptions'!$B$9)^('6_Other Assumptions'!$B$7-U109),R109*(1+'6_Other Assumptions'!$B$9+'6_Other Assumptions'!$B$11)^('6_Other Assumptions'!$B$7-U109)) -> 0.8376666667 | Y109: 1 | Z109: 1 | AA109: 1 | AC109: TRUE
A110: Rainwater Harvesting | B110: Indoor - dual plumbing | C110: none | D110: Rainwater Harvesting - Indoor - dual plumbing - none - D | E110: cubic feet | F110: $/ft3 | G110: 50 | H110: D | I110: 0 | J110: 1 | K110: 0.00125 | N110: 0.0825 | O110: 0.7276666667 | P110: 2014 | Q110: =IF($M$7<=$P$7,N110*(1+'6_Other Assumptions'!$B$9)^($P$7-$M$7),N110*(1+'6_Other Assumptions'!$B$9+'6_Other Assumptions'!$B$11)^($P$7-$M$7))+IF(T110<=$P$7,O110*(1+'6_Other Assumptions'!$B$9)^($P$7-T110),O110*(1+'6_Other Assumptions'!$B$9+'6_Other Assumptions'!$B$11)^($P$7-T110)) -> 0.8101666667 | R110: 0.8101666667 | T110: 2014 | U110: 2014 | W110: =IF(U110<='6_Other Assumptions'!$B$7,R110*(1+'6_Other Assumptions'!$B$9)^('6_Other Assumptions'!$B$7-U110),R110*(1+'6_Other Assumptions'!$B$9+'6_Other Assumptions'!$B$11)^('6_Other Assumptions'!$B$7-U110)) -> 0.8101666667 | Y110: 1 | Z110: 1 | AA110: 1 | AC110: TRUE
A111: Rainwater Harvesting | B111: Indoor - dual plumbing | C111: none | D111: Rainwater Harvesting - Indoor - dual plumbing - none - E | E111: cubic feet | F111: $/ft3 | G111: 50 | H111: E | I111: 0 | J111: 0.2 | K111: 0.00025 | N111: 0.0165 | O111: 0.7276666667 | P111: 2014 | Q111: =IF($M$7<=$P$7,N111*(1+'6_Other Assumptions'!$B$9)^($P$7-$M$7),N111*(1+'6_Other Assumptions'!$B$9+'6_Other Assumptions'!$B$11)^($P$7-$M$7))+IF(T111<=$P$7,O111*(1+'6_Other Assumptions'!$B$9)^($P$7-T111),O111*(1+'6_Other Assumptions'!$B$9+'6_Other Assumptions'!$B$11)^($P$7-T111)) -> 0.7441666667 | R111: 0.7441666667 | T111: 2014 | U111: 2014 | W111: =IF(U111<='6_Other Assumptions'!$B$7,R111*(1+'6_Other Assumptions'!$B$9)^('6_Other Assumptions'!$B$7-U111),R111*(1+'6_Other Assumptions'!$B$9+'6_Other Assumptions'!$B$11)^('6_Other Assumptions'!$B$7-U111)) -> 0.7441666667 | Y111: 1 | Z111: 1 | AA111: 1 | AC111: TRUE
A112: Rainwater Harvesting | B112: Outdoor Irrigation | C112: none | D112: Rainwater Harvesting - Outdoor Irrigation - none - A | E112: cubic feet | F112: $/ft3 | G112: 50 | H112: A | I112: 11 | J112: 1 | K112: 0.0009666666667 | N112: 0.0638 | O112: 0.3276666667 | P112: 2014 | Q112: =IF($M$7<=$P$7,N112*(1+'6_Other Assumptions'!$B$9)^($P$7-$M$7),N112*(1+'6_Other Assumptions'!$B$9+'6_Other Assumptions'!$B$11)^($P$7-$M$7))+IF(T112<=$P$7,O112*(1+'6_Other Assumptions'!$B$9)^($P$7-T112),O112*(1+'6_Other Assumptions'!$B$9+'6_Other Assumptions'!$B$11)^($P$7-T112)) -> 0.3914666667 | R112: 0.3914666667 | T112: 2014 | U112: 2014 | W112: =IF(U112<='6_Other Assumptions'!$B$7,R112*(1+'6_Other Assumptions'!$B$9)^('6_Other Assumptions'!$B$7-U112),R112*(1+'6_Other Assumptions'!$B$9+'6_Other Assumptions'!$B$11)^('6_Other Assumptions'!$B$7-U112)) -> 0.3914666667 | Y112: 1 | Z112: 1 | AA112: 1 | AC112: TRUE
A113: Rainwater Harvesting | B113: Outdoor Irrigation | C113: none | D113: Rainwater Harvesting - Outdoor Irrigation - none - B | E113: cubic feet | F113: $/ft3 | G113: 50 | H113: B | I113: 3 | J113: 1 | K113: 0.0009666666667 | N113: 0.0638 | O113: 0.3276666667 | P113: 2014 | Q113: =IF($M$7<=$P$7,N113*(1+'6_Other Assumptions'!$B$9)^($P$7-$M$7),N113*(1+'6_Other Assumptions'!$B$9+'6_Other Assumptions'!$B$11)^($P$7-$M$7))+IF(T113<=$P$7,O113*(1+'6_Other Assumptions'!$B$9)^($P$7-T113),O113*(1+'6_Other Assumptions'!$B$9+'6_Other Assumptions'!$B$11)^($P$7-T113)) -> 0.3914666667 | R113: 0.3914666667 | T113: 2014 | U113: 2014 | W113: =IF(U113<='6_Other Assumptions'!$B$7,R113*(1+'6_Other Assumptions'!$B$9)^('6_Other Assumptions'!$B$7-U113),R113*(1+'6_Other Assumptions'!$B$9+'6_Other Assumptions'!$B$11)^('6_Other Assumptions'!$B$7-U113)) -> 0.3914666667 | Y113: 1 | Z113: 1 | AA113: 1 | AC113: TRUE
A114: Rainwater Harvesting | B114: Outdoor Irrigation | C114: none | D114: Rainwater Harvesting - Outdoor Irrigation - none - C | E114: cubic feet | F114: $/ft3 | G114: 50 | H114: C | I114: 1 | J114: 1 | K114: 0.0009666666667 | N114: 0.0638 | O114: 0.3276666667 | P114: 2014 | Q114: =IF($M$7<=$P$7,N114*(1+'6_Other Assumptions'!$B$9)^($P$7-$M$7),N114*(1+'6_Other Assumptions'!$B$9+'6_Other Assumptions'!$B$11)^($P$7-$M$7))+IF(T114<=$P$7,O114*(1+'6_Other Assumptions'!$B$9)^($P$7-T114),O114*(1+'6_Other Assumptions'!$B$9+'6_Other Assumptions'!$B$11)^($P$7-T114)) -> 0.3914666667 | R114: 0.3914666667 | T114: 2014 | U114: 2014 | W114: =IF(U114<='6_Other Assumptions'!$B$7,R114*(1+'6_Other Assumptions'!$B$9)^('6_Other Assumptions'!$B$7-U114),R114*(1+'6_Other Assumptions'!$B$9+'6_Other Assumptions'!$B$11)^('6_Other Assumptions'!$B$7-U114)) -> 0.3914666667 | Y114: 1 | Z114: 1 | AA114: 1 | AC114: TRUE
A115: Rainwater Harvesting | B115: Outdoor Irrigation | C115: none | D115: Rainwater Harvesting - Outdoor Irrigation - none - D | E115: cubic feet | F115: $/ft3 | G115: 50 | H115: D | I115: 0 | J115: 1 | K115: 0.0009666666667 | N115: 0.0638 | O115: 0.3276666667 | P115: 2014 | Q115: =IF($M$7<=$P$7,N115*(1+'6_Other Assumptions'!$B$9)^($P$7-$M$7),N115*(1+'6_Other Assumptions'!$B$9+'6_Other Assumptions'!$B$11)^($P$7-$M$7))+IF(T115<=$P$7,O115*(1+'6_Other Assumptions'!$B$9)^($P$7-T115),O115*(1+'6_Other Assumptions'!$B$9+'6_Other Assumptions'!$B$11)^($P$7-T115)) -> 0.3914666667 | R115: 0.3914666667 | T115: 2014 | U115: 2014 | W115: =IF(U115<='6_Other Assumptions'!$B$7,R115*(1+'6_Other Assumptions'!$B$9)^('6_Other Assumptions'!$B$7-U115),R115*(1+'6_Other Assumptions'!$B$9+'6_Other Assumptions'!$B$11)^('6_Other Assumptions'!$B$7-U115)) -> 0.3914666667 | Y115: 1 | Z115: 1 | AA115: 1 | AC115: TRUE
A116: Rainwater Harvesting | B116: Outdoor Irrigation | C116: none | D116: Rainwater Harvesting - Outdoor Irrigation - none - E | E116: cubic feet | F116: $/ft3 | G116: 50 | H116: E | I116: 0 | J116: 0.2 | K116: 0.0001933333333 | N116: 0.01276 | O116: 0.3276666667 | P116: 2014 | Q116: =IF($M$7<=$P$7,N116*(1+'6_Other Assumptions'!$B$9)^($P$7-$M$7),N116*(1+'6_Other Assumptions'!$B$9+'6_Other Assumptions'!$B$11)^($P$7-$M$7))+IF(T116<=$P$7,O116*(1+'6_Other Assumptions'!$B$9)^($P$7-T116),O116*(1+'6_Other Assumptions'!$B$9+'6_Other Assumptions'!$B$11)^($P$7-T116)) -> 0.3404266667 | R116: 0.3404266667 | T116: 2014 | U116: 2014 | W116: =IF(U116<='6_Other Assumptions'!$B$7,R116*(1+'6_Other Assumptions'!$B$9)^('6_Other Assumptions'!$B$7-U116),R116*(1+'6_Other Assumptions'!$B$9+'6_Other Assumptions'!$B$11)^('6_Other Assumptions'!$B$7-U116)) -> 0.3404266667 | Y116: 1 | Z116: 1 | AA116: 1 | AC116: TRUE
A117: Creek Daylighting | B117: Public Land | C117: Large City parcel | D117: Creek Daylighting - Public Land - Large City parcel - A | E117: linear feet | F117: $/ft | G117: 30 | H117: A | I117: 11 | J117: 1 | K117: 0.0942 | N117: 6.2172 | O117: 1.55 | P117: 2014 | Q117: =IF($M$7<=$P$7,N117*(1+'6_Other Assumptions'!$B$9)^($P$7-$M$7),N117*(1+'6_Other Assumptions'!$B$9+'6_Other Assumptions'!$B$11)^($P$7-$M$7))+IF(T117<=$P$7,O117*(1+'6_Other Assumptions'!$B$9)^($P$7-T117),O117*(1+'6_Other Assumptions'!$B$9+'6_Other Assumptions'!$B$11)^($P$7-T117)) -> 7.7672 | R117: 7.7672 | T117: 2014 | U117: 2014 | W117: =IF(U117<='6_Other Assumptions'!$B$7,R117*(1+'6_Other Assumptions'!$B$9)^('6_Other Assumptions'!$B$7-U117),R117*(1+'6_Other Assumptions'!$B$9+'6_Other Assumptions'!$B$11)^('6_Other Assumptions'!$B$7-U117)) -> 7.7672 | Y117: 1 | Z117: 1 | AA117: 1 | AC117: TRUE
A118: Creek Daylighting | B118: Public Land | C118: Large City parcel | D118: Creek Daylighting - Public Land - Large City parcel - B | E118: linear feet | F118: $/ft | G118: 30 | H118: B | I118: 3 | J118: 1 | K118: 0.035 | N118: 2.31 | O118: 1.55 | P118: 2014 | Q118: =IF($M$7<=$P$7,N118*(1+'6_Other Assumptions'!$B$9)^($P$7-$M$7),N118*(1+'6_Other Assumptions'!$B$9+'6_Other Assumptions'!$B$11)^($P$7-$M$7))+IF(T118<=$P$7,O118*(1+'6_Other Assumptions'!$B$9)^($P$7-T118),O118*(1+'6_Other Assumptions'!$B$9+'6_Other Assumptions'!$B$11)^($P$7-T118)) -> 3.86 | R118: 3.86 | T118: 2014 | U118: 2014 | W118: =IF(U118<='6_Other Assumptions'!$B$7,R118*(1+'6_Other Assumptions'!$B$9)^('6_Other Assumptions'!$B$7-U118),R118*(1+'6_Other Assumptions'!$B$9+'6_Other Assumptions'!$B$11)^('6_Other Assumptions'!$B$7-U118)) -> 3.86 | Y118: 1 | Z118: 1 | AA118: 1 | AC118: TRUE
A119: Creek Daylighting | B119: Public Land | C119: Large City parcel | D119: Creek Daylighting - Public Land - Large City parcel - C | E119: linear feet | F119: $/ft | G119: 30 | H119: C | I119: 1 | J119: 1 | K119: 0.0202 | N119: 1.3332 | O119: 1.55 | P119: 2014 | Q119: =IF($M$7<=$P$7,N119*(1+'6_Other Assumptions'!$B$9)^($P$7-$M$7),N119*(1+'6_Other Assumptions'!$B$9+'6_Other Assumptions'!$B$11)^($P$7-$M$7))+IF(T119<=$P$7,O119*(1+'6_Other Assumptions'!$B$9)^($P$7-T119),O119*(1+'6_Other Assumptions'!$B$9+'6_Other Assumptions'!$B$11)^($P$7-T119)) -> 2.8832 | R119: 2.8832 | T119: 2014 | U119: 2014 | W119: =IF(U119<='6_Other Assumptions'!$B$7,R119*(1+'6_Other Assumptions'!$B$9)^('6_Other Assumptions'!$B$7-U119),R119*(1+'6_Other Assumptions'!$B$9+'6_Other Assumptions'!$B$11)^('6_Other Assumptions'!$B$7-U119)) -> 2.8832 | Y119: 1 | Z119: 1 | AA119: 1 | AC119: TRUE
A120: Creek Daylighting | B120: Public Land | C120: Large City parcel | D120: Creek Daylighting - Public Land - Large City parcel - D | E120: linear feet | F120: $/ft | G120: 30 | H120: D | I120: 0 | J120: 1 | K120: 0.0128 | N120: 0.8448 | O120: 1.55 | P120: 2014 | Q120: =IF($M$7<=$P$7,N120*(1+'6_Other Assumptions'!$B$9)^($P$7-$M$7),N120*(1+'6_Other Assumptions'!$B$9+'6_Other Assumptions'!$B$11)^($P$7-$M$7))+IF(T120<=$P$7,O120*(1+'6_Other Assumptions'!$B$9)^($P$7-T120),O120*(1+'6_Other Assumptions'!$B$9+'6_Other Assumptions'!$B$11)^($P$7-T120)) -> 2.3948 | R120: 2.3948 | T120: 2014 | U120: 2014 | W120: =IF(U120<='6_Other Assumptions'!$B$7,R120*(1+'6_Other Assumptions'!$B$9)^('6_Other Assumptions'!$B$7-U120),R120*(1+'6_Other Assumptions'!$B$9+'6_Other Assumptions'!$B$11)^('6_Other Assumptions'!$B$7-U120)) -> 2.3948 | Y120: 1 | Z120: 1 | AA120: 1 | AC120: TRUE
A121: Creek Daylighting | B121: Public Land | C121: Large City parcel | D121: Creek Daylighting - Public Land - Large City parcel - E | E121: linear feet | F121: $/ft | G121: 30 | H121: E | I121: 0 | J121: 0.2 | K121: 0.00256 | N121: 0.16896 | O121: 1.55 | P121: 2014 | Q121: =IF($M$7<=$P$7,N121*(1+'6_Other Assumptions'!$B$9)^($P$7-$M$7),N121*(1+'6_Other Assumptions'!$B$9+'6_Other Assumptions'!$B$11)^($P$7-$M$7))+IF(T121<=$P$7,O121*(1+'6_Other Assumptions'!$B$9)^($P$7-T121),O121*(1+'6_Other Assumptions'!$B$9+'6_Other Assumptions'!$B$11)^($P$7-T121)) -> 1.71896 | R121: 1.71896 | T121: 2014 | U121: 2014 | W121: =IF(U121<='6_Other Assumptions'!$B$7,R121*(1+'6_Other Assumptions'!$B$9)^('6_Other Assumptions'!$B$7-U121),R121*(1+'6_Other Assumptions'!$B$9+'6_Other Assumptions'!$B$11)^('6_Other Assumptions'!$B$7-U121)) -> 1.71896 | Y121: 1 | Z121: 1 | AA121: 1 | AC121: TRUE
A122: Creek Daylighting | B122: Public Land | C122: ROW + City parcels | D122: Creek Daylighting - Public Land - ROW + City parcels - A | E122: linear feet | F122: $/ft | G122: 30 | H122: A | I122: 11 | J122: 1 | K122: 0.0982 | N122: 6.4812 | O122: 1.55 | P122: 2014 | Q122: =IF($M$7<=$P$7,N122*(1+'6_Other Assumptions'!$B$9)^($P$7-$M$7),N122*(1+'6_Other Assumptions'!$B$9+'6_Other Assumptions'!$B$11)^($P$7-$M$7))+IF(T122<=$P$7,O122*(1+'6_Other Assumptions'!$B$9)^($P$7-T122),O122*(1+'6_Other Assumptions'!$B$9+'6_Other Assumptions'!$B$11)^($P$7-T122)) -> 8.0312 | R122: 8.0312 | T122: 2014 | U122: 2014 | W122: =IF(U122<='6_Other Assumptions'!$B$7,R122*(1+'6_Other Assumptions'!$B$9)^('6_Other Assumptions'!$B$7-U122),R122*(1+'6_Other Assumptions'!$B$9+'6_Other Assumptions'!$B$11)^('6_Other Assumptions'!$B$7-U122)) -> 8.0312 | Y122: 1 | Z122: 1 | AA122: 1 | AC122: TRUE
A123: Creek Daylighting | B123: Public Land | C123: ROW + City parcels | D123: Creek Daylighting - Public Land - ROW + City parcels - B | E123: linear feet | F123: $/ft | G123: 30 | H123: B | I123: 3 | J123: 1 | K123: 0.039 | N123: 2.574 | O123: 1.55 | P123: 2014 | Q123: =IF($M$7<=$P$7,N123*(1+'6_Other Assumptions'!$B$9)^($P$7-$M$7),N123*(1+'6_Other Assumptions'!$B$9+'6_Other Assumptions'!$B$11)^($P$7-$M$7))+IF(T123<=$P$7,O123*(1+'6_Other Assumptions'!$B$9)^($P$7-T123),O123*(1+'6_Other Assumptions'!$B$9+'6_Other Assumptions'!$B$11)^($P$7-T123)) -> 4.124 | R123: 4.124 | T123: 2014 | U123: 2014 | W123: =IF(U123<='6_Other Assumptions'!$B$7,R123*(1+'6_Other Assumptions'!$B$9)^('6_Other Assumptions'!$B$7-U123),R123*(1+'6_Other Assumptions'!$B$9+'6_Other Assumptions'!$B$11)^('6_Other Assumptions'!$B$7-U123)) -> 4.124 | Y123: 1 | Z123: 1 | AA123: 1 | AC123: TRUE
A124: Creek Daylighting | B124: Public Land | C124: ROW + City parcels | D124: Creek Daylighting - Public Land - ROW + City parcels - C | E124: linear feet | F124: $/ft | G124: 30 | H124: C | I124: 1 | J124: 1 | K124: 0.0242 | N124: 1.5972 | O124: 1.55 | P124: 2014 | Q124: =IF($M$7<=$P$7,N124*(1+'6_Other Assumptions'!$B$9)^($P$7-$M$7),N124*(1+'6_Other Assumptions'!$B$9+'6_Other Assumptions'!$B$11)^($P$7-$M$7))+IF(T124<=$P$7,O124*(1+'6_Other Assumptions'!$B$9)^($P$7-T124),O124*(1+'6_Other Assumptions'!$B$9+'6_Other Assumptions'!$B$11)^($P$7-T124)) -> 3.1472 | R124: 3.1472 | T124: 2014 | U124: 2014 | W124: =IF(U124<='6_Other Assumptions'!$B$7,R124*(1+'6_Other Assumptions'!$B$9)^('6_Other Assumptions'!$B$7-U124),R124*(1+'6_Other Assumptions'!$B$9+'6_Other Assumptions'!$B$11)^('6_Other Assumptions'!$B$7-U124)) -> 3.1472 | Y124: 1 | Z124: 1 | AA124: 1 | AC124: TRUE
A125: Creek Daylighting | B125: Public Land | C125: ROW + City parcels | D125: Creek Daylighting - Public Land - ROW + City parcels - D | E125: linear feet | F125: $/ft | G125: 30 | H125: D | I125: 0 | J125: 1 | K125: 0.0168 | N125: 1.1088 | O125: 1.55 | P125: 2014 | Q125: =IF($M$7<=$P$7,N125*(1+'6_Other Assumptions'!$B$9)^($P$7-$M$7),N125*(1+'6_Other Assumptions'!$B$9+'6_Other Assumptions'!$B$11)^($P$7-$M$7))+IF(T125<=$P$7,O125*(1+'6_Other Assumptions'!$B$9)^($P$7-T125),O125*(1+'6_Other Assumptions'!$B$9+'6_Other Assumptions'!$B$11)^($P$7-T125)) -> 2.6588 | R125: 2.6588 | T125: 2014 | U125: 2014 | W125: =IF(U125<='6_Other Assumptions'!$B$7,R125*(1+'6_Other Assumptions'!$B$9)^('6_Other Assumptions'!$B$7-U125),R125*(1+'6_Other Assumptions'!$B$9+'6_Other Assumptions'!$B$11)^('6_Other Assumptions'!$B$7-U125)) -> 2.6588 | Y125: 1 | Z125: 1 | AA125: 1 | AC125: TRUE
A126: Creek Daylighting | B126: Public Land | C126: ROW + City parcels | D126: Creek Daylighting - Public Land - ROW + City parcels - E | E126: linear feet | F126: $/ft | G126: 30 | H126: E | I126: 0 | J126: 0.2 | K126: 0.00336 | N126: 0.22176 | O126: 1.55 | P126: 2014 | Q126: =IF($M$7<=$P$7,N126*(1+'6_Other Assumptions'!$B$9)^($P$7-$M$7),N126*(1+'6_Other Assumptions'!$B$9+'6_Other Assumptions'!$B$11)^($P$7-$M$7))+IF(T126<=$P$7,O126*(1+'6_Other Assumptions'!$B$9)^($P$7-T126),O126*(1+'6_Other Assumptions'!$B$9+'6_Other Assumptions'!$B$11)^($P$7-T126)) -> 1.77176 | R126: 1.77176 | T126: 2014 | U126: 2014 | W126: =IF(U126<='6_Other Assumptions'!$B$7,R126*(1+'6_Other Assumptions'!$B$9)^('6_Other Assumptions'!$B$7-U126),R126*(1+'6_Other Assumptions'!$B$9+'6_Other Assumptions'!$B$11)^('6_Other Assumptions'!$B$7-U126)) -> 1.77176 | Y126: 1 | Z126: 1 | AA126: 1 | AC126: TRUE
A127: Creek Daylighting | B127: Private Land | C127: ROW + private parcels | D127: Creek Daylighting - Private Land - ROW + private parcels - A | E127: linear feet | F127: $/ft | G127: 25 | H127: A | I127: 11 | J127: 1 | K127: 0.0982 | N127: 6.4812 | O127: 1.55 | P127: 2014 | Q127: =IF($M$7<=$P$7,N127*(1+'6_Other Assumptions'!$B$9)^($P$7-$M$7),N127*(1+'6_Other Assumptions'!$B$9+'6_Other Assumptions'!$B$11)^($P$7-$M$7))+IF(T127<=$P$7,O127*(1+'6_Other Assumptions'!$B$9)^($P$7-T127),O127*(1+'6_Other Assumptions'!$B$9+'6_Other Assumptions'!$B$11)^($P$7-T127)) -> 8.0312 | R127: 8.0312 | T127: 2014 | U127: 2014 | W127: =IF(U127<='6_Other Assumptions'!$B$7,R127*(1+'6_Other Assumptions'!$B$9)^('6_Other Assumptions'!$B$7-U127),R127*(1+'6_Other Assumptions'!$B$9+'6_Other Assumptions'!$B$11)^('6_Other Assumptions'!$B$7-U127)) -> 8.0312 | Y127: 1 | Z127: 1 | AA127: 1 | AC127: TRUE
A128: Creek Daylighting | B128: Private Land | C128: ROW + private parcels | D128: Creek Daylighting - Private Land - ROW + private parcels - B | E128: linear feet | F128: $/ft | G128: 25 | H128: B | I128: 3 | J128: 1 | K128: 0.039 | N128: 2.574 | O128: 1.55 | P128: 2014 | Q128: =IF($M$7<=$P$7,N128*(1+'6_Other Assumptions'!$B$9)^($P$7-$M$7),N128*(1+'6_Other Assumptions'!$B$9+'6_Other Assumptions'!$B$11)^($P$7-$M$7))+IF(T128<=$P$7,O128*(1+'6_Other Assumptions'!$B$9)^($P$7-T128),O128*(1+'6_Other Assumptions'!$B$9+'6_Other Assumptions'!$B$11)^($P$7-T128)) -> 4.124 | R128: 4.124 | T128: 2014 | U128: 2014 | W128: =IF(U128<='6_Other Assumptions'!$B$7,R128*(1+'6_Other Assumptions'!$B$9)^('6_Other Assumptions'!$B$7-U128),R128*(1+'6_Other Assumptions'!$B$9+'6_Other Assumptions'!$B$11)^('6_Other Assumptions'!$B$7-U128)) -> 4.124 | Y128: 1 | Z128: 1 | AA128: 1 | AC128: TRUE
A129: Creek Daylighting | B129: Private Land | C129: ROW + private parcels | D129: Creek Daylighting - Private Land - ROW + private parcels - C | E129: linear feet | F129: $/ft | G129: 25 | H129: C | I129: 1 | J129: 1 | K129: 0.0242 | N129: 1.5972 | O129: 1.55 | P129: 2014 | Q129: =IF($M$7<=$P$7,N129*(1+'6_Other Assumptions'!$B$9)^($P$7-$M$7),N129*(1+'6_Other Assumptions'!$B$9+'6_Other Assumptions'!$B$11)^($P$7-$M$7))+IF(T129<=$P$7,O129*(1+'6_Other Assumptions'!$B$9)^($P$7-T129),O129*(1+'6_Other Assumptions'!$B$9+'6_Other Assumptions'!$B$11)^($P$7-T129)) -> 3.1472 | R129: 3.1472 | T129: 2014 | U129: 2014 | W129: =IF(U129<='6_Other Assumptions'!$B$7,R129*(1+'6_Other Assumptions'!$B$9)^('6_Other Assumptions'!$B$7-U129),R129*(1+'6_Other Assumptions'!$B$9+'6_Other Assumptions'!$B$11)^('6_Other Assumptions'!$B$7-U129)) -> 3.1472 | Y129: 1 | Z129: 1 | AA129: 1 | AC129: TRUE
A130: Creek Daylighting | B130: Private Land | C130: ROW + private parcels | D130: Creek Daylighting - Private Land - ROW + private parcels - D | E130: linear feet | F130: $/ft | G130: 25 | H130: D | I130: 0 | J130: 1 | K130: 0.0168 | N130: 1.1088 | O130: 1.55 | P130: 2014 | Q130: =IF($M$7<=$P$7,N130*(1+'6_Other Assumptions'!$B$9)^($P$7-$M$7),N130*(1+'6_Other Assumptions'!$B$9+'6_Other Assumptions'!$B$11)^($P$7-$M$7))+IF(T130<=$P$7,O130*(1+'6_Other Assumptions'!$B$9)^($P$7-T130),O130*(1+'6_Other Assumptions'!$B$9+'6_Other Assumptions'!$B$11)^($P$7-T130)) -> 2.6588 | R130: 2.6588 | T130: 2014 | U130: 2014 | W130: =IF(U130<='6_Other Assumptions'!$B$7,R130*(1+'6_Other Assumptions'!$B$9)^('6_Other Assumptions'!$B$7-U130),R130*(1+'6_Other Assumptions'!$B$9+'6_Other Assumptions'!$B$11)^('6_Other Assumptions'!$B$7-U130)) -> 2.6588 | Y130: 1 | Z130: 1 | AA130: 1 | AC130: TRUE
A131: Creek Daylighting | B131: Private Land | C131: ROW + private parcels | D131: Creek Daylighting - Private Land - ROW + private parcels - E | E131: linear feet | F131: $/ft | G131: 25 | H131: E | I131: 0 | J131: 0.2 | K131: 0.00336 | N131: 0.22176 | O131: 1.55 | P131: 2014 | Q131: =IF($M$7<=$P$7,N131*(1+'6_Other Assumptions'!$B$9)^($P$7-$M$7),N131*(1+'6_Other Assumptions'!$B$9+'6_Other Assumptions'!$B$11)^($P$7-$M$7))+IF(T131<=$P$7,O131*(1+'6_Other Assumptions'!$B$9)^($P$7-T131),O131*(1+'6_Other Assumptions'!$B$9+'6_Other Assumptions'!$B$11)^($P$7-T131)) -> 1.77176 | R131: 1.77176 | T131: 2014 | U131: 2014 | W131: =IF(U131<='6_Other Assumptions'!$B$7,R131*(1+'6_Other Assumptions'!$B$9)^('6_Other Assumptions'!$B$7-U131),R131*(1+'6_Other Assumptions'!$B$9+'6_Other Assumptions'!$B$11)^('6_Other Assumptions'!$B$7-U131)) -> 1.77176 | Y131: 1 | Z131: 1 | AA131: 1 | AC131: TRUE
N132: 0 | Q132: =IF($M$7<=$P$7,N132*(1+'6_Other Assumptions'!$B$9)^($P$7-$M$7),N132*(1+'6_Other Assumptions'!$B$9+'6_Other Assumptions'!$B$11)^($P$7-$M$7))+IF(T132<=$P$7,O132*(1+'6_Other Assumptions'!$B$9)^($P$7-T132),O132*(1+'6_Other Assumptions'!$B$9+'6_Other Assumptions'!$B$11)^($P$7-T132)) -> 0 | R132: 0 | T132: 2014 | U132: 2014 | W132: =IF(U132<='6_Other Assumptions'!$B$7,R132*(1+'6_Other Assumptions'!$B$9)^('6_Other Assumptions'!$B$7-U132),R132*(1+'6_Other Assumptions'!$B$9+'6_Other Assumptions'!$B$11)^('6_Other Assumptions'!$B$7-U132)) -> 0 | Y132: 1 | AC132: TRUE
N133: 0 | Q133: =IF($M$7<=$P$7,N133*(1+'6_Other Assumptions'!$B$9)^($P$7-$M$7),N133*(1+'6_Other Assumptions'!$B$9+'6_Other Assumptions'!$B$11)^($P$7-$M$7))+IF(T133<=$P$7,O133*(1+'6_Other Assumptions'!$B$9)^($P$7-T133),O133*(1+'6_Other Assumptions'!$B$9+'6_Other Assumptions'!$B$11)^($P$7-T133)) -> 0 | R133: 0 | T133: 2014 | U133: 2014 | W133: =IF(U133<='6_Other Assumptions'!$B$7,R133*(1+'6_Other Assumptions'!$B$9)^('6_Other Assumptions'!$B$7-U133),R133*(1+'6_Other Assumptions'!$B$9+'6_Other Assumptions'!$B$11)^('6_Other Assumptions'!$B$7-U133)) -> 0 | Y133: 1 | AC133: TRUE
N134: 0 | Q134: =IF($M$7<=$P$7,N134*(1+'6_Other Assumptions'!$B$9)^($P$7-$M$7),N134*(1+'6_Other Assumptions'!$B$9+'6_Other Assumptions'!$B$11)^($P$7-$M$7))+IF(T134<=$P$7,O134*(1+'6_Other Assumptions'!$B$9)^($P$7-T134),O134*(1+'6_Other Assumptions'!$B$9+'6_Other Assumptions'!$B$11)^($P$7-T134)) -> 0 | R134: 0 | T134: 2014 | U134: 2014 | W134: =IF(U134<='6_Other Assumptions'!$B$7,R134*(1+'6_Other Assumptions'!$B$9)^('6_Other Assumptions'!$B$7-U134),R134*(1+'6_Other Assumptions'!$B$9+'6_Other Assumptions'!$B$11)^('6_Other Assumptions'!$B$7-U134)) -> 0 | Y134: 1 | AC134: TRUE
N135: 0 | Q135: =IF($M$7<=$P$7,N135*(1+'6_Other Assumptions'!$B$9)^($P$7-$M$7),N135*(1+'6_Other Assumptions'!$B$9+'6_Other Assumptions'!$B$11)^($P$7-$M$7))+IF(T135<=$P$7,O135*(1+'6_Other Assumptions'!$B$9)^($P$7-T135),O135*(1+'6_Other Assumptions'!$B$9+'6_Other Assumptions'!$B$11)^($P$7-T135)) -> 0 | R135: 0 | T135: 2014 | U135: 2014 | W135: =IF(U135<='6_Other Assumptions'!$B$7,R135*(1+'6_Other Assumptions'!$B$9)^('6_Other Assumptions'!$B$7-U135),R135*(1+'6_Other Assumptions'!$B$9+'6_Other Assumptions'!$B$11)^('6_Other Assumptions'!$B$7-U135)) -> 0 | Y135: 1 | AC135: TRUE
D136: =IF(LEN(A136)>0,A136&" - "&B136&" - "&C136&" - "&H136,"") ->  | N136: 0 | Q136: =IF($M$7<=$P$7,N136*(1+'6_Other Assumptions'!$B$9)^($P$7-$M$7),N136*(1+'6_Other Assumptions'!$B$9+'6_Other Assumptions'!$B$11)^($P$7-$M$7))+IF(T136<=$P$7,O136*(1+'6_Other Assumptions'!$B$9)^($P$7-T136),O136*(1+'6_Other Assumptions'!$B$9+'6_Other Assumptions'!$B$11)^($P$7-T136)) -> 0 | R136: 0 | T136: 2014 | U136: 2014 | W136: =IF(U136<='6_Other Assumptions'!$B$7,R136*(1+'6_Other Assumptions'!$B$9)^('6_Other Assumptions'!$B$7-U136),R136*(1+'6_Other Assumptions'!$B$9+'6_Other Assumptions'!$B$11)^('6_Other Assumptions'!$B$7-U136)) -> 0 | Y136: 1 | AC136: =IF(OR(A136<>"",B136<>"",C136<>""),OR(AND(E136<>"",H136<>"",I136<>"",J136<>"",K136<>"",$L$7<>"",$M$7<>"",O136<>"",P136<>"",Z136<>"",AA136<>""),AND(E136<>"",V136<>"",S136<>"",Z136<>"",AA136<>"")),TRUE) -> TRUE
N137: 0 | Q137: =IF($M$7<=$P$7,N137*(1+'6_Other Assumptions'!$B$9)^($P$7-$M$7),N137*(1+'6_Other Assumptions'!$B$9+'6_Other Assumptions'!$B$11)^($P$7-$M$7))+IF(T137<=$P$7,O137*(1+'6_Other Assumptions'!$B$9)^($P$7-T137),O137*(1+'6_Other Assumptions'!$B$9+'6_Other Assumptions'!$B$11)^($P$7-T137)) -> 0 | R137: 0 | T137: 2014 | U137: 2014 | W137: =IF(U137<='6_Other Assumptions'!$B$7,R137*(1+'6_Other Assumptions'!$B$9)^('6_Other Assumptions'!$B$7-U137),R137*(1+'6_Other Assumptions'!$B$9+'6_Other Assumptions'!$B$11)^('6_Other Assumptions'!$B$7-U137)) -> 0 | Y137: 1 | AC137: TRUE
N138: 0 | Q138: =IF($M$7<=$P$7,N138*(1+'6_Other Assumptions'!$B$9)^($P$7-$M$7),N138*(1+'6_Other Assumptions'!$B$9+'6_Other Assumptions'!$B$11)^($P$7-$M$7))+IF(T138<=$P$7,O138*(1+'6_Other Assumptions'!$B$9)^($P$7-T138),O138*(1+'6_Other Assumptions'!$B$9+'6_Other Assumptions'!$B$11)^($P$7-T138)) -> 0 | R138: 0 | T138: 2014 | U138: 2014 | W138: =IF(U138<='6_Other Assumptions'!$B$7,R138*(1+'6_Other Assumptions'!$B$9)^('6_Other Assumptions'!$B$7-U138),R138*(1+'6_Other Assumptions'!$B$9+'6_Other Assumptions'!$B$11)^('6_Other Assumptions'!$B$7-U138)) -> 0 | Y138: 1 | AC138: TRUE
N139: 0 | Q139: =IF($M$7<=$P$7,N139*(1+'6_Other Assumptions'!$B$9)^($P$7-$M$7),N139*(1+'6_Other Assumptions'!$B$9+'6_Other Assumptions'!$B$11)^($P$7-$M$7))+IF(T139<=$P$7,O139*(1+'6_Other Assumptions'!$B$9)^($P$7-T139),O139*(1+'6_Other Assumptions'!$B$9+'6_Other Assumptions'!$B$11)^($P$7-T139)) -> 0 | R139: 0 | T139: 2014 | U139: 2014 | W139: =IF(U139<='6_Other Assumptions'!$B$7,R139*(1+'6_Other Assumptions'!$B$9)^('6_Other Assumptions'!$B$7-U139),R139*(1+'6_Other Assumptions'!$B$9+'6_Other Assumptions'!$B$11)^('6_Other Assumptions'!$B$7-U139)) -> 0 | Y139: 1 | AC139: TRUE
N140: 0 | Q140: =IF($M$7<=$P$7,N140*(1+'6_Other Assumptions'!$B$9)^($P$7-$M$7),N140*(1+'6_Other Assumptions'!$B$9+'6_Other Assumptions'!$B$11)^($P$7-$M$7))+IF(T140<=$P$7,O140*(1+'6_Other Assumptions'!$B$9)^($P$7-T140),O140*(1+'6_Other Assumptions'!$B$9+'6_Other Assumptions'!$B$11)^($P$7-T140)) -> 0 | R140: 0 | T140: 2014 | U140: 2014 | W140: =IF(U140<='6_Other Assumptions'!$B$7,R140*(1+'6_Other Assumptions'!$B$9)^('6_Other Assumptions'!$B$7-U140),R140*(1+'6_Other Assumptions'!$B$9+'6_Other Assumptions'!$B$11)^('6_Other Assumptions'!$B$7-U140)) -> 0 | Y140: 1 | AC140: TRUE
N141: 0 | Q141: =IF($M$7<=$P$7,N141*(1+'6_Other Assumptions'!$B$9)^($P$7-$M$7),N141*(1+'6_Other Assumptions'!$B$9+'6_Other Assumptions'!$B$11)^($P$7-$M$7))+IF(T141<=$P$7,O141*(1+'6_Other Assumptions'!$B$9)^($P$7-T141),O141*(1+'6_Other Assumptions'!$B$9+'6_Other Assumptions'!$B$11)^($P$7-T141)) -> 0 | R141: 0 | T141: 2014 | U141: 2014 | W141: =IF(U141<='6_Other Assumptions'!$B$7,R141*(1+'6_Other Assumptions'!$B$9)^('6_Other Assumptions'!$B$7-U141),R141*(1+'6_Other Assumptions'!$B$9+'6_Other Assumptions'!$B$11)^('6_Other Assumptions'!$B$7-U141)) -> 0 | Y141: 1 | AC141: TRUE
N142: 0 | Q142: =IF($M$7<=$P$7,N142*(1+'6_Other Assumptions'!$B$9)^($P$7-$M$7),N142*(1+'6_Other Assumptions'!$B$9+'6_Other Assumptions'!$B$11)^($P$7-$M$7))+IF(T142<=$P$7,O142*(1+'6_Other Assumptions'!$B$9)^($P$7-T142),O142*(1+'6_Other Assumptions'!$B$9+'6_Other Assumptions'!$B$11)^($P$7-T142)) -> 0 | R142: 0 | T142: 2014 | U142: 2014 | W142: =IF(U142<='6_Other Assumptions'!$B$7,R142*(1+'6_Other Assumptions'!$B$9)^('6_Other Assumptions'!$B$7-U142),R142*(1+'6_Other Assumptions'!$B$9+'6_Other Assumptions'!$B$11)^('6_Other Assumptions'!$B$7-U142)) -> 0 | Y142: 1 | AC142: TRUE
N143: 0 | Q143: =IF($M$7<=$P$7,N143*(1+'6_Other Assumptions'!$B$9)^($P$7-$M$7),N143*(1+'6_Other Assumptions'!$B$9+'6_Other Assumptions'!$B$11)^($P$7-$M$7))+IF(T143<=$P$7,O143*(1+'6_Other Assumptions'!$B$9)^($P$7-T143),O143*(1+'6_Other Assumptions'!$B$9+'6_Other Assumptions'!$B$11)^($P$7-T143)) -> 0 | R143: 0 | T143: 2014 | U143: 2014 | W143: =IF(U143<='6_Other Assumptions'!$B$7,R143*(1+'6_Other Assumptions'!$B$9)^('6_Other Assumptions'!$B$7-U143),R143*(1+'6_Other Assumptions'!$B$9+'6_Other Assumptions'!$B$11)^('6_Other Assumptions'!$B$7-U143)) -> 0 | Y143: 1 | AC143: TRUE
N144: 0 | Q144: =IF($M$7<=$P$7,N144*(1+'6_Other Assumptions'!$B$9)^($P$7-$M$7),N144*(1+'6_Other Assumptions'!$B$9+'6_Other Assumptions'!$B$11)^($P$7-$M$7))+IF(T144<=$P$7,O144*(1+'6_Other Assumptions'!$B$9)^($P$7-T144),O144*(1+'6_Other Assumptions'!$B$9+'6_Other Assumptions'!$B$11)^($P$7-T144)) -> 0 | R144: 0 | T144: 2014 | U144: 2014 | W144: =IF(U144<='6_Other Assumptions'!$B$7,R144*(1+'6_Other Assumptions'!$B$9)^('6_Other Assumptions'!$B$7-U144),R144*(1+'6_Other Assumptions'!$B$9+'6_Other Assumptions'!$B$11)^('6_Other Assumptions'!$B$7-U144)) -> 0 | Y144: 1 | AC144: TRUE
N145: 0 | Q145: =IF($M$7<=$P$7,N145*(1+'6_Other Assumptions'!$B$9)^($P$7-$M$7),N145*(1+'6_Other Assumptions'!$B$9+'6_Other Assumptions'!$B$11)^($P$7-$M$7))+IF(T145<=$P$7,O145*(1+'6_Other Assumptions'!$B$9)^($P$7-T145),O145*(1+'6_Other Assumptions'!$B$9+'6_Other Assumptions'!$B$11)^($P$7-T145)) -> 0 | R145: 0 | T145: 2014 | U145: 2014 | W145: =IF(U145<='6_Other Assumptions'!$B$7,R145*(1+'6_Other Assumptions'!$B$9)^('6_Other Assumptions'!$B$7-U145),R145*(1+'6_Other Assumptions'!$B$9+'6_Other Assumptions'!$B$11)^('6_Other Assumptions'!$B$7-U145)) -> 0 | Y145: 1 | AC145: TRUE
N146: 0 | Q146: =IF($M$7<=$P$7,N146*(1+'6_Other Assumptions'!$B$9)^($P$7-$M$7),N146*(1+'6_Other Assumptions'!$B$9+'6_Other Assumptions'!$B$11)^($P$7-$M$7))+IF(T146<=$P$7,O146*(1+'6_Other Assumptions'!$B$9)^($P$7-T146),O146*(1+'6_Other Assumptions'!$B$9+'6_Other Assumptions'!$B$11)^($P$7-T146)) -> 0 | R146: 0 | T146: 2014 | U146: 2014 | W146: =IF(U146<='6_Other Assumptions'!$B$7,R146*(1+'6_Other Assumptions'!$B$9)^('6_Other Assumptions'!$B$7-U146),R146*(1+'6_Other Assumptions'!$B$9+'6_Other Assumptions'!$B$11)^('6_Other Assumptions'!$B$7-U146)) -> 0 | Y146: 1 | AC146: TRUE
N147: 0 | Q147: =IF($M$7<=$P$7,N147*(1+'6_Other Assumptions'!$B$9)^($P$7-$M$7),N147*(1+'6_Other Assumptions'!$B$9+'6_Other Assumptions'!$B$11)^($P$7-$M$7))+IF(T147<=$P$7,O147*(1+'6_Other Assumptions'!$B$9)^($P$7-T147),O147*(1+'6_Other Assumptions'!$B$9+'6_Other Assumptions'!$B$11)^($P$7-T147)) -> 0 | R147: 0 | T147: 2014 | U147: 2014 | W147: =IF(U147<='6_Other Assumptions'!$B$7,R147*(1+'6_Other Assumptions'!$B$9)^('6_Other Assumptions'!$B$7-U147),R147*(1+'6_Other Assumptions'!$B$9+'6_Other Assumptions'!$B$11)^('6_Other Assumptions'!$B$7-U147)) -> 0 | Y147: 1 | AC147: TRUE
N148: 0 | Q148: =IF($M$7<=$P$7,N148*(1+'6_Other Assumptions'!$B$9)^($P$7-$M$7),N148*(1+'6_Other Assumptions'!$B$9+'6_Other Assumptions'!$B$11)^($P$7-$M$7))+IF(T148<=$P$7,O148*(1+'6_Other Assumptions'!$B$9)^($P$7-T148),O148*(1+'6_Other Assumptions'!$B$9+'6_Other Assumptions'!$B$11)^($P$7-T148)) -> 0 | R148: 0 | T148: 2014 | U148: 2014 | W148: =IF(U148<='6_Other Assumptions'!$B$7,R148*(1+'6_Other Assumptions'!$B$9)^('6_Other Assumptions'!$B$7-U148),R148*(1+'6_Other Assumptions'!$B$9+'6_Other Assumptions'!$B$11)^('6_Other Assumptions'!$B$7-U148)) -> 0 | Y148: 1 | AC148: TRUE
N149: 0 | Q149: =IF($M$7<=$P$7,N149*(1+'6_Other Assumptions'!$B$9)^($P$7-$M$7),N149*(1+'6_Other Assumptions'!$B$9+'6_Other Assumptions'!$B$11)^($P$7-$M$7))+IF(T149<=$P$7,O149*(1+'6_Other Assumptions'!$B$9)^($P$7-T149),O149*(1+'6_Other Assumptions'!$B$9+'6_Other Assumptions'!$B$11)^($P$7-T149)) -> 0 | R149: 0 | T149: 2014 | U149: 2014 | W149: =IF(U149<='6_Other Assumptions'!$B$7,R149*(1+'6_Other Assumptions'!$B$9)^('6_Other Assumptions'!$B$7-U149),R149*(1+'6_Other Assumptions'!$B$9+'6_Other Assumptions'!$B$11)^('6_Other Assumptions'!$B$7-U149)) -> 0 | Y149: 1 | AC149: TRUE
N150: 0 | Q150: =IF($M$7<=$P$7,N150*(1+'6_Other Assumptions'!$B$9)^($P$7-$M$7),N150*(1+'6_Other Assumptions'!$B$9+'6_Other Assumptions'!$B$11)^($P$7-$M$7))+IF(T150<=$P$7,O150*(1+'6_Other Assumptions'!$B$9)^($P$7-T150),O150*(1+'6_Other Assumptions'!$B$9+'6_Other Assumptions'!$B$11)^($P$7-T150)) -> 0 | R150: 0 | T150: 2014 | U150: 2014 | W150: =IF(U150<='6_Other Assumptions'!$B$7,R150*(1+'6_Other Assumptions'!$B$9)^('6_Other Assumptions'!$B$7-U150),R150*(1+'6_Other Assumptions'!$B$9+'6_Other Assumptions'!$B$11)^('6_Other Assumptions'!$B$7-U150)) -> 0 | Y150: 1 | AC150: TRUE
N151: 0 | Q151: =IF($M$7<=$P$7,N151*(1+'6_Other Assumptions'!$B$9)^($P$7-$M$7),N151*(1+'6_Other Assumptions'!$B$9+'6_Other Assumptions'!$B$11)^($P$7-$M$7))+IF(T151<=$P$7,O151*(1+'6_Other Assumptions'!$B$9)^($P$7-T151),O151*(1+'6_Other Assumptions'!$B$9+'6_Other Assumptions'!$B$11)^($P$7-T151)) -> 0 | R151: 0 | T151: 2014 | U151: 2014 | W151: =IF(U151<='6_Other Assumptions'!$B$7,R151*(1+'6_Other Assumptions'!$B$9)^('6_Other Assumptions'!$B$7-U151),R151*(1+'6_Other Assumptions'!$B$9+'6_Other Assumptions'!$B$11)^('6_Other Assumptions'!$B$7-U151)) -> 0 | Y151: 1 | AC151: TRUE
N152: 0 | Q152: =IF($M$7<=$P$7,N152*(1+'6_Other Assumptions'!$B$9)^($P$7-$M$7),N152*(1+'6_Other Assumptions'!$B$9+'6_Other Assumptions'!$B$11)^($P$7-$M$7))+IF(T152<=$P$7,O152*(1+'6_Other Assumptions'!$B$9)^($P$7-T152),O152*(1+'6_Other Assumptions'!$B$9+'6_Other Assumptions'!$B$11)^($P$7-T152)) -> 0 | R152: 0 | T152: 2014 | U152: 2014 | W152: =IF(U152<='6_Other Assumptions'!$B$7,R152*(1+'6_Other Assumptions'!$B$9)^('6_Other Assumptions'!$B$7-U152),R152*(1+'6_Other Assumptions'!$B$9+'6_Other Assumptions'!$B$11)^('6_Other Assumptions'!$B$7-U152)) -> 0 | Y152: 1 | AC152: TRUE
N153: 0 | Q153: =IF($M$7<=$P$7,N153*(1+'6_Other Assumptions'!$B$9)^($P$7-$M$7),N153*(1+'6_Other Assumptions'!$B$9+'6_Other Assumptions'!$B$11)^($P$7-$M$7))+IF(T153<=$P$7,O153*(1+'6_Other Assumptions'!$B$9)^($P$7-T153),O153*(1+'6_Other Assumptions'!$B$9+'6_Other Assumptions'!$B$11)^($P$7-T153)) -> 0 | R153: 0 | T153: 2014 | U153: 2014 | W153: =IF(U153<='6_Other Assumptions'!$B$7,R153*(1+'6_Other Assumptions'!$B$9)^('6_Other Assumptions'!$B$7-U153),R153*(1+'6_Other Assumptions'!$B$9+'6_Other Assumptions'!$B$11)^('6_Other Assumptions'!$B$7-U153)) -> 0 | Y153: 1 | AC153: TRUE
N154: 0 | Q154: =IF($M$7<=$P$7,N154*(1+'6_Other Assumptions'!$B$9)^($P$7-$M$7),N154*(1+'6_Other Assumptions'!$B$9+'6_Other Assumptions'!$B$11)^($P$7-$M$7))+IF(T154<=$P$7,O154*(1+'6_Other Assumptions'!$B$9)^($P$7-T154),O154*(1+'6_Other Assumptions'!$B$9+'6_Other Assumptions'!$B$11)^($P$7-T154)) -> 0 | R154: 0 | T154: 2014 | U154: 2014 | W154: =IF(U154<='6_Other Assumptions'!$B$7,R154*(1+'6_Other Assumptions'!$B$9)^('6_Other Assumptions'!$B$7-U154),R154*(1+'6_Other Assumptions'!$B$9+'6_Other Assumptions'!$B$11)^('6_Other Assumptions'!$B$7-U154)) -> 0 | Y154: 1 | AC154: TRUE
N155: 0 | Q155: =IF($M$7<=$P$7,N155*(1+'6_Other Assumptions'!$B$9)^($P$7-$M$7),N155*(1+'6_Other Assumptions'!$B$9+'6_Other Assumptions'!$B$11)^($P$7-$M$7))+IF(T155<=$P$7,O155*(1+'6_Other Assumptions'!$B$9)^($P$7-T155),O155*(1+'6_Other Assumptions'!$B$9+'6_Other Assumptions'!$B$11)^($P$7-T155)) -> 0 | R155: 0 | T155: 2014 | U155: 2014 | W155: =IF(U155<='6_Other Assumptions'!$B$7,R155*(1+'6_Other Assumptions'!$B$9)^('6_Other Assumptions'!$B$7-U155),R155*(1+'6_Other Assumptions'!$B$9+'6_Other Assumptions'!$B$11)^('6_Other Assumptions'!$B$7-U155)) -> 0 | Y155: 1 | AC155: TRUE
N156: 0 | Q156: =IF($M$7<=$P$7,N156*(1+'6_Other Assumptions'!$B$9)^($P$7-$M$7),N156*(1+'6_Other Assumptions'!$B$9+'6_Other Assumptions'!$B$11)^($P$7-$M$7))+IF(T156<=$P$7,O156*(1+'6_Other Assumptions'!$B$9)^($P$7-T156),O156*(1+'6_Other Assumptions'!$B$9+'6_Other Assumptions'!$B$11)^($P$7-T156)) -> 0 | R156: 0 | T156: 2014 | U156: 2014 | W156: =IF(U156<='6_Other Assumptions'!$B$7,R156*(1+'6_Other Assumptions'!$B$9)^('6_Other Assumptions'!$B$7-U156),R156*(1+'6_Other Assumptions'!$B$9+'6_Other Assumptions'!$B$11)^('6_Other Assumptions'!$B$7-U156)) -> 0 | Y156: 1 | AC156: TRUE
N157: 0 | Q157: =IF($M$7<=$P$7,N157*(1+'6_Other Assumptions'!$B$9)^($P$7-$M$7),N157*(1+'6_Other Assumptions'!$B$9+'6_Other Assumptions'!$B$11)^($P$7-$M$7))+IF(T157<=$P$7,O157*(1+'6_Other Assumptions'!$B$9)^($P$7-T157),O157*(1+'6_Other Assumptions'!$B$9+'6_Other Assumptions'!$B$11)^($P$7-T157)) -> 0 | R157: 0 | T157: 2014 | U157: 2014 | W157: =IF(U157<='6_Other Assumptions'!$B$7,R157*(1+'6_Other Assumptions'!$B$9)^('6_Other Assumptions'!$B$7-U157),R157*(1+'6_Other Assumptions'!$B$9+'6_Other Assumptions'!$B$11)^('6_Other Assumptions'!$B$7-U157)) -> 0 | Y157: 1 | AC157: TRUE
N158: 0 | Q158: =IF($M$7<=$P$7,N158*(1+'6_Other Assumptions'!$B$9)^($P$7-$M$7),N158*(1+'6_Other Assumptions'!$B$9+'6_Other Assumptions'!$B$11)^($P$7-$M$7))+IF(T158<=$P$7,O158*(1+'6_Other Assumptions'!$B$9)^($P$7-T158),O158*(1+'6_Other Assumptions'!$B$9+'6_Other Assumptions'!$B$11)^($P$7-T158)) -> 0 | R158: 0 | T158: 2014 | U158: 2014 | W158: =IF(U158<='6_Other Assumptions'!$B$7,R158*(1+'6_Other Assumptions'!$B$9)^('6_Other Assumptions'!$B$7-U158),R158*(1+'6_Other Assumptions'!$B$9+'6_Other Assumptions'!$B$11)^('6_Other Assumptions'!$B$7-U158)) -> 0 | Y158: 1 | AC158: TRUE
N159: 0 | Q159: =IF($M$7<=$P$7,N159*(1+'6_Other Assumptions'!$B$9)^($P$7-$M$7),N159*(1+'6_Other Assumptions'!$B$9+'6_Other Assumptions'!$B$11)^($P$7-$M$7))+IF(T159<=$P$7,O159*(1+'6_Other Assumptions'!$B$9)^($P$7-T159),O159*(1+'6_Other Assumptions'!$B$9+'6_Other Assumptions'!$B$11)^($P$7-T159)) -> 0 | R159: 0 | T159: 2014 | U159: 2014 | W159: =IF(U159<='6_Other Assumptions'!$B$7,R159*(1+'6_Other Assumptions'!$B$9)^('6_Other Assumptions'!$B$7-U159),R159*(1+'6_Other Assumptions'!$B$9+'6_Other Assumptions'!$B$11)^('6_Other Assumptions'!$B$7-U159)) -> 0 | Y159: 1 | AC159: TRUE
N160: 0 | Q160: =IF($M$7<=$P$7,N160*(1+'6_Other Assumptions'!$B$9)^($P$7-$M$7),N160*(1+'6_Other Assumptions'!$B$9+'6_Other Assumptions'!$B$11)^($P$7-$M$7))+IF(T160<=$P$7,O160*(1+'6_Other Assumptions'!$B$9)^($P$7-T160),O160*(1+'6_Other Assumptions'!$B$9+'6_Other Assumptions'!$B$11)^($P$7-T160)) -> 0 | R160: =IF(ISBLANK(S160),Q160,S160) -> 0 | T160: =MAX($M$7,P160) -> 2014 | U160: =IF(ISBLANK(V160),T160,V160) -> 2014 | W160: =IF(U160<='6_Other Assumptions'!$B$7,R160*(1+'6_Other Assumptions'!$B$9)^('6_Other Assumptions'!$B$7-U160),R160*(1+'6_Other Assumptions'!$B$9+'6_Other Assumptions'!$B$11)^('6_Other Assumptions'!$B$7-U160)) -> 0 | Y160: 1 | AC160: TRUE
N161: 0 | Q161: =IF($M$7<=$P$7,N161*(1+'6_Other Assumptions'!$B$9)^($P$7-$M$7),N161*(1+'6_Other Assumptions'!$B$9+'6_Other Assumptions'!$B$11)^($P$7-$M$7))+IF(T161<=$P$7,O161*(1+'6_Other Assumptions'!$B$9)^($P$7-T161),O161*(1+'6_Other Assumptions'!$B$9+'6_Other Assumptions'!$B$11)^($P$7-T161)) -> 0 | R161: 0 | T161: 2014 | U161: 2014 | W161: =IF(U161<='6_Other Assumptions'!$B$7,R161*(1+'6_Other Assumptions'!$B$9)^('6_Other Assumptions'!$B$7-U161),R161*(1+'6_Other Assumptions'!$B$9+'6_Other Assumptions'!$B$11)^('6_Other Assumptions'!$B$7-U161)) -> 0 | Y161: 1 | AC161: TRUE
N162: 0 | Q162: =IF($M$7<=$P$7,N162*(1+'6_Other Assumptions'!$B$9)^($P$7-$M$7),N162*(1+'6_Other Assumptions'!$B$9+'6_Other Assumptions'!$B$11)^($P$7-$M$7))+IF(T162<=$P$7,O162*(1+'6_Other Assumptions'!$B$9)^($P$7-T162),O162*(1+'6_Other Assumptions'!$B$9+'6_Other Assumptions'!$B$11)^($P$7-T162)) -> 0 | R162: 0 | T162: 2014 | U162: 2014 | W162: =IF(U162<='6_Other Assumptions'!$B$7,R162*(1+'6_Other Assumptions'!$B$9)^('6_Other Assumptions'!$B$7-U162),R162*(1+'6_Other Assumptions'!$B$9+'6_Other Assumptions'!$B$11)^('6_Other Assumptions'!$B$7-U162)) -> 0 | Y162: 1 | AC162: TRUE
N163: 0 | Q163: =IF($M$7<=$P$7,N163*(1+'6_Other Assumptions'!$B$9)^($P$7-$M$7),N163*(1+'6_Other Assumptions'!$B$9+'6_Other Assumptions'!$B$11)^($P$7-$M$7))+IF(T163<=$P$7,O163*(1+'6_Other Assumptions'!$B$9)^($P$7-T163),O163*(1+'6_Other Assumptions'!$B$9+'6_Other Assumptions'!$B$11)^($P$7-T163)) -> 0 | R163: 0 | T163: 2014 | U163: 2014 | W163: =IF(U163<='6_Other Assumptions'!$B$7,R163*(1+'6_Other Assumptions'!$B$9)^('6_Other Assumptions'!$B$7-U163),R163*(1+'6_Other Assumptions'!$B$9+'6_Other Assumptions'!$B$11)^('6_Other Assumptions'!$B$7-U163)) -> 0 | Y163: 1 | AC163: TRUE
N164: 0 | Q164: =IF($M$7<=$P$7,N164*(1+'6_Other Assumptions'!$B$9)^($P$7-$M$7),N164*(1+'6_Other Assumptions'!$B$9+'6_Other Assumptions'!$B$11)^($P$7-$M$7))+IF(T164<=$P$7,O164*(1+'6_Other Assumptions'!$B$9)^($P$7-T164),O164*(1+'6_Other Assumptions'!$B$9+'6_Other Assumptions'!$B$11)^($P$7-T164)) -> 0 | R164: 0 | T164: 2014 | U164: 2014 | W164: =IF(U164<='6_Other Assumptions'!$B$7,R164*(1+'6_Other Assumptions'!$B$9)^('6_Other Assumptions'!$B$7-U164),R164*(1+'6_Other Assumptions'!$B$9+'6_Other Assumptions'!$B$11)^('6_Other Assumptions'!$B$7-U164)) -> 0 | Y164: 1 | AC164: TRUE
N165: 0 | Q165: =IF($M$7<=$P$7,N165*(1+'6_Other Assumptions'!$B$9)^($P$7-$M$7),N165*(1+'6_Other Assumptions'!$B$9+'6_Other Assumptions'!$B$11)^($P$7-$M$7))+IF(T165<=$P$7,O165*(1+'6_Other Assumptions'!$B$9)^($P$7-T165),O165*(1+'6_Other Assumptions'!$B$9+'6_Other Assumptions'!$B$11)^($P$7-T165)) -> 0 | R165: 0 | T165: 2014 | U165: 2014 | W165: =IF(U165<='6_Other Assumptions'!$B$7,R165*(1+'6_Other Assumptions'!$B$9)^('6_Other Assumptions'!$B$7-U165),R165*(1+'6_Other Assumptions'!$B$9+'6_Other Assumptions'!$B$11)^('6_Other Assumptions'!$B$7-U165)) -> 0 | Y165: 1 | AC165: TRUE
N166: 0 | Q166: =IF($M$7<=$P$7,N166*(1+'6_Other Assumptions'!$B$9)^($P$7-$M$7),N166*(1+'6_Other Assumptions'!$B$9+'6_Other Assumptions'!$B$11)^($P$7-$M$7))+IF(T166<=$P$7,O166*(1+'6_Other Assumptions'!$B$9)^($P$7-T166),O166*(1+'6_Other Assumptions'!$B$9+'6_Other Assumptions'!$B$11)^($P$7-T166)) -> 0 | R166: 0 | T166: 2014 | U166: 2014 | W166: =IF(U166<='6_Other Assumptions'!$B$7,R166*(1+'6_Other Assumptions'!$B$9)^('6_Other Assumptions'!$B$7-U166),R166*(1+'6_Other Assumptions'!$B$9+'6_Other Assumptions'!$B$11)^('6_Other Assumptions'!$B$7-U166)) -> 0 | Y166: 1 | AC166: TRUE
N167: 0 | Q167: =IF($M$7<=$P$7,N167*(1+'6_Other Assumptions'!$B$9)^($P$7-$M$7),N167*(1+'6_Other Assumptions'!$B$9+'6_Other Assumptions'!$B$11)^($P$7-$M$7))+IF(T167<=$P$7,O167*(1+'6_Other Assumptions'!$B$9)^($P$7-T167),O167*(1+'6_Other Assumptions'!$B$9+'6_Other Assumptions'!$B$11)^($P$7-T167)) -> 0 | R167: 0 | T167: 2014 | U167: 2014 | W167: =IF(U167<='6_Other Assumptions'!$B$7,R167*(1+'6_Other Assumptions'!$B$9)^('6_Other Assumptions'!$B$7-U167),R167*(1+'6_Other Assumptions'!$B$9+'6_Other Assumptions'!$B$11)^('6_Other Assumptions'!$B$7-U167)) -> 0 | Y167: 1 | AC167: TRUE
N168: 0 | Q168: =IF($M$7<=$P$7,N168*(1+'6_Other Assumptions'!$B$9)^($P$7-$M$7),N168*(1+'6_Other Assumptions'!$B$9+'6_Other Assumptions'!$B$11)^($P$7-$M$7))+IF(T168<=$P$7,O168*(1+'6_Other Assumptions'!$B$9)^($P$7-T168),O168*(1+'6_Other Assumptions'!$B$9+'6_Other Assumptions'!$B$11)^($P$7-T168)) -> 0 | R168: 0 | T168: 2014 | U168: 2014 | W168: =IF(U168<='6_Other Assumptions'!$B$7,R168*(1+'6_Other Assumptions'!$B$9)^('6_Other Assumptions'!$B$7-U168),R168*(1+'6_Other Assumptions'!$B$9+'6_Other Assumptions'!$B$11)^('6_Other Assumptions'!$B$7-U168)) -> 0 | Y168: 1 | AC168: TRUE
N169: 0 | Q169: =IF($M$7<=$P$7,N169*(1+'6_Other Assumptions'!$B$9)^($P$7-$M$7),N169*(1+'6_Other Assumptions'!$B$9+'6_Other Assumptions'!$B$11)^($P$7-$M$7))+IF(T169<=$P$7,O169*(1+'6_Other Assumptions'!$B$9)^($P$7-T169),O169*(1+'6_Other Assumptions'!$B$9+'6_Other Assumptions'!$B$11)^($P$7-T169)) -> 0 | R169: 0 | T169: 2014 | U169: 2014 | W169: =IF(U169<='6_Other Assumptions'!$B$7,R169*(1+'6_Other Assumptions'!$B$9)^('6_Other Assumptions'!$B$7-U169),R169*(1+'6_Other Assumptions'!$B$9+'6_Other Assumptions'!$B$11)^('6_Other Assumptions'!$B$7-U169)) -> 0 | Y169: 1 | AC169: TRUE
N170: 0 | Q170: =IF($M$7<=$P$7,N170*(1+'6_Other Assumptions'!$B$9)^($P$7-$M$7),N170*(1+'6_Other Assumptions'!$B$9+'6_Other Assumptions'!$B$11)^($P$7-$M$7))+IF(T170<=$P$7,O170*(1+'6_Other Assumptions'!$B$9)^($P$7-T170),O170*(1+'6_Other Assumptions'!$B$9+'6_Other Assumptions'!$B$11)^($P$7-T170)) -> 0 | R170: 0 | T170: 2014 | U170: 2014 | W170: =IF(U170<='6_Other Assumptions'!$B$7,R170*(1+'6_Other Assumptions'!$B$9)^('6_Other Assumptions'!$B$7-U170),R170*(1+'6_Other Assumptions'!$B$9+'6_Other Assumptions'!$B$11)^('6_Other Assumptions'!$B$7-U170)) -> 0 | Y170: 1 | AC170: TRUE
N171: 0 | Q171: =IF($M$7<=$P$7,N171*(1+'6_Other Assumptions'!$B$9)^($P$7-$M$7),N171*(1+'6_Other Assumptions'!$B$9+'6_Other Assumptions'!$B$11)^($P$7-$M$7))+IF(T171<=$P$7,O171*(1+'6_Other Assumptions'!$B$9)^($P$7-T171),O171*(1+'6_Other Assumptions'!$B$9+'6_Other Assumptions'!$B$11)^($P$7-T171)) -> 0 | R171: 0 | T171: 2014 | U171: 2014 | W171: =IF(U171<='6_Other Assumptions'!$B$7,R171*(1+'6_Other Assumptions'!$B$9)^('6_Other Assumptions'!$B$7-U171),R171*(1+'6_Other Assumptions'!$B$9+'6_Other Assumptions'!$B$11)^('6_Other Assumptions'!$B$7-U171)) -> 0 | Y171: 1 | AC171: TRUE
N172: 0 | Q172: =IF($M$7<=$P$7,N172*(1+'6_Other Assumptions'!$B$9)^($P$7-$M$7),N172*(1+'6_Other Assumptions'!$B$9+'6_Other Assumptions'!$B$11)^($P$7-$M$7))+IF(T172<=$P$7,O172*(1+'6_Other Assumptions'!$B$9)^($P$7-T172),O172*(1+'6_Other Assumptions'!$B$9+'6_Other Assumptions'!$B$11)^($P$7-T172)) -> 0 | R172: 0 | T172: 2014 | U172: 2014 | W172: =IF(U172<='6_Other Assumptions'!$B$7,R172*(1+'6_Other Assumptions'!$B$9)^('6_Other Assumptions'!$B$7-U172),R172*(1+'6_Other Assumptions'!$B$9+'6_Other Assumptions'!$B$11)^('6_Other Assumptions'!$B$7-U172)) -> 0 | Y172: 1 | AC172: TRUE
N173: 0 | Q173: =IF($M$7<=$P$7,N173*(1+'6_Other Assumptions'!$B$9)^($P$7-$M$7),N173*(1+'6_Other Assumptions'!$B$9+'6_Other Assumptions'!$B$11)^($P$7-$M$7))+IF(T173<=$P$7,O173*(1+'6_Other Assumptions'!$B$9)^($P$7-T173),O173*(1+'6_Other Assumptions'!$B$9+'6_Other Assumptions'!$B$11)^($P$7-T173)) -> 0 | R173: 0 | T173: 2014 | U173: 2014 | W173: =IF(U173<='6_Other Assumptions'!$B$7,R173*(1+'6_Other Assumptions'!$B$9)^('6_Other Assumptions'!$B$7-U173),R173*(1+'6_Other Assumptions'!$B$9+'6_Other Assumptions'!$B$11)^('6_Other Assumptions'!$B$7-U173)) -> 0 | Y173: 1 | AC173: TRUE
N174: 0 | Q174: =IF($M$7<=$P$7,N174*(1+'6_Other Assumptions'!$B$9)^($P$7-$M$7),N174*(1+'6_Other Assumptions'!$B$9+'6_Other Assumptions'!$B$11)^($P$7-$M$7))+IF(T174<=$P$7,O174*(1+'6_Other Assumptions'!$B$9)^($P$7-T174),O174*(1+'6_Other Assumptions'!$B$9+'6_Other Assumptions'!$B$11)^($P$7-T174)) -> 0 | R174: 0 | T174: 2014 | U174: 2014 | W174: =IF(U174<='6_Other Assumptions'!$B$7,R174*(1+'6_Other Assumptions'!$B$9)^('6_Other Assumptions'!$B$7-U174),R174*(1+'6_Other Assumptions'!$B$9+'6_Other Assumptions'!$B$11)^('6_Other Assumptions'!$B$7-U174)) -> 0 | Y174: 1 | AC174: TRUE
N175: 0 | Q175: =IF($M$7<=$P$7,N175*(1+'6_Other Assumptions'!$B$9)^($P$7-$M$7),N175*(1+'6_Other Assumptions'!$B$9+'6_Other Assumptions'!$B$11)^($P$7-$M$7))+IF(T175<=$P$7,O175*(1+'6_Other Assumptions'!$B$9)^($P$7-T175),O175*(1+'6_Other Assumptions'!$B$9+'6_Other Assumptions'!$B$11)^($P$7-T175)) -> 0 | R175: 0 | T175: 2014 | U175: 2014 | W175: =IF(U175<='6_Other Assumptions'!$B$7,R175*(1+'6_Other Assumptions'!$B$9)^('6_Other Assumptions'!$B$7-U175),R175*(1+'6_Other Assumptions'!$B$9+'6_Other Assumptions'!$B$11)^('6_Other Assumptions'!$B$7-U175)) -> 0 | Y175: 1 | AC175: TRUE
N176: 0 | Q176: =IF($M$7<=$P$7,N176*(1+'6_Other Assumptions'!$B$9)^($P$7-$M$7),N176*(1+'6_Other Assumptions'!$B$9+'6_Other Assumptions'!$B$11)^($P$7-$M$7))+IF(T176<=$P$7,O176*(1+'6_Other Assumptions'!$B$9)^($P$7-T176),O176*(1+'6_Other Assumptions'!$B$9+'6_Other Assumptions'!$B$11)^($P$7-T176)) -> 0 | R176: 0 | T176: 2014 | U176: 2014 | W176: =IF(U176<='6_Other Assumptions'!$B$7,R176*(1+'6_Other Assumptions'!$B$9)^('6_Other Assumptions'!$B$7-U176),R176*(1+'6_Other Assumptions'!$B$9+'6_Other Assumptions'!$B$11)^('6_Other Assumptions'!$B$7-U176)) -> 0 | Y176: 1 | AC176: TRUE
N177: 0 | Q177: =IF($M$7<=$P$7,N177*(1+'6_Other Assumptions'!$B$9)^($P$7-$M$7),N177*(1+'6_Other Assumptions'!$B$9+'6_Other Assumptions'!$B$11)^($P$7-$M$7))+IF(T177<=$P$7,O177*(1+'6_Other Assumptions'!$B$9)^($P$7-T177),O177*(1+'6_Other Assumptions'!$B$9+'6_Other Assumptions'!$B$11)^($P$7-T177)) -> 0 | R177: 0 | T177: 2014 | U177: 2014 | W177: =IF(U177<='6_Other Assumptions'!$B$7,R177*(1+'6_Other Assumptions'!$B$9)^('6_Other Assumptions'!$B$7-U177),R177*(1+'6_Other Assumptions'!$B$9+'6_Other Assumptions'!$B$11)^('6_Other Assumptions'!$B$7-U177)) -> 0 | Y177: 1 | AC177: TRUE
N178: 0 | Q178: =IF($M$7<=$P$7,N178*(1+'6_Other Assumptions'!$B$9)^($P$7-$M$7),N178*(1+'6_Other Assumptions'!$B$9+'6_Other Assumptions'!$B$11)^($P$7-$M$7))+IF(T178<=$P$7,O178*(1+'6_Other Assumptions'!$B$9)^($P$7-T178),O178*(1+'6_Other Assumptions'!$B$9+'6_Other Assumptions'!$B$11)^($P$7-T178)) -> 0 | R178: 0 | T178: 2014 | U178: 2014 | W178: =IF(U178<='6_Other Assumptions'!$B$7,R178*(1+'6_Other Assumptions'!$B$9)^('6_Other Assumptions'!$B$7-U178),R178*(1+'6_Other Assumptions'!$B$9+'6_Other Assumptions'!$B$11)^('6_Other Assumptions'!$B$7-U178)) -> 0 | Y178: 1 | AC178: TRUE
N179: 0 | Q179: =IF($M$7<=$P$7,N179*(1+'6_Other Assumptions'!$B$9)^($P$7-$M$7),N179*(1+'6_Other Assumptions'!$B$9+'6_Other Assumptions'!$B$11)^($P$7-$M$7))+IF(T179<=$P$7,O179*(1+'6_Other Assumptions'!$B$9)^($P$7-T179),O179*(1+'6_Other Assumptions'!$B$9+'6_Other Assumptions'!$B$11)^($P$7-T179)) -> 0 | R179: 0 | T179: 2014 | U179: 2014 | W179: =IF(U179<='6_Other Assumptions'!$B$7,R179*(1+'6_Other Assumptions'!$B$9)^('6_Other Assumptions'!$B$7-U179),R179*(1+'6_Other Assumptions'!$B$9+'6_Other Assumptions'!$B$11)^('6_Other Assumptions'!$B$7-U179)) -> 0 | Y179: 1 | AC179: TRUE
N180: 0 | Q180: =IF($M$7<=$P$7,N180*(1+'6_Other Assumptions'!$B$9)^($P$7-$M$7),N180*(1+'6_Other Assumptions'!$B$9+'6_Other Assumptions'!$B$11)^($P$7-$M$7))+IF(T180<=$P$7,O180*(1+'6_Other Assumptions'!$B$9)^($P$7-T180),O180*(1+'6_Other Assumptions'!$B$9+'6_Other Assumptions'!$B$11)^($P$7-T180)) -> 0 | R180: 0 | T180: 2014 | U180: 2014 | W180: =IF(U180<='6_Other Assumptions'!$B$7,R180*(1+'6_Other Assumptions'!$B$9)^('6_Other Assumptions'!$B$7-U180),R180*(1+'6_Other Assumptions'!$B$9+'6_Other Assumptions'!$B$11)^('6_Other Assumptions'!$B$7-U180)) -> 0 | Y180: 1 | AC180: TRUE
N181: 0 | Q181: =IF($M$7<=$P$7,N181*(1+'6_Other Assumptions'!$B$9)^($P$7-$M$7),N181*(1+'6_Other Assumptions'!$B$9+'6_Other Assumptions'!$B$11)^($P$7-$M$7))+IF(T181<=$P$7,O181*(1+'6_Other Assumptions'!$B$9)^($P$7-T181),O181*(1+'6_Other Assumptions'!$B$9+'6_Other Assumptions'!$B$11)^($P$7-T181)) -> 0 | R181: 0 | T181: 2014 | U181: 2014 | W181: =IF(U181<='6_Other Assumptions'!$B$7,R181*(1+'6_Other Assumptions'!$B$9)^('6_Other Assumptions'!$B$7-U181),R181*(1+'6_Other Assumptions'!$B$9+'6_Other Assumptions'!$B$11)^('6_Other Assumptions'!$B$7-U181)) -> 0 | Y181: 1 | AC181: TRUE
N182: 0 | Q182: =IF($M$7<=$P$7,N182*(1+'6_Other Assumptions'!$B$9)^($P$7-$M$7),N182*(1+'6_Other Assumptions'!$B$9+'6_Other Assumptions'!$B$11)^($P$7-$M$7))+IF(T182<=$P$7,O182*(1+'6_Other Assumptions'!$B$9)^($P$7-T182),O182*(1+'6_Other Assumptions'!$B$9+'6_Other Assumptions'!$B$11)^($P$7-T182)) -> 0 | R182: 0 | T182: 2014 | U182: 2014 | W182: =IF(U182<='6_Other Assumptions'!$B$7,R182*(1+'6_Other Assumptions'!$B$9)^('6_Other Assumptions'!$B$7-U182),R182*(1+'6_Other Assumptions'!$B$9+'6_Other Assumptions'!$B$11)^('6_Other Assumptions'!$B$7-U182)) -> 0 | Y182: 1 | AC182: TRUE
N183: 0 | Q183: =IF($M$7<=$P$7,N183*(1+'6_Other Assumptions'!$B$9)^($P$7-$M$7),N183*(1+'6_Other Assumptions'!$B$9+'6_Other Assumptions'!$B$11)^($P$7-$M$7))+IF(T183<=$P$7,O183*(1+'6_Other Assumptions'!$B$9)^($P$7-T183),O183*(1+'6_Other Assumptions'!$B$9+'6_Other Assumptions'!$B$11)^($P$7-T183)) -> 0 | R183: 0 | T183: 2014 | U183: 2014 | W183: =IF(U183<='6_Other Assumptions'!$B$7,R183*(1+'6_Other Assumptions'!$B$9)^('6_Other Assumptions'!$B$7-U183),R183*(1+'6_Other Assumptions'!$B$9+'6_Other Assumptions'!$B$11)^('6_Other Assumptions'!$B$7-U183)) -> 0 | Y183: 1 | AC183: TRUE
N184: 0 | Q184: =IF($M$7<=$P$7,N184*(1+'6_Other Assumptions'!$B$9)^($P$7-$M$7),N184*(1+'6_Other Assumptions'!$B$9+'6_Other Assumptions'!$B$11)^($P$7-$M$7))+IF(T184<=$P$7,O184*(1+'6_Other Assumptions'!$B$9)^($P$7-T184),O184*(1+'6_Other Assumptions'!$B$9+'6_Other Assumptions'!$B$11)^($P$7-T184)) -> 0 | R184: 0 | T184: 2014 | U184: 2014 | W184: =IF(U184<='6_Other Assumptions'!$B$7,R184*(1+'6_Other Assumptions'!$B$9)^('6_Other Assumptions'!$B$7-U184),R184*(1+'6_Other Assumptions'!$B$9+'6_Other Assumptions'!$B$11)^('6_Other Assumptions'!$B$7-U184)) -> 0 | Y184: 1 | AC184: TRUE
N185: 0 | Q185: =IF($M$7<=$P$7,N185*(1+'6_Other Assumptions'!$B$9)^($P$7-$M$7),N185*(1+'6_Other Assumptions'!$B$9+'6_Other Assumptions'!$B$11)^($P$7-$M$7))+IF(T185<=$P$7,O185*(1+'6_Other Assumptions'!$B$9)^($P$7-T185),O185*(1+'6_Other Assumptions'!$B$9+'6_Other Assumptions'!$B$11)^($P$7-T185)) -> 0 | R185: 0 | T185: 2014 | U185: 2014 | W185: =IF(U185<='6_Other Assumptions'!$B$7,R185*(1+'6_Other Assumptions'!$B$9)^('6_Other Assumptions'!$B$7-U185),R185*(1+'6_Other Assumptions'!$B$9+'6_Other Assumptions'!$B$11)^('6_Other Assumptions'!$B$7-U185)) -> 0 | Y185: 1 | AC185: TRUE
N186: 0 | Q186: =IF($M$7<=$P$7,N186*(1+'6_Other Assumptions'!$B$9)^($P$7-$M$7),N186*(1+'6_Other Assumptions'!$B$9+'6_Other Assumptions'!$B$11)^($P$7-$M$7))+IF(T186<=$P$7,O186*(1+'6_Other Assumptions'!$B$9)^($P$7-T186),O186*(1+'6_Other Assumptions'!$B$9+'6_Other Assumptions'!$B$11)^($P$7-T186)) -> 0 | R186: 0 | T186: 2014 | U186: 2014 | W186: =IF(U186<='6_Other Assumptions'!$B$7,R186*(1+'6_Other Assumptions'!$B$9)^('6_Other Assumptions'!$B$7-U186),R186*(1+'6_Other Assumptions'!$B$9+'6_Other Assumptions'!$B$11)^('6_Other Assumptions'!$B$7-U186)) -> 0 | Y186: 1 | AC186: TRUE
N187: 0 | Q187: =IF($M$7<=$P$7,N187*(1+'6_Other Assumptions'!$B$9)^($P$7-$M$7),N187*(1+'6_Other Assumptions'!$B$9+'6_Other Assumptions'!$B$11)^($P$7-$M$7))+IF(T187<=$P$7,O187*(1+'6_Other Assumptions'!$B$9)^($P$7-T187),O187*(1+'6_Other Assumptions'!$B$9+'6_Other Assumptions'!$B$11)^($P$7-T187)) -> 0 | R187: 0 | T187: 2014 | U187: 2014 | W187: =IF(U187<='6_Other Assumptions'!$B$7,R187*(1+'6_Other Assumptions'!$B$9)^('6_Other Assumptions'!$B$7-U187),R187*(1+'6_Other Assumptions'!$B$9+'6_Other Assumptions'!$B$11)^('6_Other Assumptions'!$B$7-U187)) -> 0 | Y187: 1 | AC187: TRUE
N188: 0 | Q188: =IF($M$7<=$P$7,N188*(1+'6_Other Assumptions'!$B$9)^($P$7-$M$7),N188*(1+'6_Other Assumptions'!$B$9+'6_Other Assumptions'!$B$11)^($P$7-$M$7))+IF(T188<=$P$7,O188*(1+'6_Other Assumptions'!$B$9)^($P$7-T188),O188*(1+'6_Other Assumptions'!$B$9+'6_Other Assumptions'!$B$11)^($P$7-T188)) -> 0 | R188: 0 | T188: 2014 | U188: 2014 | W188: =IF(U188<='6_Other Assumptions'!$B$7,R188*(1+'6_Other Assumptions'!$B$9)^('6_Other Assumptions'!$B$7-U188),R188*(1+'6_Other Assumptions'!$B$9+'6_Other Assumptions'!$B$11)^('6_Other Assumptions'!$B$7-U188)) -> 0 | Y188: 1 | AC188: TRUE
N189: 0 | Q189: =IF($M$7<=$P$7,N189*(1+'6_Other Assumptions'!$B$9)^($P$7-$M$7),N189*(1+'6_Other Assumptions'!$B$9+'6_Other Assumptions'!$B$11)^($P$7-$M$7))+IF(T189<=$P$7,O189*(1+'6_Other Assumptions'!$B$9)^($P$7-T189),O189*(1+'6_Other Assumptions'!$B$9+'6_Other Assumptions'!$B$11)^($P$7-T189)) -> 0 | R189: 0 | T189: 2014 | U189: 2014 | W189: =IF(U189<='6_Other Assumptions'!$B$7,R189*(1+'6_Other Assumptions'!$B$9)^('6_Other Assumptions'!$B$7-U189),R189*(1+'6_Other Assumptions'!$B$9+'6_Other Assumptions'!$B$11)^('6_Other Assumptions'!$B$7-U189)) -> 0 | Y189: 1 | AC189: TRUE
N190: 0 | Q190: =IF($M$7<=$P$7,N190*(1+'6_Other Assumptions'!$B$9)^($P$7-$M$7),N190*(1+'6_Other Assumptions'!$B$9+'6_Other Assumptions'!$B$11)^($P$7-$M$7))+IF(T190<=$P$7,O190*(1+'6_Other Assumptions'!$B$9)^($P$7-T190),O190*(1+'6_Other Assumptions'!$B$9+'6_Other Assumptions'!$B$11)^($P$7-T190)) -> 0 | R190: 0 | T190: 2014 | U190: 2014 | W190: =IF(U190<='6_Other Assumptions'!$B$7,R190*(1+'6_Other Assumptions'!$B$9)^('6_Other Assumptions'!$B$7-U190),R190*(1+'6_Other Assumptions'!$B$9+'6_Other Assumptions'!$B$11)^('6_Other Assumptions'!$B$7-U190)) -> 0 | Y190: 1 | AC190: TRUE
N191: 0 | Q191: =IF($M$7<=$P$7,N191*(1+'6_Other Assumptions'!$B$9)^($P$7-$M$7),N191*(1+'6_Other Assumptions'!$B$9+'6_Other Assumptions'!$B$11)^($P$7-$M$7))+IF(T191<=$P$7,O191*(1+'6_Other Assumptions'!$B$9)^($P$7-T191),O191*(1+'6_Other Assumptions'!$B$9+'6_Other Assumptions'!$B$11)^($P$7-T191)) -> 0 | R191: 0 | T191: 2014 | U191: 2014 | W191: =IF(U191<='6_Other Assumptions'!$B$7,R191*(1+'6_Other Assumptions'!$B$9)^('6_Other Assumptions'!$B$7-U191),R191*(1+'6_Other Assumptions'!$B$9+'6_Other Assumptions'!$B$11)^('6_Other Assumptions'!$B$7-U191)) -> 0 | Y191: 1 | AC191: TRUE
N192: 0 | Q192: =IF($M$7<=$P$7,N192*(1+'6_Other Assumptions'!$B$9)^($P$7-$M$7),N192*(1+'6_Other Assumptions'!$B$9+'6_Other Assumptions'!$B$11)^($P$7-$M$7))+IF(T192<=$P$7,O192*(1+'6_Other Assumptions'!$B$9)^($P$7-T192),O192*(1+'6_Other Assumptions'!$B$9+'6_Other Assumptions'!$B$11)^($P$7-T192)) -> 0 | R192: 0 | T192: 2014 | U192: 2014 | W192: =IF(U192<='6_Other Assumptions'!$B$7,R192*(1+'6_Other Assumptions'!$B$9)^('6_Other Assumptions'!$B$7-U192),R192*(1+'6_Other Assumptions'!$B$9+'6_Other Assumptions'!$B$11)^('6_Other Assumptions'!$B$7-U192)) -> 0 | Y192: 1 | AC192: TRUE
N193: 0 | Q193: =IF($M$7<=$P$7,N193*(1+'6_Other Assumptions'!$B$9)^($P$7-$M$7),N193*(1+'6_Other Assumptions'!$B$9+'6_Other Assumptions'!$B$11)^($P$7-$M$7))+IF(T193<=$P$7,O193*(1+'6_Other Assumptions'!$B$9)^($P$7-T193),O193*(1+'6_Other Assumptions'!$B$9+'6_Other Assumptions'!$B$11)^($P$7-T193)) -> 0 | R193: 0 | T193: 2014 | U193: 2014 | W193: =IF(U193<='6_Other Assumptions'!$B$7,R193*(1+'6_Other Assumptions'!$B$9)^('6_Other Assumptions'!$B$7-U193),R193*(1+'6_Other Assumptions'!$B$9+'6_Other Assumptions'!$B$11)^('6_Other Assumptions'!$B$7-U193)) -> 0 | Y193: 1 | AC193: TRUE
N194: 0 | Q194: =IF($M$7<=$P$7,N194*(1+'6_Other Assumptions'!$B$9)^($P$7-$M$7),N194*(1+'6_Other Assumptions'!$B$9+'6_Other Assumptions'!$B$11)^($P$7-$M$7))+IF(T194<=$P$7,O194*(1+'6_Other Assumptions'!$B$9)^($P$7-T194),O194*(1+'6_Other Assumptions'!$B$9+'6_Other Assumptions'!$B$11)^($P$7-T194)) -> 0 | R194: 0 | T194: 2014 | U194: 2014 | W194: =IF(U194<='6_Other Assumptions'!$B$7,R194*(1+'6_Other Assumptions'!$B$9)^('6_Other Assumptions'!$B$7-U194),R194*(1+'6_Other Assumptions'!$B$9+'6_Other Assumptions'!$B$11)^('6_Other Assumptions'!$B$7-U194)) -> 0 | Y194: 1 | AC194: TRUE
N195: 0 | Q195: =IF($M$7<=$P$7,N195*(1+'6_Other Assumptions'!$B$9)^($P$7-$M$7),N195*(1+'6_Other Assumptions'!$B$9+'6_Other Assumptions'!$B$11)^($P$7-$M$7))+IF(T195<=$P$7,O195*(1+'6_Other Assumptions'!$B$9)^($P$7-T195),O195*(1+'6_Other Assumptions'!$B$9+'6_Other Assumptions'!$B$11)^($P$7-T195)) -> 0 | R195: 0 | T195: 2014 | U195: 2014 | W195: =IF(U195<='6_Other Assumptions'!$B$7,R195*(1+'6_Other Assumptions'!$B$9)^('6_Other Assumptions'!$B$7-U195),R195*(1+'6_Other Assumptions'!$B$9+'6_Other Assumptions'!$B$11)^('6_Other Assumptions'!$B$7-U195)) -> 0 | Y195: 1 | AC195: TRUE
N196: 0 | Q196: =IF($M$7<=$P$7,N196*(1+'6_Other Assumptions'!$B$9)^($P$7-$M$7),N196*(1+'6_Other Assumptions'!$B$9+'6_Other Assumptions'!$B$11)^($P$7-$M$7))+IF(T196<=$P$7,O196*(1+'6_Other Assumptions'!$B$9)^($P$7-T196),O196*(1+'6_Other Assumptions'!$B$9+'6_Other Assumptions'!$B$11)^($P$7-T196)) -> 0 | R196: 0 | T196: 2014 | U196: 2014 | W196: =IF(U196<='6_Other Assumptions'!$B$7,R196*(1+'6_Other Assumptions'!$B$9)^('6_Other Assumptions'!$B$7-U196),R196*(1+'6_Other Assumptions'!$B$9+'6_Other Assumptions'!$B$11)^('6_Other Assumptions'!$B$7-U196)) -> 0 | Y196: 1 | AC196: TRUE
N197: 0 | Q197: =IF($M$7<=$P$7,N197*(1+'6_Other Assumptions'!$B$9)^($P$7-$M$7),N197*(1+'6_Other Assumptions'!$B$9+'6_Other Assumptions'!$B$11)^($P$7-$M$7))+IF(T197<=$P$7,O197*(1+'6_Other Assumptions'!$B$9)^($P$7-T197),O197*(1+'6_Other Assumptions'!$B$9+'6_Other Assumptions'!$B$11)^($P$7-T197)) -> 0 | R197: 0 | T197: 2014 | U197: 2014 | W197: =IF(U197<='6_Other Assumptions'!$B$7,R197*(1+'6_Other Assumptions'!$B$9)^('6_Other Assumptions'!$B$7-U197),R197*(1+'6_Other Assumptions'!$B$9+'6_Other Assumptions'!$B$11)^('6_Other Assumptions'!$B$7-U197)) -> 0 | Y197: 1 | AC197: TRUE
N198: 0 | Q198: =IF($M$7<=$P$7,N198*(1+'6_Other Assumptions'!$B$9)^($P$7-$M$7),N198*(1+'6_Other Assumptions'!$B$9+'6_Other Assumptions'!$B$11)^($P$7-$M$7))+IF(T198<=$P$7,O198*(1+'6_Other Assumptions'!$B$9)^($P$7-T198),O198*(1+'6_Other Assumptions'!$B$9+'6_Other Assumptions'!$B$11)^($P$7-T198)) -> 0 | R198: 0 | T198: 2014 | U198: 2014 | W198: =IF(U198<='6_Other Assumptions'!$B$7,R198*(1+'6_Other Assumptions'!$B$9)^('6_Other Assumptions'!$B$7-U198),R198*(1+'6_Other Assumptions'!$B$9+'6_Other Assumptions'!$B$11)^('6_Other Assumptions'!$B$7-U198)) -> 0 | Y198: 1 | AC198: TRUE
N199: 0 | Q199: =IF($M$7<=$P$7,N199*(1+'6_Other Assumptions'!$B$9)^($P$7-$M$7),N199*(1+'6_Other Assumptions'!$B$9+'6_Other Assumptions'!$B$11)^($P$7-$M$7))+IF(T199<=$P$7,O199*(1+'6_Other Assumptions'!$B$9)^($P$7-T199),O199*(1+'6_Other Assumptions'!$B$9+'6_Other Assumptions'!$B$11)^($P$7-T199)) -> 0 | R199: 0 | T199: 2014 | U199: 2014 | W199: =IF(U199<='6_Other Assumptions'!$B$7,R199*(1+'6_Other Assumptions'!$B$9)^('6_Other Assumptions'!$B$7-U199),R199*(1+'6_Other Assumptions'!$B$9+'6_Other Assumptions'!$B$11)^('6_Other Assumptions'!$B$7-U199)) -> 0 | Y199: 1 | AC199: TRUE
D200: =IF(LEN(A200)>0,A200&" - "&B200&" - "&C200&" - "&H200,"") ->  | N200: 0 | Q200: =IF($M$7<=$P$7,N200*(1+'6_Other Assumptions'!$B$9)^($P$7-$M$7),N200*(1+'6_Other Assumptions'!$B$9+'6_Other Assumptions'!$B$11)^($P$7-$M$7))+IF(T200<=$P$7,O200*(1+'6_Other Assumptions'!$B$9)^($P$7-T200),O200*(1+'6_Other Assumptions'!$B$9+'6_Other Assumptions'!$B$11)^($P$7-T200)) -> 0 | R200: 0 | T200: 2014 | U200: 2014 | W200: =IF(U200<='6_Other Assumptions'!$B$7,R200*(1+'6_Other Assumptions'!$B$9)^('6_Other Assumptions'!$B$7-U200),R200*(1+'6_Other Assumptions'!$B$9+'6_Other Assumptions'!$B$11)^('6_Other Assumptions'!$B$7-U200)) -> 0 | Y200: 1 | AC200: =IF(OR(A200<>"",B200<>"",C200<>""),OR(AND(E200<>"",H200<>"",I200<>"",J200<>"",K200<>"",$L$7<>"",$M$7<>"",O200<>"",P200<>"",Z200<>"",AA200<>""),AND(E200<>"",V200<>"",S200<>"",Z200<>"",AA200<>"")),TRUE) -> TRUE
N201: 0 | Q201: =IF($M$7<=$P$7,N201*(1+'6_Other Assumptions'!$B$9)^($P$7-$M$7),N201*(1+'6_Other Assumptions'!$B$9+'6_Other Assumptions'!$B$11)^($P$7-$M$7))+IF(T201<=$P$7,O201*(1+'6_Other Assumptions'!$B$9)^($P$7-T201),O201*(1+'6_Other Assumptions'!$B$9+'6_Other Assumptions'!$B$11)^($P$7-T201)) -> 0 | R201: 0 | T201: 2014 | U201: 2014 | W201: =IF(U201<='6_Other Assumptions'!$B$7,R201*(1+'6_Other Assumptions'!$B$9)^('6_Other Assumptions'!$B$7-U201),R201*(1+'6_Other Assumptions'!$B$9+'6_Other Assumptions'!$B$11)^('6_Other Assumptions'!$B$7-U201)) -> 0 | Y201: 1 | AC201: TRUE
N202: 0 | Q202: =IF($M$7<=$P$7,N202*(1+'6_Other Assumptions'!$B$9)^($P$7-$M$7),N202*(1+'6_Other Assumptions'!$B$9+'6_Other Assumptions'!$B$11)^($P$7-$M$7))+IF(T202<=$P$7,O202*(1+'6_Other Assumptions'!$B$9)^($P$7-T202),O202*(1+'6_Other Assumptions'!$B$9+'6_Other Assumptions'!$B$11)^($P$7-T202)) -> 0 | R202: 0 | T202: 2014 | U202: 2014 | W202: =IF(U202<='6_Other Assumptions'!$B$7,R202*(1+'6_Other Assumptions'!$B$9)^('6_Other Assumptions'!$B$7-U202),R202*(1+'6_Other Assumptions'!$B$9+'6_Other Assumptions'!$B$11)^('6_Other Assumptions'!$B$7-U202)) -> 0 | Y202: 1 | AC202: TRUE
... 45 more rows

Sheet 6_Other Assumptions
A1: Financing and Miscellaneous Assumptions
A4: Modification of this sheet is POSSIBLE but NOT REQUIRED
A5: Assumption | B5: Value (all values can be modified from the given default value) | C5: Source
A6: Start Year for Model
A7: Present Value Year (Year 0) | B7: 2014 | C7: User-defined input
A8: Escalation Factors
A9: Annual Increase in O&M Rate | B9: 0.03 | C9: TBL model assumptions
A10: Discount Rate
A11: Discount Rate for O&M | B11: 0.05 | C11: TBL model assumptions
A12: FTE Precision
A13: Precision of FTE Estimate (round to the nearest 0.25/0.5/1/etc. FTE) | B13: 0.25 | C13: User-defined input
A14: Budget Precision
A15: Precision of Budget Estimate (round to the nearest $1/$100/$1000/etc.) | B15: 100 | C15: User-defined input
A16: Labor Hours Precision
A17: Precision of Labor Hours (round to the nearest 1hr/10hrs/100hrs/etc.) | B17: 5 | C17: User-defined input
A29: NOTES - Financing and Other Assumptions:
A30: Original value for escalation represents the cost increase for O&M labor and materials over time, as determined by SFPUC
A31: Original value for discount rate for O&M, as determined by SFPUC, represents the general inflation rate over time for purposes of discounting future liabilities.
A32: For more information on the determination of the escalation factor and discount rate, refer to the Triple Bottom Line Life Cycle Cost Analysis (LCA) Methodology/Scope
A33: internal memorandum, dated October 31, 2012. Escalation and discount rates were updated per TBL edits in June 2014.
A34: To confirm original value, refer to worksheet tab 10_Reference_Other Assumptions (hidden tab)

Sheet 7_Model
A1: Maintenance Model Calculations
A2: This table contains the maintenance model logic, calculations, and project library. No input or modification should be made to this table. It is for information only and should be kept as a locked reference tab.
A3: The model will accommodate up to 999 individual BMP entries in any combination of projects.
X5: Budgeting | BI5: Staffing
A6: Table auto-populates from data in "Project Input" and "Assumptions" tabs. | X6: Year 0 | Y6: Year 1 | Z6: Year 2 | AA6: Year 3 | AB6: Year 4 | AC6: Year 5 | AD6: Year 6 | AE6: Year 7 | AF6: Year 8 | AG6: Year 9 | AH6: Year 10 | AI6: Year 11 | AJ6: Year 12 | AK6: Year 13 | AL6: Year 14 | AM6: Year 15 | AN6: Year 16 | AO6: Year 17 | AP6: Year 18 | AQ6: Year 19 | AR6: Year 20 | AS6: Year 21 | AT6: Year 22 | AU6: Year 23 | AV6: Year 24 | AW6: Year 25 | AX6: Year 26 | AY6: Year 27 | AZ6: Year 28 | BA6: Year 29 | BB6: Year 30 | BC6: Year 31 | BD6: Year 32 | BE6: Year 33 | BF6: Year 34 | BG6: Year 35 | BH6: Year 36 | BI6: Year 0 | BJ6: Year 1 | BK6: Year 2 | BL6: Year 3 | BM6: Year 4 | BN6: Year 5 | BO6: Year 6 | BP6: Year 7 | BQ6: Year 8 | BR6: Year 9 | BS6: Year 10 | BT6: Year 11 | BU6: Year 12 | BV6: Year 13 | BW6: Year 14 | BX6: Year 15 | BY6: Year 16 | BZ6: Year 17 | CA6: Year 18 | CB6: Year 19 | CC6: Year 20 | CD6: Year 21 | CE6: Year 22 | CF6: Year 23 | CG6: Year 24 | CH6: Year 25 | CI6: Year 26 | CJ6: Year 27 | CK6: Year 28 | CL6: Year 29 | CM6: Year 30 | CN6: Year 31 | CO6: Year 32 | CP6: Year 33 | CQ6: Year 34 | CR6: Year 35 | CS6: Year 20
A7: Index | B7: Project Name | C7: Watershed | D7: BMP Type #1 | E7: BMP Sub-type | F7: BMP Sub-sub-type | G7: Full BMP Name | H7: Spatial Distribution of BMP | I7: Spatial Distribution Cost Adjustment Factor | J7: BMP Size | K7: BMP Unit of Measure | L7: Service Level | M7: # of typical visits/year | N7: # of rehab visits/year | O7: Proportion of BMP cost for which SFPUC has O&M Responsibility (% of cost) | P7: O&M Cost per Unit (Year 0) [$/unit] | Q7: BMP Unit of Measure for O&M Cost | R7: Cost Adjustment Factor (%) | S7: Adjusted O&M Cost per Unit (Year 0) [$/unit] | T7: O&M Labor Hours per Unit (Year 0) [hr./unit] | U7: Comments | V7: SFPUC Maintenance Start Date (YYYY) | W7: SFPUC Maintenance End Date (YYYY) - will be blank if maintenance is ongoing | X7: ='6_Other Assumptions'!B7 -> 2014 | Y7: =X7+1 -> 2015 | Z7: =Y7+1 -> 2016 | AA7: 2017 | AB7: 2018 | AC7: 2019 | AD7: 2020 | AE7: 2021 | AF7: 2022 | AG7: 2023 | AH7: 2024 | AI7: 2025 | AJ7: 2026 | AK7: 2027 | AL7: 2028 | AM7: 2029 | AN7: 2030 | AO7: 2031 | AP7: 2032 | AQ7: 2033 | AR7: =AQ7+1 -> 2034 | AS7: =AR7+1 -> 2035 | AT7: =AS7+1 -> 2036 | AU7: =AT7+1 -> 2037 | AV7: =AU7+1 -> 2038 | AW7: =AV7+1 -> 2039 | AX7: =AW7+1 -> 2040 | AY7: =AX7+1 -> 2041 | AZ7: =AY7+1 -> 2042 | BA7: =AZ7+1 -> 2043 | BB7: =BA7+1 -> 2044 | BC7: =BB7+1 -> 2045 | BD7: =BC7+1 -> 2046 | BE7: =BD7+1 -> 2047 | BF7: =BE7+1 -> 2048 | BG7: =BF7+1 -> 2049 | BH7: =BG7+1 -> 2050 | BI7: ='6_Other Assumptions'!B7 -> 2014 | BJ7: 2015 | BK7: 2016 | BL7: 2017 | BM7: 2018 | BN7: 2019 | BO7: 2020 | BP7: 2021 | BQ7: 2022 | BR7: 2023 | BS7: 2024 | BT7: 2025 | BU7: 2026 | BV7: 2027 | BW7: 2028 | BX7: 2029 | BY7: 2030 | BZ7: 2031 | CA7: 2032 | CB7: 2033 | CC7: =CB7+1 -> 2034 | CD7: =CC7+1 -> 2035 | CE7: =CD7+1 -> 2036 | CF7: =CE7+1 -> 2037 | CG7: =CF7+1 -> 2038 | CH7: =CG7+1 -> 2039 | CI7: =CH7+1 -> 2040 | CJ7: =CI7+1 -> 2041 | CK7: =CJ7+1 -> 2042 | CL7: =CK7+1 -> 2043 | CM7: =CL7+1 -> 2044 | CN7: =CM7+1 -> 2045 | CO7: =CN7+1 -> 2046 | CP7: =CO7+1 -> 2047 | CQ7: =CP7+1 -> 2048 | CR7: =CQ7+1 -> 2049 | CS7: =CR7+1 -> 2050
A8: 1 | B8: =IF(ISBLANK(INDEX(Database[Project Name],$A8,1)),"",INDEX(Database[Project Name],$A8,1)) -> Bioretention Example | C8: =IF(ISBLANK(INDEX(Database[Watershed],$A8,1)),"",INDEX(Database[Watershed],$A8,1)) -> Islais Creek | D8: =IF(ISBLANK(INDEX(Database[BMP Type],$A8,1)),"",INDEX(Database[BMP Type],$A8,1)) -> Bioretention | E8: =IF(ISBLANK(INDEX(Database[BMP Sub-type],$A8,1)),"",INDEX(Database[BMP Sub-type],$A8,1)) -> Hard Edge (a.k.a. Planter) | F8: =IF(ISBLANK(INDEX(Database[BMP Sub-sub-type],$A8,1)),"",INDEX(Database[BMP Sub-sub-type],$A8,1)) -> Underdrained | G8: =IF(LEN(D8)>0,D8&" - "&E8&" - "&F8&" - "&L8,"") -> Bioretention - Hard Edge (a.k.a. Planter) - Underdrained - B | H8: =IF(ISBLANK(INDEX(Database[Spatial Distribution of BMP],$A8,1)),"",INDEX(Database[Spatial Distribution of BMP],$A8,1)) -> Typical | I8: =IF(H8="Typical",INDEX('5_Cost Assumptions'!$Y$7:$Y$230,MATCH('7_Model'!G8,'5_Cost Assumptions'!$D$7:$D$230,0)),IF(H8="Concentrated",INDEX('5_Cost Assumptions'!$AA$7:$AA$230,MATCH('7_Model'!G8,'5_Cost Assumptions'!$D$7:$D$230,0)),IF(H8="Dispersed",INDEX('5_Cost Assumptions'!$Z$7:$Z$230,MATCH('7_Model'!G8,'5_Cost Assumptions'!$D$7:$D$230,0)),""))) -> 1 | J8: =IF(ISBLANK(INDEX(Database[BMP Size],$A8,1)),"",INDEX(Database[BMP Size],$A8,1)) -> 1000 | K8: =IF(B8="","",INDEX('5_Cost Assumptions'!$E$7:$E$230,MATCH(G8,'5_Cost Assumptions'!$D$7:$D$230,0))) -> square feet | L8: =IF(ISBLANK(INDEX(Database[Service Level],$A8,1)),"",INDEX(Database[Service Level],$A8,1)) -> B | M8: =IF(B8="","",INDEX('5_Cost Assumptions'!$I$7:$I$230,MATCH(G8,'5_Cost Assumptions'!$D$7:$D$230,0))) -> 3 | N8: =IF(B8="","",INDEX('5_Cost Assumptions'!$J$7:$J$230,MATCH(G8,'5_Cost Assumptions'!$D$7:$D$230,0))) -> 1 | O8: =IF(ISBLANK(INDEX(Database[Proportion of BMP cost for which SFPUC has O&M Responsibility (% of cost)],$A8,1)),"",INDEX(Database[Proportion of BMP cost for which SFPUC has O&M Responsibility (% of cost)],$A8,1)) -> 1 | P8: =IF(B8="","",INDEX('5_Cost Assumptions'!$W$7:$W$230,MATCH(G8,'5_Cost Assumptions'!$D$7:$D$230,0))) -> 3.7251 | Q8: =K8 -> square feet | R8: =IF(ISBLANK(INDEX(Database[Cost Adjustment Factor (%)],$A8,1)),"",INDEX(Database[Cost Adjustment Factor (%)],$A8,1)) -> 1 | S8: =IF(ISNUMBER(P8*R8*O8*I8),P8*R8*O8*I8,"") -> 3.7251 | T8: =IF(B8="","",INDEX('5_Cost Assumptions'!$K$7:$K$230,MATCH(G8,'5_Cost Assumptions'!$D$7:$D$230,0))) -> 0.03735 | U8: =IF(ISBLANK(INDEX(Database[Comments (text)],$A8,1)),"",INDEX(Database[Comments (text)],$A8,1)) -> EXAMPLE | V8: =IF(ISBLANK(INDEX(Database[SFPUC Maintenance Start Date (YYYY)],$A8,1)),"",INDEX(Database[SFPUC Maintenance Start Date (YYYY)],$A8,1)) -> 2014 | W8: =IF(ISBLANK(INDEX(Database[SFPUC Maintenance End Date (YYYY) - can be left blank if maintenance is ongoing],$A8,1)),"",INDEX(Database[SFPUC Maintenance End Date (YYYY) - can be left blank if maintenance is ongoing],$A8,1)) -> 2050 | X8: =IF($X$7=$V8,$S$8*J8*(1+'6_Other Assumptions'!$B$9)^MID('7_Model'!$X$6,6,2)," ") -> 3725.1 | Y8: =IF(AND(OR(Y$7<=$W8,$W8=""),OR(Y$7=$V8,X8<>" ")),$S8*$J8*(1+'6_Other Assumptions'!$B$9)^MID('7_Model'!Y$6,6,2)," ") -> 3836.853 | Z8: =IF(AND(OR(Z$7<=$W8,$W8=""),OR(Z$7=$V8,Y8<>" ")),$S8*$J8*(1+'6_Other Assumptions'!$B$9)^MID('7_Model'!Z$6,6,2)," ") -> 3951.95859 | AA8: =IF(AND(OR(AA$7<=$W8,$W8=""),OR(AA$7=$V8,Z8<>" ")),$S8*$J8*(1+'6_Other Assumptions'!$B$9)^MID('7_Model'!AA$6,6,2)," ") -> 4070.517348 | AB8: =IF(AND(OR(AB$7<=$W8,$W8=""),OR(AB$7=$V8,AA8<>" ")),$S8*$J8*(1+'6_Other Assumptions'!$B$9)^MID('7_Model'!AB$6,6,2)," ") -> 4192.632868 | AC8: =IF(AND(OR(AC$7<=$W8,$W8=""),OR(AC$7=$V8,AB8<>" ")),$S8*$J8*(1+'6_Other Assumptions'!$B$9)^MID('7_Model'!AC$6,6,2)," ") -> 4318.411854 | AD8: =IF(AND(OR(AD$7<=$W8,$W8=""),OR(AD$7=$V8,AC8<>" ")),$S8*$J8*(1+'6_Other Assumptions'!$B$9)^MID('7_Model'!AD$6,6,2)," ") -> 4447.96421 | AE8: =IF(AND(OR(AE$7<=$W8,$W8=""),OR(AE$7=$V8,AD8<>" ")),$S8*$J8*(1+'6_Other Assumptions'!$B$9)^MID('7_Model'!AE$6,6,2)," ") -> 4581.403136 | AF8: =IF(AND(OR(AF$7<=$W8,$W8=""),OR(AF$7=$V8,AE8<>" ")),$S8*$J8*(1+'6_Other Assumptions'!$B$9)^MID('7_Model'!AF$6,6,2)," ") -> 4718.84523 | AG8: =IF(AND(OR(AG$7<=$W8,$W8=""),OR(AG$7=$V8,AF8<>" ")),$S8*$J8*(1+'6_Other Assumptions'!$B$9)^MID('7_Model'!AG$6,6,2)," ") -> 4860.410587 | AH8: =IF(AND(OR(AH$7<=$W8,$W8=""),OR(AH$7=$V8,AG8<>" ")),$S8*$J8*(1+'6_Other Assumptions'!$B$9)^MID('7_Model'!AH$6,6,2)," ") -> 5006.222905 | AI8: =IF(AND(OR(AI$7<=$W8,$W8=""),OR(AI$7=$V8,AH8<>" ")),$S8*$J8*(1+'6_Other Assumptions'!$B$9)^MID('7_Model'!AI$6,6,2)," ") -> 5156.409592 | AJ8: =IF(AND(OR(AJ$7<=$W8,$W8=""),OR(AJ$7=$V8,AI8<>" ")),$S8*$J8*(1+'6_Other Assumptions'!$B$9)^MID('7_Model'!AJ$6,6,2)," ") -> 5311.10188 | AK8: =IF(AND(OR(AK$7<=$W8,$W8=""),OR(AK$7=$V8,AJ8<>" ")),$S8*$J8*(1+'6_Other Assumptions'!$B$9)^MID('7_Model'!AK$6,6,2)," ") -> 5470.434936 | AL8: =IF(AND(OR(AL$7<=$W8,$W8=""),OR(AL$7=$V8,AK8<>" ")),$S8*$J8*(1+'6_Other Assumptions'!$B$9)^MID('7_Model'!AL$6,6,2)," ") -> 5634.547984 | AM8: =IF(AND(OR(AM$7<=$W8,$W8=""),OR(AM$7=$V8,AL8<>" ")),$S8*$J8*(1+'6_Other Assumptions'!$B$9)^MID('7_Model'!AM$6,6,2)," ") -> 5803.584424 | AN8: =IF(AND(OR(AN$7<=$W8,$W8=""),OR(AN$7=$V8,AM8<>" ")),$S8*$J8*(1+'6_Other Assumptions'!$B$9)^MID('7_Model'!AN$6,6,2)," ") -> 5977.691956 | AO8: =IF(AND(OR(AO$7<=$W8,$W8=""),OR(AO$7=$V8,AN8<>" ")),$S8*$J8*(1+'6_Other Assumptions'!$B$9)^MID('7_Model'!AO$6,6,2)," ") -> 6157.022715 | AP8: =IF(AND(OR(AP$7<=$W8,$W8=""),OR(AP$7=$V8,AO8<>" ")),$S8*$J8*(1+'6_Other Assumptions'!$B$9)^MID('7_Model'!AP$6,6,2)," ") -> 6341.733396 | AQ8: =IF(AND(OR(AQ$7<=$W8,$W8=""),OR(AQ$7=$V8,AP8<>" ")),$S8*$J8*(1+'6_Other Assumptions'!$B$9)^MID('7_Model'!AQ$6,6,2)," ") -> 6531.985398 | AR8: =IF(AND(OR(AR$7<=$W8,$W8=""),OR(AR$7=$V8,AQ8<>" ")),$S8*$J8*(1+'6_Other Assumptions'!$B$9)^MID('7_Model'!AR$6,6,2)," ") -> 6727.94496 | AS8: =IF(AND(OR(AS$7<=$W8,$W8=""),OR(AS$7=$V8,AR8<>" ")),$S8*$J8*(1+'6_Other Assumptions'!$B$9)^MID('7_Model'!AS$6,6,2)," ") -> 6929.783309 | AT8: =IF(AND(OR(AT$7<=$W8,$W8=""),OR(AT$7=$V8,AS8<>" ")),$S8*$J8*(1+'6_Other Assumptions'!$B$9)^MID('7_Model'!AT$6,6,2)," ") -> 7137.676808 | AU8: =IF(AND(OR(AU$7<=$W8,$W8=""),OR(AU$7=$V8,AT8<>" ")),$S8*$J8*(1+'6_Other Assumptions'!$B$9)^MID('7_Model'!AU$6,6,2)," ") -> 7351.807113 | AV8: =IF(AND(OR(AV$7<=$W8,$W8=""),OR(AV$7=$V8,AU8<>" ")),$S8*$J8*(1+'6_Other Assumptions'!$B$9)^MID('7_Model'!AV$6,6,2)," ") -> 7572.361326 | AW8: =IF(AND(OR(AW$7<=$W8,$W8=""),OR(AW$7=$V8,AV8<>" ")),$S8*$J8*(1+'6_Other Assumptions'!$B$9)^MID('7_Model'!AW$6,6,2)," ") -> 7799.532166 | AX8: =IF(AND(OR(AX$7<=$W8,$W8=""),OR(AX$7=$V8,AW8<>" ")),$S8*$J8*(1+'6_Other Assumptions'!$B$9)^MID('7_Model'!AX$6,6,2)," ") -> 8033.518131 | AY8: =IF(AND(OR(AY$7<=$W8,$W8=""),OR(AY$7=$V8,AX8<>" ")),$S8*$J8*(1+'6_Other Assumptions'!$B$9)^MID('7_Model'!AY$6,6,2)," ") -> 8274.523675 | AZ8: =IF(AND(OR(AZ$7<=$W8,$W8=""),OR(AZ$7=$V8,AY8<>" ")),$S8*$J8*(1+'6_Other Assumptions'!$B$9)^MID('7_Model'!AZ$6,6,2)," ") -> 8522.759385 | BA8: =IF(AND(OR(BA$7<=$W8,$W8=""),OR(BA$7=$V8,AZ8<>" ")),$S8*$J8*(1+'6_Other Assumptions'!$B$9)^MID('7_Model'!BA$6,6,2)," ") -> 8778.442166 | BB8: =IF(AND(OR(BB$7<=$W8,$W8=""),OR(BB$7=$V8,BA8<>" ")),$S8*$J8*(1+'6_Other Assumptions'!$B$9)^MID('7_Model'!BB$6,6,2)," ") -> 9041.795431 | BC8: =IF(AND(OR(BC$7<=$W8,$W8=""),OR(BC$7=$V8,BB8<>" ")),$S8*$J8*(1+'6_Other Assumptions'!$B$9)^MID('7_Model'!BC$6,6,2)," ") -> 9313.049294 | BD8: =IF(AND(OR(BD$7<=$W8,$W8=""),OR(BD$7=$V8,BC8<>" ")),$S8*$J8*(1+'6_Other Assumptions'!$B$9)^MID('7_Model'!BD$6,6,2)," ") -> 9592.440773 | BE8: =IF(AND(OR(BE$7<=$W8,$W8=""),OR(BE$7=$V8,BD8<>" ")),$S8*$J8*(1+'6_Other Assumptions'!$B$9)^MID('7_Model'!BE$6,6,2)," ") -> 9880.213996 | BF8: =IF(AND(OR(BF$7<=$W8,$W8=""),OR(BF$7=$V8,BE8<>" ")),$S8*$J8*(1+'6_Other Assumptions'!$B$9)^MID('7_Model'!BF$6,6,2)," ") -> 10176.62042 | BG8: =IF(AND(OR(BG$7<=$W8,$W8=""),OR(BG$7=$V8,BF8<>" ")),$S8*$J8*(1+'6_Other Assumptions'!$B$9)^MID('7_Model'!BG$6,6,2)," ") -> 10481.91903 | BH8: =IF(AND(OR(BH$7<=$W8,$W8=""),OR(BH$7=$V8,BG8<>" ")),$S8*$J8*(1+'6_Other Assumptions'!$B$9)^MID('7_Model'!BH$6,6,2)," ") -> 10796.3766 | BI8: =IF($X$7=$V8,$J8*$T$8," ") -> 37.35 | BJ8: =IF(OR(Y$7=$V8,X8<>" "),$J8*$T8," ") -> 37.35 | BK8: =IF(OR(Z$7=$V8,Y8<>" "),$J8*$T8," ") -> 37.35 | BL8: =IF(OR(AA$7=$V8,Z8<>" "),$J8*$T8," ") -> 37.35 | BM8: =IF(OR(AB$7=$V8,AA8<>" "),$J8*$T8," ") -> 37.35 | BN8: =IF(OR(AC$7=$V8,AB8<>" "),$J8*$T8," ") -> 37.35 | BO8: =IF(OR(AD$7=$V8,AC8<>" "),$J8*$T8," ") -> 37.35 | BP8: =IF(OR(AE$7=$V8,AD8<>" "),$J8*$T8," ") -> 37.35 | BQ8: =IF(OR(AF$7=$V8,AE8<>" "),$J8*$T8," ") -> 37.35 | BR8: =IF(OR(AG$7=$V8,AF8<>" "),$J8*$T8," ") -> 37.35 | BS8: =IF(OR(AH$7=$V8,AG8<>" "),$J8*$T8," ") -> 37.35 | BT8: =IF(OR(AI$7=$V8,AH8<>" "),$J8*$T8," ") -> 37.35 | BU8: =IF(OR(AJ$7=$V8,AI8<>" "),$J8*$T8," ") -> 37.35 | BV8: =IF(OR(AK$7=$V8,AJ8<>" "),$J8*$T8," ") -> 37.35 | BW8: =IF(OR(AL$7=$V8,AK8<>" "),$J8*$T8," ") -> 37.35 | BX8: =IF(OR(AM$7=$V8,AL8<>" "),$J8*$T8," ") -> 37.35 | BY8: =IF(OR(AN$7=$V8,AM8<>" "),$J8*$T8," ") -> 37.35 | BZ8: =IF(OR(AO$7=$V8,AN8<>" "),$J8*$T8," ") -> 37.35 | CA8: =IF(OR(AP$7=$V8,AO8<>" "),$J8*$T8," ") -> 37.35 | CB8: =IF(OR(AQ$7=$V8,AP8<>" "),$J8*$T8," ") -> 37.35 | CC8: =IF(OR(AR$7=$V8,AQ8<>" "),$J8*$T8," ") -> 37.35 | CD8: =IF(OR(AS$7=$V8,AR8<>" "),$J8*$T8," ") -> 37.35 | CE8: =IF(OR(AT$7=$V8,AS8<>" "),$J8*$T8," ") -> 37.35 | CF8: =IF(OR(AU$7=$V8,AT8<>" "),$J8*$T8," ") -> 37.35 | CG8: =IF(OR(AV$7=$V8,AU8<>" "),$J8*$T8," ") -> 37.35 | CH8: =IF(OR(AW$7=$V8,AV8<>" "),$J8*$T8," ") -> 37.35 | CI8: =IF(OR(AX$7=$V8,AW8<>" "),$J8*$T8," ") -> 37.35 | CJ8: =IF(OR(AY$7=$V8,AX8<>" "),$J8*$T8," ") -> 37.35 | CK8: =IF(OR(AZ$7=$V8,AY8<>" "),$J8*$T8," ") -> 37.35 | CL8: =IF(OR(BA$7=$V8,AZ8<>" "),$J8*$T8," ") -> 37.35 | CM8: =IF(OR(BB$7=$V8,BA8<>" "),$J8*$T8," ") -> 37.35 | CN8: =IF(OR(BC$7=$V8,BB8<>" "),$J8*$T8," ") -> 37.35 | CO8: =IF(OR(BD$7=$V8,BC8<>" "),$J8*$T8," ") -> 37.35 | CP8: =IF(OR(BE$7=$V8,BD8<>" "),$J8*$T8," ") -> 37.35 | CQ8: =IF(OR(BF$7=$V8,BE8<>" "),$J8*$T8," ") -> 37.35 | CR8: =IF(OR(BG$7=$V8,BF8<>" "),$J8*$T8," ") -> 37.35 | CS8: =IF(OR(BH$7=$V8,BG8<>" "),$J8*$T8," ") -> 37.35
A9: 2 | B9: =IF(ISBLANK(INDEX(Database[Project Name],A9,1)),"",INDEX(Database[Project Name],A9,1)) ->  | C9: =IF(ISBLANK(INDEX(Database[Watershed],$A9,1)),"",INDEX(Database[Watershed],$A9,1)) ->  | D9: =IF(ISBLANK(INDEX(Database[BMP Type],$A9,1)),"",INDEX(Database[BMP Type],$A9,1)) ->  | E9: =IF(ISBLANK(INDEX(Database[BMP Sub-type],$A9,1)),"",INDEX(Database[BMP Sub-type],$A9,1)) ->  | F9: =IF(ISBLANK(INDEX(Database[BMP Sub-sub-type],$A9,1)),"",INDEX(Database[BMP Sub-sub-type],$A9,1)) ->  | G9: =IF(LEN(D9)>0,D9&" - "&E9&" - "&F9&" - "&L9,"") ->  | H9: =IF(ISBLANK(INDEX(Database[Spatial Distribution of BMP],$A9,1)),"",INDEX(Database[Spatial Distribution of BMP],$A9,1)) ->  | I9: =IF(H9="Typical",INDEX('5_Cost Assumptions'!$Y$7:$Y$230,MATCH('7_Model'!G9,'5_Cost Assumptions'!$D$7:$D$230,0)),IF(H9="Concentrated",INDEX('5_Cost Assumptions'!$AA$7:$AA$230,MATCH('7_Model'!G9,'5_Cost Assumptions'!$D$7:$D$230,0)),IF(H9="Dispersed",INDEX('5_Cost Assumptions'!$Z$7:$Z$230,MATCH('7_Model'!G9,'5_Cost Assumptions'!$D$7:$D$230,0)),""))) ->  | J9: =IF(ISBLANK(INDEX(Database[BMP Size],$A9,1)),"",INDEX(Database[BMP Size],$A9,1)) ->  | K9: =IF(B9="","",INDEX('5_Cost Assumptions'!$E$7:$E$230,MATCH(G9,'5_Cost Assumptions'!$D$7:$D$230,0))) ->  | L9: =IF(ISBLANK(INDEX(Database[Service Level],$A9,1)),"",INDEX(Database[Service Level],$A9,1)) ->  | M9: =IF(B9="","",INDEX('5_Cost Assumptions'!$I$7:$I$230,MATCH(G9,'5_Cost Assumptions'!$D$7:$D$230,0))) ->  | N9: =IF(B9="","",INDEX('5_Cost Assumptions'!$J$7:$J$230,MATCH(G9,'5_Cost Assumptions'!$D$7:$D$230,0))) ->  | O9: =IF(ISBLANK(INDEX(Database[Proportion of BMP cost for which SFPUC has O&M Responsibility (% of cost)],$A9,1)),"",INDEX(Database[Proportion of BMP cost for which SFPUC has O&M Responsibility (% of cost)],$A9,1)) ->  | P9: =IF(B9="","",INDEX('5_Cost Assumptions'!$W$7:$W$230,MATCH(G9,'5_Cost Assumptions'!$D$7:$D$230,0))) ->  | R9: =IF(ISBLANK(INDEX(Database[Cost Adjustment Factor (%)],$A9,1)),"",INDEX(Database[Cost Adjustment Factor (%)],$A9,1)) ->  | T9: =IF(B9="","",INDEX('5_Cost Assumptions'!$K$7:$K$230,MATCH(G9,'5_Cost Assumptions'!$D$7:$D$230,0))) ->  | U9: =IF(ISBLANK(INDEX(Database[Comments (text)],$A9,1)),"",INDEX(Database[Comments (text)],$A9,1)) ->  | V9: =IF(ISBLANK(INDEX(Database[SFPUC Maintenance Start Date (YYYY)],$A9,1)),"",INDEX(Database[SFPUC Maintenance Start Date (YYYY)],$A9,1)) ->  | W9: =IF(ISBLANK(INDEX(Database[SFPUC Maintenance End Date (YYYY) - can be left blank if maintenance is ongoing],$A9,1)),"",INDEX(Database[SFPUC Maintenance End Date (YYYY) - can be left blank if maintenance is ongoing],$A9,1)) ->  | X9: =IF($X$7=$V9,$S$8*J9*(1+'6_Other Assumptions'!$B$9)^MID('7_Model'!$X$6,6,2)," ") ->  | Y9: =IF(AND(OR(Y$7<=$W9,$W9=""),OR(Y$7=$V9,X9<>" ")),$S9*$J9*(1+'6_Other Assumptions'!$B$9)^MID('7_Model'!Y$6,6,2)," ") ->  | Z9: =IF(AND(OR(Z$7<=$W9,$W9=""),OR(Z$7=$V9,Y9<>" ")),$S9*$J9*(1+'6_Other Assumptions'!$B$9)^MID('7_Model'!Z$6,6,2)," ") ->  | AA9: =IF(AND(OR(AA$7<=$W9,$W9=""),OR(AA$7=$V9,Z9<>" ")),$S9*$J9*(1+'6_Other Assumptions'!$B$9)^MID('7_Model'!AA$6,6,2)," ") ->  | AB9: =IF(AND(OR(AB$7<=$W9,$W9=""),OR(AB$7=$V9,AA9<>" ")),$S9*$J9*(1+'6_Other Assumptions'!$B$9)^MID('7_Model'!AB$6,6,2)," ") ->  | AC9: =IF(AND(OR(AC$7<=$W9,$W9=""),OR(AC$7=$V9,AB9<>" ")),$S9*$J9*(1+'6_Other Assumptions'!$B$9)^MID('7_Model'!AC$6,6,2)," ") ->  | AD9: =IF(AND(OR(AD$7<=$W9,$W9=""),OR(AD$7=$V9,AC9<>" ")),$S9*$J9*(1+'6_Other Assumptions'!$B$9)^MID('7_Model'!AD$6,6,2)," ") ->  | AE9: =IF(AND(OR(AE$7<=$W9,$W9=""),OR(AE$7=$V9,AD9<>" ")),$S9*$J9*(1+'6_Other Assumptions'!$B$9)^MID('7_Model'!AE$6,6,2)," ") ->  | AF9: =IF(AND(OR(AF$7<=$W9,$W9=""),OR(AF$7=$V9,AE9<>" ")),$S9*$J9*(1+'6_Other Assumptions'!$B$9)^MID('7_Model'!AF$6,6,2)," ") ->  | AG9: =IF(AND(OR(AG$7<=$W9,$W9=""),OR(AG$7=$V9,AF9<>" ")),$S9*$J9*(1+'6_Other Assumptions'!$B$9)^MID('7_Model'!AG$6,6,2)," ") ->  | AH9: =IF(AND(OR(AH$7<=$W9,$W9=""),OR(AH$7=$V9,AG9<>" ")),$S9*$J9*(1+'6_Other Assumptions'!$B$9)^MID('7_Model'!AH$6,6,2)," ") ->  | AI9: =IF(AND(OR(AI$7<=$W9,$W9=""),OR(AI$7=$V9,AH9<>" ")),$S9*$J9*(1+'6_Other Assumptions'!$B$9)^MID('7_Model'!AI$6,6,2)," ") ->  | AJ9: =IF(AND(OR(AJ$7<=$W9,$W9=""),OR(AJ$7=$V9,AI9<>" ")),$S9*$J9*(1+'6_Other Assumptions'!$B$9)^MID('7_Model'!AJ$6,6,2)," ") ->  | AK9: =IF(AND(OR(AK$7<=$W9,$W9=""),OR(AK$7=$V9,AJ9<>" ")),$S9*$J9*(1+'6_Other Assumptions'!$B$9)^MID('7_Model'!AK$6,6,2)," ") ->  | AL9: =IF(AND(OR(AL$7<=$W9,$W9=""),OR(AL$7=$V9,AK9<>" ")),$S9*$J9*(1+'6_Other Assumptions'!$B$9)^MID('7_Model'!AL$6,6,2)," ") ->  | AM9: =IF(AND(OR(AM$7<=$W9,$W9=""),OR(AM$7=$V9,AL9<>" ")),$S9*$J9*(1+'6_Other Assumptions'!$B$9)^MID('7_Model'!AM$6,6,2)," ") ->  | AN9: =IF(AND(OR(AN$7<=$W9,$W9=""),OR(AN$7=$V9,AM9<>" ")),$S9*$J9*(1+'6_Other Assumptions'!$B$9)^MID('7_Model'!AN$6,6,2)," ") ->  | AO9: =IF(AND(OR(AO$7<=$W9,$W9=""),OR(AO$7=$V9,AN9<>" ")),$S9*$J9*(1+'6_Other Assumptions'!$B$9)^MID('7_Model'!AO$6,6,2)," ") ->  | AP9: =IF(AND(OR(AP$7<=$W9,$W9=""),OR(AP$7=$V9,AO9<>" ")),$S9*$J9*(1+'6_Other Assumptions'!$B$9)^MID('7_Model'!AP$6,6,2)," ") ->  | AQ9: =IF(AND(OR(AQ$7<=$W9,$W9=""),OR(AQ$7=$V9,AP9<>" ")),$S9*$J9*(1+'6_Other Assumptions'!$B$9)^MID('7_Model'!AQ$6,6,2)," ") ->  | AR9: =IF(AND(OR(AR$7<=$W9,$W9=""),OR(AR$7=$V9,AQ9<>" ")),$S9*$J9*(1+'6_Other Assumptions'!$B$9)^MID('7_Model'!AR$6,6,2)," ") ->  | AS9: =IF(AND(OR(AS$7<=$W9,$W9=""),OR(AS$7=$V9,AR9<>" ")),$S9*$J9*(1+'6_Other Assumptions'!$B$9)^MID('7_Model'!AS$6,6,2)," ") ->  | AT9: =IF(AND(OR(AT$7<=$W9,$W9=""),OR(AT$7=$V9,AS9<>" ")),$S9*$J9*(1+'6_Other Assumptions'!$B$9)^MID('7_Model'!AT$6,6,2)," ") ->  | AU9: =IF(AND(OR(AU$7<=$W9,$W9=""),OR(AU$7=$V9,AT9<>" ")),$S9*$J9*(1+'6_Other Assumptions'!$B$9)^MID('7_Model'!AU$6,6,2)," ") ->  | AV9: =IF(AND(OR(AV$7<=$W9,$W9=""),OR(AV$7=$V9,AU9<>" ")),$S9*$J9*(1+'6_Other Assumptions'!$B$9)^MID('7_Model'!AV$6,6,2)," ") ->  | AW9: =IF(AND(OR(AW$7<=$W9,$W9=""),OR(AW$7=$V9,AV9<>" ")),$S9*$J9*(1+'6_Other Assumptions'!$B$9)^MID('7_Model'!AW$6,6,2)," ") ->  | AX9: =IF(AND(OR(AX$7<=$W9,$W9=""),OR(AX$7=$V9,AW9<>" ")),$S9*$J9*(1+'6_Other Assumptions'!$B$9)^MID('7_Model'!AX$6,6,2)," ") ->  | AY9: =IF(AND(OR(AY$7<=$W9,$W9=""),OR(AY$7=$V9,AX9<>" ")),$S9*$J9*(1+'6_Other Assumptions'!$B$9)^MID('7_Model'!AY$6,6,2)," ") ->  | AZ9: =IF(AND(OR(AZ$7<=$W9,$W9=""),OR(AZ$7=$V9,AY9<>" ")),$S9*$J9*(1+'6_Other Assumptions'!$B$9)^MID('7_Model'!AZ$6,6,2)," ") ->  | BA9: =IF(AND(OR(BA$7<=$W9,$W9=""),OR(BA$7=$V9,AZ9<>" ")),$S9*$J9*(1+'6_Other Assumptions'!$B$9)^MID('7_Model'!BA$6,6,2)," ") ->  | BB9: =IF(AND(OR(BB$7<=$W9,$W9=""),OR(BB$7=$V9,BA9<>" ")),$S9*$J9*(1+'6_Other Assumptions'!$B$9)^MID('7_Model'!BB$6,6,2)," ") ->  | BC9: =IF(AND(OR(BC$7<=$W9,$W9=""),OR(BC$7=$V9,BB9<>" ")),$S9*$J9*(1+'6_Other Assumptions'!$B$9)^MID('7_Model'!BC$6,6,2)," ") ->  | BD9: =IF(AND(OR(BD$7<=$W9,$W9=""),OR(BD$7=$V9,BC9<>" ")),$S9*$J9*(1+'6_Other Assumptions'!$B$9)^MID('7_Model'!BD$6,6,2)," ") ->  | BE9: =IF(AND(OR(BE$7<=$W9,$W9=""),OR(BE$7=$V9,BD9<>" ")),$S9*$J9*(1+'6_Other Assumptions'!$B$9)^MID('7_Model'!BE$6,6,2)," ") ->  | BF9: =IF(AND(OR(BF$7<=$W9,$W9=""),OR(BF$7=$V9,BE9<>" ")),$S9*$J9*(1+'6_Other Assumptions'!$B$9)^MID('7_Model'!BF$6,6,2)," ") ->  | BG9: =IF(AND(OR(BG$7<=$W9,$W9=""),OR(BG$7=$V9,BF9<>" ")),$S9*$J9*(1+'6_Other Assumptions'!$B$9)^MID('7_Model'!BG$6,6,2)," ") ->  | BH9: =IF(AND(OR(BH$7<=$W9,$W9=""),OR(BH$7=$V9,BG9<>" ")),$S9*$J9*(1+'6_Other Assumptions'!$B$9)^MID('7_Model'!BH$6,6,2)," ") -> 
A10: 3 | B10: =IF(ISBLANK(INDEX(Database[Project Name],A10,1)),"",INDEX(Database[Project Name],A10,1)) ->  | C10: =IF(ISBLANK(INDEX(Database[Watershed],$A10,1)),"",INDEX(Database[Watershed],$A10,1)) ->  | D10: =IF(ISBLANK(INDEX(Database[BMP Type],$A10,1)),"",INDEX(Database[BMP Type],$A10,1)) ->  | E10: =IF(ISBLANK(INDEX(Database[BMP Sub-type],$A10,1)),"",INDEX(Database[BMP Sub-type],$A10,1)) ->  | F10: =IF(ISBLANK(INDEX(Database[BMP Sub-sub-type],$A10,1)),"",INDEX(Database[BMP Sub-sub-type],$A10,1)) ->  | H10: =IF(ISBLANK(INDEX(Database[Spatial Distribution of BMP],$A10,1)),"",INDEX(Database[Spatial Distribution of BMP],$A10,1)) ->  | I10: =IF(H10="Typical",INDEX('5_Cost Assumptions'!$Y$7:$Y$230,MATCH('7_Model'!G10,'5_Cost Assumptions'!$D$7:$D$230,0)),IF(H10="Concentrated",INDEX('5_Cost Assumptions'!$AA$7:$AA$230,MATCH('7_Model'!G10,'5_Cost Assumptions'!$D$7:$D$230,0)),IF(H10="Dispersed",INDEX('5_Cost Assumptions'!$Z$7:$Z$230,MATCH('7_Model'!G10,'5_Cost Assumptions'!$D$7:$D$230,0)),""))) ->  | J10: =IF(ISBLANK(INDEX(Database[BMP Size],$A10,1)),"",INDEX(Database[BMP Size],$A10,1)) ->  | K10: =IF(B10="","",INDEX('5_Cost Assumptions'!$E$7:$E$230,MATCH(G10,'5_Cost Assumptions'!$D$7:$D$230,0))) ->  | L10: =IF(ISBLANK(INDEX(Database[Service Level],$A10,1)),"",INDEX(Database[Service Level],$A10,1)) ->  | M10: =IF(B10="","",INDEX('5_Cost Assumptions'!$I$7:$I$230,MATCH(G10,'5_Cost Assumptions'!$D$7:$D$230,0))) ->  | N10: =IF(B10="","",INDEX('5_Cost Assumptions'!$J$7:$J$230,MATCH(G10,'5_Cost Assumptions'!$D$7:$D$230,0))) ->  | O10: =IF(ISBLANK(INDEX(Database[Proportion of BMP cost for which SFPUC has O&M Responsibility (% of cost)],$A10,1)),"",INDEX(Database[Proportion of BMP cost for which SFPUC has O&M Responsibility (% of cost)],$A10,1)) ->  | P10: =IF(B10="","",INDEX('5_Cost Assumptions'!$W$7:$W$230,MATCH(G10,'5_Cost Assumptions'!$D$7:$D$230,0))) ->  | R10: =IF(ISBLANK(INDEX(Database[Cost Adjustment Factor (%)],$A10,1)),"",INDEX(Database[Cost Adjustment Factor (%)],$A10,1)) ->  | T10: =IF(B10="","",INDEX('5_Cost Assumptions'!$K$7:$K$230,MATCH(G10,'5_Cost Assumptions'!$D$7:$D$230,0))) ->  | U10: =IF(ISBLANK(INDEX(Database[Comments (text)],$A10,1)),"",INDEX(Database[Comments (text)],$A10,1)) ->  | V10: =IF(ISBLANK(INDEX(Database[SFPUC Maintenance Start Date (YYYY)],$A10,1)),"",INDEX(Database[SFPUC Maintenance Start Date (YYYY)],$A10,1)) ->  | W10: =IF(ISBLANK(INDEX(Database[SFPUC Maintenance End Date (YYYY) - can be left blank if maintenance is ongoing],$A10,1)),"",INDEX(Database[SFPUC Maintenance End Date (YYYY) - can be left blank if maintenance is ongoing],$A10,1)) ->  | X10: =IF($X$7=$V10,$S$8*J10*(1+'6_Other Assumptions'!$B$9)^MID('7_Model'!$X$6,6,2)," ") ->  | Y10: =IF(AND(OR(Y$7<=$W10,$W10=""),OR(Y$7=$V10,X10<>" ")),$S10*$J10*(1+'6_Other Assumptions'!$B$9)^MID('7_Model'!Y$6,6,2)," ") ->  | Z10: =IF(AND(OR(Z$7<=$W10,$W10=""),OR(Z$7=$V10,Y10<>" ")),$S10*$J10*(1+'6_Other Assumptions'!$B$9)^MID('7_Model'!Z$6,6,2)," ") ->  | AA10: =IF(AND(OR(AA$7<=$W10,$W10=""),OR(AA$7=$V10,Z10<>" ")),$S10*$J10*(1+'6_Other Assumptions'!$B$9)^MID('7_Model'!AA$6,6,2)," ") ->  | AB10: =IF(AND(OR(AB$7<=$W10,$W10=""),OR(AB$7=$V10,AA10<>" ")),$S10*$J10*(1+'6_Other Assumptions'!$B$9)^MID('7_Model'!AB$6,6,2)," ") ->  | AC10: =IF(AND(OR(AC$7<=$W10,$W10=""),OR(AC$7=$V10,AB10<>" ")),$S10*$J10*(1+'6_Other Assumptions'!$B$9)^MID('7_Model'!AC$6,6,2)," ") ->  | AD10: =IF(AND(OR(AD$7<=$W10,$W10=""),OR(AD$7=$V10,AC10<>" ")),$S10*$J10*(1+'6_Other Assumptions'!$B$9)^MID('7_Model'!AD$6,6,2)," ") ->  | AE10: =IF(AND(OR(AE$7<=$W10,$W10=""),OR(AE$7=$V10,AD10<>" ")),$S10*$J10*(1+'6_Other Assumptions'!$B$9)^MID('7_Model'!AE$6,6,2)," ") ->  | AF10: =IF(AND(OR(AF$7<=$W10,$W10=""),OR(AF$7=$V10,AE10<>" ")),$S10*$J10*(1+'6_Other Assumptions'!$B$9)^MID('7_Model'!AF$6,6,2)," ") ->  | AG10: =IF(AND(OR(AG$7<=$W10,$W10=""),OR(AG$7=$V10,AF10<>" ")),$S10*$J10*(1+'6_Other Assumptions'!$B$9)^MID('7_Model'!AG$6,6,2)," ") ->  | AH10: =IF(AND(OR(AH$7<=$W10,$W10=""),OR(AH$7=$V10,AG10<>" ")),$S10*$J10*(1+'6_Other Assumptions'!$B$9)^MID('7_Model'!AH$6,6,2)," ") ->  | AI10: =IF(AND(OR(AI$7<=$W10,$W10=""),OR(AI$7=$V10,AH10<>" ")),$S10*$J10*(1+'6_Other Assumptions'!$B$9)^MID('7_Model'!AI$6,6,2)," ") ->  | AJ10: =IF(AND(OR(AJ$7<=$W10,$W10=""),OR(AJ$7=$V10,AI10<>" ")),$S10*$J10*(1+'6_Other Assumptions'!$B$9)^MID('7_Model'!AJ$6,6,2)," ") ->  | AK10: =IF(AND(OR(AK$7<=$W10,$W10=""),OR(AK$7=$V10,AJ10<>" ")),$S10*$J10*(1+'6_Other Assumptions'!$B$9)^MID('7_Model'!AK$6,6,2)," ") ->  | AL10: =IF(AND(OR(AL$7<=$W10,$W10=""),OR(AL$7=$V10,AK10<>" ")),$S10*$J10*(1+'6_Other Assumptions'!$B$9)^MID('7_Model'!AL$6,6,2)," ") ->  | AM10: =IF(AND(OR(AM$7<=$W10,$W10=""),OR(AM$7=$V10,AL10<>" ")),$S10*$J10*(1+'6_Other Assumptions'!$B$9)^MID('7_Model'!AM$6,6,2)," ") ->  | AN10: =IF(AND(OR(AN$7<=$W10,$W10=""),OR(AN$7=$V10,AM10<>" ")),$S10*$J10*(1+'6_Other Assumptions'!$B$9)^MID('7_Model'!AN$6,6,2)," ") ->  | AO10: =IF(AND(OR(AO$7<=$W10,$W10=""),OR(AO$7=$V10,AN10<>" ")),$S10*$J10*(1+'6_Other Assumptions'!$B$9)^MID('7_Model'!AO$6,6,2)," ") ->  | AP10: =IF(AND(OR(AP$7<=$W10,$W10=""),OR(AP$7=$V10,AO10<>" ")),$S10*$J10*(1+'6_Other Assumptions'!$B$9)^MID('7_Model'!AP$6,6,2)," ") ->  | AQ10: =IF(AND(OR(AQ$7<=$W10,$W10=""),OR(AQ$7=$V10,AP10<>" ")),$S10*$J10*(1+'6_Other Assumptions'!$B$9)^MID('7_Model'!AQ$6,6,2)," ") ->  | AR10: =IF(AND(OR(AR$7<=$W10,$W10=""),OR(AR$7=$V10,AQ10<>" ")),$S10*$J10*(1+'6_Other Assumptions'!$B$9)^MID('7_Model'!AR$6,6,2)," ") ->  | AS10: =IF(AND(OR(AS$7<=$W10,$W10=""),OR(AS$7=$V10,AR10<>" ")),$S10*$J10*(1+'6_Other Assumptions'!$B$9)^MID('7_Model'!AS$6,6,2)," ") ->  | AT10: =IF(AND(OR(AT$7<=$W10,$W10=""),OR(AT$7=$V10,AS10<>" ")),$S10*$J10*(1+'6_Other Assumptions'!$B$9)^MID('7_Model'!AT$6,6,2)," ") ->  | AU10: =IF(AND(OR(AU$7<=$W10,$W10=""),OR(AU$7=$V10,AT10<>" ")),$S10*$J10*(1+'6_Other Assumptions'!$B$9)^MID('7_Model'!AU$6,6,2)," ") ->  | AV10: =IF(AND(OR(AV$7<=$W10,$W10=""),OR(AV$7=$V10,AU10<>" ")),$S10*$J10*(1+'6_Other Assumptions'!$B$9)^MID('7_Model'!AV$6,6,2)," ") ->  | AW10: =IF(AND(OR(AW$7<=$W10,$W10=""),OR(AW$7=$V10,AV10<>" ")),$S10*$J10*(1+'6_Other Assumptions'!$B$9)^MID('7_Model'!AW$6,6,2)," ") ->  | AX10: =IF(AND(OR(AX$7<=$W10,$W10=""),OR(AX$7=$V10,AW10<>" ")),$S10*$J10*(1+'6_Other Assumptions'!$B$9)^MID('7_Model'!AX$6,6,2)," ") ->  | AY10: =IF(AND(OR(AY$7<=$W10,$W10=""),OR(AY$7=$V10,AX10<>" ")),$S10*$J10*(1+'6_Other Assumptions'!$B$9)^MID('7_Model'!AY$6,6,2)," ") ->  | AZ10: =IF(AND(OR(AZ$7<=$W10,$W10=""),OR(AZ$7=$V10,AY10<>" ")),$S10*$J10*(1+'6_Other Assumptions'!$B$9)^MID('7_Model'!AZ$6,6,2)," ") ->  | BA10: =IF(AND(OR(BA$7<=$W10,$W10=""),OR(BA$7=$V10,AZ10<>" ")),$S10*$J10*(1+'6_Other Assumptions'!$B$9)^MID('7_Model'!BA$6,6,2)," ") ->  | BB10: =IF(AND(OR(BB$7<=$W10,$W10=""),OR(BB$7=$V10,BA10<>" ")),$S10*$J10*(1+'6_Other Assumptions'!$B$9)^MID('7_Model'!BB$6,6,2)," ") ->  | BC10: =IF(AND(OR(BC$7<=$W10,$W10=""),OR(BC$7=$V10,BB10<>" ")),$S10*$J10*(1+'6_Other Assumptions'!$B$9)^MID('7_Model'!BC$6,6,2)," ") ->  | BD10: =IF(AND(OR(BD$7<=$W10,$W10=""),OR(BD$7=$V10,BC10<>" ")),$S10*$J10*(1+'6_Other Assumptions'!$B$9)^MID('7_Model'!BD$6,6,2)," ") ->  | BE10: =IF(AND(OR(BE$7<=$W10,$W10=""),OR(BE$7=$V10,BD10<>" ")),$S10*$J10*(1+'6_Other Assumptions'!$B$9)^MID('7_Model'!BE$6,6,2)," ") ->  | BF10: =IF(AND(OR(BF$7<=$W10,$W10=""),OR(BF$7=$V10,BE10<>" ")),$S10*$J10*(1+'6_Other Assumptions'!$B$9)^MID('7_Model'!BF$6,6,2)," ") ->  | BG10: =IF(AND(OR(BG$7<=$W10,$W10=""),OR(BG$7=$V10,BF10<>" ")),$S10*$J10*(1+'6_Other Assumptions'!$B$9)^MID('7_Model'!BG$6,6,2)," ") ->  | BH10: =IF(AND(OR(BH$7<=$W10,$W10=""),OR(BH$7=$V10,BG10<>" ")),$S10*$J10*(1+'6_Other Assumptions'!$B$9)^MID('7_Model'!BH$6,6,2)," ") -> 
A11: 4 | B11: =IF(ISBLANK(INDEX(Database[Project Name],A11,1)),"",INDEX(Database[Project Name],A11,1)) ->  | C11: =IF(ISBLANK(INDEX(Database[Watershed],$A11,1)),"",INDEX(Database[Watershed],$A11,1)) ->  | D11: =IF(ISBLANK(INDEX(Database[BMP Type],$A11,1)),"",INDEX(Database[BMP Type],$A11,1)) ->  | E11: =IF(ISBLANK(INDEX(Database[BMP Sub-type],$A11,1)),"",INDEX(Database[BMP Sub-type],$A11,1)) ->  | F11: =IF(ISBLANK(INDEX(Database[BMP Sub-sub-type],$A11,1)),"",INDEX(Database[BMP Sub-sub-type],$A11,1)) ->  | H11: =IF(ISBLANK(INDEX(Database[Spatial Distribution of BMP],$A11,1)),"",INDEX(Database[Spatial Distribution of BMP],$A11,1)) ->  | I11: =IF(H11="Typical",INDEX('5_Cost Assumptions'!$Y$7:$Y$230,MATCH('7_Model'!G11,'5_Cost Assumptions'!$D$7:$D$230,0)),IF(H11="Concentrated",INDEX('5_Cost Assumptions'!$AA$7:$AA$230,MATCH('7_Model'!G11,'5_Cost Assumptions'!$D$7:$D$230,0)),IF(H11="Dispersed",INDEX('5_Cost Assumptions'!$Z$7:$Z$230,MATCH('7_Model'!G11,'5_Cost Assumptions'!$D$7:$D$230,0)),""))) ->  | J11: =IF(ISBLANK(INDEX(Database[BMP Size],$A11,1)),"",INDEX(Database[BMP Size],$A11,1)) ->  | K11: =IF(B11="","",INDEX('5_Cost Assumptions'!$E$7:$E$230,MATCH(G11,'5_Cost Assumptions'!$D$7:$D$230,0))) ->  | L11: =IF(ISBLANK(INDEX(Database[Service Level],$A11,1)),"",INDEX(Database[Service Level],$A11,1)) ->  | M11: =IF(B11="","",INDEX('5_Cost Assumptions'!$I$7:$I$230,MATCH(G11,'5_Cost Assumptions'!$D$7:$D$230,0))) ->  | N11: =IF(B11="","",INDEX('5_Cost Assumptions'!$J$7:$J$230,MATCH(G11,'5_Cost Assumptions'!$D$7:$D$230,0))) ->  | O11: =IF(ISBLANK(INDEX(Database[Proportion of BMP cost for which SFPUC has O&M Responsibility (% of cost)],$A11,1)),"",INDEX(Database[Proportion of BMP cost for which SFPUC has O&M Responsibility (% of cost)],$A11,1)) ->  | P11: =IF(B11="","",INDEX('5_Cost Assumptions'!$W$7:$W$230,MATCH(G11,'5_Cost Assumptions'!$D$7:$D$230,0))) ->  | R11: =IF(ISBLANK(INDEX(Database[Cost Adjustment Factor (%)],$A11,1)),"",INDEX(Database[Cost Adjustment Factor (%)],$A11,1)) ->  | T11: =IF(B11="","",INDEX('5_Cost Assumptions'!$K$7:$K$230,MATCH(G11,'5_Cost Assumptions'!$D$7:$D$230,0))) ->  | U11: =IF(ISBLANK(INDEX(Database[Comments (text)],$A11,1)),"",INDEX(Database[Comments (text)],$A11,1)) ->  | V11: =IF(ISBLANK(INDEX(Database[SFPUC Maintenance Start Date (YYYY)],$A11,1)),"",INDEX(Database[SFPUC Maintenance Start Date (YYYY)],$A11,1)) ->  | W11: =IF(ISBLANK(INDEX(Database[SFPUC Maintenance End Date (YYYY) - can be left blank if maintenance is ongoing],$A11,1)),"",INDEX(Database[SFPUC Maintenance End Date (YYYY) - can be left blank if maintenance is ongoing],$A11,1)) ->  | X11: =IF($X$7=$V11,$S$8*J11*(1+'6_Other Assumptions'!$B$9)^MID('7_Model'!$X$6,6,2)," ") ->  | Y11: =IF(AND(OR(Y$7<=$W11,$W11=""),OR(Y$7=$V11,X11<>" ")),$S11*$J11*(1+'6_Other Assumptions'!$B$9)^MID('7_Model'!Y$6,6,2)," ") ->  | Z11: =IF(AND(OR(Z$7<=$W11,$W11=""),OR(Z$7=$V11,Y11<>" ")),$S11*$J11*(1+'6_Other Assumptions'!$B$9)^MID('7_Model'!Z$6,6,2)," ") ->  | AA11: =IF(AND(OR(AA$7<=$W11,$W11=""),OR(AA$7=$V11,Z11<>" ")),$S11*$J11*(1+'6_Other Assumptions'!$B$9)^MID('7_Model'!AA$6,6,2)," ") ->  | AB11: =IF(AND(OR(AB$7<=$W11,$W11=""),OR(AB$7=$V11,AA11<>" ")),$S11*$J11*(1+'6_Other Assumptions'!$B$9)^MID('7_Model'!AB$6,6,2)," ") ->  | AC11: =IF(AND(OR(AC$7<=$W11,$W11=""),OR(AC$7=$V11,AB11<>" ")),$S11*$J11*(1+'6_Other Assumptions'!$B$9)^MID('7_Model'!AC$6,6,2)," ") ->  | AD11: =IF(AND(OR(AD$7<=$W11,$W11=""),OR(AD$7=$V11,AC11<>" ")),$S11*$J11*(1+'6_Other Assumptions'!$B$9)^MID('7_Model'!AD$6,6,2)," ") ->  | AE11: =IF(AND(OR(AE$7<=$W11,$W11=""),OR(AE$7=$V11,AD11<>" ")),$S11*$J11*(1+'6_Other Assumptions'!$B$9)^MID('7_Model'!AE$6,6,2)," ") ->  | AF11: =IF(AND(OR(AF$7<=$W11,$W11=""),OR(AF$7=$V11,AE11<>" ")),$S11*$J11*(1+'6_Other Assumptions'!$B$9)^MID('7_Model'!AF$6,6,2)," ") ->  | AG11: =IF(AND(OR(AG$7<=$W11,$W11=""),OR(AG$7=$V11,AF11<>" ")),$S11*$J11*(1+'6_Other Assumptions'!$B$9)^MID('7_Model'!AG$6,6,2)," ") ->  | AH11: =IF(AND(OR(AH$7<=$W11,$W11=""),OR(AH$7=$V11,AG11<>" ")),$S11*$J11*(1+'6_Other Assumptions'!$B$9)^MID('7_Model'!AH$6,6,2)," ") ->  | AI11: =IF(AND(OR(AI$7<=$W11,$W11=""),OR(AI$7=$V11,AH11<>" ")),$S11*$J11*(1+'6_Other Assumptions'!$B$9)^MID('7_Model'!AI$6,6,2)," ") ->  | AJ11: =IF(AND(OR(AJ$7<=$W11,$W11=""),OR(AJ$7=$V11,AI11<>" ")),$S11*$J11*(1+'6_Other Assumptions'!$B$9)^MID('7_Model'!AJ$6,6,2)," ") ->  | AK11: =IF(AND(OR(AK$7<=$W11,$W11=""),OR(AK$7=$V11,AJ11<>" ")),$S11*$J11*(1+'6_Other Assumptions'!$B$9)^MID('7_Model'!AK$6,6,2)," ") ->  | AL11: =IF(AND(OR(AL$7<=$W11,$W11=""),OR(AL$7=$V11,AK11<>" ")),$S11*$J11*(1+'6_Other Assumptions'!$B$9)^MID('7_Model'!AL$6,6,2)," ") ->  | AM11: =IF(AND(OR(AM$7<=$W11,$W11=""),OR(AM$7=$V11,AL11<>" ")),$S11*$J11*(1+'6_Other Assumptions'!$B$9)^MID('7_Model'!AM$6,6,2)," ") ->  | AN11: =IF(AND(OR(AN$7<=$W11,$W11=""),OR(AN$7=$V11,AM11<>" ")),$S11*$J11*(1+'6_Other Assumptions'!$B$9)^MID('7_Model'!AN$6,6,2)," ") ->  | AO11: =IF(AND(OR(AO$7<=$W11,$W11=""),OR(AO$7=$V11,AN11<>" ")),$S11*$J11*(1+'6_Other Assumptions'!$B$9)^MID('7_Model'!AO$6,6,2)," ") ->  | AP11: =IF(AND(OR(AP$7<=$W11,$W11=""),OR(AP$7=$V11,AO11<>" ")),$S11*$J11*(1+'6_Other Assumptions'!$B$9)^MID('7_Model'!AP$6,6,2)," ") ->  | AQ11: =IF(AND(OR(AQ$7<=$W11,$W11=""),OR(AQ$7=$V11,AP11<>" ")),$S11*$J11*(1+'6_Other Assumptions'!$B$9)^MID('7_Model'!AQ$6,6,2)," ") ->  | AR11: =IF(AND(OR(AR$7<=$W11,$W11=""),OR(AR$7=$V11,AQ11<>" ")),$S11*$J11*(1+'6_Other Assumptions'!$B$9)^MID('7_Model'!AR$6,6,2)," ") ->  | AS11: =IF(AND(OR(AS$7<=$W11,$W11=""),OR(AS$7=$V11,AR11<>" ")),$S11*$J11*(1+'6_Other Assumptions'!$B$9)^MID('7_Model'!AS$6,6,2)," ") ->  | AT11: =IF(AND(OR(AT$7<=$W11,$W11=""),OR(AT$7=$V11,AS11<>" ")),$S11*$J11*(1+'6_Other Assumptions'!$B$9)^MID('7_Model'!AT$6,6,2)," ") ->  | AU11: =IF(AND(OR(AU$7<=$W11,$W11=""),OR(AU$7=$V11,AT11<>" ")),$S11*$J11*(1+'6_Other Assumptions'!$B$9)^MID('7_Model'!AU$6,6,2)," ") ->  | AV11: =IF(AND(OR(AV$7<=$W11,$W11=""),OR(AV$7=$V11,AU11<>" ")),$S11*$J11*(1+'6_Other Assumptions'!$B$9)^MID('7_Model'!AV$6,6,2)," ") ->  | AW11: =IF(AND(OR(AW$7<=$W11,$W11=""),OR(AW$7=$V11,AV11<>" ")),$S11*$J11*(1+'6_Other Assumptions'!$B$9)^MID('7_Model'!AW$6,6,2)," ") ->  | AX11: =IF(AND(OR(AX$7<=$W11,$W11=""),OR(AX$7=$V11,AW11<>" ")),$S11*$J11*(1+'6_Other Assumptions'!$B$9)^MID('7_Model'!AX$6,6,2)," ") ->  | AY11: =IF(AND(OR(AY$7<=$W11,$W11=""),OR(AY$7=$V11,AX11<>" ")),$S11*$J11*(1+'6_Other Assumptions'!$B$9)^MID('7_Model'!AY$6,6,2)," ") ->  | AZ11: =IF(AND(OR(AZ$7<=$W11,$W11=""),OR(AZ$7=$V11,AY11<>" ")),$S11*$J11*(1+'6_Other Assumptions'!$B$9)^MID('7_Model'!AZ$6,6,2)," ") ->  | BA11: =IF(AND(OR(BA$7<=$W11,$W11=""),OR(BA$7=$V11,AZ11<>" ")),$S11*$J11*(1+'6_Other Assumptions'!$B$9)^MID('7_Model'!BA$6,6,2)," ") ->  | BB11: =IF(AND(OR(BB$7<=$W11,$W11=""),OR(BB$7=$V11,BA11<>" ")),$S11*$J11*(1+'6_Other Assumptions'!$B$9)^MID('7_Model'!BB$6,6,2)," ") ->  | BC11: =IF(AND(OR(BC$7<=$W11,$W11=""),OR(BC$7=$V11,BB11<>" ")),$S11*$J11*(1+'6_Other Assumptions'!$B$9)^MID('7_Model'!BC$6,6,2)," ") ->  | BD11: =IF(AND(OR(BD$7<=$W11,$W11=""),OR(BD$7=$V11,BC11<>" ")),$S11*$J11*(1+'6_Other Assumptions'!$B$9)^MID('7_Model'!BD$6,6,2)," ") ->  | BE11: =IF(AND(OR(BE$7<=$W11,$W11=""),OR(BE$7=$V11,BD11<>" ")),$S11*$J11*(1+'6_Other Assumptions'!$B$9)^MID('7_Model'!BE$6,6,2)," ") ->  | BF11: =IF(AND(OR(BF$7<=$W11,$W11=""),OR(BF$7=$V11,BE11<>" ")),$S11*$J11*(1+'6_Other Assumptions'!$B$9)^MID('7_Model'!BF$6,6,2)," ") ->  | BG11: =IF(AND(OR(BG$7<=$W11,$W11=""),OR(BG$7=$V11,BF11<>" ")),$S11*$J11*(1+'6_Other Assumptions'!$B$9)^MID('7_Model'!BG$6,6,2)," ") ->  | BH11: =IF(AND(OR(BH$7<=$W11,$W11=""),OR(BH$7=$V11,BG11<>" ")),$S11*$J11*(1+'6_Other Assumptions'!$B$9)^MID('7_Model'!BH$6,6,2)," ") -> 
A12: 5 | B12: =IF(ISBLANK(INDEX(Database[Project Name],A12,1)),"",INDEX(Database[Project Name],A12,1)) ->  | C12: =IF(ISBLANK(INDEX(Database[Watershed],$A12,1)),"",INDEX(Database[Watershed],$A12,1)) ->  | D12: =IF(ISBLANK(INDEX(Database[BMP Type],$A12,1)),"",INDEX(Database[BMP Type],$A12,1)) ->  | E12: =IF(ISBLANK(INDEX(Database[BMP Sub-type],$A12,1)),"",INDEX(Database[BMP Sub-type],$A12,1)) ->  | F12: =IF(ISBLANK(INDEX(Database[BMP Sub-sub-type],$A12,1)),"",INDEX(Database[BMP Sub-sub-type],$A12,1)) ->  | H12: =IF(ISBLANK(INDEX(Database[Spatial Distribution of BMP],$A12,1)),"",INDEX(Database[Spatial Distribution of BMP],$A12,1)) ->  | I12: =IF(H12="Typical",INDEX('5_Cost Assumptions'!$Y$7:$Y$230,MATCH('7_Model'!G12,'5_Cost Assumptions'!$D$7:$D$230,0)),IF(H12="Concentrated",INDEX('5_Cost Assumptions'!$AA$7:$AA$230,MATCH('7_Model'!G12,'5_Cost Assumptions'!$D$7:$D$230,0)),IF(H12="Dispersed",INDEX('5_Cost Assumptions'!$Z$7:$Z$230,MATCH('7_Model'!G12,'5_Cost Assumptions'!$D$7:$D$230,0)),""))) ->  | J12: =IF(ISBLANK(INDEX(Database[BMP Size],$A12,1)),"",INDEX(Database[BMP Size],$A12,1)) ->  | K12: =IF(B12="","",INDEX('5_Cost Assumptions'!$E$7:$E$230,MATCH(G12,'5_Cost Assumptions'!$D$7:$D$230,0))) ->  | L12: =IF(ISBLANK(INDEX(Database[Service Level],$A12,1)),"",INDEX(Database[Service Level],$A12,1)) ->  | M12: =IF(B12="","",INDEX('5_Cost Assumptions'!$I$7:$I$230,MATCH(G12,'5_Cost Assumptions'!$D$7:$D$230,0))) ->  | N12: =IF(B12="","",INDEX('5_Cost Assumptions'!$J$7:$J$230,MATCH(G12,'5_Cost Assumptions'!$D$7:$D$230,0))) ->  | O12: =IF(ISBLANK(INDEX(Database[Proportion of BMP cost for which SFPUC has O&M Responsibility (% of cost)],$A12,1)),"",INDEX(Database[Proportion of BMP cost for which SFPUC has O&M Responsibility (% of cost)],$A12,1)) ->  | P12: =IF(B12="","",INDEX('5_Cost Assumptions'!$W$7:$W$230,MATCH(G12,'5_Cost Assumptions'!$D$7:$D$230,0))) ->  | R12: =IF(ISBLANK(INDEX(Database[Cost Adjustment Factor (%)],$A12,1)),"",INDEX(Database[Cost Adjustment Factor (%)],$A12,1)) ->  | T12: =IF(B12="","",INDEX('5_Cost Assumptions'!$K$7:$K$230,MATCH(G12,'5_Cost Assumptions'!$D$7:$D$230,0))) ->  | U12: =IF(ISBLANK(INDEX(Database[Comments (text)],$A12,1)),"",INDEX(Database[Comments (text)],$A12,1)) ->  | V12: =IF(ISBLANK(INDEX(Database[SFPUC Maintenance Start Date (YYYY)],$A12,1)),"",INDEX(Database[SFPUC Maintenance Start Date (YYYY)],$A12,1)) ->  | W12: =IF(ISBLANK(INDEX(Database[SFPUC Maintenance End Date (YYYY) - can be left blank if maintenance is ongoing],$A12,1)),"",INDEX(Database[SFPUC Maintenance End Date (YYYY) - can be left blank if maintenance is ongoing],$A12,1)) ->  | X12: =IF($X$7=$V12,$S$8*J12*(1+'6_Other Assumptions'!$B$9)^MID('7_Model'!$X$6,6,2)," ") ->  | Y12: =IF(AND(OR(Y$7<=$W12,$W12=""),OR(Y$7=$V12,X12<>" ")),$S12*$J12*(1+'6_Other Assumptions'!$B$9)^MID('7_Model'!Y$6,6,2)," ") ->  | Z12: =IF(AND(OR(Z$7<=$W12,$W12=""),OR(Z$7=$V12,Y12<>" ")),$S12*$J12*(1+'6_Other Assumptions'!$B$9)^MID('7_Model'!Z$6,6,2)," ") ->  | AA12: =IF(AND(OR(AA$7<=$W12,$W12=""),OR(AA$7=$V12,Z12<>" ")),$S12*$J12*(1+'6_Other Assumptions'!$B$9)^MID('7_Model'!AA$6,6,2)," ") ->  | AB12: =IF(AND(OR(AB$7<=$W12,$W12=""),OR(AB$7=$V12,AA12<>" ")),$S12*$J12*(1+'6_Other Assumptions'!$B$9)^MID('7_Model'!AB$6,6,2)," ") ->  | AC12: =IF(AND(OR(AC$7<=$W12,$W12=""),OR(AC$7=$V12,AB12<>" ")),$S12*$J12*(1+'6_Other Assumptions'!$B$9)^MID('7_Model'!AC$6,6,2)," ") ->  | AD12: =IF(AND(OR(AD$7<=$W12,$W12=""),OR(AD$7=$V12,AC12<>" ")),$S12*$J12*(1+'6_Other Assumptions'!$B$9)^MID('7_Model'!AD$6,6,2)," ") ->  | AE12: =IF(AND(OR(AE$7<=$W12,$W12=""),OR(AE$7=$V12,AD12<>" ")),$S12*$J12*(1+'6_Other Assumptions'!$B$9)^MID('7_Model'!AE$6,6,2)," ") ->  | AF12: =IF(AND(OR(AF$7<=$W12,$W12=""),OR(AF$7=$V12,AE12<>" ")),$S12*$J12*(1+'6_Other Assumptions'!$B$9)^MID('7_Model'!AF$6,6,2)," ") ->  | AG12: =IF(AND(OR(AG$7<=$W12,$W12=""),OR(AG$7=$V12,AF12<>" ")),$S12*$J12*(1+'6_Other Assumptions'!$B$9)^MID('7_Model'!AG$6,6,2)," ") ->  | AH12: =IF(AND(OR(AH$7<=$W12,$W12=""),OR(AH$7=$V12,AG12<>" ")),$S12*$J12*(1+'6_Other Assumptions'!$B$9)^MID('7_Model'!AH$6,6,2)," ") ->  | AI12: =IF(AND(OR(AI$7<=$W12,$W12=""),OR(AI$7=$V12,AH12<>" ")),$S12*$J12*(1+'6_Other Assumptions'!$B$9)^MID('7_Model'!AI$6,6,2)," ") ->  | AJ12: =IF(AND(OR(AJ$7<=$W12,$W12=""),OR(AJ$7=$V12,AI12<>" ")),$S12*$J12*(1+'6_Other Assumptions'!$B$9)^MID('7_Model'!AJ$6,6,2)," ") ->  | AK12: =IF(AND(OR(AK$7<=$W12,$W12=""),OR(AK$7=$V12,AJ12<>" ")),$S12*$J12*(1+'6_Other Assumptions'!$B$9)^MID('7_Model'!AK$6,6,2)," ") ->  | AL12: =IF(AND(OR(AL$7<=$W12,$W12=""),OR(AL$7=$V12,AK12<>" ")),$S12*$J12*(1+'6_Other Assumptions'!$B$9)^MID('7_Model'!AL$6,6,2)," ") ->  | AM12: =IF(AND(OR(AM$7<=$W12,$W12=""),OR(AM$7=$V12,AL12<>" ")),$S12*$J12*(1+'6_Other Assumptions'!$B$9)^MID('7_Model'!AM$6,6,2)," ") ->  | AN12: =IF(AND(OR(AN$7<=$W12,$W12=""),OR(AN$7=$V12,AM12<>" ")),$S12*$J12*(1+'6_Other Assumptions'!$B$9)^MID('7_Model'!AN$6,6,2)," ") ->  | AO12: =IF(AND(OR(AO$7<=$W12,$W12=""),OR(AO$7=$V12,AN12<>" ")),$S12*$J12*(1+'6_Other Assumptions'!$B$9)^MID('7_Model'!AO$6,6,2)," ") ->  | AP12: =IF(AND(OR(AP$7<=$W12,$W12=""),OR(AP$7=$V12,AO12<>" ")),$S12*$J12*(1+'6_Other Assumptions'!$B$9)^MID('7_Model'!AP$6,6,2)," ") ->  | AQ12: =IF(AND(OR(AQ$7<=$W12,$W12=""),OR(AQ$7=$V12,AP12<>" ")),$S12*$J12*(1+'6_Other Assumptions'!$B$9)^MID('7_Model'!AQ$6,6,2)," ") ->  | AR12: =IF(AND(OR(AR$7<=$W12,$W12=""),OR(AR$7=$V12,AQ12<>" ")),$S12*$J12*(1+'6_Other Assumptions'!$B$9)^MID('7_Model'!AR$6,6,2)," ") ->  | AS12: =IF(AND(OR(AS$7<=$W12,$W12=""),OR(AS$7=$V12,AR12<>" ")),$S12*$J12*(1+'6_Other Assumptions'!$B$9)^MID('7_Model'!AS$6,6,2)," ") ->  | AT12: =IF(AND(OR(AT$7<=$W12,$W12=""),OR(AT$7=$V12,AS12<>" ")),$S12*$J12*(1+'6_Other Assumptions'!$B$9)^MID('7_Model'!AT$6,6,2)," ") ->  | AU12: =IF(AND(OR(AU$7<=$W12,$W12=""),OR(AU$7=$V12,AT12<>" ")),$S12*$J12*(1+'6_Other Assumptions'!$B$9)^MID('7_Model'!AU$6,6,2)," ") ->  | AV12: =IF(AND(OR(AV$7<=$W12,$W12=""),OR(AV$7=$V12,AU12<>" ")),$S12*$J12*(1+'6_Other Assumptions'!$B$9)^MID('7_Model'!AV$6,6,2)," ") ->  | AW12: =IF(AND(OR(AW$7<=$W12,$W12=""),OR(AW$7=$V12,AV12<>" ")),$S12*$J12*(1+'6_Other Assumptions'!$B$9)^MID('7_Model'!AW$6,6,2)," ") ->  | AX12: =IF(AND(OR(AX$7<=$W12,$W12=""),OR(AX$7=$V12,AW12<>" ")),$S12*$J12*(1+'6_Other Assumptions'!$B$9)^MID('7_Model'!AX$6,6,2)," ") ->  | AY12: =IF(AND(OR(AY$7<=$W12,$W12=""),OR(AY$7=$V12,AX12<>" ")),$S12*$J12*(1+'6_Other Assumptions'!$B$9)^MID('7_Model'!AY$6,6,2)," ") ->  | AZ12: =IF(AND(OR(AZ$7<=$W12,$W12=""),OR(AZ$7=$V12,AY12<>" ")),$S12*$J12*(1+'6_Other Assumptions'!$B$9)^MID('7_Model'!AZ$6,6,2)," ") ->  | BA12: =IF(AND(OR(BA$7<=$W12,$W12=""),OR(BA$7=$V12,AZ12<>" ")),$S12*$J12*(1+'6_Other Assumptions'!$B$9)^MID('7_Model'!BA$6,6,2)," ") ->  | BB12: =IF(AND(OR(BB$7<=$W12,$W12=""),OR(BB$7=$V12,BA12<>" ")),$S12*$J12*(1+'6_Other Assumptions'!$B$9)^MID('7_Model'!BB$6,6,2)," ") ->  | BC12: =IF(AND(OR(BC$7<=$W12,$W12=""),OR(BC$7=$V12,BB12<>" ")),$S12*$J12*(1+'6_Other Assumptions'!$B$9)^MID('7_Model'!BC$6,6,2)," ") ->  | BD12: =IF(AND(OR(BD$7<=$W12,$W12=""),OR(BD$7=$V12,BC12<>" ")),$S12*$J12*(1+'6_Other Assumptions'!$B$9)^MID('7_Model'!BD$6,6,2)," ") ->  | BE12: =IF(AND(OR(BE$7<=$W12,$W12=""),OR(BE$7=$V12,BD12<>" ")),$S12*$J12*(1+'6_Other Assumptions'!$B$9)^MID('7_Model'!BE$6,6,2)," ") ->  | BF12: =IF(AND(OR(BF$7<=$W12,$W12=""),OR(BF$7=$V12,BE12<>" ")),$S12*$J12*(1+'6_Other Assumptions'!$B$9)^MID('7_Model'!BF$6,6,2)," ") ->  | BG12: =IF(AND(OR(BG$7<=$W12,$W12=""),OR(BG$7=$V12,BF12<>" ")),$S12*$J12*(1+'6_Other Assumptions'!$B$9)^MID('7_Model'!BG$6,6,2)," ") ->  | BH12: =IF(AND(OR(BH$7<=$W12,$W12=""),OR(BH$7=$V12,BG12<>" ")),$S12*$J12*(1+'6_Other Assumptions'!$B$9)^MID('7_Model'!BH$6,6,2)," ") -> 
A13: 6 | B13: =IF(ISBLANK(INDEX(Database[Project Name],A13,1)),"",INDEX(Database[Project Name],A13,1)) ->  | C13: =IF(ISBLANK(INDEX(Database[Watershed],$A13,1)),"",INDEX(Database[Watershed],$A13,1)) ->  | D13: =IF(ISBLANK(INDEX(Database[BMP Type],$A13,1)),"",INDEX(Database[BMP Type],$A13,1)) ->  | E13: =IF(ISBLANK(INDEX(Database[BMP Sub-type],$A13,1)),"",INDEX(Database[BMP Sub-type],$A13,1)) ->  | F13: =IF(ISBLANK(INDEX(Database[BMP Sub-sub-type],$A13,1)),"",INDEX(Database[BMP Sub-sub-type],$A13,1)) ->  | H13: =IF(ISBLANK(INDEX(Database[Spatial Distribution of BMP],$A13,1)),"",INDEX(Database[Spatial Distribution of BMP],$A13,1)) ->  | I13: =IF(H13="Typical",INDEX('5_Cost Assumptions'!$Y$7:$Y$230,MATCH('7_Model'!G13,'5_Cost Assumptions'!$D$7:$D$230,0)),IF(H13="Concentrated",INDEX('5_Cost Assumptions'!$AA$7:$AA$230,MATCH('7_Model'!G13,'5_Cost Assumptions'!$D$7:$D$230,0)),IF(H13="Dispersed",INDEX('5_Cost Assumptions'!$Z$7:$Z$230,MATCH('7_Model'!G13,'5_Cost Assumptions'!$D$7:$D$230,0)),""))) ->  | J13: =IF(ISBLANK(INDEX(Database[BMP Size],$A13,1)),"",INDEX(Database[BMP Size],$A13,1)) ->  | K13: =IF(B13="","",INDEX('5_Cost Assumptions'!$E$7:$E$230,MATCH(G13,'5_Cost Assumptions'!$D$7:$D$230,0))) ->  | L13: =IF(ISBLANK(INDEX(Database[Service Level],$A13,1)),"",INDEX(Database[Service Level],$A13,1)) ->  | M13: =IF(B13="","",INDEX('5_Cost Assumptions'!$I$7:$I$230,MATCH(G13,'5_Cost Assumptions'!$D$7:$D$230,0))) ->  | N13: =IF(B13="","",INDEX('5_Cost Assumptions'!$J$7:$J$230,MATCH(G13,'5_Cost Assumptions'!$D$7:$D$230,0))) ->  | O13: =IF(ISBLANK(INDEX(Database[Proportion of BMP cost for which SFPUC has O&M Responsibility (% of cost)],$A13,1)),"",INDEX(Database[Proportion of BMP cost for which SFPUC has O&M Responsibility (% of cost)],$A13,1)) ->  | P13: =IF(B13="","",INDEX('5_Cost Assumptions'!$W$7:$W$230,MATCH(G13,'5_Cost Assumptions'!$D$7:$D$230,0))) ->  | R13: =IF(ISBLANK(INDEX(Database[Cost Adjustment Factor (%)],$A13,1)),"",INDEX(Database[Cost Adjustment Factor (%)],$A13,1)) ->  | T13: =IF(B13="","",INDEX('5_Cost Assumptions'!$K$7:$K$230,MATCH(G13,'5_Cost Assumptions'!$D$7:$D$230,0))) ->  | U13: =IF(ISBLANK(INDEX(Database[Comments (text)],$A13,1)),"",INDEX(Database[Comments (text)],$A13,1)) ->  | V13: =IF(ISBLANK(INDEX(Database[SFPUC Maintenance Start Date (YYYY)],$A13,1)),"",INDEX(Database[SFPUC Maintenance Start Date (YYYY)],$A13,1)) ->  | W13: =IF(ISBLANK(INDEX(Database[SFPUC Maintenance End Date (YYYY) - can be left blank if maintenance is ongoing],$A13,1)),"",INDEX(Database[SFPUC Maintenance End Date (YYYY) - can be left blank if maintenance is ongoing],$A13,1)) ->  | X13: =IF($X$7=$V13,$S$8*J13*(1+'6_Other Assumptions'!$B$9)^MID('7_Model'!$X$6,6,2)," ") ->  | Y13: =IF(AND(OR(Y$7<=$W13,$W13=""),OR(Y$7=$V13,X13<>" ")),$S13*$J13*(1+'6_Other Assumptions'!$B$9)^MID('7_Model'!Y$6,6,2)," ") ->  | Z13: =IF(AND(OR(Z$7<=$W13,$W13=""),OR(Z$7=$V13,Y13<>" ")),$S13*$J13*(1+'6_Other Assumptions'!$B$9)^MID('7_Model'!Z$6,6,2)," ") ->  | AA13: =IF(AND(OR(AA$7<=$W13,$W13=""),OR(AA$7=$V13,Z13<>" ")),$S13*$J13*(1+'6_Other Assumptions'!$B$9)^MID('7_Model'!AA$6,6,2)," ") ->  | AB13: =IF(AND(OR(AB$7<=$W13,$W13=""),OR(AB$7=$V13,AA13<>" ")),$S13*$J13*(1+'6_Other Assumptions'!$B$9)^MID('7_Model'!AB$6,6,2)," ") ->  | AC13: =IF(AND(OR(AC$7<=$W13,$W13=""),OR(AC$7=$V13,AB13<>" ")),$S13*$J13*(1+'6_Other Assumptions'!$B$9)^MID('7_Model'!AC$6,6,2)," ") ->  | AD13: =IF(AND(OR(AD$7<=$W13,$W13=""),OR(AD$7=$V13,AC13<>" ")),$S13*$J13*(1+'6_Other Assumptions'!$B$9)^MID('7_Model'!AD$6,6,2)," ") ->  | AE13: =IF(AND(OR(AE$7<=$W13,$W13=""),OR(AE$7=$V13,AD13<>" ")),$S13*$J13*(1+'6_Other Assumptions'!$B$9)^MID('7_Model'!AE$6,6,2)," ") ->  | AF13: =IF(AND(OR(AF$7<=$W13,$W13=""),OR(AF$7=$V13,AE13<>" ")),$S13*$J13*(1+'6_Other Assumptions'!$B$9)^MID('7_Model'!AF$6,6,2)," ") ->  | AG13: =IF(AND(OR(AG$7<=$W13,$W13=""),OR(AG$7=$V13,AF13<>" ")),$S13*$J13*(1+'6_Other Assumptions'!$B$9)^MID('7_Model'!AG$6,6,2)," ") ->  | AH13: =IF(AND(OR(AH$7<=$W13,$W13=""),OR(AH$7=$V13,AG13<>" ")),$S13*$J13*(1+'6_Other Assumptions'!$B$9)^MID('7_Model'!AH$6,6,2)," ") ->  | AI13: =IF(AND(OR(AI$7<=$W13,$W13=""),OR(AI$7=$V13,AH13<>" ")),$S13*$J13*(1+'6_Other Assumptions'!$B$9)^MID('7_Model'!AI$6,6,2)," ") ->  | AJ13: =IF(AND(OR(AJ$7<=$W13,$W13=""),OR(AJ$7=$V13,AI13<>" ")),$S13*$J13*(1+'6_Other Assumptions'!$B$9)^MID('7_Model'!AJ$6,6,2)," ") ->  | AK13: =IF(AND(OR(AK$7<=$W13,$W13=""),OR(AK$7=$V13,AJ13<>" ")),$S13*$J13*(1+'6_Other Assumptions'!$B$9)^MID('7_Model'!AK$6,6,2)," ") ->  | AL13: =IF(AND(OR(AL$7<=$W13,$W13=""),OR(AL$7=$V13,AK13<>" ")),$S13*$J13*(1+'6_Other Assumptions'!$B$9)^MID('7_Model'!AL$6,6,2)," ") ->  | AM13: =IF(AND(OR(AM$7<=$W13,$W13=""),OR(AM$7=$V13,AL13<>" ")),$S13*$J13*(1+'6_Other Assumptions'!$B$9)^MID('7_Model'!AM$6,6,2)," ") ->  | AN13: =IF(AND(OR(AN$7<=$W13,$W13=""),OR(AN$7=$V13,AM13<>" ")),$S13*$J13*(1+'6_Other Assumptions'!$B$9)^MID('7_Model'!AN$6,6,2)," ") ->  | AO13: =IF(AND(OR(AO$7<=$W13,$W13=""),OR(AO$7=$V13,AN13<>" ")),$S13*$J13*(1+'6_Other Assumptions'!$B$9)^MID('7_Model'!AO$6,6,2)," ") ->  | AP13: =IF(AND(OR(AP$7<=$W13,$W13=""),OR(AP$7=$V13,AO13<>" ")),$S13*$J13*(1+'6_Other Assumptions'!$B$9)^MID('7_Model'!AP$6,6,2)," ") ->  | AQ13: =IF(AND(OR(AQ$7<=$W13,$W13=""),OR(AQ$7=$V13,AP13<>" ")),$S13*$J13*(1+'6_Other Assumptions'!$B$9)^MID('7_Model'!AQ$6,6,2)," ") ->  | AR13: =IF(AND(OR(AR$7<=$W13,$W13=""),OR(AR$7=$V13,AQ13<>" ")),$S13*$J13*(1+'6_Other Assumptions'!$B$9)^MID('7_Model'!AR$6,6,2)," ") ->  | AS13: =IF(AND(OR(AS$7<=$W13,$W13=""),OR(AS$7=$V13,AR13<>" ")),$S13*$J13*(1+'6_Other Assumptions'!$B$9)^MID('7_Model'!AS$6,6,2)," ") ->  | AT13: =IF(AND(OR(AT$7<=$W13,$W13=""),OR(AT$7=$V13,AS13<>" ")),$S13*$J13*(1+'6_Other Assumptions'!$B$9)^MID('7_Model'!AT$6,6,2)," ") ->  | AU13: =IF(AND(OR(AU$7<=$W13,$W13=""),OR(AU$7=$V13,AT13<>" ")),$S13*$J13*(1+'6_Other Assumptions'!$B$9)^MID('7_Model'!AU$6,6,2)," ") ->  | AV13: =IF(AND(OR(AV$7<=$W13,$W13=""),OR(AV$7=$V13,AU13<>" ")),$S13*$J13*(1+'6_Other Assumptions'!$B$9)^MID('7_Model'!AV$6,6,2)," ") ->  | AW13: =IF(AND(OR(AW$7<=$W13,$W13=""),OR(AW$7=$V13,AV13<>" ")),$S13*$J13*(1+'6_Other Assumptions'!$B$9)^MID('7_Model'!AW$6,6,2)," ") ->  | AX13: =IF(AND(OR(AX$7<=$W13,$W13=""),OR(AX$7=$V13,AW13<>" ")),$S13*$J13*(1+'6_Other Assumptions'!$B$9)^MID('7_Model'!AX$6,6,2)," ") ->  | AY13: =IF(AND(OR(AY$7<=$W13,$W13=""),OR(AY$7=$V13,AX13<>" ")),$S13*$J13*(1+'6_Other Assumptions'!$B$9)^MID('7_Model'!AY$6,6,2)," ") ->  | AZ13: =IF(AND(OR(AZ$7<=$W13,$W13=""),OR(AZ$7=$V13,AY13<>" ")),$S13*$J13*(1+'6_Other Assumptions'!$B$9)^MID('7_Model'!AZ$6,6,2)," ") ->  | BA13: =IF(AND(OR(BA$7<=$W13,$W13=""),OR(BA$7=$V13,AZ13<>" ")),$S13*$J13*(1+'6_Other Assumptions'!$B$9)^MID('7_Model'!BA$6,6,2)," ") ->  | BB13: =IF(AND(OR(BB$7<=$W13,$W13=""),OR(BB$7=$V13,BA13<>" ")),$S13*$J13*(1+'6_Other Assumptions'!$B$9)^MID('7_Model'!BB$6,6,2)," ") ->  | BC13: =IF(AND(OR(BC$7<=$W13,$W13=""),OR(BC$7=$V13,BB13<>" ")),$S13*$J13*(1+'6_Other Assumptions'!$B$9)^MID('7_Model'!BC$6,6,2)," ") ->  | BD13: =IF(AND(OR(BD$7<=$W13,$W13=""),OR(BD$7=$V13,BC13<>" ")),$S13*$J13*(1+'6_Other Assumptions'!$B$9)^MID('7_Model'!BD$6,6,2)," ") ->  | BE13: =IF(AND(OR(BE$7<=$W13,$W13=""),OR(BE$7=$V13,BD13<>" ")),$S13*$J13*(1+'6_Other Assumptions'!$B$9)^MID('7_Model'!BE$6,6,2)," ") ->  | BF13: =IF(AND(OR(BF$7<=$W13,$W13=""),OR(BF$7=$V13,BE13<>" ")),$S13*$J13*(1+'6_Other Assumptions'!$B$9)^MID('7_Model'!BF$6,6,2)," ") ->  | BG13: =IF(AND(OR(BG$7<=$W13,$W13=""),OR(BG$7=$V13,BF13<>" ")),$S13*$J13*(1+'6_Other Assumptions'!$B$9)^MID('7_Model'!BG$6,6,2)," ") ->  | BH13: =IF(AND(OR(BH$7<=$W13,$W13=""),OR(BH$7=$V13,BG13<>" ")),$S13*$J13*(1+'6_Other Assumptions'!$B$9)^MID('7_Model'!BH$6,6,2)," ") -> 
A14: 7 | B14: =IF(ISBLANK(INDEX(Database[Project Name],A14,1)),"",INDEX(Database[Project Name],A14,1)) ->  | C14: =IF(ISBLANK(INDEX(Database[Watershed],$A14,1)),"",INDEX(Database[Watershed],$A14,1)) ->  | D14: =IF(ISBLANK(INDEX(Database[BMP Type],$A14,1)),"",INDEX(Database[BMP Type],$A14,1)) ->  | E14: =IF(ISBLANK(INDEX(Database[BMP Sub-type],$A14,1)),"",INDEX(Database[BMP Sub-type],$A14,1)) ->  | F14: =IF(ISBLANK(INDEX(Database[BMP Sub-sub-type],$A14,1)),"",INDEX(Database[BMP Sub-sub-type],$A14,1)) ->  | H14: =IF(ISBLANK(INDEX(Database[Spatial Distribution of BMP],$A14,1)),"",INDEX(Database[Spatial Distribution of BMP],$A14,1)) ->  | I14: =IF(H14="Typical",INDEX('5_Cost Assumptions'!$Y$7:$Y$230,MATCH('7_Model'!G14,'5_Cost Assumptions'!$D$7:$D$230,0)),IF(H14="Concentrated",INDEX('5_Cost Assumptions'!$AA$7:$AA$230,MATCH('7_Model'!G14,'5_Cost Assumptions'!$D$7:$D$230,0)),IF(H14="Dispersed",INDEX('5_Cost Assumptions'!$Z$7:$Z$230,MATCH('7_Model'!G14,'5_Cost Assumptions'!$D$7:$D$230,0)),""))) ->  | J14: =IF(ISBLANK(INDEX(Database[BMP Size],$A14,1)),"",INDEX(Database[BMP Size],$A14,1)) ->  | K14: =IF(B14="","",INDEX('5_Cost Assumptions'!$E$7:$E$230,MATCH(G14,'5_Cost Assumptions'!$D$7:$D$230,0))) ->  | L14: =IF(ISBLANK(INDEX(Database[Service Level],$A14,1)),"",INDEX(Database[Service Level],$A14,1)) ->  | M14: =IF(B14="","",INDEX('5_Cost Assumptions'!$I$7:$I$230,MATCH(G14,'5_Cost Assumptions'!$D$7:$D$230,0))) ->  | N14: =IF(B14="","",INDEX('5_Cost Assumptions'!$J$7:$J$230,MATCH(G14,'5_Cost Assumptions'!$D$7:$D$230,0))) ->  | O14: =IF(ISBLANK(INDEX(Database[Proportion of BMP cost for which SFPUC has O&M Responsibility (% of cost)],$A14,1)),"",INDEX(Database[Proportion of BMP cost for which SFPUC has O&M Responsibility (% of cost)],$A14,1)) ->  | P14: =IF(B14="","",INDEX('5_Cost Assumptions'!$W$7:$W$230,MATCH(G14,'5_Cost Assumptions'!$D$7:$D$230,0))) ->  | R14: =IF(ISBLANK(INDEX(Database[Cost Adjustment Factor (%)],$A14,1)),"",INDEX(Database[Cost Adjustment Factor (%)],$A14,1)) ->  | T14: =IF(B14="","",INDEX('5_Cost Assumptions'!$K$7:$K$230,MATCH(G14,'5_Cost Assumptions'!$D$7:$D$230,0))) ->  | U14: =IF(ISBLANK(INDEX(Database[Comments (text)],$A14,1)),"",INDEX(Database[Comments (text)],$A14,1)) ->  | V14: =IF(ISBLANK(INDEX(Database[SFPUC Maintenance Start Date (YYYY)],$A14,1)),"",INDEX(Database[SFPUC Maintenance Start Date (YYYY)],$A14,1)) ->  | W14: =IF(ISBLANK(INDEX(Database[SFPUC Maintenance End Date (YYYY) - can be left blank if maintenance is ongoing],$A14,1)),"",INDEX(Database[SFPUC Maintenance End Date (YYYY) - can be left blank if maintenance is ongoing],$A14,1)) ->  | X14: =IF($X$7=$V14,$S$8*J14*(1+'6_Other Assumptions'!$B$9)^MID('7_Model'!$X$6,6,2)," ") ->  | Y14: =IF(AND(OR(Y$7<=$W14,$W14=""),OR(Y$7=$V14,X14<>" ")),$S14*$J14*(1+'6_Other Assumptions'!$B$9)^MID('7_Model'!Y$6,6,2)," ") ->  | Z14: =IF(AND(OR(Z$7<=$W14,$W14=""),OR(Z$7=$V14,Y14<>" ")),$S14*$J14*(1+'6_Other Assumptions'!$B$9)^MID('7_Model'!Z$6,6,2)," ") ->  | AA14: =IF(AND(OR(AA$7<=$W14,$W14=""),OR(AA$7=$V14,Z14<>" ")),$S14*$J14*(1+'6_Other Assumptions'!$B$9)^MID('7_Model'!AA$6,6,2)," ") ->  | AB14: =IF(AND(OR(AB$7<=$W14,$W14=""),OR(AB$7=$V14,AA14<>" ")),$S14*$J14*(1+'6_Other Assumptions'!$B$9)^MID('7_Model'!AB$6,6,2)," ") ->  | AC14: =IF(AND(OR(AC$7<=$W14,$W14=""),OR(AC$7=$V14,AB14<>" ")),$S14*$J14*(1+'6_Other Assumptions'!$B$9)^MID('7_Model'!AC$6,6,2)," ") ->  | AD14: =IF(AND(OR(AD$7<=$W14,$W14=""),OR(AD$7=$V14,AC14<>" ")),$S14*$J14*(1+'6_Other Assumptions'!$B$9)^MID('7_Model'!AD$6,6,2)," ") ->  | AE14: =IF(AND(OR(AE$7<=$W14,$W14=""),OR(AE$7=$V14,AD14<>" ")),$S14*$J14*(1+'6_Other Assumptions'!$B$9)^MID('7_Model'!AE$6,6,2)," ") ->  | AF14: =IF(AND(OR(AF$7<=$W14,$W14=""),OR(AF$7=$V14,AE14<>" ")),$S14*$J14*(1+'6_Other Assumptions'!$B$9)^MID('7_Model'!AF$6,6,2)," ") ->  | AG14: =IF(AND(OR(AG$7<=$W14,$W14=""),OR(AG$7=$V14,AF14<>" ")),$S14*$J14*(1+'6_Other Assumptions'!$B$9)^MID('7_Model'!AG$6,6,2)," ") ->  | AH14: =IF(AND(OR(AH$7<=$W14,$W14=""),OR(AH$7=$V14,AG14<>" ")),$S14*$J14*(1+'6_Other Assumptions'!$B$9)^MID('7_Model'!AH$6,6,2)," ") ->  | AI14: =IF(AND(OR(AI$7<=$W14,$W14=""),OR(AI$7=$V14,AH14<>" ")),$S14*$J14*(1+'6_Other Assumptions'!$B$9)^MID('7_Model'!AI$6,6,2)," ") ->  | AJ14: =IF(AND(OR(AJ$7<=$W14,$W14=""),OR(AJ$7=$V14,AI14<>" ")),$S14*$J14*(1+'6_Other Assumptions'!$B$9)^MID('7_Model'!AJ$6,6,2)," ") ->  | AK14: =IF(AND(OR(AK$7<=$W14,$W14=""),OR(AK$7=$V14,AJ14<>" ")),$S14*$J14*(1+'6_Other Assumptions'!$B$9)^MID('7_Model'!AK$6,6,2)," ") ->  | AL14: =IF(AND(OR(AL$7<=$W14,$W14=""),OR(AL$7=$V14,AK14<>" ")),$S14*$J14*(1+'6_Other Assumptions'!$B$9)^MID('7_Model'!AL$6,6,2)," ") ->  | AM14: =IF(AND(OR(AM$7<=$W14,$W14=""),OR(AM$7=$V14,AL14<>" ")),$S14*$J14*(1+'6_Other Assumptions'!$B$9)^MID('7_Model'!AM$6,6,2)," ") ->  | AN14: =IF(AND(OR(AN$7<=$W14,$W14=""),OR(AN$7=$V14,AM14<>" ")),$S14*$J14*(1+'6_Other Assumptions'!$B$9)^MID('7_Model'!AN$6,6,2)," ") ->  | AO14: =IF(AND(OR(AO$7<=$W14,$W14=""),OR(AO$7=$V14,AN14<>" ")),$S14*$J14*(1+'6_Other Assumptions'!$B$9)^MID('7_Model'!AO$6,6,2)," ") ->  | AP14: =IF(AND(OR(AP$7<=$W14,$W14=""),OR(AP$7=$V14,AO14<>" ")),$S14*$J14*(1+'6_Other Assumptions'!$B$9)^MID('7_Model'!AP$6,6,2)," ") ->  | AQ14: =IF(AND(OR(AQ$7<=$W14,$W14=""),OR(AQ$7=$V14,AP14<>" ")),$S14*$J14*(1+'6_Other Assumptions'!$B$9)^MID('7_Model'!AQ$6,6,2)," ") ->  | AR14: =IF(AND(OR(AR$7<=$W14,$W14=""),OR(AR$7=$V14,AQ14<>" ")),$S14*$J14*(1+'6_Other Assumptions'!$B$9)^MID('7_Model'!AR$6,6,2)," ") ->  | AS14: =IF(AND(OR(AS$7<=$W14,$W14=""),OR(AS$7=$V14,AR14<>" ")),$S14*$J14*(1+'6_Other Assumptions'!$B$9)^MID('7_Model'!AS$6,6,2)," ") ->  | AT14: =IF(AND(OR(AT$7<=$W14,$W14=""),OR(AT$7=$V14,AS14<>" ")),$S14*$J14*(1+'6_Other Assumptions'!$B$9)^MID('7_Model'!AT$6,6,2)," ") ->  | AU14: =IF(AND(OR(AU$7<=$W14,$W14=""),OR(AU$7=$V14,AT14<>" ")),$S14*$J14*(1+'6_Other Assumptions'!$B$9)^MID('7_Model'!AU$6,6,2)," ") ->  | AV14: =IF(AND(OR(AV$7<=$W14,$W14=""),OR(AV$7=$V14,AU14<>" ")),$S14*$J14*(1+'6_Other Assumptions'!$B$9)^MID('7_Model'!AV$6,6,2)," ") ->  | AW14: =IF(AND(OR(AW$7<=$W14,$W14=""),OR(AW$7=$V14,AV14<>" ")),$S14*$J14*(1+'6_Other Assumptions'!$B$9)^MID('7_Model'!AW$6,6,2)," ") ->  | AX14: =IF(AND(OR(AX$7<=$W14,$W14=""),OR(AX$7=$V14,AW14<>" ")),$S14*$J14*(1+'6_Other Assumptions'!$B$9)^MID('7_Model'!AX$6,6,2)," ") ->  | AY14: =IF(AND(OR(AY$7<=$W14,$W14=""),OR(AY$7=$V14,AX14<>" ")),$S14*$J14*(1+'6_Other Assumptions'!$B$9)^MID('7_Model'!AY$6,6,2)," ") ->  | AZ14: =IF(AND(OR(AZ$7<=$W14,$W14=""),OR(AZ$7=$V14,AY14<>" ")),$S14*$J14*(1+'6_Other Assumptions'!$B$9)^MID('7_Model'!AZ$6,6,2)," ") ->  | BA14: =IF(AND(OR(BA$7<=$W14,$W14=""),OR(BA$7=$V14,AZ14<>" ")),$S14*$J14*(1+'6_Other Assumptions'!$B$9)^MID('7_Model'!BA$6,6,2)," ") ->  | BB14: =IF(AND(OR(BB$7<=$W14,$W14=""),OR(BB$7=$V14,BA14<>" ")),$S14*$J14*(1+'6_Other Assumptions'!$B$9)^MID('7_Model'!BB$6,6,2)," ") ->  | BC14: =IF(AND(OR(BC$7<=$W14,$W14=""),OR(BC$7=$V14,BB14<>" ")),$S14*$J14*(1+'6_Other Assumptions'!$B$9)^MID('7_Model'!BC$6,6,2)," ") ->  | BD14: =IF(AND(OR(BD$7<=$W14,$W14=""),OR(BD$7=$V14,BC14<>" ")),$S14*$J14*(1+'6_Other Assumptions'!$B$9)^MID('7_Model'!BD$6,6,2)," ") ->  | BE14: =IF(AND(OR(BE$7<=$W14,$W14=""),OR(BE$7=$V14,BD14<>" ")),$S14*$J14*(1+'6_Other Assumptions'!$B$9)^MID('7_Model'!BE$6,6,2)," ") ->  | BF14: =IF(AND(OR(BF$7<=$W14,$W14=""),OR(BF$7=$V14,BE14<>" ")),$S14*$J14*(1+'6_Other Assumptions'!$B$9)^MID('7_Model'!BF$6,6,2)," ") ->  | BG14: =IF(AND(OR(BG$7<=$W14,$W14=""),OR(BG$7=$V14,BF14<>" ")),$S14*$J14*(1+'6_Other Assumptions'!$B$9)^MID('7_Model'!BG$6,6,2)," ") ->  | BH14: =IF(AND(OR(BH$7<=$W14,$W14=""),OR(BH$7=$V14,BG14<>" ")),$S14*$J14*(1+'6_Other Assumptions'!$B$9)^MID('7_Model'!BH$6,6,2)," ") -> 
A15: 8 | B15: =IF(ISBLANK(INDEX(Database[Project Name],A15,1)),"",INDEX(Database[Project Name],A15,1)) ->  | C15: =IF(ISBLANK(INDEX(Database[Watershed],$A15,1)),"",INDEX(Database[Watershed],$A15,1)) ->  | D15: =IF(ISBLANK(INDEX(Database[BMP Type],$A15,1)),"",INDEX(Database[BMP Type],$A15,1)) ->  | E15: =IF(ISBLANK(INDEX(Database[BMP Sub-type],$A15,1)),"",INDEX(Database[BMP Sub-type],$A15,1)) ->  | F15: =IF(ISBLANK(INDEX(Database[BMP Sub-sub-type],$A15,1)),"",INDEX(Database[BMP Sub-sub-type],$A15,1)) ->  | H15: =IF(ISBLANK(INDEX(Database[Spatial Distribution of BMP],$A15,1)),"",INDEX(Database[Spatial Distribution of BMP],$A15,1)) ->  | I15: =IF(H15="Typical",INDEX('5_Cost Assumptions'!$Y$7:$Y$230,MATCH('7_Model'!G15,'5_Cost Assumptions'!$D$7:$D$230,0)),IF(H15="Concentrated",INDEX('5_Cost Assumptions'!$AA$7:$AA$230,MATCH('7_Model'!G15,'5_Cost Assumptions'!$D$7:$D$230,0)),IF(H15="Dispersed",INDEX('5_Cost Assumptions'!$Z$7:$Z$230,MATCH('7_Model'!G15,'5_Cost Assumptions'!$D$7:$D$230,0)),""))) ->  | J15: =IF(ISBLANK(INDEX(Database[BMP Size],$A15,1)),"",INDEX(Database[BMP Size],$A15,1)) ->  | K15: =IF(B15="","",INDEX('5_Cost Assumptions'!$E$7:$E$230,MATCH(G15,'5_Cost Assumptions'!$D$7:$D$230,0))) ->  | L15: =IF(ISBLANK(INDEX(Database[Service Level],$A15,1)),"",INDEX(Database[Service Level],$A15,1)) ->  | M15: =IF(B15="","",INDEX('5_Cost Assumptions'!$I$7:$I$230,MATCH(G15,'5_Cost Assumptions'!$D$7:$D$230,0))) ->  | N15: =IF(B15="","",INDEX('5_Cost Assumptions'!$J$7:$J$230,MATCH(G15,'5_Cost Assumptions'!$D$7:$D$230,0))) ->  | O15: =IF(ISBLANK(INDEX(Database[Proportion of BMP cost for which SFPUC has O&M Responsibility (% of cost)],$A15,1)),"",INDEX(Database[Proportion of BMP cost for which SFPUC has O&M Responsibility (% of cost)],$A15,1)) ->  | P15: =IF(B15="","",INDEX('5_Cost Assumptions'!$W$7:$W$230,MATCH(G15,'5_Cost Assumptions'!$D$7:$D$230,0))) ->  | R15: =IF(ISBLANK(INDEX(Database[Cost Adjustment Factor (%)],$A15,1)),"",INDEX(Database[Cost Adjustment Factor (%)],$A15,1)) ->  | T15: =IF(B15="","",INDEX('5_Cost Assumptions'!$K$7:$K$230,MATCH(G15,'5_Cost Assumptions'!$D$7:$D$230,0))) ->  | U15: =IF(ISBLANK(INDEX(Database[Comments (text)],$A15,1)),"",INDEX(Database[Comments (text)],$A15,1)) ->  | V15: =IF(ISBLANK(INDEX(Database[SFPUC Maintenance Start Date (YYYY)],$A15,1)),"",INDEX(Database[SFPUC Maintenance Start Date (YYYY)],$A15,1)) ->  | W15: =IF(ISBLANK(INDEX(Database[SFPUC Maintenance End Date (YYYY) - can be left blank if maintenance is ongoing],$A15,1)),"",INDEX(Database[SFPUC Maintenance End Date (YYYY) - can be left blank if maintenance is ongoing],$A15,1)) ->  | X15: =IF($X$7=$V15,$S$8*J15*(1+'6_Other Assumptions'!$B$9)^MID('7_Model'!$X$6,6,2)," ") ->  | Y15: =IF(AND(OR(Y$7<=$W15,$W15=""),OR(Y$7=$V15,X15<>" ")),$S15*$J15*(1+'6_Other Assumptions'!$B$9)^MID('7_Model'!Y$6,6,2)," ") ->  | Z15: =IF(AND(OR(Z$7<=$W15,$W15=""),OR(Z$7=$V15,Y15<>" ")),$S15*$J15*(1+'6_Other Assumptions'!$B$9)^MID('7_Model'!Z$6,6,2)," ") ->  | AA15: =IF(AND(OR(AA$7<=$W15,$W15=""),OR(AA$7=$V15,Z15<>" ")),$S15*$J15*(1+'6_Other Assumptions'!$B$9)^MID('7_Model'!AA$6,6,2)," ") ->  | AB15: =IF(AND(OR(AB$7<=$W15,$W15=""),OR(AB$7=$V15,AA15<>" ")),$S15*$J15*(1+'6_Other Assumptions'!$B$9)^MID('7_Model'!AB$6,6,2)," ") ->  | AC15: =IF(AND(OR(AC$7<=$W15,$W15=""),OR(AC$7=$V15,AB15<>" ")),$S15*$J15*(1+'6_Other Assumptions'!$B$9)^MID('7_Model'!AC$6,6,2)," ") ->  | AD15: =IF(AND(OR(AD$7<=$W15,$W15=""),OR(AD$7=$V15,AC15<>" ")),$S15*$J15*(1+'6_Other Assumptions'!$B$9)^MID('7_Model'!AD$6,6,2)," ") ->  | AE15: =IF(AND(OR(AE$7<=$W15,$W15=""),OR(AE$7=$V15,AD15<>" ")),$S15*$J15*(1+'6_Other Assumptions'!$B$9)^MID('7_Model'!AE$6,6,2)," ") ->  | AF15: =IF(AND(OR(AF$7<=$W15,$W15=""),OR(AF$7=$V15,AE15<>" ")),$S15*$J15*(1+'6_Other Assumptions'!$B$9)^MID('7_Model'!AF$6,6,2)," ") ->  | AG15: =IF(AND(OR(AG$7<=$W15,$W15=""),OR(AG$7=$V15,AF15<>" ")),$S15*$J15*(1+'6_Other Assumptions'!$B$9)^MID('7_Model'!AG$6,6,2)," ") ->  | AH15: =IF(AND(OR(AH$7<=$W15,$W15=""),OR(AH$7=$V15,AG15<>" ")),$S15*$J15*(1+'6_Other Assumptions'!$B$9)^MID('7_Model'!AH$6,6,2)," ") ->  | AI15: =IF(AND(OR(AI$7<=$W15,$W15=""),OR(AI$7=$V15,AH15<>" ")),$S15*$J15*(1+'6_Other Assumptions'!$B$9)^MID('7_Model'!AI$6,6,2)," ") ->  | AJ15: =IF(AND(OR(AJ$7<=$W15,$W15=""),OR(AJ$7=$V15,AI15<>" ")),$S15*$J15*(1+'6_Other Assumptions'!$B$9)^MID('7_Model'!AJ$6,6,2)," ") ->  | AK15: =IF(AND(OR(AK$7<=$W15,$W15=""),OR(AK$7=$V15,AJ15<>" ")),$S15*$J15*(1+'6_Other Assumptions'!$B$9)^MID('7_Model'!AK$6,6,2)," ") ->  | AL15: =IF(AND(OR(AL$7<=$W15,$W15=""),OR(AL$7=$V15,AK15<>" ")),$S15*$J15*(1+'6_Other Assumptions'!$B$9)^MID('7_Model'!AL$6,6,2)," ") ->  | AM15: =IF(AND(OR(AM$7<=$W15,$W15=""),OR(AM$7=$V15,AL15<>" ")),$S15*$J15*(1+'6_Other Assumptions'!$B$9)^MID('7_Model'!AM$6,6,2)," ") ->  | AN15: =IF(AND(OR(AN$7<=$W15,$W15=""),OR(AN$7=$V15,AM15<>" ")),$S15*$J15*(1+'6_Other Assumptions'!$B$9)^MID('7_Model'!AN$6,6,2)," ") ->  | AO15: =IF(AND(OR(AO$7<=$W15,$W15=""),OR(AO$7=$V15,AN15<>" ")),$S15*$J15*(1+'6_Other Assumptions'!$B$9)^MID('7_Model'!AO$6,6,2)," ") ->  | AP15: =IF(AND(OR(AP$7<=$W15,$W15=""),OR(AP$7=$V15,AO15<>" ")),$S15*$J15*(1+'6_Other Assumptions'!$B$9)^MID('7_Model'!AP$6,6,2)," ") ->  | AQ15: =IF(AND(OR(AQ$7<=$W15,$W15=""),OR(AQ$7=$V15,AP15<>" ")),$S15*$J15*(1+'6_Other Assumptions'!$B$9)^MID('7_Model'!AQ$6,6,2)," ") ->  | AR15: =IF(AND(OR(AR$7<=$W15,$W15=""),OR(AR$7=$V15,AQ15<>" ")),$S15*$J15*(1+'6_Other Assumptions'!$B$9)^MID('7_Model'!AR$6,6,2)," ") ->  | AS15: =IF(AND(OR(AS$7<=$W15,$W15=""),OR(AS$7=$V15,AR15<>" ")),$S15*$J15*(1+'6_Other Assumptions'!$B$9)^MID('7_Model'!AS$6,6,2)," ") ->  | AT15: =IF(AND(OR(AT$7<=$W15,$W15=""),OR(AT$7=$V15,AS15<>" ")),$S15*$J15*(1+'6_Other Assumptions'!$B$9)^MID('7_Model'!AT$6,6,2)," ") ->  | AU15: =IF(AND(OR(AU$7<=$W15,$W15=""),OR(AU$7=$V15,AT15<>" ")),$S15*$J15*(1+'6_Other Assumptions'!$B$9)^MID('7_Model'!AU$6,6,2)," ") ->  | AV15: =IF(AND(OR(AV$7<=$W15,$W15=""),OR(AV$7=$V15,AU15<>" ")),$S15*$J15*(1+'6_Other Assumptions'!$B$9)^MID('7_Model'!AV$6,6,2)," ") ->  | AW15: =IF(AND(OR(AW$7<=$W15,$W15=""),OR(AW$7=$V15,AV15<>" ")),$S15*$J15*(1+'6_Other Assumptions'!$B$9)^MID('7_Model'!AW$6,6,2)," ") ->  | AX15: =IF(AND(OR(AX$7<=$W15,$W15=""),OR(AX$7=$V15,AW15<>" ")),$S15*$J15*(1+'6_Other Assumptions'!$B$9)^MID('7_Model'!AX$6,6,2)," ") ->  | AY15: =IF(AND(OR(AY$7<=$W15,$W15=""),OR(AY$7=$V15,AX15<>" ")),$S15*$J15*(1+'6_Other Assumptions'!$B$9)^MID('7_Model'!AY$6,6,2)," ") ->  | AZ15: =IF(AND(OR(AZ$7<=$W15,$W15=""),OR(AZ$7=$V15,AY15<>" ")),$S15*$J15*(1+'6_Other Assumptions'!$B$9)^MID('7_Model'!AZ$6,6,2)," ") ->  | BA15: =IF(AND(OR(BA$7<=$W15,$W15=""),OR(BA$7=$V15,AZ15<>" ")),$S15*$J15*(1+'6_Other Assumptions'!$B$9)^MID('7_Model'!BA$6,6,2)," ") ->  | BB15: =IF(AND(OR(BB$7<=$W15,$W15=""),OR(BB$7=$V15,BA15<>" ")),$S15*$J15*(1+'6_Other Assumptions'!$B$9)^MID('7_Model'!BB$6,6,2)," ") ->  | BC15: =IF(AND(OR(BC$7<=$W15,$W15=""),OR(BC$7=$V15,BB15<>" ")),$S15*$J15*(1+'6_Other Assumptions'!$B$9)^MID('7_Model'!BC$6,6,2)," ") ->  | BD15: =IF(AND(OR(BD$7<=$W15,$W15=""),OR(BD$7=$V15,BC15<>" ")),$S15*$J15*(1+'6_Other Assumptions'!$B$9)^MID('7_Model'!BD$6,6,2)," ") ->  | BE15: =IF(AND(OR(BE$7<=$W15,$W15=""),OR(BE$7=$V15,BD15<>" ")),$S15*$J15*(1+'6_Other Assumptions'!$B$9)^MID('7_Model'!BE$6,6,2)," ") ->  | BF15: =IF(AND(OR(BF$7<=$W15,$W15=""),OR(BF$7=$V15,BE15<>" ")),$S15*$J15*(1+'6_Other Assumptions'!$B$9)^MID('7_Model'!BF$6,6,2)," ") ->  | BG15: =IF(AND(OR(BG$7<=$W15,$W15=""),OR(BG$7=$V15,BF15<>" ")),$S15*$J15*(1+'6_Other Assumptions'!$B$9)^MID('7_Model'!BG$6,6,2)," ") ->  | BH15: =IF(AND(OR(BH$7<=$W15,$W15=""),OR(BH$7=$V15,BG15<>" ")),$S15*$J15*(1+'6_Other Assumptions'!$B$9)^MID('7_Model'!BH$6,6,2)," ") -> 
A16: 9 | B16: =IF(ISBLANK(INDEX(Database[Project Name],A16,1)),"",INDEX(Database[Project Name],A16,1)) ->  | C16: =IF(ISBLANK(INDEX(Database[Watershed],$A16,1)),"",INDEX(Database[Watershed],$A16,1)) ->  | D16: =IF(ISBLANK(INDEX(Database[BMP Type],$A16,1)),"",INDEX(Database[BMP Type],$A16,1)) ->  | E16: =IF(ISBLANK(INDEX(Database[BMP Sub-type],$A16,1)),"",INDEX(Database[BMP Sub-type],$A16,1)) ->  | F16: =IF(ISBLANK(INDEX(Database[BMP Sub-sub-type],$A16,1)),"",INDEX(Database[BMP Sub-sub-type],$A16,1)) ->  | H16: =IF(ISBLANK(INDEX(Database[Spatial Distribution of BMP],$A16,1)),"",INDEX(Database[Spatial Distribution of BMP],$A16,1)) ->  | I16: =IF(H16="Typical",INDEX('5_Cost Assumptions'!$Y$7:$Y$230,MATCH('7_Model'!G16,'5_Cost Assumptions'!$D$7:$D$230,0)),IF(H16="Concentrated",INDEX('5_Cost Assumptions'!$AA$7:$AA$230,MATCH('7_Model'!G16,'5_Cost Assumptions'!$D$7:$D$230,0)),IF(H16="Dispersed",INDEX('5_Cost Assumptions'!$Z$7:$Z$230,MATCH('7_Model'!G16,'5_Cost Assumptions'!$D$7:$D$230,0)),""))) ->  | J16: =IF(ISBLANK(INDEX(Database[BMP Size],$A16,1)),"",INDEX(Database[BMP Size],$A16,1)) ->  | K16: =IF(B16="","",INDEX('5_Cost Assumptions'!$E$7:$E$230,MATCH(G16,'5_Cost Assumptions'!$D$7:$D$230,0))) ->  | L16: =IF(ISBLANK(INDEX(Database[Service Level],$A16,1)),"",INDEX(Database[Service Level],$A16,1)) ->  | M16: =IF(B16="","",INDEX('5_Cost Assumptions'!$I$7:$I$230,MATCH(G16,'5_Cost Assumptions'!$D$7:$D$230,0))) ->  | N16: =IF(B16="","",INDEX('5_Cost Assumptions'!$J$7:$J$230,MATCH(G16,'5_Cost Assumptions'!$D$7:$D$230,0))) ->  | O16: =IF(ISBLANK(INDEX(Database[Proportion of BMP cost for which SFPUC has O&M Responsibility (% of cost)],$A16,1)),"",INDEX(Database[Proportion of BMP cost for which SFPUC has O&M Responsibility (% of cost)],$A16,1)) ->  | P16: =IF(B16="","",INDEX('5_Cost Assumptions'!$W$7:$W$230,MATCH(G16,'5_Cost Assumptions'!$D$7:$D$230,0))) ->  | R16: =IF(ISBLANK(INDEX(Database[Cost Adjustment Factor (%)],$A16,1)),"",INDEX(Database[Cost Adjustment Factor (%)],$A16,1)) ->  | T16: =IF(B16="","",INDEX('5_Cost Assumptions'!$K$7:$K$230,MATCH(G16,'5_Cost Assumptions'!$D$7:$D$230,0))) ->  | U16: =IF(ISBLANK(INDEX(Database[Comments (text)],$A16,1)),"",INDEX(Database[Comments (text)],$A16,1)) ->  | V16: =IF(ISBLANK(INDEX(Database[SFPUC Maintenance Start Date (YYYY)],$A16,1)),"",INDEX(Database[SFPUC Maintenance Start Date (YYYY)],$A16,1)) ->  | W16: =IF(ISBLANK(INDEX(Database[SFPUC Maintenance End Date (YYYY) - can be left blank if maintenance is ongoing],$A16,1)),"",INDEX(Database[SFPUC Maintenance End Date (YYYY) - can be left blank if maintenance is ongoing],$A16,1)) ->  | X16: =IF($X$7=$V16,$S$8*J16*(1+'6_Other Assumptions'!$B$9)^MID('7_Model'!$X$6,6,2)," ") ->  | Y16: =IF(AND(OR(Y$7<=$W16,$W16=""),OR(Y$7=$V16,X16<>" ")),$S16*$J16*(1+'6_Other Assumptions'!$B$9)^MID('7_Model'!Y$6,6,2)," ") ->  | Z16: =IF(AND(OR(Z$7<=$W16,$W16=""),OR(Z$7=$V16,Y16<>" ")),$S16*$J16*(1+'6_Other Assumptions'!$B$9)^MID('7_Model'!Z$6,6,2)," ") ->  | AA16: =IF(AND(OR(AA$7<=$W16,$W16=""),OR(AA$7=$V16,Z16<>" ")),$S16*$J16*(1+'6_Other Assumptions'!$B$9)^MID('7_Model'!AA$6,6,2)," ") ->  | AB16: =IF(AND(OR(AB$7<=$W16,$W16=""),OR(AB$7=$V16,AA16<>" ")),$S16*$J16*(1+'6_Other Assumptions'!$B$9)^MID('7_Model'!AB$6,6,2)," ") ->  | AC16: =IF(AND(OR(AC$7<=$W16,$W16=""),OR(AC$7=$V16,AB16<>" ")),$S16*$J16*(1+'6_Other Assumptions'!$B$9)^MID('7_Model'!AC$6,6,2)," ") ->  | AD16: =IF(AND(OR(AD$7<=$W16,$W16=""),OR(AD$7=$V16,AC16<>" ")),$S16*$J16*(1+'6_Other Assumptions'!$B$9)^MID('7_Model'!AD$6,6,2)," ") ->  | AE16: =IF(AND(OR(AE$7<=$W16,$W16=""),OR(AE$7=$V16,AD16<>" ")),$S16*$J16*(1+'6_Other Assumptions'!$B$9)^MID('7_Model'!AE$6,6,2)," ") ->  | AF16: =IF(AND(OR(AF$7<=$W16,$W16=""),OR(AF$7=$V16,AE16<>" ")),$S16*$J16*(1+'6_Other Assumptions'!$B$9)^MID('7_Model'!AF$6,6,2)," ") ->  | AG16: =IF(AND(OR(AG$7<=$W16,$W16=""),OR(AG$7=$V16,AF16<>" ")),$S16*$J16*(1+'6_Other Assumptions'!$B$9)^MID('7_Model'!AG$6,6,2)," ") ->  | AH16: =IF(AND(OR(AH$7<=$W16,$W16=""),OR(AH$7=$V16,AG16<>" ")),$S16*$J16*(1+'6_Other Assumptions'!$B$9)^MID('7_Model'!AH$6,6,2)," ") ->  | AI16: =IF(AND(OR(AI$7<=$W16,$W16=""),OR(AI$7=$V16,AH16<>" ")),$S16*$J16*(1+'6_Other Assumptions'!$B$9)^MID('7_Model'!AI$6,6,2)," ") ->  | AJ16: =IF(AND(OR(AJ$7<=$W16,$W16=""),OR(AJ$7=$V16,AI16<>" ")),$S16*$J16*(1+'6_Other Assumptions'!$B$9)^MID('7_Model'!AJ$6,6,2)," ") ->  | AK16: =IF(AND(OR(AK$7<=$W16,$W16=""),OR(AK$7=$V16,AJ16<>" ")),$S16*$J16*(1+'6_Other Assumptions'!$B$9)^MID('7_Model'!AK$6,6,2)," ") ->  | AL16: =IF(AND(OR(AL$7<=$W16,$W16=""),OR(AL$7=$V16,AK16<>" ")),$S16*$J16*(1+'6_Other Assumptions'!$B$9)^MID('7_Model'!AL$6,6,2)," ") ->  | AM16: =IF(AND(OR(AM$7<=$W16,$W16=""),OR(AM$7=$V16,AL16<>" ")),$S16*$J16*(1+'6_Other Assumptions'!$B$9)^MID('7_Model'!AM$6,6,2)," ") ->  | AN16: =IF(AND(OR(AN$7<=$W16,$W16=""),OR(AN$7=$V16,AM16<>" ")),$S16*$J16*(1+'6_Other Assumptions'!$B$9)^MID('7_Model'!AN$6,6,2)," ") ->  | AO16: =IF(AND(OR(AO$7<=$W16,$W16=""),OR(AO$7=$V16,AN16<>" ")),$S16*$J16*(1+'6_Other Assumptions'!$B$9)^MID('7_Model'!AO$6,6,2)," ") ->  | AP16: =IF(AND(OR(AP$7<=$W16,$W16=""),OR(AP$7=$V16,AO16<>" ")),$S16*$J16*(1+'6_Other Assumptions'!$B$9)^MID('7_Model'!AP$6,6,2)," ") ->  | AQ16: =IF(AND(OR(AQ$7<=$W16,$W16=""),OR(AQ$7=$V16,AP16<>" ")),$S16*$J16*(1+'6_Other Assumptions'!$B$9)^MID('7_Model'!AQ$6,6,2)," ") ->  | AR16: =IF(AND(OR(AR$7<=$W16,$W16=""),OR(AR$7=$V16,AQ16<>" ")),$S16*$J16*(1+'6_Other Assumptions'!$B$9)^MID('7_Model'!AR$6,6,2)," ") ->  | AS16: =IF(AND(OR(AS$7<=$W16,$W16=""),OR(AS$7=$V16,AR16<>" ")),$S16*$J16*(1+'6_Other Assumptions'!$B$9)^MID('7_Model'!AS$6,6,2)," ") ->  | AT16: =IF(AND(OR(AT$7<=$W16,$W16=""),OR(AT$7=$V16,AS16<>" ")),$S16*$J16*(1+'6_Other Assumptions'!$B$9)^MID('7_Model'!AT$6,6,2)," ") ->  | AU16: =IF(AND(OR(AU$7<=$W16,$W16=""),OR(AU$7=$V16,AT16<>" ")),$S16*$J16*(1+'6_Other Assumptions'!$B$9)^MID('7_Model'!AU$6,6,2)," ") ->  | AV16: =IF(AND(OR(AV$7<=$W16,$W16=""),OR(AV$7=$V16,AU16<>" ")),$S16*$J16*(1+'6_Other Assumptions'!$B$9)^MID('7_Model'!AV$6,6,2)," ") ->  | AW16: =IF(AND(OR(AW$7<=$W16,$W16=""),OR(AW$7=$V16,AV16<>" ")),$S16*$J16*(1+'6_Other Assumptions'!$B$9)^MID('7_Model'!AW$6,6,2)," ") ->  | AX16: =IF(AND(OR(AX$7<=$W16,$W16=""),OR(AX$7=$V16,AW16<>" ")),$S16*$J16*(1+'6_Other Assumptions'!$B$9)^MID('7_Model'!AX$6,6,2)," ") ->  | AY16: =IF(AND(OR(AY$7<=$W16,$W16=""),OR(AY$7=$V16,AX16<>" ")),$S16*$J16*(1+'6_Other Assumptions'!$B$9)^MID('7_Model'!AY$6,6,2)," ") ->  | AZ16: =IF(AND(OR(AZ$7<=$W16,$W16=""),OR(AZ$7=$V16,AY16<>" ")),$S16*$J16*(1+'6_Other Assumptions'!$B$9)^MID('7_Model'!AZ$6,6,2)," ") ->  | BA16: =IF(AND(OR(BA$7<=$W16,$W16=""),OR(BA$7=$V16,AZ16<>" ")),$S16*$J16*(1+'6_Other Assumptions'!$B$9)^MID('7_Model'!BA$6,6,2)," ") ->  | BB16: =IF(AND(OR(BB$7<=$W16,$W16=""),OR(BB$7=$V16,BA16<>" ")),$S16*$J16*(1+'6_Other Assumptions'!$B$9)^MID('7_Model'!BB$6,6,2)," ") ->  | BC16: =IF(AND(OR(BC$7<=$W16,$W16=""),OR(BC$7=$V16,BB16<>" ")),$S16*$J16*(1+'6_Other Assumptions'!$B$9)^MID('7_Model'!BC$6,6,2)," ") ->  | BD16: =IF(AND(OR(BD$7<=$W16,$W16=""),OR(BD$7=$V16,BC16<>" ")),$S16*$J16*(1+'6_Other Assumptions'!$B$9)^MID('7_Model'!BD$6,6,2)," ") ->  | BE16: =IF(AND(OR(BE$7<=$W16,$W16=""),OR(BE$7=$V16,BD16<>" ")),$S16*$J16*(1+'6_Other Assumptions'!$B$9)^MID('7_Model'!BE$6,6,2)," ") ->  | BF16: =IF(AND(OR(BF$7<=$W16,$W16=""),OR(BF$7=$V16,BE16<>" ")),$S16*$J16*(1+'6_Other Assumptions'!$B$9)^MID('7_Model'!BF$6,6,2)," ") ->  | BG16: =IF(AND(OR(BG$7<=$W16,$W16=""),OR(BG$7=$V16,BF16<>" ")),$S16*$J16*(1+'6_Other Assumptions'!$B$9)^MID('7_Model'!BG$6,6,2)," ") ->  | BH16: =IF(AND(OR(BH$7<=$W16,$W16=""),OR(BH$7=$V16,BG16<>" ")),$S16*$J16*(1+'6_Other Assumptions'!$B$9)^MID('7_Model'!BH$6,6,2)," ") -> 
A17: 10 | B17: =IF(ISBLANK(INDEX(Database[Project Name],A17,1)),"",INDEX(Database[Project Name],A17,1)) ->  | C17: =IF(ISBLANK(INDEX(Database[Watershed],$A17,1)),"",INDEX(Database[Watershed],$A17,1)) ->  | D17: =IF(ISBLANK(INDEX(Database[BMP Type],$A17,1)),"",INDEX(Database[BMP Type],$A17,1)) ->  | E17: =IF(ISBLANK(INDEX(Database[BMP Sub-type],$A17,1)),"",INDEX(Database[BMP Sub-type],$A17,1)) ->  | F17: =IF(ISBLANK(INDEX(Database[BMP Sub-sub-type],$A17,1)),"",INDEX(Database[BMP Sub-sub-type],$A17,1)) ->  | H17: =IF(ISBLANK(INDEX(Database[Spatial Distribution of BMP],$A17,1)),"",INDEX(Database[Spatial Distribution of BMP],$A17,1)) ->  | I17: =IF(H17="Typical",INDEX('5_Cost Assumptions'!$Y$7:$Y$230,MATCH('7_Model'!G17,'5_Cost Assumptions'!$D$7:$D$230,0)),IF(H17="Concentrated",INDEX('5_Cost Assumptions'!$AA$7:$AA$230,MATCH('7_Model'!G17,'5_Cost Assumptions'!$D$7:$D$230,0)),IF(H17="Dispersed",INDEX('5_Cost Assumptions'!$Z$7:$Z$230,MATCH('7_Model'!G17,'5_Cost Assumptions'!$D$7:$D$230,0)),""))) ->  | J17: =IF(ISBLANK(INDEX(Database[BMP Size],$A17,1)),"",INDEX(Database[BMP Size],$A17,1)) ->  | K17: =IF(B17="","",INDEX('5_Cost Assumptions'!$E$7:$E$230,MATCH(G17,'5_Cost Assumptions'!$D$7:$D$230,0))) ->  | L17: =IF(ISBLANK(INDEX(Database[Service Level],$A17,1)),"",INDEX(Database[Service Level],$A17,1)) ->  | M17: =IF(B17="","",INDEX('5_Cost Assumptions'!$I$7:$I$230,MATCH(G17,'5_Cost Assumptions'!$D$7:$D$230,0))) ->  | N17: =IF(B17="","",INDEX('5_Cost Assumptions'!$J$7:$J$230,MATCH(G17,'5_Cost Assumptions'!$D$7:$D$230,0))) ->  | O17: =IF(ISBLANK(INDEX(Database[Proportion of BMP cost for which SFPUC has O&M Responsibility (% of cost)],$A17,1)),"",INDEX(Database[Proportion of BMP cost for which SFPUC has O&M Responsibility (% of cost)],$A17,1)) ->  | P17: =IF(B17="","",INDEX('5_Cost Assumptions'!$W$7:$W$230,MATCH(G17,'5_Cost Assumptions'!$D$7:$D$230,0))) ->  | R17: =IF(ISBLANK(INDEX(Database[Cost Adjustment Factor (%)],$A17,1)),"",INDEX(Database[Cost Adjustment Factor (%)],$A17,1)) ->  | T17: =IF(B17="","",INDEX('5_Cost Assumptions'!$K$7:$K$230,MATCH(G17,'5_Cost Assumptions'!$D$7:$D$230,0))) ->  | U17: =IF(ISBLANK(INDEX(Database[Comments (text)],$A17,1)),"",INDEX(Database[Comments (text)],$A17,1)) ->  | V17: =IF(ISBLANK(INDEX(Database[SFPUC Maintenance Start Date (YYYY)],$A17,1)),"",INDEX(Database[SFPUC Maintenance Start Date (YYYY)],$A17,1)) ->  | W17: =IF(ISBLANK(INDEX(Database[SFPUC Maintenance End Date (YYYY) - can be left blank if maintenance is ongoing],$A17,1)),"",INDEX(Database[SFPUC Maintenance End Date (YYYY) - can be left blank if maintenance is ongoing],$A17,1)) ->  | X17: =IF($X$7=$V17,$S$8*J17*(1+'6_Other Assumptions'!$B$9)^MID('7_Model'!$X$6,6,2)," ") ->  | Y17: =IF(AND(OR(Y$7<=$W17,$W17=""),OR(Y$7=$V17,X17<>" ")),$S17*$J17*(1+'6_Other Assumptions'!$B$9)^MID('7_Model'!Y$6,6,2)," ") ->  | Z17: =IF(AND(OR(Z$7<=$W17,$W17=""),OR(Z$7=$V17,Y17<>" ")),$S17*$J17*(1+'6_Other Assumptions'!$B$9)^MID('7_Model'!Z$6,6,2)," ") ->  | AA17: =IF(AND(OR(AA$7<=$W17,$W17=""),OR(AA$7=$V17,Z17<>" ")),$S17*$J17*(1+'6_Other Assumptions'!$B$9)^MID('7_Model'!AA$6,6,2)," ") ->  | AB17: =IF(AND(OR(AB$7<=$W17,$W17=""),OR(AB$7=$V17,AA17<>" ")),$S17*$J17*(1+'6_Other Assumptions'!$B$9)^MID('7_Model'!AB$6,6,2)," ") ->  | AC17: =IF(AND(OR(AC$7<=$W17,$W17=""),OR(AC$7=$V17,AB17<>" ")),$S17*$J17*(1+'6_Other Assumptions'!$B$9)^MID('7_Model'!AC$6,6,2)," ") ->  | AD17: =IF(AND(OR(AD$7<=$W17,$W17=""),OR(AD$7=$V17,AC17<>" ")),$S17*$J17*(1+'6_Other Assumptions'!$B$9)^MID('7_Model'!AD$6,6,2)," ") ->  | AE17: =IF(AND(OR(AE$7<=$W17,$W17=""),OR(AE$7=$V17,AD17<>" ")),$S17*$J17*(1+'6_Other Assumptions'!$B$9)^MID('7_Model'!AE$6,6,2)," ") ->  | AF17: =IF(AND(OR(AF$7<=$W17,$W17=""),OR(AF$7=$V17,AE17<>" ")),$S17*$J17*(1+'6_Other Assumptions'!$B$9)^MID('7_Model'!AF$6,6,2)," ") ->  | AG17: =IF(AND(OR(AG$7<=$W17,$W17=""),OR(AG$7=$V17,AF17<>" ")),$S17*$J17*(1+'6_Other Assumptions'!$B$9)^MID('7_Model'!AG$6,6,2)," ") ->  | AH17: =IF(AND(OR(AH$7<=$W17,$W17=""),OR(AH$7=$V17,AG17<>" ")),$S17*$J17*(1+'6_Other Assumptions'!$B$9)^MID('7_Model'!AH$6,6,2)," ") ->  | AI17: =IF(AND(OR(AI$7<=$W17,$W17=""),OR(AI$7=$V17,AH17<>" ")),$S17*$J17*(1+'6_Other Assumptions'!$B$9)^MID('7_Model'!AI$6,6,2)," ") ->  | AJ17: =IF(AND(OR(AJ$7<=$W17,$W17=""),OR(AJ$7=$V17,AI17<>" ")),$S17*$J17*(1+'6_Other Assumptions'!$B$9)^MID('7_Model'!AJ$6,6,2)," ") ->  | AK17: =IF(AND(OR(AK$7<=$W17,$W17=""),OR(AK$7=$V17,AJ17<>" ")),$S17*$J17*(1+'6_Other Assumptions'!$B$9)^MID('7_Model'!AK$6,6,2)," ") ->  | AL17: =IF(AND(OR(AL$7<=$W17,$W17=""),OR(AL$7=$V17,AK17<>" ")),$S17*$J17*(1+'6_Other Assumptions'!$B$9)^MID('7_Model'!AL$6,6,2)," ") ->  | AM17: =IF(AND(OR(AM$7<=$W17,$W17=""),OR(AM$7=$V17,AL17<>" ")),$S17*$J17*(1+'6_Other Assumptions'!$B$9)^MID('7_Model'!AM$6,6,2)," ") ->  | AN17: =IF(AND(OR(AN$7<=$W17,$W17=""),OR(AN$7=$V17,AM17<>" ")),$S17*$J17*(1+'6_Other Assumptions'!$B$9)^MID('7_Model'!AN$6,6,2)," ") ->  | AO17: =IF(AND(OR(AO$7<=$W17,$W17=""),OR(AO$7=$V17,AN17<>" ")),$S17*$J17*(1+'6_Other Assumptions'!$B$9)^MID('7_Model'!AO$6,6,2)," ") ->  | AP17: =IF(AND(OR(AP$7<=$W17,$W17=""),OR(AP$7=$V17,AO17<>" ")),$S17*$J17*(1+'6_Other Assumptions'!$B$9)^MID('7_Model'!AP$6,6,2)," ") ->  | AQ17: =IF(AND(OR(AQ$7<=$W17,$W17=""),OR(AQ$7=$V17,AP17<>" ")),$S17*$J17*(1+'6_Other Assumptions'!$B$9)^MID('7_Model'!AQ$6,6,2)," ") ->  | AR17: =IF(AND(OR(AR$7<=$W17,$W17=""),OR(AR$7=$V17,AQ17<>" ")),$S17*$J17*(1+'6_Other Assumptions'!$B$9)^MID('7_Model'!AR$6,6,2)," ") ->  | AS17: =IF(AND(OR(AS$7<=$W17,$W17=""),OR(AS$7=$V17,AR17<>" ")),$S17*$J17*(1+'6_Other Assumptions'!$B$9)^MID('7_Model'!AS$6,6,2)," ") ->  | AT17: =IF(AND(OR(AT$7<=$W17,$W17=""),OR(AT$7=$V17,AS17<>" ")),$S17*$J17*(1+'6_Other Assumptions'!$B$9)^MID('7_Model'!AT$6,6,2)," ") ->  | AU17: =IF(AND(OR(AU$7<=$W17,$W17=""),OR(AU$7=$V17,AT17<>" ")),$S17*$J17*(1+'6_Other Assumptions'!$B$9)^MID('7_Model'!AU$6,6,2)," ") ->  | AV17: =IF(AND(OR(AV$7<=$W17,$W17=""),OR(AV$7=$V17,AU17<>" ")),$S17*$J17*(1+'6_Other Assumptions'!$B$9)^MID('7_Model'!AV$6,6,2)," ") ->  | AW17: =IF(AND(OR(AW$7<=$W17,$W17=""),OR(AW$7=$V17,AV17<>" ")),$S17*$J17*(1+'6_Other Assumptions'!$B$9)^MID('7_Model'!AW$6,6,2)," ") ->  | AX17: =IF(AND(OR(AX$7<=$W17,$W17=""),OR(AX$7=$V17,AW17<>" ")),$S17*$J17*(1+'6_Other Assumptions'!$B$9)^MID('7_Model'!AX$6,6,2)," ") ->  | AY17: =IF(AND(OR(AY$7<=$W17,$W17=""),OR(AY$7=$V17,AX17<>" ")),$S17*$J17*(1+'6_Other Assumptions'!$B$9)^MID('7_Model'!AY$6,6,2)," ") ->  | AZ17: =IF(AND(OR(AZ$7<=$W17,$W17=""),OR(AZ$7=$V17,AY17<>" ")),$S17*$J17*(1+'6_Other Assumptions'!$B$9)^MID('7_Model'!AZ$6,6,2)," ") ->  | BA17: =IF(AND(OR(BA$7<=$W17,$W17=""),OR(BA$7=$V17,AZ17<>" ")),$S17*$J17*(1+'6_Other Assumptions'!$B$9)^MID('7_Model'!BA$6,6,2)," ") ->  | BB17: =IF(AND(OR(BB$7<=$W17,$W17=""),OR(BB$7=$V17,BA17<>" ")),$S17*$J17*(1+'6_Other Assumptions'!$B$9)^MID('7_Model'!BB$6,6,2)," ") ->  | BC17: =IF(AND(OR(BC$7<=$W17,$W17=""),OR(BC$7=$V17,BB17<>" ")),$S17*$J17*(1+'6_Other Assumptions'!$B$9)^MID('7_Model'!BC$6,6,2)," ") ->  | BD17: =IF(AND(OR(BD$7<=$W17,$W17=""),OR(BD$7=$V17,BC17<>" ")),$S17*$J17*(1+'6_Other Assumptions'!$B$9)^MID('7_Model'!BD$6,6,2)," ") ->  | BE17: =IF(AND(OR(BE$7<=$W17,$W17=""),OR(BE$7=$V17,BD17<>" ")),$S17*$J17*(1+'6_Other Assumptions'!$B$9)^MID('7_Model'!BE$6,6,2)," ") ->  | BF17: =IF(AND(OR(BF$7<=$W17,$W17=""),OR(BF$7=$V17,BE17<>" ")),$S17*$J17*(1+'6_Other Assumptions'!$B$9)^MID('7_Model'!BF$6,6,2)," ") ->  | BG17: =IF(AND(OR(BG$7<=$W17,$W17=""),OR(BG$7=$V17,BF17<>" ")),$S17*$J17*(1+'6_Other Assumptions'!$B$9)^MID('7_Model'!BG$6,6,2)," ") ->  | BH17: =IF(AND(OR(BH$7<=$W17,$W17=""),OR(BH$7=$V17,BG17<>" ")),$S17*$J17*(1+'6_Other Assumptions'!$B$9)^MID('7_Model'!BH$6,6,2)," ") -> 
A18: 11 | B18: =IF(ISBLANK(INDEX(Database[Project Name],A18,1)),"",INDEX(Database[Project Name],A18,1)) ->  | C18: =IF(ISBLANK(INDEX(Database[Watershed],$A18,1)),"",INDEX(Database[Watershed],$A18,1)) ->  | D18: =IF(ISBLANK(INDEX(Database[BMP Type],$A18,1)),"",INDEX(Database[BMP Type],$A18,1)) ->  | E18: =IF(ISBLANK(INDEX(Database[BMP Sub-type],$A18,1)),"",INDEX(Database[BMP Sub-type],$A18,1)) ->  | F18: =IF(ISBLANK(INDEX(Database[BMP Sub-sub-type],$A18,1)),"",INDEX(Database[BMP Sub-sub-type],$A18,1)) ->  | H18: =IF(ISBLANK(INDEX(Database[Spatial Distribution of BMP],$A18,1)),"",INDEX(Database[Spatial Distribution of BMP],$A18,1)) ->  | I18: =IF(H18="Typical",INDEX('5_Cost Assumptions'!$Y$7:$Y$230,MATCH('7_Model'!G18,'5_Cost Assumptions'!$D$7:$D$230,0)),IF(H18="Concentrated",INDEX('5_Cost Assumptions'!$AA$7:$AA$230,MATCH('7_Model'!G18,'5_Cost Assumptions'!$D$7:$D$230,0)),IF(H18="Dispersed",INDEX('5_Cost Assumptions'!$Z$7:$Z$230,MATCH('7_Model'!G18,'5_Cost Assumptions'!$D$7:$D$230,0)),""))) ->  | J18: =IF(ISBLANK(INDEX(Database[BMP Size],$A18,1)),"",INDEX(Database[BMP Size],$A18,1)) ->  | K18: =IF(B18="","",INDEX('5_Cost Assumptions'!$E$7:$E$230,MATCH(G18,'5_Cost Assumptions'!$D$7:$D$230,0))) ->  | L18: =IF(ISBLANK(INDEX(Database[Service Level],$A18,1)),"",INDEX(Database[Service Level],$A18,1)) ->  | M18: =IF(B18="","",INDEX('5_Cost Assumptions'!$I$7:$I$230,MATCH(G18,'5_Cost Assumptions'!$D$7:$D$230,0))) ->  | N18: =IF(B18="","",INDEX('5_Cost Assumptions'!$J$7:$J$230,MATCH(G18,'5_Cost Assumptions'!$D$7:$D$230,0))) ->  | O18: =IF(ISBLANK(INDEX(Database[Proportion of BMP cost for which SFPUC has O&M Responsibility (% of cost)],$A18,1)),"",INDEX(Database[Proportion of BMP cost for which SFPUC has O&M Responsibility (% of cost)],$A18,1)) ->  | P18: =IF(B18="","",INDEX('5_Cost Assumptions'!$W$7:$W$230,MATCH(G18,'5_Cost Assumptions'!$D$7:$D$230,0))) ->  | R18: =IF(ISBLANK(INDEX(Database[Cost Adjustment Factor (%)],$A18,1)),"",INDEX(Database[Cost Adjustment Factor (%)],$A18,1)) ->  | T18: =IF(B18="","",INDEX('5_Cost Assumptions'!$K$7:$K$230,MATCH(G18,'5_Cost Assumptions'!$D$7:$D$230,0))) ->  | U18: =IF(ISBLANK(INDEX(Database[Comments (text)],$A18,1)),"",INDEX(Database[Comments (text)],$A18,1)) ->  | V18: =IF(ISBLANK(INDEX(Database[SFPUC Maintenance Start Date (YYYY)],$A18,1)),"",INDEX(Database[SFPUC Maintenance Start Date (YYYY)],$A18,1)) ->  | W18: =IF(ISBLANK(INDEX(Database[SFPUC Maintenance End Date (YYYY) - can be left blank if maintenance is ongoing],$A18,1)),"",INDEX(Database[SFPUC Maintenance End Date (YYYY) - can be left blank if maintenance is ongoing],$A18,1)) ->  | X18: =IF($X$7=$V18,$S$8*J18*(1+'6_Other Assumptions'!$B$9)^MID('7_Model'!$X$6,6,2)," ") ->  | Y18: =IF(AND(OR(Y$7<=$W18,$W18=""),OR(Y$7=$V18,X18<>" ")),$S18*$J18*(1+'6_Other Assumptions'!$B$9)^MID('7_Model'!Y$6,6,2)," ") ->  | Z18: =IF(AND(OR(Z$7<=$W18,$W18=""),OR(Z$7=$V18,Y18<>" ")),$S18*$J18*(1+'6_Other Assumptions'!$B$9)^MID('7_Model'!Z$6,6,2)," ") ->  | AA18: =IF(AND(OR(AA$7<=$W18,$W18=""),OR(AA$7=$V18,Z18<>" ")),$S18*$J18*(1+'6_Other Assumptions'!$B$9)^MID('7_Model'!AA$6,6,2)," ") ->  | AB18: =IF(AND(OR(AB$7<=$W18,$W18=""),OR(AB$7=$V18,AA18<>" ")),$S18*$J18*(1+'6_Other Assumptions'!$B$9)^MID('7_Model'!AB$6,6,2)," ") ->  | AC18: =IF(AND(OR(AC$7<=$W18,$W18=""),OR(AC$7=$V18,AB18<>" ")),$S18*$J18*(1+'6_Other Assumptions'!$B$9)^MID('7_Model'!AC$6,6,2)," ") ->  | AD18: =IF(AND(OR(AD$7<=$W18,$W18=""),OR(AD$7=$V18,AC18<>" ")),$S18*$J18*(1+'6_Other Assumptions'!$B$9)^MID('7_Model'!AD$6,6,2)," ") ->  | AE18: =IF(AND(OR(AE$7<=$W18,$W18=""),OR(AE$7=$V18,AD18<>" ")),$S18*$J18*(1+'6_Other Assumptions'!$B$9)^MID('7_Model'!AE$6,6,2)," ") ->  | AF18: =IF(AND(OR(AF$7<=$W18,$W18=""),OR(AF$7=$V18,AE18<>" ")),$S18*$J18*(1+'6_Other Assumptions'!$B$9)^MID('7_Model'!AF$6,6,2)," ") ->  | AG18: =IF(AND(OR(AG$7<=$W18,$W18=""),OR(AG$7=$V18,AF18<>" ")),$S18*$J18*(1+'6_Other Assumptions'!$B$9)^MID('7_Model'!AG$6,6,2)," ") ->  | AH18: =IF(AND(OR(AH$7<=$W18,$W18=""),OR(AH$7=$V18,AG18<>" ")),$S18*$J18*(1+'6_Other Assumptions'!$B$9)^MID('7_Model'!AH$6,6,2)," ") ->  | AI18: =IF(AND(OR(AI$7<=$W18,$W18=""),OR(AI$7=$V18,AH18<>" ")),$S18*$J18*(1+'6_Other Assumptions'!$B$9)^MID('7_Model'!AI$6,6,2)," ") ->  | AJ18: =IF(AND(OR(AJ$7<=$W18,$W18=""),OR(AJ$7=$V18,AI18<>" ")),$S18*$J18*(1+'6_Other Assumptions'!$B$9)^MID('7_Model'!AJ$6,6,2)," ") ->  | AK18: =IF(AND(OR(AK$7<=$W18,$W18=""),OR(AK$7=$V18,AJ18<>" ")),$S18*$J18*(1+'6_Other Assumptions'!$B$9)^MID('7_Model'!AK$6,6,2)," ") ->  | AL18: =IF(AND(OR(AL$7<=$W18,$W18=""),OR(AL$7=$V18,AK18<>" ")),$S18*$J18*(1+'6_Other Assumptions'!$B$9)^MID('7_Model'!AL$6,6,2)," ") ->  | AM18: =IF(AND(OR(AM$7<=$W18,$W18=""),OR(AM$7=$V18,AL18<>" ")),$S18*$J18*(1+'6_Other Assumptions'!$B$9)^MID('7_Model'!AM$6,6,2)," ") ->  | AN18: =IF(AND(OR(AN$7<=$W18,$W18=""),OR(AN$7=$V18,AM18<>" ")),$S18*$J18*(1+'6_Other Assumptions'!$B$9)^MID('7_Model'!AN$6,6,2)," ") ->  | AO18: =IF(AND(OR(AO$7<=$W18,$W18=""),OR(AO$7=$V18,AN18<>" ")),$S18*$J18*(1+'6_Other Assumptions'!$B$9)^MID('7_Model'!AO$6,6,2)," ") ->  | AP18: =IF(AND(OR(AP$7<=$W18,$W18=""),OR(AP$7=$V18,AO18<>" ")),$S18*$J18*(1+'6_Other Assumptions'!$B$9)^MID('7_Model'!AP$6,6,2)," ") ->  | AQ18: =IF(AND(OR(AQ$7<=$W18,$W18=""),OR(AQ$7=$V18,AP18<>" ")),$S18*$J18*(1+'6_Other Assumptions'!$B$9)^MID('7_Model'!AQ$6,6,2)," ") ->  | AR18: =IF(AND(OR(AR$7<=$W18,$W18=""),OR(AR$7=$V18,AQ18<>" ")),$S18*$J18*(1+'6_Other Assumptions'!$B$9)^MID('7_Model'!AR$6,6,2)," ") ->  | AS18: =IF(AND(OR(AS$7<=$W18,$W18=""),OR(AS$7=$V18,AR18<>" ")),$S18*$J18*(1+'6_Other Assumptions'!$B$9)^MID('7_Model'!AS$6,6,2)," ") ->  | AT18: =IF(AND(OR(AT$7<=$W18,$W18=""),OR(AT$7=$V18,AS18<>" ")),$S18*$J18*(1+'6_Other Assumptions'!$B$9)^MID('7_Model'!AT$6,6,2)," ") ->  | AU18: =IF(AND(OR(AU$7<=$W18,$W18=""),OR(AU$7=$V18,AT18<>" ")),$S18*$J18*(1+'6_Other Assumptions'!$B$9)^MID('7_Model'!AU$6,6,2)," ") ->  | AV18: =IF(AND(OR(AV$7<=$W18,$W18=""),OR(AV$7=$V18,AU18<>" ")),$S18*$J18*(1+'6_Other Assumptions'!$B$9)^MID('7_Model'!AV$6,6,2)," ") ->  | AW18: =IF(AND(OR(AW$7<=$W18,$W18=""),OR(AW$7=$V18,AV18<>" ")),$S18*$J18*(1+'6_Other Assumptions'!$B$9)^MID('7_Model'!AW$6,6,2)," ") ->  | AX18: =IF(AND(OR(AX$7<=$W18,$W18=""),OR(AX$7=$V18,AW18<>" ")),$S18*$J18*(1+'6_Other Assumptions'!$B$9)^MID('7_Model'!AX$6,6,2)," ") ->  | AY18: =IF(AND(OR(AY$7<=$W18,$W18=""),OR(AY$7=$V18,AX18<>" ")),$S18*$J18*(1+'6_Other Assumptions'!$B$9)^MID('7_Model'!AY$6,6,2)," ") ->  | AZ18: =IF(AND(OR(AZ$7<=$W18,$W18=""),OR(AZ$7=$V18,AY18<>" ")),$S18*$J18*(1+'6_Other Assumptions'!$B$9)^MID('7_Model'!AZ$6,6,2)," ") ->  | BA18: =IF(AND(OR(BA$7<=$W18,$W18=""),OR(BA$7=$V18,AZ18<>" ")),$S18*$J18*(1+'6_Other Assumptions'!$B$9)^MID('7_Model'!BA$6,6,2)," ") ->  | BB18: =IF(AND(OR(BB$7<=$W18,$W18=""),OR(BB$7=$V18,BA18<>" ")),$S18*$J18*(1+'6_Other Assumptions'!$B$9)^MID('7_Model'!BB$6,6,2)," ") ->  | BC18: =IF(AND(OR(BC$7<=$W18,$W18=""),OR(BC$7=$V18,BB18<>" ")),$S18*$J18*(1+'6_Other Assumptions'!$B$9)^MID('7_Model'!BC$6,6,2)," ") ->  | BD18: =IF(AND(OR(BD$7<=$W18,$W18=""),OR(BD$7=$V18,BC18<>" ")),$S18*$J18*(1+'6_Other Assumptions'!$B$9)^MID('7_Model'!BD$6,6,2)," ") ->  | BE18: =IF(AND(OR(BE$7<=$W18,$W18=""),OR(BE$7=$V18,BD18<>" ")),$S18*$J18*(1+'6_Other Assumptions'!$B$9)^MID('7_Model'!BE$6,6,2)," ") ->  | BF18: =IF(AND(OR(BF$7<=$W18,$W18=""),OR(BF$7=$V18,BE18<>" ")),$S18*$J18*(1+'6_Other Assumptions'!$B$9)^MID('7_Model'!BF$6,6,2)," ") ->  | BG18: =IF(AND(OR(BG$7<=$W18,$W18=""),OR(BG$7=$V18,BF18<>" ")),$S18*$J18*(1+'6_Other Assumptions'!$B$9)^MID('7_Model'!BG$6,6,2)," ") ->  | BH18: =IF(AND(OR(BH$7<=$W18,$W18=""),OR(BH$7=$V18,BG18<>" ")),$S18*$J18*(1+'6_Other Assumptions'!$B$9)^MID('7_Model'!BH$6,6,2)," ") -> 
A19: 12 | B19: =IF(ISBLANK(INDEX(Database[Project Name],A19,1)),"",INDEX(Database[Project Name],A19,1)) ->  | C19: =IF(ISBLANK(INDEX(Database[Watershed],$A19,1)),"",INDEX(Database[Watershed],$A19,1)) ->  | D19: =IF(ISBLANK(INDEX(Database[BMP Type],$A19,1)),"",INDEX(Database[BMP Type],$A19,1)) ->  | E19: =IF(ISBLANK(INDEX(Database[BMP Sub-type],$A19,1)),"",INDEX(Database[BMP Sub-type],$A19,1)) ->  | F19: =IF(ISBLANK(INDEX(Database[BMP Sub-sub-type],$A19,1)),"",INDEX(Database[BMP Sub-sub-type],$A19,1)) ->  | H19: =IF(ISBLANK(INDEX(Database[Spatial Distribution of BMP],$A19,1)),"",INDEX(Database[Spatial Distribution of BMP],$A19,1)) ->  | I19: =IF(H19="Typical",INDEX('5_Cost Assumptions'!$Y$7:$Y$230,MATCH('7_Model'!G19,'5_Cost Assumptions'!$D$7:$D$230,0)),IF(H19="Concentrated",INDEX('5_Cost Assumptions'!$AA$7:$AA$230,MATCH('7_Model'!G19,'5_Cost Assumptions'!$D$7:$D$230,0)),IF(H19="Dispersed",INDEX('5_Cost Assumptions'!$Z$7:$Z$230,MATCH('7_Model'!G19,'5_Cost Assumptions'!$D$7:$D$230,0)),""))) ->  | J19: =IF(ISBLANK(INDEX(Database[BMP Size],$A19,1)),"",INDEX(Database[BMP Size],$A19,1)) ->  | K19: =IF(B19="","",INDEX('5_Cost Assumptions'!$E$7:$E$230,MATCH(G19,'5_Cost Assumptions'!$D$7:$D$230,0))) ->  | L19: =IF(ISBLANK(INDEX(Database[Service Level],$A19,1)),"",INDEX(Database[Service Level],$A19,1)) ->  | M19: =IF(B19="","",INDEX('5_Cost Assumptions'!$I$7:$I$230,MATCH(G19,'5_Cost Assumptions'!$D$7:$D$230,0))) ->  | N19: =IF(B19="","",INDEX('5_Cost Assumptions'!$J$7:$J$230,MATCH(G19,'5_Cost Assumptions'!$D$7:$D$230,0))) ->  | O19: =IF(ISBLANK(INDEX(Database[Proportion of BMP cost for which SFPUC has O&M Responsibility (% of cost)],$A19,1)),"",INDEX(Database[Proportion of BMP cost for which SFPUC has O&M Responsibility (% of cost)],$A19,1)) ->  | P19: =IF(B19="","",INDEX('5_Cost Assumptions'!$W$7:$W$230,MATCH(G19,'5_Cost Assumptions'!$D$7:$D$230,0))) ->  | R19: =IF(ISBLANK(INDEX(Database[Cost Adjustment Factor (%)],$A19,1)),"",INDEX(Database[Cost Adjustment Factor (%)],$A19,1)) ->  | T19: =IF(B19="","",INDEX('5_Cost Assumptions'!$K$7:$K$230,MATCH(G19,'5_Cost Assumptions'!$D$7:$D$230,0))) ->  | U19: =IF(ISBLANK(INDEX(Database[Comments (text)],$A19,1)),"",INDEX(Database[Comments (text)],$A19,1)) ->  | V19: =IF(ISBLANK(INDEX(Database[SFPUC Maintenance Start Date (YYYY)],$A19,1)),"",INDEX(Database[SFPUC Maintenance Start Date (YYYY)],$A19,1)) ->  | W19: =IF(ISBLANK(INDEX(Database[SFPUC Maintenance End Date (YYYY) - can be left blank if maintenance is ongoing],$A19,1)),"",INDEX(Database[SFPUC Maintenance End Date (YYYY) - can be left blank if maintenance is ongoing],$A19,1)) ->  | X19: =IF($X$7=$V19,$S$8*J19*(1+'6_Other Assumptions'!$B$9)^MID('7_Model'!$X$6,6,2)," ") ->  | Y19: =IF(AND(OR(Y$7<=$W19,$W19=""),OR(Y$7=$V19,X19<>" ")),$S19*$J19*(1+'6_Other Assumptions'!$B$9)^MID('7_Model'!Y$6,6,2)," ") ->  | Z19: =IF(AND(OR(Z$7<=$W19,$W19=""),OR(Z$7=$V19,Y19<>" ")),$S19*$J19*(1+'6_Other Assumptions'!$B$9)^MID('7_Model'!Z$6,6,2)," ") ->  | AA19: =IF(AND(OR(AA$7<=$W19,$W19=""),OR(AA$7=$V19,Z19<>" ")),$S19*$J19*(1+'6_Other Assumptions'!$B$9)^MID('7_Model'!AA$6,6,2)," ") ->  | AB19: =IF(AND(OR(AB$7<=$W19,$W19=""),OR(AB$7=$V19,AA19<>" ")),$S19*$J19*(1+'6_Other Assumptions'!$B$9)^MID('7_Model'!AB$6,6,2)," ") ->  | AC19: =IF(AND(OR(AC$7<=$W19,$W19=""),OR(AC$7=$V19,AB19<>" ")),$S19*$J19*(1+'6_Other Assumptions'!$B$9)^MID('7_Model'!AC$6,6,2)," ") ->  | AD19: =IF(AND(OR(AD$7<=$W19,$W19=""),OR(AD$7=$V19,AC19<>" ")),$S19*$J19*(1+'6_Other Assumptions'!$B$9)^MID('7_Model'!AD$6,6,2)," ") ->  | AE19: =IF(AND(OR(AE$7<=$W19,$W19=""),OR(AE$7=$V19,AD19<>" ")),$S19*$J19*(1+'6_Other Assumptions'!$B$9)^MID('7_Model'!AE$6,6,2)," ") ->  | AF19: =IF(AND(OR(AF$7<=$W19,$W19=""),OR(AF$7=$V19,AE19<>" ")),$S19*$J19*(1+'6_Other Assumptions'!$B$9)^MID('7_Model'!AF$6,6,2)," ") ->  | AG19: =IF(AND(OR(AG$7<=$W19,$W19=""),OR(AG$7=$V19,AF19<>" ")),$S19*$J19*(1+'6_Other Assumptions'!$B$9)^MID('7_Model'!AG$6,6,2)," ") ->  | AH19: =IF(AND(OR(AH$7<=$W19,$W19=""),OR(AH$7=$V19,AG19<>" ")),$S19*$J19*(1+'6_Other Assumptions'!$B$9)^MID('7_Model'!AH$6,6,2)," ") ->  | AI19: =IF(AND(OR(AI$7<=$W19,$W19=""),OR(AI$7=$V19,AH19<>" ")),$S19*$J19*(1+'6_Other Assumptions'!$B$9)^MID('7_Model'!AI$6,6,2)," ") ->  | AJ19: =IF(AND(OR(AJ$7<=$W19,$W19=""),OR(AJ$7=$V19,AI19<>" ")),$S19*$J19*(1+'6_Other Assumptions'!$B$9)^MID('7_Model'!AJ$6,6,2)," ") ->  | AK19: =IF(AND(OR(AK$7<=$W19,$W19=""),OR(AK$7=$V19,AJ19<>" ")),$S19*$J19*(1+'6_Other Assumptions'!$B$9)^MID('7_Model'!AK$6,6,2)," ") ->  | AL19: =IF(AND(OR(AL$7<=$W19,$W19=""),OR(AL$7=$V19,AK19<>" ")),$S19*$J19*(1+'6_Other Assumptions'!$B$9)^MID('7_Model'!AL$6,6,2)," ") ->  | AM19: =IF(AND(OR(AM$7<=$W19,$W19=""),OR(AM$7=$V19,AL19<>" ")),$S19*$J19*(1+'6_Other Assumptions'!$B$9)^MID('7_Model'!AM$6,6,2)," ") ->  | AN19: =IF(AND(OR(AN$7<=$W19,$W19=""),OR(AN$7=$V19,AM19<>" ")),$S19*$J19*(1+'6_Other Assumptions'!$B$9)^MID('7_Model'!AN$6,6,2)," ") ->  | AO19: =IF(AND(OR(AO$7<=$W19,$W19=""),OR(AO$7=$V19,AN19<>" ")),$S19*$J19*(1+'6_Other Assumptions'!$B$9)^MID('7_Model'!AO$6,6,2)," ") ->  | AP19: =IF(AND(OR(AP$7<=$W19,$W19=""),OR(AP$7=$V19,AO19<>" ")),$S19*$J19*(1+'6_Other Assumptions'!$B$9)^MID('7_Model'!AP$6,6,2)," ") ->  | AQ19: =IF(AND(OR(AQ$7<=$W19,$W19=""),OR(AQ$7=$V19,AP19<>" ")),$S19*$J19*(1+'6_Other Assumptions'!$B$9)^MID('7_Model'!AQ$6,6,2)," ") ->  | AR19: =IF(AND(OR(AR$7<=$W19,$W19=""),OR(AR$7=$V19,AQ19<>" ")),$S19*$J19*(1+'6_Other Assumptions'!$B$9)^MID('7_Model'!AR$6,6,2)," ") ->  | AS19: =IF(AND(OR(AS$7<=$W19,$W19=""),OR(AS$7=$V19,AR19<>" ")),$S19*$J19*(1+'6_Other Assumptions'!$B$9)^MID('7_Model'!AS$6,6,2)," ") ->  | AT19: =IF(AND(OR(AT$7<=$W19,$W19=""),OR(AT$7=$V19,AS19<>" ")),$S19*$J19*(1+'6_Other Assumptions'!$B$9)^MID('7_Model'!AT$6,6,2)," ") ->  | AU19: =IF(AND(OR(AU$7<=$W19,$W19=""),OR(AU$7=$V19,AT19<>" ")),$S19*$J19*(1+'6_Other Assumptions'!$B$9)^MID('7_Model'!AU$6,6,2)," ") ->  | AV19: =IF(AND(OR(AV$7<=$W19,$W19=""),OR(AV$7=$V19,AU19<>" ")),$S19*$J19*(1+'6_Other Assumptions'!$B$9)^MID('7_Model'!AV$6,6,2)," ") ->  | AW19: =IF(AND(OR(AW$7<=$W19,$W19=""),OR(AW$7=$V19,AV19<>" ")),$S19*$J19*(1+'6_Other Assumptions'!$B$9)^MID('7_Model'!AW$6,6,2)," ") ->  | AX19: =IF(AND(OR(AX$7<=$W19,$W19=""),OR(AX$7=$V19,AW19<>" ")),$S19*$J19*(1+'6_Other Assumptions'!$B$9)^MID('7_Model'!AX$6,6,2)," ") ->  | AY19: =IF(AND(OR(AY$7<=$W19,$W19=""),OR(AY$7=$V19,AX19<>" ")),$S19*$J19*(1+'6_Other Assumptions'!$B$9)^MID('7_Model'!AY$6,6,2)," ") ->  | AZ19: =IF(AND(OR(AZ$7<=$W19,$W19=""),OR(AZ$7=$V19,AY19<>" ")),$S19*$J19*(1+'6_Other Assumptions'!$B$9)^MID('7_Model'!AZ$6,6,2)," ") ->  | BA19: =IF(AND(OR(BA$7<=$W19,$W19=""),OR(BA$7=$V19,AZ19<>" ")),$S19*$J19*(1+'6_Other Assumptions'!$B$9)^MID('7_Model'!BA$6,6,2)," ") ->  | BB19: =IF(AND(OR(BB$7<=$W19,$W19=""),OR(BB$7=$V19,BA19<>" ")),$S19*$J19*(1+'6_Other Assumptions'!$B$9)^MID('7_Model'!BB$6,6,2)," ") ->  | BC19: =IF(AND(OR(BC$7<=$W19,$W19=""),OR(BC$7=$V19,BB19<>" ")),$S19*$J19*(1+'6_Other Assumptions'!$B$9)^MID('7_Model'!BC$6,6,2)," ") ->  | BD19: =IF(AND(OR(BD$7<=$W19,$W19=""),OR(BD$7=$V19,BC19<>" ")),$S19*$J19*(1+'6_Other Assumptions'!$B$9)^MID('7_Model'!BD$6,6,2)," ") ->  | BE19: =IF(AND(OR(BE$7<=$W19,$W19=""),OR(BE$7=$V19,BD19<>" ")),$S19*$J19*(1+'6_Other Assumptions'!$B$9)^MID('7_Model'!BE$6,6,2)," ") ->  | BF19: =IF(AND(OR(BF$7<=$W19,$W19=""),OR(BF$7=$V19,BE19<>" ")),$S19*$J19*(1+'6_Other Assumptions'!$B$9)^MID('7_Model'!BF$6,6,2)," ") ->  | BG19: =IF(AND(OR(BG$7<=$W19,$W19=""),OR(BG$7=$V19,BF19<>" ")),$S19*$J19*(1+'6_Other Assumptions'!$B$9)^MID('7_Model'!BG$6,6,2)," ") ->  | BH19: =IF(AND(OR(BH$7<=$W19,$W19=""),OR(BH$7=$V19,BG19<>" ")),$S19*$J19*(1+'6_Other Assumptions'!$B$9)^MID('7_Model'!BH$6,6,2)," ") -> 
A20: 13 | B20: =IF(ISBLANK(INDEX(Database[Project Name],A20,1)),"",INDEX(Database[Project Name],A20,1)) ->  | C20: =IF(ISBLANK(INDEX(Database[Watershed],$A20,1)),"",INDEX(Database[Watershed],$A20,1)) ->  | D20: =IF(ISBLANK(INDEX(Database[BMP Type],$A20,1)),"",INDEX(Database[BMP Type],$A20,1)) ->  | E20: =IF(ISBLANK(INDEX(Database[BMP Sub-type],$A20,1)),"",INDEX(Database[BMP Sub-type],$A20,1)) ->  | F20: =IF(ISBLANK(INDEX(Database[BMP Sub-sub-type],$A20,1)),"",INDEX(Database[BMP Sub-sub-type],$A20,1)) ->  | H20: =IF(ISBLANK(INDEX(Database[Spatial Distribution of BMP],$A20,1)),"",INDEX(Database[Spatial Distribution of BMP],$A20,1)) ->  | I20: =IF(H20="Typical",INDEX('5_Cost Assumptions'!$Y$7:$Y$230,MATCH('7_Model'!G20,'5_Cost Assumptions'!$D$7:$D$230,0)),IF(H20="Concentrated",INDEX('5_Cost Assumptions'!$AA$7:$AA$230,MATCH('7_Model'!G20,'5_Cost Assumptions'!$D$7:$D$230,0)),IF(H20="Dispersed",INDEX('5_Cost Assumptions'!$Z$7:$Z$230,MATCH('7_Model'!G20,'5_Cost Assumptions'!$D$7:$D$230,0)),""))) ->  | J20: =IF(ISBLANK(INDEX(Database[BMP Size],$A20,1)),"",INDEX(Database[BMP Size],$A20,1)) ->  | K20: =IF(B20="","",INDEX('5_Cost Assumptions'!$E$7:$E$230,MATCH(G20,'5_Cost Assumptions'!$D$7:$D$230,0))) ->  | L20: =IF(ISBLANK(INDEX(Database[Service Level],$A20,1)),"",INDEX(Database[Service Level],$A20,1)) ->  | M20: =IF(B20="","",INDEX('5_Cost Assumptions'!$I$7:$I$230,MATCH(G20,'5_Cost Assumptions'!$D$7:$D$230,0))) ->  | N20: =IF(B20="","",INDEX('5_Cost Assumptions'!$J$7:$J$230,MATCH(G20,'5_Cost Assumptions'!$D$7:$D$230,0))) ->  | O20: =IF(ISBLANK(INDEX(Database[Proportion of BMP cost for which SFPUC has O&M Responsibility (% of cost)],$A20,1)),"",INDEX(Database[Proportion of BMP cost for which SFPUC has O&M Responsibility (% of cost)],$A20,1)) ->  | P20: =IF(B20="","",INDEX('5_Cost Assumptions'!$W$7:$W$230,MATCH(G20,'5_Cost Assumptions'!$D$7:$D$230,0))) ->  | R20: =IF(ISBLANK(INDEX(Database[Cost Adjustment Factor (%)],$A20,1)),"",INDEX(Database[Cost Adjustment Factor (%)],$A20,1)) ->  | T20: =IF(B20="","",INDEX('5_Cost Assumptions'!$K$7:$K$230,MATCH(G20,'5_Cost Assumptions'!$D$7:$D$230,0))) ->  | U20: =IF(ISBLANK(INDEX(Database[Comments (text)],$A20,1)),"",INDEX(Database[Comments (text)],$A20,1)) ->  | V20: =IF(ISBLANK(INDEX(Database[SFPUC Maintenance Start Date (YYYY)],$A20,1)),"",INDEX(Database[SFPUC Maintenance Start Date (YYYY)],$A20,1)) ->  | W20: =IF(ISBLANK(INDEX(Database[SFPUC Maintenance End Date (YYYY) - can be left blank if maintenance is ongoing],$A20,1)),"",INDEX(Database[SFPUC Maintenance End Date (YYYY) - can be left blank if maintenance is ongoing],$A20,1)) ->  | X20: =IF($X$7=$V20,$S$8*J20*(1+'6_Other Assumptions'!$B$9)^MID('7_Model'!$X$6,6,2)," ") ->  | Y20: =IF(AND(OR(Y$7<=$W20,$W20=""),OR(Y$7=$V20,X20<>" ")),$S20*$J20*(1+'6_Other Assumptions'!$B$9)^MID('7_Model'!Y$6,6,2)," ") ->  | Z20: =IF(AND(OR(Z$7<=$W20,$W20=""),OR(Z$7=$V20,Y20<>" ")),$S20*$J20*(1+'6_Other Assumptions'!$B$9)^MID('7_Model'!Z$6,6,2)," ") ->  | AA20: =IF(AND(OR(AA$7<=$W20,$W20=""),OR(AA$7=$V20,Z20<>" ")),$S20*$J20*(1+'6_Other Assumptions'!$B$9)^MID('7_Model'!AA$6,6,2)," ") ->  | AB20: =IF(AND(OR(AB$7<=$W20,$W20=""),OR(AB$7=$V20,AA20<>" ")),$S20*$J20*(1+'6_Other Assumptions'!$B$9)^MID('7_Model'!AB$6,6,2)," ") ->  | AC20: =IF(AND(OR(AC$7<=$W20,$W20=""),OR(AC$7=$V20,AB20<>" ")),$S20*$J20*(1+'6_Other Assumptions'!$B$9)^MID('7_Model'!AC$6,6,2)," ") ->  | AD20: =IF(AND(OR(AD$7<=$W20,$W20=""),OR(AD$7=$V20,AC20<>" ")),$S20*$J20*(1+'6_Other Assumptions'!$B$9)^MID('7_Model'!AD$6,6,2)," ") ->  | AE20: =IF(AND(OR(AE$7<=$W20,$W20=""),OR(AE$7=$V20,AD20<>" ")),$S20*$J20*(1+'6_Other Assumptions'!$B$9)^MID('7_Model'!AE$6,6,2)," ") ->  | AF20: =IF(AND(OR(AF$7<=$W20,$W20=""),OR(AF$7=$V20,AE20<>" ")),$S20*$J20*(1+'6_Other Assumptions'!$B$9)^MID('7_Model'!AF$6,6,2)," ") ->  | AG20: =IF(AND(OR(AG$7<=$W20,$W20=""),OR(AG$7=$V20,AF20<>" ")),$S20*$J20*(1+'6_Other Assumptions'!$B$9)^MID('7_Model'!AG$6,6,2)," ") ->  | AH20: =IF(AND(OR(AH$7<=$W20,$W20=""),OR(AH$7=$V20,AG20<>" ")),$S20*$J20*(1+'6_Other Assumptions'!$B$9)^MID('7_Model'!AH$6,6,2)," ") ->  | AI20: =IF(AND(OR(AI$7<=$W20,$W20=""),OR(AI$7=$V20,AH20<>" ")),$S20*$J20*(1+'6_Other Assumptions'!$B$9)^MID('7_Model'!AI$6,6,2)," ") ->  | AJ20: =IF(AND(OR(AJ$7<=$W20,$W20=""),OR(AJ$7=$V20,AI20<>" ")),$S20*$J20*(1+'6_Other Assumptions'!$B$9)^MID('7_Model'!AJ$6,6,2)," ") ->  | AK20: =IF(AND(OR(AK$7<=$W20,$W20=""),OR(AK$7=$V20,AJ20<>" ")),$S20*$J20*(1+'6_Other Assumptions'!$B$9)^MID('7_Model'!AK$6,6,2)," ") ->  | AL20: =IF(AND(OR(AL$7<=$W20,$W20=""),OR(AL$7=$V20,AK20<>" ")),$S20*$J20*(1+'6_Other Assumptions'!$B$9)^MID('7_Model'!AL$6,6,2)," ") ->  | AM20: =IF(AND(OR(AM$7<=$W20,$W20=""),OR(AM$7=$V20,AL20<>" ")),$S20*$J20*(1+'6_Other Assumptions'!$B$9)^MID('7_Model'!AM$6,6,2)," ") ->  | AN20: =IF(AND(OR(AN$7<=$W20,$W20=""),OR(AN$7=$V20,AM20<>" ")),$S20*$J20*(1+'6_Other Assumptions'!$B$9)^MID('7_Model'!AN$6,6,2)," ") ->  | AO20: =IF(AND(OR(AO$7<=$W20,$W20=""),OR(AO$7=$V20,AN20<>" ")),$S20*$J20*(1+'6_Other Assumptions'!$B$9)^MID('7_Model'!AO$6,6,2)," ") ->  | AP20: =IF(AND(OR(AP$7<=$W20,$W20=""),OR(AP$7=$V20,AO20<>" ")),$S20*$J20*(1+'6_Other Assumptions'!$B$9)^MID('7_Model'!AP$6,6,2)," ") ->  | AQ20: =IF(AND(OR(AQ$7<=$W20,$W20=""),OR(AQ$7=$V20,AP20<>" ")),$S20*$J20*(1+'6_Other Assumptions'!$B$9)^MID('7_Model'!AQ$6,6,2)," ") ->  | AR20: =IF(AND(OR(AR$7<=$W20,$W20=""),OR(AR$7=$V20,AQ20<>" ")),$S20*$J20*(1+'6_Other Assumptions'!$B$9)^MID('7_Model'!AR$6,6,2)," ") ->  | AS20: =IF(AND(OR(AS$7<=$W20,$W20=""),OR(AS$7=$V20,AR20<>" ")),$S20*$J20*(1+'6_Other Assumptions'!$B$9)^MID('7_Model'!AS$6,6,2)," ") ->  | AT20: =IF(AND(OR(AT$7<=$W20,$W20=""),OR(AT$7=$V20,AS20<>" ")),$S20*$J20*(1+'6_Other Assumptions'!$B$9)^MID('7_Model'!AT$6,6,2)," ") ->  | AU20: =IF(AND(OR(AU$7<=$W20,$W20=""),OR(AU$7=$V20,AT20<>" ")),$S20*$J20*(1+'6_Other Assumptions'!$B$9)^MID('7_Model'!AU$6,6,2)," ") ->  | AV20: =IF(AND(OR(AV$7<=$W20,$W20=""),OR(AV$7=$V20,AU20<>" ")),$S20*$J20*(1+'6_Other Assumptions'!$B$9)^MID('7_Model'!AV$6,6,2)," ") ->  | AW20: =IF(AND(OR(AW$7<=$W20,$W20=""),OR(AW$7=$V20,AV20<>" ")),$S20*$J20*(1+'6_Other Assumptions'!$B$9)^MID('7_Model'!AW$6,6,2)," ") ->  | AX20: =IF(AND(OR(AX$7<=$W20,$W20=""),OR(AX$7=$V20,AW20<>" ")),$S20*$J20*(1+'6_Other Assumptions'!$B$9)^MID('7_Model'!AX$6,6,2)," ") ->  | AY20: =IF(AND(OR(AY$7<=$W20,$W20=""),OR(AY$7=$V20,AX20<>" ")),$S20*$J20*(1+'6_Other Assumptions'!$B$9)^MID('7_Model'!AY$6,6,2)," ") ->  | AZ20: =IF(AND(OR(AZ$7<=$W20,$W20=""),OR(AZ$7=$V20,AY20<>" ")),$S20*$J20*(1+'6_Other Assumptions'!$B$9)^MID('7_Model'!AZ$6,6,2)," ") ->  | BA20: =IF(AND(OR(BA$7<=$W20,$W20=""),OR(BA$7=$V20,AZ20<>" ")),$S20*$J20*(1+'6_Other Assumptions'!$B$9)^MID('7_Model'!BA$6,6,2)," ") ->  | BB20: =IF(AND(OR(BB$7<=$W20,$W20=""),OR(BB$7=$V20,BA20<>" ")),$S20*$J20*(1+'6_Other Assumptions'!$B$9)^MID('7_Model'!BB$6,6,2)," ") ->  | BC20: =IF(AND(OR(BC$7<=$W20,$W20=""),OR(BC$7=$V20,BB20<>" ")),$S20*$J20*(1+'6_Other Assumptions'!$B$9)^MID('7_Model'!BC$6,6,2)," ") ->  | BD20: =IF(AND(OR(BD$7<=$W20,$W20=""),OR(BD$7=$V20,BC20<>" ")),$S20*$J20*(1+'6_Other Assumptions'!$B$9)^MID('7_Model'!BD$6,6,2)," ") ->  | BE20: =IF(AND(OR(BE$7<=$W20,$W20=""),OR(BE$7=$V20,BD20<>" ")),$S20*$J20*(1+'6_Other Assumptions'!$B$9)^MID('7_Model'!BE$6,6,2)," ") ->  | BF20: =IF(AND(OR(BF$7<=$W20,$W20=""),OR(BF$7=$V20,BE20<>" ")),$S20*$J20*(1+'6_Other Assumptions'!$B$9)^MID('7_Model'!BF$6,6,2)," ") ->  | BG20: =IF(AND(OR(BG$7<=$W20,$W20=""),OR(BG$7=$V20,BF20<>" ")),$S20*$J20*(1+'6_Other Assumptions'!$B$9)^MID('7_Model'!BG$6,6,2)," ") ->  | BH20: =IF(AND(OR(BH$7<=$W20,$W20=""),OR(BH$7=$V20,BG20<>" ")),$S20*$J20*(1+'6_Other Assumptions'!$B$9)^MID('7_Model'!BH$6,6,2)," ") -> 
A21: 14 | B21: =IF(ISBLANK(INDEX(Database[Project Name],A21,1)),"",INDEX(Database[Project Name],A21,1)) ->  | C21: =IF(ISBLANK(INDEX(Database[Watershed],$A21,1)),"",INDEX(Database[Watershed],$A21,1)) ->  | D21: =IF(ISBLANK(INDEX(Database[BMP Type],$A21,1)),"",INDEX(Database[BMP Type],$A21,1)) ->  | E21: =IF(ISBLANK(INDEX(Database[BMP Sub-type],$A21,1)),"",INDEX(Database[BMP Sub-type],$A21,1)) ->  | F21: =IF(ISBLANK(INDEX(Database[BMP Sub-sub-type],$A21,1)),"",INDEX(Database[BMP Sub-sub-type],$A21,1)) ->  | H21: =IF(ISBLANK(INDEX(Database[Spatial Distribution of BMP],$A21,1)),"",INDEX(Database[Spatial Distribution of BMP],$A21,1)) ->  | I21: =IF(H21="Typical",INDEX('5_Cost Assumptions'!$Y$7:$Y$230,MATCH('7_Model'!G21,'5_Cost Assumptions'!$D$7:$D$230,0)),IF(H21="Concentrated",INDEX('5_Cost Assumptions'!$AA$7:$AA$230,MATCH('7_Model'!G21,'5_Cost Assumptions'!$D$7:$D$230,0)),IF(H21="Dispersed",INDEX('5_Cost Assumptions'!$Z$7:$Z$230,MATCH('7_Model'!G21,'5_Cost Assumptions'!$D$7:$D$230,0)),""))) ->  | J21: =IF(ISBLANK(INDEX(Database[BMP Size],$A21,1)),"",INDEX(Database[BMP Size],$A21,1)) ->  | K21: =IF(B21="","",INDEX('5_Cost Assumptions'!$E$7:$E$230,MATCH(G21,'5_Cost Assumptions'!$D$7:$D$230,0))) ->  | L21: =IF(ISBLANK(INDEX(Database[Service Level],$A21,1)),"",INDEX(Database[Service Level],$A21,1)) ->  | M21: =IF(B21="","",INDEX('5_Cost Assumptions'!$I$7:$I$230,MATCH(G21,'5_Cost Assumptions'!$D$7:$D$230,0))) ->  | N21: =IF(B21="","",INDEX('5_Cost Assumptions'!$J$7:$J$230,MATCH(G21,'5_Cost Assumptions'!$D$7:$D$230,0))) ->  | O21: =IF(ISBLANK(INDEX(Database[Proportion of BMP cost for which SFPUC has O&M Responsibility (% of cost)],$A21,1)),"",INDEX(Database[Proportion of BMP cost for which SFPUC has O&M Responsibility (% of cost)],$A21,1)) ->  | P21: =IF(B21="","",INDEX('5_Cost Assumptions'!$W$7:$W$230,MATCH(G21,'5_Cost Assumptions'!$D$7:$D$230,0))) ->  | R21: =IF(ISBLANK(INDEX(Database[Cost Adjustment Factor (%)],$A21,1)),"",INDEX(Database[Cost Adjustment Factor (%)],$A21,1)) ->  | T21: =IF(B21="","",INDEX('5_Cost Assumptions'!$K$7:$K$230,MATCH(G21,'5_Cost Assumptions'!$D$7:$D$230,0))) ->  | U21: =IF(ISBLANK(INDEX(Database[Comments (text)],$A21,1)),"",INDEX(Database[Comments (text)],$A21,1)) ->  | V21: =IF(ISBLANK(INDEX(Database[SFPUC Maintenance Start Date (YYYY)],$A21,1)),"",INDEX(Database[SFPUC Maintenance Start Date (YYYY)],$A21,1)) ->  | W21: =IF(ISBLANK(INDEX(Database[SFPUC Maintenance End Date (YYYY) - can be left blank if maintenance is ongoing],$A21,1)),"",INDEX(Database[SFPUC Maintenance End Date (YYYY) - can be left blank if maintenance is ongoing],$A21,1)) ->  | X21: =IF($X$7=$V21,$S$8*J21*(1+'6_Other Assumptions'!$B$9)^MID('7_Model'!$X$6,6,2)," ") ->  | Y21: =IF(AND(OR(Y$7<=$W21,$W21=""),OR(Y$7=$V21,X21<>" ")),$S21*$J21*(1+'6_Other Assumptions'!$B$9)^MID('7_Model'!Y$6,6,2)," ") ->  | Z21: =IF(AND(OR(Z$7<=$W21,$W21=""),OR(Z$7=$V21,Y21<>" ")),$S21*$J21*(1+'6_Other Assumptions'!$B$9)^MID('7_Model'!Z$6,6,2)," ") ->  | AA21: =IF(AND(OR(AA$7<=$W21,$W21=""),OR(AA$7=$V21,Z21<>" ")),$S21*$J21*(1+'6_Other Assumptions'!$B$9)^MID('7_Model'!AA$6,6,2)," ") ->  | AB21: =IF(AND(OR(AB$7<=$W21,$W21=""),OR(AB$7=$V21,AA21<>" ")),$S21*$J21*(1+'6_Other Assumptions'!$B$9)^MID('7_Model'!AB$6,6,2)," ") ->  | AC21: =IF(AND(OR(AC$7<=$W21,$W21=""),OR(AC$7=$V21,AB21<>" ")),$S21*$J21*(1+'6_Other Assumptions'!$B$9)^MID('7_Model'!AC$6,6,2)," ") ->  | AD21: =IF(AND(OR(AD$7<=$W21,$W21=""),OR(AD$7=$V21,AC21<>" ")),$S21*$J21*(1+'6_Other Assumptions'!$B$9)^MID('7_Model'!AD$6,6,2)," ") ->  | AE21: =IF(AND(OR(AE$7<=$W21,$W21=""),OR(AE$7=$V21,AD21<>" ")),$S21*$J21*(1+'6_Other Assumptions'!$B$9)^MID('7_Model'!AE$6,6,2)," ") ->  | AF21: =IF(AND(OR(AF$7<=$W21,$W21=""),OR(AF$7=$V21,AE21<>" ")),$S21*$J21*(1+'6_Other Assumptions'!$B$9)^MID('7_Model'!AF$6,6,2)," ") ->  | AG21: =IF(AND(OR(AG$7<=$W21,$W21=""),OR(AG$7=$V21,AF21<>" ")),$S21*$J21*(1+'6_Other Assumptions'!$B$9)^MID('7_Model'!AG$6,6,2)," ") ->  | AH21: =IF(AND(OR(AH$7<=$W21,$W21=""),OR(AH$7=$V21,AG21<>" ")),$S21*$J21*(1+'6_Other Assumptions'!$B$9)^MID('7_Model'!AH$6,6,2)," ") ->  | AI21: =IF(AND(OR(AI$7<=$W21,$W21=""),OR(AI$7=$V21,AH21<>" ")),$S21*$J21*(1+'6_Other Assumptions'!$B$9)^MID('7_Model'!AI$6,6,2)," ") ->  | AJ21: =IF(AND(OR(AJ$7<=$W21,$W21=""),OR(AJ$7=$V21,AI21<>" ")),$S21*$J21*(1+'6_Other Assumptions'!$B$9)^MID('7_Model'!AJ$6,6,2)," ") ->  | AK21: =IF(AND(OR(AK$7<=$W21,$W21=""),OR(AK$7=$V21,AJ21<>" ")),$S21*$J21*(1+'6_Other Assumptions'!$B$9)^MID('7_Model'!AK$6,6,2)," ") ->  | AL21: =IF(AND(OR(AL$7<=$W21,$W21=""),OR(AL$7=$V21,AK21<>" ")),$S21*$J21*(1+'6_Other Assumptions'!$B$9)^MID('7_Model'!AL$6,6,2)," ") ->  | AM21: =IF(AND(OR(AM$7<=$W21,$W21=""),OR(AM$7=$V21,AL21<>" ")),$S21*$J21*(1+'6_Other Assumptions'!$B$9)^MID('7_Model'!AM$6,6,2)," ") ->  | AN21: =IF(AND(OR(AN$7<=$W21,$W21=""),OR(AN$7=$V21,AM21<>" ")),$S21*$J21*(1+'6_Other Assumptions'!$B$9)^MID('7_Model'!AN$6,6,2)," ") ->  | AO21: =IF(AND(OR(AO$7<=$W21,$W21=""),OR(AO$7=$V21,AN21<>" ")),$S21*$J21*(1+'6_Other Assumptions'!$B$9)^MID('7_Model'!AO$6,6,2)," ") ->  | AP21: =IF(AND(OR(AP$7<=$W21,$W21=""),OR(AP$7=$V21,AO21<>" ")),$S21*$J21*(1+'6_Other Assumptions'!$B$9)^MID('7_Model'!AP$6,6,2)," ") ->  | AQ21: =IF(AND(OR(AQ$7<=$W21,$W21=""),OR(AQ$7=$V21,AP21<>" ")),$S21*$J21*(1+'6_Other Assumptions'!$B$9)^MID('7_Model'!AQ$6,6,2)," ") ->  | AR21: =IF(AND(OR(AR$7<=$W21,$W21=""),OR(AR$7=$V21,AQ21<>" ")),$S21*$J21*(1+'6_Other Assumptions'!$B$9)^MID('7_Model'!AR$6,6,2)," ") ->  | AS21: =IF(AND(OR(AS$7<=$W21,$W21=""),OR(AS$7=$V21,AR21<>" ")),$S21*$J21*(1+'6_Other Assumptions'!$B$9)^MID('7_Model'!AS$6,6,2)," ") ->  | AT21: =IF(AND(OR(AT$7<=$W21,$W21=""),OR(AT$7=$V21,AS21<>" ")),$S21*$J21*(1+'6_Other Assumptions'!$B$9)^MID('7_Model'!AT$6,6,2)," ") ->  | AU21: =IF(AND(OR(AU$7<=$W21,$W21=""),OR(AU$7=$V21,AT21<>" ")),$S21*$J21*(1+'6_Other Assumptions'!$B$9)^MID('7_Model'!AU$6,6,2)," ") ->  | AV21: =IF(AND(OR(AV$7<=$W21,$W21=""),OR(AV$7=$V21,AU21<>" ")),$S21*$J21*(1+'6_Other Assumptions'!$B$9)^MID('7_Model'!AV$6,6,2)," ") ->  | AW21: =IF(AND(OR(AW$7<=$W21,$W21=""),OR(AW$7=$V21,AV21<>" ")),$S21*$J21*(1+'6_Other Assumptions'!$B$9)^MID('7_Model'!AW$6,6,2)," ") ->  | AX21: =IF(AND(OR(AX$7<=$W21,$W21=""),OR(AX$7=$V21,AW21<>" ")),$S21*$J21*(1+'6_Other Assumptions'!$B$9)^MID('7_Model'!AX$6,6,2)," ") ->  | AY21: =IF(AND(OR(AY$7<=$W21,$W21=""),OR(AY$7=$V21,AX21<>" ")),$S21*$J21*(1+'6_Other Assumptions'!$B$9)^MID('7_Model'!AY$6,6,2)," ") ->  | AZ21: =IF(AND(OR(AZ$7<=$W21,$W21=""),OR(AZ$7=$V21,AY21<>" ")),$S21*$J21*(1+'6_Other Assumptions'!$B$9)^MID('7_Model'!AZ$6,6,2)," ") ->  | BA21: =IF(AND(OR(BA$7<=$W21,$W21=""),OR(BA$7=$V21,AZ21<>" ")),$S21*$J21*(1+'6_Other Assumptions'!$B$9)^MID('7_Model'!BA$6,6,2)," ") ->  | BB21: =IF(AND(OR(BB$7<=$W21,$W21=""),OR(BB$7=$V21,BA21<>" ")),$S21*$J21*(1+'6_Other Assumptions'!$B$9)^MID('7_Model'!BB$6,6,2)," ") ->  | BC21: =IF(AND(OR(BC$7<=$W21,$W21=""),OR(BC$7=$V21,BB21<>" ")),$S21*$J21*(1+'6_Other Assumptions'!$B$9)^MID('7_Model'!BC$6,6,2)," ") ->  | BD21: =IF(AND(OR(BD$7<=$W21,$W21=""),OR(BD$7=$V21,BC21<>" ")),$S21*$J21*(1+'6_Other Assumptions'!$B$9)^MID('7_Model'!BD$6,6,2)," ") ->  | BE21: =IF(AND(OR(BE$7<=$W21,$W21=""),OR(BE$7=$V21,BD21<>" ")),$S21*$J21*(1+'6_Other Assumptions'!$B$9)^MID('7_Model'!BE$6,6,2)," ") ->  | BF21: =IF(AND(OR(BF$7<=$W21,$W21=""),OR(BF$7=$V21,BE21<>" ")),$S21*$J21*(1+'6_Other Assumptions'!$B$9)^MID('7_Model'!BF$6,6,2)," ") ->  | BG21: =IF(AND(OR(BG$7<=$W21,$W21=""),OR(BG$7=$V21,BF21<>" ")),$S21*$J21*(1+'6_Other Assumptions'!$B$9)^MID('7_Model'!BG$6,6,2)," ") ->  | BH21: =IF(AND(OR(BH$7<=$W21,$W21=""),OR(BH$7=$V21,BG21<>" ")),$S21*$J21*(1+'6_Other Assumptions'!$B$9)^MID('7_Model'!BH$6,6,2)," ") -> 
A22: 15 | B22: =IF(ISBLANK(INDEX(Database[Project Name],A22,1)),"",INDEX(Database[Project Name],A22,1)) ->  | C22: =IF(ISBLANK(INDEX(Database[Watershed],$A22,1)),"",INDEX(Database[Watershed],$A22,1)) ->  | D22: =IF(ISBLANK(INDEX(Database[BMP Type],$A22,1)),"",INDEX(Database[BMP Type],$A22,1)) ->  | E22: =IF(ISBLANK(INDEX(Database[BMP Sub-type],$A22,1)),"",INDEX(Database[BMP Sub-type],$A22,1)) ->  | F22: =IF(ISBLANK(INDEX(Database[BMP Sub-sub-type],$A22,1)),"",INDEX(Database[BMP Sub-sub-type],$A22,1)) ->  | H22: =IF(ISBLANK(INDEX(Database[Spatial Distribution of BMP],$A22,1)),"",INDEX(Database[Spatial Distribution of BMP],$A22,1)) ->  | I22: =IF(H22="Typical",INDEX('5_Cost Assumptions'!$Y$7:$Y$230,MATCH('7_Model'!G22,'5_Cost Assumptions'!$D$7:$D$230,0)),IF(H22="Concentrated",INDEX('5_Cost Assumptions'!$AA$7:$AA$230,MATCH('7_Model'!G22,'5_Cost Assumptions'!$D$7:$D$230,0)),IF(H22="Dispersed",INDEX('5_Cost Assumptions'!$Z$7:$Z$230,MATCH('7_Model'!G22,'5_Cost Assumptions'!$D$7:$D$230,0)),""))) ->  | J22: =IF(ISBLANK(INDEX(Database[BMP Size],$A22,1)),"",INDEX(Database[BMP Size],$A22,1)) ->  | K22: =IF(B22="","",INDEX('5_Cost Assumptions'!$E$7:$E$230,MATCH(G22,'5_Cost Assumptions'!$D$7:$D$230,0))) ->  | L22: =IF(ISBLANK(INDEX(Database[Service Level],$A22,1)),"",INDEX(Database[Service Level],$A22,1)) ->  | M22: =IF(B22="","",INDEX('5_Cost Assumptions'!$I$7:$I$230,MATCH(G22,'5_Cost Assumptions'!$D$7:$D$230,0))) ->  | N22: =IF(B22="","",INDEX('5_Cost Assumptions'!$J$7:$J$230,MATCH(G22,'5_Cost Assumptions'!$D$7:$D$230,0))) ->  | O22: =IF(ISBLANK(INDEX(Database[Proportion of BMP cost for which SFPUC has O&M Responsibility (% of cost)],$A22,1)),"",INDEX(Database[Proportion of BMP cost for which SFPUC has O&M Responsibility (% of cost)],$A22,1)) ->  | P22: =IF(B22="","",INDEX('5_Cost Assumptions'!$W$7:$W$230,MATCH(G22,'5_Cost Assumptions'!$D$7:$D$230,0))) ->  | R22: =IF(ISBLANK(INDEX(Database[Cost Adjustment Factor (%)],$A22,1)),"",INDEX(Database[Cost Adjustment Factor (%)],$A22,1)) ->  | T22: =IF(B22="","",INDEX('5_Cost Assumptions'!$K$7:$K$230,MATCH(G22,'5_Cost Assumptions'!$D$7:$D$230,0))) ->  | U22: =IF(ISBLANK(INDEX(Database[Comments (text)],$A22,1)),"",INDEX(Database[Comments (text)],$A22,1)) ->  | V22: =IF(ISBLANK(INDEX(Database[SFPUC Maintenance Start Date (YYYY)],$A22,1)),"",INDEX(Database[SFPUC Maintenance Start Date (YYYY)],$A22,1)) ->  | W22: =IF(ISBLANK(INDEX(Database[SFPUC Maintenance End Date (YYYY) - can be left blank if maintenance is ongoing],$A22,1)),"",INDEX(Database[SFPUC Maintenance End Date (YYYY) - can be left blank if maintenance is ongoing],$A22,1)) ->  | X22: =IF($X$7=$V22,$S$8*J22*(1+'6_Other Assumptions'!$B$9)^MID('7_Model'!$X$6,6,2)," ") ->  | Y22: =IF(AND(OR(Y$7<=$W22,$W22=""),OR(Y$7=$V22,X22<>" ")),$S22*$J22*(1+'6_Other Assumptions'!$B$9)^MID('7_Model'!Y$6,6,2)," ") ->  | Z22: =IF(AND(OR(Z$7<=$W22,$W22=""),OR(Z$7=$V22,Y22<>" ")),$S22*$J22*(1+'6_Other Assumptions'!$B$9)^MID('7_Model'!Z$6,6,2)," ") ->  | AA22: =IF(AND(OR(AA$7<=$W22,$W22=""),OR(AA$7=$V22,Z22<>" ")),$S22*$J22*(1+'6_Other Assumptions'!$B$9)^MID('7_Model'!AA$6,6,2)," ") ->  | AB22: =IF(AND(OR(AB$7<=$W22,$W22=""),OR(AB$7=$V22,AA22<>" ")),$S22*$J22*(1+'6_Other Assumptions'!$B$9)^MID('7_Model'!AB$6,6,2)," ") ->  | AC22: =IF(AND(OR(AC$7<=$W22,$W22=""),OR(AC$7=$V22,AB22<>" ")),$S22*$J22*(1+'6_Other Assumptions'!$B$9)^MID('7_Model'!AC$6,6,2)," ") ->  | AD22: =IF(AND(OR(AD$7<=$W22,$W22=""),OR(AD$7=$V22,AC22<>" ")),$S22*$J22*(1+'6_Other Assumptions'!$B$9)^MID('7_Model'!AD$6,6,2)," ") ->  | AE22: =IF(AND(OR(AE$7<=$W22,$W22=""),OR(AE$7=$V22,AD22<>" ")),$S22*$J22*(1+'6_Other Assumptions'!$B$9)^MID('7_Model'!AE$6,6,2)," ") ->  | AF22: =IF(AND(OR(AF$7<=$W22,$W22=""),OR(AF$7=$V22,AE22<>" ")),$S22*$J22*(1+'6_Other Assumptions'!$B$9)^MID('7_Model'!AF$6,6,2)," ") ->  | AG22: =IF(AND(OR(AG$7<=$W22,$W22=""),OR(AG$7=$V22,AF22<>" ")),$S22*$J22*(1+'6_Other Assumptions'!$B$9)^MID('7_Model'!AG$6,6,2)," ") ->  | AH22: =IF(AND(OR(AH$7<=$W22,$W22=""),OR(AH$7=$V22,AG22<>" ")),$S22*$J22*(1+'6_Other Assumptions'!$B$9)^MID('7_Model'!AH$6,6,2)," ") ->  | AI22: =IF(AND(OR(AI$7<=$W22,$W22=""),OR(AI$7=$V22,AH22<>" ")),$S22*$J22*(1+'6_Other Assumptions'!$B$9)^MID('7_Model'!AI$6,6,2)," ") ->  | AJ22: =IF(AND(OR(AJ$7<=$W22,$W22=""),OR(AJ$7=$V22,AI22<>" ")),$S22*$J22*(1+'6_Other Assumptions'!$B$9)^MID('7_Model'!AJ$6,6,2)," ") ->  | AK22: =IF(AND(OR(AK$7<=$W22,$W22=""),OR(AK$7=$V22,AJ22<>" ")),$S22*$J22*(1+'6_Other Assumptions'!$B$9)^MID('7_Model'!AK$6,6,2)," ") ->  | AL22: =IF(AND(OR(AL$7<=$W22,$W22=""),OR(AL$7=$V22,AK22<>" ")),$S22*$J22*(1+'6_Other Assumptions'!$B$9)^MID('7_Model'!AL$6,6,2)," ") ->  | AM22: =IF(AND(OR(AM$7<=$W22,$W22=""),OR(AM$7=$V22,AL22<>" ")),$S22*$J22*(1+'6_Other Assumptions'!$B$9)^MID('7_Model'!AM$6,6,2)," ") ->  | AN22: =IF(AND(OR(AN$7<=$W22,$W22=""),OR(AN$7=$V22,AM22<>" ")),$S22*$J22*(1+'6_Other Assumptions'!$B$9)^MID('7_Model'!AN$6,6,2)," ") ->  | AO22: =IF(AND(OR(AO$7<=$W22,$W22=""),OR(AO$7=$V22,AN22<>" ")),$S22*$J22*(1+'6_Other Assumptions'!$B$9)^MID('7_Model'!AO$6,6,2)," ") ->  | AP22: =IF(AND(OR(AP$7<=$W22,$W22=""),OR(AP$7=$V22,AO22<>" ")),$S22*$J22*(1+'6_Other Assumptions'!$B$9)^MID('7_Model'!AP$6,6,2)," ") ->  | AQ22: =IF(AND(OR(AQ$7<=$W22,$W22=""),OR(AQ$7=$V22,AP22<>" ")),$S22*$J22*(1+'6_Other Assumptions'!$B$9)^MID('7_Model'!AQ$6,6,2)," ") ->  | AR22: =IF(AND(OR(AR$7<=$W22,$W22=""),OR(AR$7=$V22,AQ22<>" ")),$S22*$J22*(1+'6_Other Assumptions'!$B$9)^MID('7_Model'!AR$6,6,2)," ") ->  | AS22: =IF(AND(OR(AS$7<=$W22,$W22=""),OR(AS$7=$V22,AR22<>" ")),$S22*$J22*(1+'6_Other Assumptions'!$B$9)^MID('7_Model'!AS$6,6,2)," ") ->  | AT22: =IF(AND(OR(AT$7<=$W22,$W22=""),OR(AT$7=$V22,AS22<>" ")),$S22*$J22*(1+'6_Other Assumptions'!$B$9)^MID('7_Model'!AT$6,6,2)," ") ->  | AU22: =IF(AND(OR(AU$7<=$W22,$W22=""),OR(AU$7=$V22,AT22<>" ")),$S22*$J22*(1+'6_Other Assumptions'!$B$9)^MID('7_Model'!AU$6,6,2)," ") ->  | AV22: =IF(AND(OR(AV$7<=$W22,$W22=""),OR(AV$7=$V22,AU22<>" ")),$S22*$J22*(1+'6_Other Assumptions'!$B$9)^MID('7_Model'!AV$6,6,2)," ") ->  | AW22: =IF(AND(OR(AW$7<=$W22,$W22=""),OR(AW$7=$V22,AV22<>" ")),$S22*$J22*(1+'6_Other Assumptions'!$B$9)^MID('7_Model'!AW$6,6,2)," ") ->  | AX22: =IF(AND(OR(AX$7<=$W22,$W22=""),OR(AX$7=$V22,AW22<>" ")),$S22*$J22*(1+'6_Other Assumptions'!$B$9)^MID('7_Model'!AX$6,6,2)," ") ->  | AY22: =IF(AND(OR(AY$7<=$W22,$W22=""),OR(AY$7=$V22,AX22<>" ")),$S22*$J22*(1+'6_Other Assumptions'!$B$9)^MID('7_Model'!AY$6,6,2)," ") ->  | AZ22: =IF(AND(OR(AZ$7<=$W22,$W22=""),OR(AZ$7=$V22,AY22<>" ")),$S22*$J22*(1+'6_Other Assumptions'!$B$9)^MID('7_Model'!AZ$6,6,2)," ") ->  | BA22: =IF(AND(OR(BA$7<=$W22,$W22=""),OR(BA$7=$V22,AZ22<>" ")),$S22*$J22*(1+'6_Other Assumptions'!$B$9)^MID('7_Model'!BA$6,6,2)," ") ->  | BB22: =IF(AND(OR(BB$7<=$W22,$W22=""),OR(BB$7=$V22,BA22<>" ")),$S22*$J22*(1+'6_Other Assumptions'!$B$9)^MID('7_Model'!BB$6,6,2)," ") ->  | BC22: =IF(AND(OR(BC$7<=$W22,$W22=""),OR(BC$7=$V22,BB22<>" ")),$S22*$J22*(1+'6_Other Assumptions'!$B$9)^MID('7_Model'!BC$6,6,2)," ") ->  | BD22: =IF(AND(OR(BD$7<=$W22,$W22=""),OR(BD$7=$V22,BC22<>" ")),$S22*$J22*(1+'6_Other Assumptions'!$B$9)^MID('7_Model'!BD$6,6,2)," ") ->  | BE22: =IF(AND(OR(BE$7<=$W22,$W22=""),OR(BE$7=$V22,BD22<>" ")),$S22*$J22*(1+'6_Other Assumptions'!$B$9)^MID('7_Model'!BE$6,6,2)," ") ->  | BF22: =IF(AND(OR(BF$7<=$W22,$W22=""),OR(BF$7=$V22,BE22<>" ")),$S22*$J22*(1+'6_Other Assumptions'!$B$9)^MID('7_Model'!BF$6,6,2)," ") ->  | BG22: =IF(AND(OR(BG$7<=$W22,$W22=""),OR(BG$7=$V22,BF22<>" ")),$S22*$J22*(1+'6_Other Assumptions'!$B$9)^MID('7_Model'!BG$6,6,2)," ") ->  | BH22: =IF(AND(OR(BH$7<=$W22,$W22=""),OR(BH$7=$V22,BG22<>" ")),$S22*$J22*(1+'6_Other Assumptions'!$B$9)^MID('7_Model'!BH$6,6,2)," ") -> 
